Workbook

Sheet Snowball vs Avalanche
B2: Debt Snowball vs. Debt Avalanche Calculator (FREE Version)
G4: Extra Monthly Payment: | H4: $200 | N4: Provided by: Life And My Finances
G5: One-Time Startup Payment: | H5: 0 | N5: Copyright 2022
B9: Debt Snowball | D9: Total Debts | E9: =SUM(C16:C47) -> $6,000.00 | I9: Debt Avalanche | K9: Total Debts | L9: =SUM(J16:J47) -> $6,000.00
D10: Total Amount Paid | E10: =SUM('Debt Snowball Calculator'!B18:B137) -> $7,106.38 | K10: Total Amount Paid | L10: =SUM('Debt Avalanche Calculator'!B18:B137) -> $6,677.19
D11: # Months to Get Out of Debt | E11: =(VLOOKUP(0,'Debt Snowball Calculator'!$A$18:$C$137,3,FALSE)-1) -> 22 | K11: # Months to Get Out of Debt | L11: =(VLOOKUP(0,'Debt Avalanche Calculator'!$A$18:$C$137,3,FALSE)-1) -> 21
B13: Enter Snowball Debts From Smallest Debts to Largest | I13: Enter Avalanche Debts From Highest Interest to Lowest Interest
B15: Debt Name | C15: Current Balance | D15: Minimum Payment | E15: Interest Rate | G15: # Months to Pay Debts | I15: Debt Name | J15: Current Balance | K15: Minimum Payment | L15: Interest Rate | N15: # Months to Pay Debts
B16: Debt 1 | C16: $1,000.00 | D16: $25.00 | E16: 8.0% | G16: =VLOOKUP(0,'Debt Snowball Calculator'!$CX$17:$CY$137,2,FALSE) -> 5 | I16: Debt 3 | J16: $3,000.00 | K16: $60.00 | L16: 26.0% | N16: =VLOOKUP(0,'Debt Avalanche Calculator'!$CX$17:$CY$137,2,FALSE) -> 13
B17: Debt 2 | C17: $2,000.00 | D17: $40.00 | E17: 12.0% | G17: =IF(VLOOKUP(0,'Debt Snowball Calculator'!$DA$17:$DB$137,2,FALSE)=1,"",VLOOKUP(0,'Debt Snowball Calculator'!$DA$17:$DB$137,2,FALSE)) -> 12 | I17: Debt 2 | J17: $2,000.00 | K17: $40.00 | L17: 12.0% | N17: =IF(VLOOKUP(0,'Debt Avalanche Calculator'!$DA$17:$DB$137,2,FALSE)=1,"",VLOOKUP(0,'Debt Avalanche Calculator'!$DA$17:$DB$137,2,FALSE)) -> 19
B18: Debt 3 | C18: $3,000.00 | D18: $60.00 | E18: 26.0% | G18: =IF(VLOOKUP(0,'Debt Snowball Calculator'!$DD$17:$DE$137,2,FALSE)=1,"",VLOOKUP(0,'Debt Snowball Calculator'!$DD$17:$DE$137,2,FALSE)) -> 22 | I18: Debt 1 | J18: $1,000.00 | K18: $25.00 | L18: 8.0% | N18: =IF(VLOOKUP(0,'Debt Avalanche Calculator'!$DD$17:$DE$137,2,FALSE)=1,"",VLOOKUP(0,'Debt Avalanche Calculator'!$DD$17:$DE$137,2,FALSE)) -> 21
B19: Debt 4 | G19: =IF(VLOOKUP(0,'Debt Snowball Calculator'!$DG$17:$DH$137,2,FALSE)=1,"",VLOOKUP(0,'Debt Snowball Calculator'!$DG$17:$DH$137,2,FALSE)) ->  | I19: Debt 4 | N19: =IF(VLOOKUP(0,'Debt Avalanche Calculator'!$DG$17:$DH$137,2,FALSE)=1,"",VLOOKUP(0,'Debt Avalanche Calculator'!$DG$17:$DH$137,2,FALSE)) -> 
B20: Debt 5 | G20: =IF(VLOOKUP(0,'Debt Snowball Calculator'!$DJ$17:$DK$137,2,FALSE)=1,"",VLOOKUP(0,'Debt Snowball Calculator'!$DJ$17:$DK$137,2,FALSE)) ->  | I20: Debt 5 | N20: =IF(VLOOKUP(0,'Debt Avalanche Calculator'!$DJ$17:$DK$137,2,FALSE)=1,"",VLOOKUP(0,'Debt Avalanche Calculator'!$DJ$17:$DK$137,2,FALSE)) -> 
B21: Debt 6 | G21: =IF(VLOOKUP(0,'Debt Snowball Calculator'!$DM$17:$DN$137,2,FALSE)=1,"",VLOOKUP(0,'Debt Snowball Calculator'!$DM$17:$DN$137,2,FALSE)) ->  | I21: Debt 6 | N21: =IF(VLOOKUP(0,'Debt Avalanche Calculator'!$DM$17:$DN$137,2,FALSE)=1,"",VLOOKUP(0,'Debt Avalanche Calculator'!$DM$17:$DN$137,2,FALSE)) -> 
B22: Debt 7 | G22: =IF(VLOOKUP(0,'Debt Snowball Calculator'!$DP$17:$DQ$137,2,FALSE)=1,"",VLOOKUP(0,'Debt Snowball Calculator'!$DP$17:$DQ$137,2,FALSE)) ->  | I22: Debt 7 | N22: =IF(VLOOKUP(0,'Debt Avalanche Calculator'!$DP$17:$DQ$137,2,FALSE)=1,"",VLOOKUP(0,'Debt Avalanche Calculator'!$DP$17:$DQ$137,2,FALSE)) -> 
B23: Debt 8 | G23: =IF(VLOOKUP(0,'Debt Snowball Calculator'!$DS$17:$DT$137,2,FALSE)=1,"",VLOOKUP(0,'Debt Snowball Calculator'!$DS$17:$DT$137,2,FALSE)) ->  | I23: Debt 8 | N23: =IF(VLOOKUP(0,'Debt Avalanche Calculator'!$DS$17:$DT$137,2,FALSE)=1,"",VLOOKUP(0,'Debt Avalanche Calculator'!$DS$17:$DT$137,2,FALSE)) -> 
G24: =IF(VLOOKUP(0,'Debt Snowball Calculator'!$DV$17:$DW$137,2,FALSE)=1,"",VLOOKUP(0,'Debt Snowball Calculator'!$DV$17:$DW$137,2,FALSE)) ->  | N24: =IF(VLOOKUP(0,'Debt Avalanche Calculator'!$DV$17:$DW$137,2,FALSE)=1,"",VLOOKUP(0,'Debt Avalanche Calculator'!$DV$17:$DW$137,2,FALSE)) -> 
G25: =IF(VLOOKUP(0,'Debt Snowball Calculator'!$DY$17:$DZ$137,2,FALSE)=1,"",VLOOKUP(0,'Debt Snowball Calculator'!$DY$17:$DZ$137,2,FALSE)) ->  | N25: =IF(VLOOKUP(0,'Debt Avalanche Calculator'!$DY$17:$DZ$137,2,FALSE)=1,"",VLOOKUP(0,'Debt Avalanche Calculator'!$DY$17:$DZ$137,2,FALSE)) -> 
G26: =IF(VLOOKUP(0,'Debt Snowball Calculator'!$EB$17:$EC$137,2,FALSE)=1,"",VLOOKUP(0,'Debt Snowball Calculator'!$EB$17:$EC$137,2,FALSE)) ->  | N26: =IF(VLOOKUP(0,'Debt Avalanche Calculator'!$EB$17:$EC$137,2,FALSE)=1,"",VLOOKUP(0,'Debt Avalanche Calculator'!$EB$17:$EC$137,2,FALSE)) -> 
G27: =IF(VLOOKUP(0,'Debt Snowball Calculator'!$EE$17:$EF$137,2,FALSE)=1,"",VLOOKUP(0,'Debt Snowball Calculator'!$EE$17:$EF$137,2,FALSE)) ->  | N27: =IF(VLOOKUP(0,'Debt Avalanche Calculator'!$EE$17:$EF$137,2,FALSE)=1,"",VLOOKUP(0,'Debt Avalanche Calculator'!$EE$17:$EF$137,2,FALSE)) -> 
G28: =IF(VLOOKUP(0,'Debt Snowball Calculator'!$EH$17:$EI$137,2,FALSE)=1,"",VLOOKUP(0,'Debt Snowball Calculator'!$EH$17:$EI$137,2,FALSE)) ->  | N28: =IF(VLOOKUP(0,'Debt Avalanche Calculator'!$EH$17:$EI$137,2,FALSE)=1,"",VLOOKUP(0,'Debt Avalanche Calculator'!$EH$17:$EI$137,2,FALSE)) -> 
G29: =IF(VLOOKUP(0,'Debt Snowball Calculator'!$EK$17:$EL$137,2,FALSE)=1,"",VLOOKUP(0,'Debt Snowball Calculator'!$EK$17:$EL$137,2,FALSE)) ->  | N29: =IF(VLOOKUP(0,'Debt Avalanche Calculator'!$EK$17:$EL$137,2,FALSE)=1,"",VLOOKUP(0,'Debt Avalanche Calculator'!$EK$17:$EL$137,2,FALSE)) -> 
G30: =IF(VLOOKUP(0,'Debt Snowball Calculator'!$EN$17:$EO$137,2,FALSE)=1,"",VLOOKUP(0,'Debt Snowball Calculator'!$EN$17:$EO$137,2,FALSE)) ->  | N30: =IF(VLOOKUP(0,'Debt Avalanche Calculator'!$EN$17:$EO$137,2,FALSE)=1,"",VLOOKUP(0,'Debt Avalanche Calculator'!$EN$17:$EO$137,2,FALSE)) -> 
G31: =IF(VLOOKUP(0,'Debt Snowball Calculator'!$EQ$17:$ER$137,2,FALSE)=1,"",VLOOKUP(0,'Debt Snowball Calculator'!$EQ$17:$ER$137,2,FALSE)) ->  | N31: =IF(VLOOKUP(0,'Debt Avalanche Calculator'!$EQ$17:$ER$137,2,FALSE)=1,"",VLOOKUP(0,'Debt Avalanche Calculator'!$EQ$17:$ER$137,2,FALSE)) -> 
G32: =IF(VLOOKUP(0,'Debt Snowball Calculator'!$ET$17:$EU$137,2,FALSE)=1,"",VLOOKUP(0,'Debt Snowball Calculator'!$ET$17:$EU$137,2,FALSE)) ->  | N32: =IF(VLOOKUP(0,'Debt Avalanche Calculator'!$ET$17:$EU$137,2,FALSE)=1,"",VLOOKUP(0,'Debt Avalanche Calculator'!$ET$17:$EU$137,2,FALSE)) -> 
G33: =IF(VLOOKUP(0,'Debt Snowball Calculator'!$EW$17:$EX$137,2,FALSE)=1,"",VLOOKUP(0,'Debt Snowball Calculator'!$EW$17:$EX$137,2,FALSE)) ->  | N33: =IF(VLOOKUP(0,'Debt Avalanche Calculator'!$EW$17:$EX$137,2,FALSE)=1,"",VLOOKUP(0,'Debt Avalanche Calculator'!$EW$17:$EX$137,2,FALSE)) -> 
G34: =IF(VLOOKUP(0,'Debt Snowball Calculator'!$EZ$17:$FA$137,2,FALSE)=1,"",VLOOKUP(0,'Debt Snowball Calculator'!$EZ$17:$FA$137,2,FALSE)) ->  | N34: =IF(VLOOKUP(0,'Debt Avalanche Calculator'!$EZ$17:$FA$137,2,FALSE)=1,"",VLOOKUP(0,'Debt Avalanche Calculator'!$EZ$17:$FA$137,2,FALSE)) -> 
G35: =IF(VLOOKUP(0,'Debt Snowball Calculator'!$FC$17:$FD$137,2,FALSE)=1,"",VLOOKUP(0,'Debt Snowball Calculator'!$FC$17:$FD$137,2,FALSE)) ->  | N35: =IF(VLOOKUP(0,'Debt Avalanche Calculator'!$FC$17:$FD$137,2,FALSE)=1,"",VLOOKUP(0,'Debt Avalanche Calculator'!$FC$17:$FD$137,2,FALSE)) -> 
G36: =IF(VLOOKUP(0,'Debt Snowball Calculator'!$FF$17:$FG$137,2,FALSE)=1,"",VLOOKUP(0,'Debt Snowball Calculator'!$FF$17:$FG$137,2,FALSE)) ->  | N36: =IF(VLOOKUP(0,'Debt Avalanche Calculator'!$FF$17:$FG$137,2,FALSE)=1,"",VLOOKUP(0,'Debt Avalanche Calculator'!$FF$17:$FG$137,2,FALSE)) -> 
G37: =IF(VLOOKUP(0,'Debt Snowball Calculator'!$FI$17:$FJ$137,2,FALSE)=1,"",VLOOKUP(0,'Debt Snowball Calculator'!$FI$17:$FJ$137,2,FALSE)) ->  | N37: =IF(VLOOKUP(0,'Debt Avalanche Calculator'!$FI$17:$FJ$137,2,FALSE)=1,"",VLOOKUP(0,'Debt Avalanche Calculator'!$FI$17:$FJ$137,2,FALSE)) -> 
G38: =IF(VLOOKUP(0,'Debt Snowball Calculator'!$FL$17:$FM$137,2,FALSE)=1,"",VLOOKUP(0,'Debt Snowball Calculator'!$FL$17:$FM$137,2,FALSE)) ->  | N38: =IF(VLOOKUP(0,'Debt Avalanche Calculator'!$FL$17:$FM$137,2,FALSE)=1,"",VLOOKUP(0,'Debt Avalanche Calculator'!$FL$17:$FM$137,2,FALSE)) -> 
G39: =IF(VLOOKUP(0,'Debt Snowball Calculator'!$FO$17:$FP$137,2,FALSE)=1,"",VLOOKUP(0,'Debt Snowball Calculator'!$FO$17:$FP$137,2,FALSE)) ->  | N39: =IF(VLOOKUP(0,'Debt Avalanche Calculator'!$FO$17:$FP$137,2,FALSE)=1,"",VLOOKUP(0,'Debt Avalanche Calculator'!$FO$17:$FP$137,2,FALSE)) -> 
G40: =IF(VLOOKUP(0,'Debt Snowball Calculator'!$FR$17:$FS$137,2,FALSE)=1,"",VLOOKUP(0,'Debt Snowball Calculator'!$FR$17:$FS$137,2,FALSE)) ->  | N40: =IF(VLOOKUP(0,'Debt Avalanche Calculator'!$FR$17:$FS$137,2,FALSE)=1,"",VLOOKUP(0,'Debt Avalanche Calculator'!$FR$17:$FS$137,2,FALSE)) -> 
G41: =IF(VLOOKUP(0,'Debt Snowball Calculator'!$FU$17:$FV$137,2,FALSE)=1,"",VLOOKUP(0,'Debt Snowball Calculator'!$FU$17:$FV$137,2,FALSE)) ->  | N41: =IF(VLOOKUP(0,'Debt Avalanche Calculator'!$FU$17:$FV$137,2,FALSE)=1,"",VLOOKUP(0,'Debt Avalanche Calculator'!$FU$17:$FV$137,2,FALSE)) -> 
G42: =IF(VLOOKUP(0,'Debt Snowball Calculator'!$FX$17:$FY$137,2,FALSE)=1,"",VLOOKUP(0,'Debt Snowball Calculator'!$FX$17:$FY$137,2,FALSE)) ->  | N42: =IF(VLOOKUP(0,'Debt Avalanche Calculator'!$FX$17:$FY$137,2,FALSE)=1,"",VLOOKUP(0,'Debt Avalanche Calculator'!$FX$17:$FY$137,2,FALSE)) -> 
G43: =IF(VLOOKUP(0,'Debt Snowball Calculator'!$GA$17:$GB$137,2,FALSE)=1,"",VLOOKUP(0,'Debt Snowball Calculator'!$GA$17:$GB$137,2,FALSE)) ->  | N43: =IF(VLOOKUP(0,'Debt Avalanche Calculator'!$GA$17:$GB$137,2,FALSE)=1,"",VLOOKUP(0,'Debt Avalanche Calculator'!$GA$17:$GB$137,2,FALSE)) -> 
G44: =IF(VLOOKUP(0,'Debt Snowball Calculator'!$GD$17:$GE$137,2,FALSE)=1,"",VLOOKUP(0,'Debt Snowball Calculator'!$GD$17:$GE$137,2,FALSE)) ->  | N44: =IF(VLOOKUP(0,'Debt Avalanche Calculator'!$GD$17:$GE$137,2,FALSE)=1,"",VLOOKUP(0,'Debt Avalanche Calculator'!$GD$17:$GE$137,2,FALSE)) -> 
G45: =IF(VLOOKUP(0,'Debt Snowball Calculator'!$GG$17:$GH$137,2,FALSE)=1,"",VLOOKUP(0,'Debt Snowball Calculator'!$GG$17:$GH$137,2,FALSE)) ->  | N45: =IF(VLOOKUP(0,'Debt Avalanche Calculator'!$GG$17:$GH$137,2,FALSE)=1,"",VLOOKUP(0,'Debt Avalanche Calculator'!$GG$17:$GH$137,2,FALSE)) -> 
G46: =IF(VLOOKUP(0,'Debt Snowball Calculator'!$GJ$17:$GK$137,2,FALSE)=1,"",VLOOKUP(0,'Debt Snowball Calculator'!$GJ$17:$GK$137,2,FALSE)) ->  | N46: =IF(VLOOKUP(0,'Debt Avalanche Calculator'!$GJ$17:$GK$137,2,FALSE)=1,"",VLOOKUP(0,'Debt Avalanche Calculator'!$GJ$17:$GK$137,2,FALSE)) -> 
G47: =IF(VLOOKUP(0,'Debt Snowball Calculator'!$GM$17:$GN$137,2,FALSE)=1,"",VLOOKUP(0,'Debt Snowball Calculator'!$GM$17:$GN$137,2,FALSE)) ->  | N47: =IF(VLOOKUP(0,'Debt Avalanche Calculator'!$GM$17:$GN$137,2,FALSE)=1,"",VLOOKUP(0,'Debt Avalanche Calculator'!$GM$17:$GN$137,2,FALSE)) -> 

Sheet Debt Payoff Chart
C3: Debt Payoff Chart
H4: Enter all your numbers in the 'Snowball vs Avalanche' tab and then click "Refresh Chart" to the right. | X4: Provided by: LifeAndMyFinances.com
H5: See the payoff cadence of the debt snowball vs the debt avalanche! | X5: Copyright 2022
C10: Debt Snowball vs Debt Avalanche
B13: X | C13: Y
A14: Max | B14: =$M$19 -> 22 | C14: =C16*11 -> 11,000.00
A15: Min | B15: 0 | C15: 0
A16: Incre | B16: 1 | C16: =ROUNDUP($J$19/11,-3) -> $1,000.00
I18: Month | J18: Debt Snowball | K18: Debt Avalanche | M18: Debt Payoff Month
I19: 0 | J19: =SUM('Debt Snowball Calculator'!E13:CT13) -> $6,000.00 | K19: =SUM('Debt Avalanche Calculator'!E13:CT13) -> $6,000.00 | L19: 0 | M19: =VLOOKUP(I19,$J$19:$L$139,3,FALSE) -> 22
I20: 1 | J20: =SUM('Debt Snowball Calculator'!$E18,'Debt Snowball Calculator'!$H18,'Debt Snowball Calculator'!$K18,'Debt Snowball Calculator'!$N18,'Debt Snowball Calculator'!$Q18,'Debt Snowball Calculator'!$T18,'Debt Snowball Calculator'!$W18,'Debt Snowball Calculator'!$Z18,'Debt Snowball Calculator'!$AC18,'Debt Snowball Calculator'!$AF18,'Debt Snowball Calculator'!$AI18,'Debt Snowball Calculator'!$AL18,'Debt Snowball Calculator'!$AO18,'Debt Snowball Calculator'!$AR18,'Debt Snowball Calculator'!$AU18,'Debt Snowball Calculator'!$AX18,'Debt Snowball Calculator'!$BA18,'Debt Snowball Calculator'!$BD18,'Debt Snowball Calculator'!$BG18,'Debt Snowball Calculator'!$BJ18,'Debt Snowball Calculator'!$BM18,'Debt Snowball Calculator'!$BP18,'Debt Snowball Calculator'!$BS18,'Debt Snowball Calculator'!$BV18,'Debt Snowball Calculator'!$BY18,'Debt Snowball Calculator'!$CB18,'Debt Snowball Calculator'!$CE18,'Debt Snowball Calculator'!$CH18,'Debt Snowball Calculator'!$CK18,'Debt Snowball Calculator'!$CN18,'Debt Snowball Calculator'!$CQ18,'Debt Snowball Calculator'!$CT18) -> $5,675.00 | K20: =SUM('Debt Avalanche Calculator'!$E18,'Debt Avalanche Calculator'!$H18,'Debt Avalanche Calculator'!$K18,'Debt Avalanche Calculator'!$N18,'Debt Avalanche Calculator'!$Q18,'Debt Avalanche Calculator'!$T18,'Debt Avalanche Calculator'!$W18,'Debt Avalanche Calculator'!$Z18,'Debt Avalanche Calculator'!$AC18,'Debt Avalanche Calculator'!$AF18,'Debt Avalanche Calculator'!$AI18,'Debt Avalanche Calculator'!$AL18,'Debt Avalanche Calculator'!$AO18,'Debt Avalanche Calculator'!$AR18,'Debt Avalanche Calculator'!$AU18,'Debt Avalanche Calculator'!$AX18,'Debt Avalanche Calculator'!$BA18,'Debt Avalanche Calculator'!$BD18,'Debt Avalanche Calculator'!$BG18,'Debt Avalanche Calculator'!$BJ18,'Debt Avalanche Calculator'!$BM18,'Debt Avalanche Calculator'!$BP18,'Debt Avalanche Calculator'!$BS18,'Debt Avalanche Calculator'!$BV18,'Debt Avalanche Calculator'!$BY18,'Debt Avalanche Calculator'!$CB18,'Debt Avalanche Calculator'!$CE18,'Debt Avalanche Calculator'!$CH18,'Debt Avalanche Calculator'!$CK18,'Debt Avalanche Calculator'!$CN18,'Debt Avalanche Calculator'!$CQ18,'Debt Avalanche Calculator'!$CT18) -> $5,675.00 | L20: 1
I21: 2 | J21: =SUM('Debt Snowball Calculator'!E19,'Debt Snowball Calculator'!H19,'Debt Snowball Calculator'!K19,'Debt Snowball Calculator'!N19,'Debt Snowball Calculator'!Q19,'Debt Snowball Calculator'!T19,'Debt Snowball Calculator'!W19,'Debt Snowball Calculator'!Z19,'Debt Snowball Calculator'!AC19,'Debt Snowball Calculator'!AF19,'Debt Snowball Calculator'!AI19,'Debt Snowball Calculator'!AL19,'Debt Snowball Calculator'!AO19,'Debt Snowball Calculator'!AR19,'Debt Snowball Calculator'!AU19,'Debt Snowball Calculator'!AX19,'Debt Snowball Calculator'!BA19,'Debt Snowball Calculator'!BD19,'Debt Snowball Calculator'!BG19,'Debt Snowball Calculator'!BJ19,'Debt Snowball Calculator'!BM19,'Debt Snowball Calculator'!BP19,'Debt Snowball Calculator'!BS19,'Debt Snowball Calculator'!BV19,'Debt Snowball Calculator'!BY19,'Debt Snowball Calculator'!CB19,'Debt Snowball Calculator'!CE19,'Debt Snowball Calculator'!CH19,'Debt Snowball Calculator'!CK19,'Debt Snowball Calculator'!CN19,'Debt Snowball Calculator'!CQ19,'Debt Snowball Calculator'!CT19) -> $5,435.27 | K21: =SUM('Debt Avalanche Calculator'!$E19,'Debt Avalanche Calculator'!$H19,'Debt Avalanche Calculator'!$K19,'Debt Avalanche Calculator'!$N19,'Debt Avalanche Calculator'!$Q19,'Debt Avalanche Calculator'!$T19,'Debt Avalanche Calculator'!$W19,'Debt Avalanche Calculator'!$Z19,'Debt Avalanche Calculator'!$AC19,'Debt Avalanche Calculator'!$AF19,'Debt Avalanche Calculator'!$AI19,'Debt Avalanche Calculator'!$AL19,'Debt Avalanche Calculator'!$AO19,'Debt Avalanche Calculator'!$AR19,'Debt Avalanche Calculator'!$AU19,'Debt Avalanche Calculator'!$AX19,'Debt Avalanche Calculator'!$BA19,'Debt Avalanche Calculator'!$BD19,'Debt Avalanche Calculator'!$BG19,'Debt Avalanche Calculator'!$BJ19,'Debt Avalanche Calculator'!$BM19,'Debt Avalanche Calculator'!$BP19,'Debt Avalanche Calculator'!$BS19,'Debt Avalanche Calculator'!$BV19,'Debt Avalanche Calculator'!$BY19,'Debt Avalanche Calculator'!$CB19,'Debt Avalanche Calculator'!$CE19,'Debt Avalanche Calculator'!$CH19,'Debt Avalanche Calculator'!$CK19,'Debt Avalanche Calculator'!$CN19,'Debt Avalanche Calculator'!$CQ19,'Debt Avalanche Calculator'!$CT19) -> $5,429.27 | L21: 2
I22: 3 | J22: =SUM('Debt Snowball Calculator'!E20,'Debt Snowball Calculator'!H20,'Debt Snowball Calculator'!K20,'Debt Snowball Calculator'!N20,'Debt Snowball Calculator'!Q20,'Debt Snowball Calculator'!T20,'Debt Snowball Calculator'!W20,'Debt Snowball Calculator'!Z20,'Debt Snowball Calculator'!AC20,'Debt Snowball Calculator'!AF20,'Debt Snowball Calculator'!AI20,'Debt Snowball Calculator'!AL20,'Debt Snowball Calculator'!AO20,'Debt Snowball Calculator'!AR20,'Debt Snowball Calculator'!AU20,'Debt Snowball Calculator'!AX20,'Debt Snowball Calculator'!BA20,'Debt Snowball Calculator'!BD20,'Debt Snowball Calculator'!BG20,'Debt Snowball Calculator'!BJ20,'Debt Snowball Calculator'!BM20,'Debt Snowball Calculator'!BP20,'Debt Snowball Calculator'!BS20,'Debt Snowball Calculator'!BV20,'Debt Snowball Calculator'!BY20,'Debt Snowball Calculator'!CB20,'Debt Snowball Calculator'!CE20,'Debt Snowball Calculator'!CH20,'Debt Snowball Calculator'!CK20,'Debt Snowball Calculator'!CN20,'Debt Snowball Calculator'!CQ20,'Debt Snowball Calculator'!CT20) -> $5,193.90 | K22: =SUM('Debt Avalanche Calculator'!$E20,'Debt Avalanche Calculator'!$H20,'Debt Avalanche Calculator'!$K20,'Debt Avalanche Calculator'!$N20,'Debt Avalanche Calculator'!$Q20,'Debt Avalanche Calculator'!$T20,'Debt Avalanche Calculator'!$W20,'Debt Avalanche Calculator'!$Z20,'Debt Avalanche Calculator'!$AC20,'Debt Avalanche Calculator'!$AF20,'Debt Avalanche Calculator'!$AI20,'Debt Avalanche Calculator'!$AL20,'Debt Avalanche Calculator'!$AO20,'Debt Avalanche Calculator'!$AR20,'Debt Avalanche Calculator'!$AU20,'Debt Avalanche Calculator'!$AX20,'Debt Avalanche Calculator'!$BA20,'Debt Avalanche Calculator'!$BD20,'Debt Avalanche Calculator'!$BG20,'Debt Avalanche Calculator'!$BJ20,'Debt Avalanche Calculator'!$BM20,'Debt Avalanche Calculator'!$BP20,'Debt Avalanche Calculator'!$BS20,'Debt Avalanche Calculator'!$BV20,'Debt Avalanche Calculator'!$BY20,'Debt Avalanche Calculator'!$CB20,'Debt Avalanche Calculator'!$CE20,'Debt Avalanche Calculator'!$CH20,'Debt Avalanche Calculator'!$CK20,'Debt Avalanche Calculator'!$CN20,'Debt Avalanche Calculator'!$CQ20,'Debt Avalanche Calculator'!$CT20) -> $5,178.73 | L22: 3
I23: 4 | J23: =SUM('Debt Snowball Calculator'!E21,'Debt Snowball Calculator'!H21,'Debt Snowball Calculator'!K21,'Debt Snowball Calculator'!N21,'Debt Snowball Calculator'!Q21,'Debt Snowball Calculator'!T21,'Debt Snowball Calculator'!W21,'Debt Snowball Calculator'!Z21,'Debt Snowball Calculator'!AC21,'Debt Snowball Calculator'!AF21,'Debt Snowball Calculator'!AI21,'Debt Snowball Calculator'!AL21,'Debt Snowball Calculator'!AO21,'Debt Snowball Calculator'!AR21,'Debt Snowball Calculator'!AU21,'Debt Snowball Calculator'!AX21,'Debt Snowball Calculator'!BA21,'Debt Snowball Calculator'!BD21,'Debt Snowball Calculator'!BG21,'Debt Snowball Calculator'!BJ21,'Debt Snowball Calculator'!BM21,'Debt Snowball Calculator'!BP21,'Debt Snowball Calculator'!BS21,'Debt Snowball Calculator'!BV21,'Debt Snowball Calculator'!BY21,'Debt Snowball Calculator'!CB21,'Debt Snowball Calculator'!CE21,'Debt Snowball Calculator'!CH21,'Debt Snowball Calculator'!CK21,'Debt Snowball Calculator'!CN21,'Debt Snowball Calculator'!CQ21,'Debt Snowball Calculator'!CT21) -> $4,950.89 | K23: =SUM('Debt Avalanche Calculator'!$E21,'Debt Avalanche Calculator'!$H21,'Debt Avalanche Calculator'!$K21,'Debt Avalanche Calculator'!$N21,'Debt Avalanche Calculator'!$Q21,'Debt Avalanche Calculator'!$T21,'Debt Avalanche Calculator'!$W21,'Debt Avalanche Calculator'!$Z21,'Debt Avalanche Calculator'!$AC21,'Debt Avalanche Calculator'!$AF21,'Debt Avalanche Calculator'!$AI21,'Debt Avalanche Calculator'!$AL21,'Debt Avalanche Calculator'!$AO21,'Debt Avalanche Calculator'!$AR21,'Debt Avalanche Calculator'!$AU21,'Debt Avalanche Calculator'!$AX21,'Debt Avalanche Calculator'!$BA21,'Debt Avalanche Calculator'!$BD21,'Debt Avalanche Calculator'!$BG21,'Debt Avalanche Calculator'!$BJ21,'Debt Avalanche Calculator'!$BM21,'Debt Avalanche Calculator'!$BP21,'Debt Avalanche Calculator'!$BS21,'Debt Avalanche Calculator'!$BV21,'Debt Avalanche Calculator'!$BY21,'Debt Avalanche Calculator'!$CB21,'Debt Avalanche Calculator'!$CE21,'Debt Avalanche Calculator'!$CH21,'Debt Avalanche Calculator'!$CK21,'Debt Avalanche Calculator'!$CN21,'Debt Avalanche Calculator'!$CQ21,'Debt Avalanche Calculator'!$CT21) -> $4,923.30 | L23: 4
I24: 5 | J24: =SUM('Debt Snowball Calculator'!E22,'Debt Snowball Calculator'!H22,'Debt Snowball Calculator'!K22,'Debt Snowball Calculator'!N22,'Debt Snowball Calculator'!Q22,'Debt Snowball Calculator'!T22,'Debt Snowball Calculator'!W22,'Debt Snowball Calculator'!Z22,'Debt Snowball Calculator'!AC22,'Debt Snowball Calculator'!AF22,'Debt Snowball Calculator'!AI22,'Debt Snowball Calculator'!AL22,'Debt Snowball Calculator'!AO22,'Debt Snowball Calculator'!AR22,'Debt Snowball Calculator'!AU22,'Debt Snowball Calculator'!AX22,'Debt Snowball Calculator'!BA22,'Debt Snowball Calculator'!BD22,'Debt Snowball Calculator'!BG22,'Debt Snowball Calculator'!BJ22,'Debt Snowball Calculator'!BM22,'Debt Snowball Calculator'!BP22,'Debt Snowball Calculator'!BS22,'Debt Snowball Calculator'!BV22,'Debt Snowball Calculator'!BY22,'Debt Snowball Calculator'!CB22,'Debt Snowball Calculator'!CE22,'Debt Snowball Calculator'!CH22,'Debt Snowball Calculator'!CK22,'Debt Snowball Calculator'!CN22,'Debt Snowball Calculator'!CQ22,'Debt Snowball Calculator'!CT22) -> $4,705.84 | K24: =SUM('Debt Avalanche Calculator'!$E22,'Debt Avalanche Calculator'!$H22,'Debt Avalanche Calculator'!$K22,'Debt Avalanche Calculator'!$N22,'Debt Avalanche Calculator'!$Q22,'Debt Avalanche Calculator'!$T22,'Debt Avalanche Calculator'!$W22,'Debt Avalanche Calculator'!$Z22,'Debt Avalanche Calculator'!$AC22,'Debt Avalanche Calculator'!$AF22,'Debt Avalanche Calculator'!$AI22,'Debt Avalanche Calculator'!$AL22,'Debt Avalanche Calculator'!$AO22,'Debt Avalanche Calculator'!$AR22,'Debt Avalanche Calculator'!$AU22,'Debt Avalanche Calculator'!$AX22,'Debt Avalanche Calculator'!$BA22,'Debt Avalanche Calculator'!$BD22,'Debt Avalanche Calculator'!$BG22,'Debt Avalanche Calculator'!$BJ22,'Debt Avalanche Calculator'!$BM22,'Debt Avalanche Calculator'!$BP22,'Debt Avalanche Calculator'!$BS22,'Debt Avalanche Calculator'!$BV22,'Debt Avalanche Calculator'!$BY22,'Debt Avalanche Calculator'!$CB22,'Debt Avalanche Calculator'!$CE22,'Debt Avalanche Calculator'!$CH22,'Debt Avalanche Calculator'!$CK22,'Debt Avalanche Calculator'!$CN22,'Debt Avalanche Calculator'!$CQ22,'Debt Avalanche Calculator'!$CT22) -> $4,662.86 | L24: 5
I25: 6 | J25: =SUM('Debt Snowball Calculator'!E23,'Debt Snowball Calculator'!H23,'Debt Snowball Calculator'!K23,'Debt Snowball Calculator'!N23,'Debt Snowball Calculator'!Q23,'Debt Snowball Calculator'!T23,'Debt Snowball Calculator'!W23,'Debt Snowball Calculator'!Z23,'Debt Snowball Calculator'!AC23,'Debt Snowball Calculator'!AF23,'Debt Snowball Calculator'!AI23,'Debt Snowball Calculator'!AL23,'Debt Snowball Calculator'!AO23,'Debt Snowball Calculator'!AR23,'Debt Snowball Calculator'!AU23,'Debt Snowball Calculator'!AX23,'Debt Snowball Calculator'!BA23,'Debt Snowball Calculator'!BD23,'Debt Snowball Calculator'!BG23,'Debt Snowball Calculator'!BJ23,'Debt Snowball Calculator'!BM23,'Debt Snowball Calculator'!BP23,'Debt Snowball Calculator'!BS23,'Debt Snowball Calculator'!BV23,'Debt Snowball Calculator'!BY23,'Debt Snowball Calculator'!CB23,'Debt Snowball Calculator'!CE23,'Debt Snowball Calculator'!CH23,'Debt Snowball Calculator'!CK23,'Debt Snowball Calculator'!CN23,'Debt Snowball Calculator'!CQ23,'Debt Snowball Calculator'!CT23) -> $4,458.36 | K25: =SUM('Debt Avalanche Calculator'!$E23,'Debt Avalanche Calculator'!$H23,'Debt Avalanche Calculator'!$K23,'Debt Avalanche Calculator'!$N23,'Debt Avalanche Calculator'!$Q23,'Debt Avalanche Calculator'!$T23,'Debt Avalanche Calculator'!$W23,'Debt Avalanche Calculator'!$Z23,'Debt Avalanche Calculator'!$AC23,'Debt Avalanche Calculator'!$AF23,'Debt Avalanche Calculator'!$AI23,'Debt Avalanche Calculator'!$AL23,'Debt Avalanche Calculator'!$AO23,'Debt Avalanche Calculator'!$AR23,'Debt Avalanche Calculator'!$AU23,'Debt Avalanche Calculator'!$AX23,'Debt Avalanche Calculator'!$BA23,'Debt Avalanche Calculator'!$BD23,'Debt Avalanche Calculator'!$BG23,'Debt Avalanche Calculator'!$BJ23,'Debt Avalanche Calculator'!$BM23,'Debt Avalanche Calculator'!$BP23,'Debt Avalanche Calculator'!$BS23,'Debt Avalanche Calculator'!$BV23,'Debt Avalanche Calculator'!$BY23,'Debt Avalanche Calculator'!$CB23,'Debt Avalanche Calculator'!$CE23,'Debt Avalanche Calculator'!$CH23,'Debt Avalanche Calculator'!$CK23,'Debt Avalanche Calculator'!$CN23,'Debt Avalanche Calculator'!$CQ23,'Debt Avalanche Calculator'!$CT23) -> $4,397.31 | L25: 6
I26: 7 | J26: =SUM('Debt Snowball Calculator'!E24,'Debt Snowball Calculator'!H24,'Debt Snowball Calculator'!K24,'Debt Snowball Calculator'!N24,'Debt Snowball Calculator'!Q24,'Debt Snowball Calculator'!T24,'Debt Snowball Calculator'!W24,'Debt Snowball Calculator'!Z24,'Debt Snowball Calculator'!AC24,'Debt Snowball Calculator'!AF24,'Debt Snowball Calculator'!AI24,'Debt Snowball Calculator'!AL24,'Debt Snowball Calculator'!AO24,'Debt Snowball Calculator'!AR24,'Debt Snowball Calculator'!AU24,'Debt Snowball Calculator'!AX24,'Debt Snowball Calculator'!BA24,'Debt Snowball Calculator'!BD24,'Debt Snowball Calculator'!BG24,'Debt Snowball Calculator'!BJ24,'Debt Snowball Calculator'!BM24,'Debt Snowball Calculator'!BP24,'Debt Snowball Calculator'!BS24,'Debt Snowball Calculator'!BV24,'Debt Snowball Calculator'!BY24,'Debt Snowball Calculator'!CB24,'Debt Snowball Calculator'!CE24,'Debt Snowball Calculator'!CH24,'Debt Snowball Calculator'!CK24,'Debt Snowball Calculator'!CN24,'Debt Snowball Calculator'!CQ24,'Debt Snowball Calculator'!CT24) -> $4,208.44 | K26: =SUM('Debt Avalanche Calculator'!$E24,'Debt Avalanche Calculator'!$H24,'Debt Avalanche Calculator'!$K24,'Debt Avalanche Calculator'!$N24,'Debt Avalanche Calculator'!$Q24,'Debt Avalanche Calculator'!$T24,'Debt Avalanche Calculator'!$W24,'Debt Avalanche Calculator'!$Z24,'Debt Avalanche Calculator'!$AC24,'Debt Avalanche Calculator'!$AF24,'Debt Avalanche Calculator'!$AI24,'Debt Avalanche Calculator'!$AL24,'Debt Avalanche Calculator'!$AO24,'Debt Avalanche Calculator'!$AR24,'Debt Avalanche Calculator'!$AU24,'Debt Avalanche Calculator'!$AX24,'Debt Avalanche Calculator'!$BA24,'Debt Avalanche Calculator'!$BD24,'Debt Avalanche Calculator'!$BG24,'Debt Avalanche Calculator'!$BJ24,'Debt Avalanche Calculator'!$BM24,'Debt Avalanche Calculator'!$BP24,'Debt Avalanche Calculator'!$BS24,'Debt Avalanche Calculator'!$BV24,'Debt Avalanche Calculator'!$BY24,'Debt Avalanche Calculator'!$CB24,'Debt Avalanche Calculator'!$CE24,'Debt Avalanche Calculator'!$CH24,'Debt Avalanche Calculator'!$CK24,'Debt Avalanche Calculator'!$CN24,'Debt Avalanche Calculator'!$CQ24,'Debt Avalanche Calculator'!$CT24) -> $4,126.55 | L26: 7
I27: 8 | J27: =SUM('Debt Snowball Calculator'!E25,'Debt Snowball Calculator'!H25,'Debt Snowball Calculator'!K25,'Debt Snowball Calculator'!N25,'Debt Snowball Calculator'!Q25,'Debt Snowball Calculator'!T25,'Debt Snowball Calculator'!W25,'Debt Snowball Calculator'!Z25,'Debt Snowball Calculator'!AC25,'Debt Snowball Calculator'!AF25,'Debt Snowball Calculator'!AI25,'Debt Snowball Calculator'!AL25,'Debt Snowball Calculator'!AO25,'Debt Snowball Calculator'!AR25,'Debt Snowball Calculator'!AU25,'Debt Snowball Calculator'!AX25,'Debt Snowball Calculator'!BA25,'Debt Snowball Calculator'!BD25,'Debt Snowball Calculator'!BG25,'Debt Snowball Calculator'!BJ25,'Debt Snowball Calculator'!BM25,'Debt Snowball Calculator'!BP25,'Debt Snowball Calculator'!BS25,'Debt Snowball Calculator'!BV25,'Debt Snowball Calculator'!BY25,'Debt Snowball Calculator'!CB25,'Debt Snowball Calculator'!CE25,'Debt Snowball Calculator'!CH25,'Debt Snowball Calculator'!CK25,'Debt Snowball Calculator'!CN25,'Debt Snowball Calculator'!CQ25,'Debt Snowball Calculator'!CT25) -> $3,956.06 | K27: =SUM('Debt Avalanche Calculator'!$E25,'Debt Avalanche Calculator'!$H25,'Debt Avalanche Calculator'!$K25,'Debt Avalanche Calculator'!$N25,'Debt Avalanche Calculator'!$Q25,'Debt Avalanche Calculator'!$T25,'Debt Avalanche Calculator'!$W25,'Debt Avalanche Calculator'!$Z25,'Debt Avalanche Calculator'!$AC25,'Debt Avalanche Calculator'!$AF25,'Debt Avalanche Calculator'!$AI25,'Debt Avalanche Calculator'!$AL25,'Debt Avalanche Calculator'!$AO25,'Debt Avalanche Calculator'!$AR25,'Debt Avalanche Calculator'!$AU25,'Debt Avalanche Calculator'!$AX25,'Debt Avalanche Calculator'!$BA25,'Debt Avalanche Calculator'!$BD25,'Debt Avalanche Calculator'!$BG25,'Debt Avalanche Calculator'!$BJ25,'Debt Avalanche Calculator'!$BM25,'Debt Avalanche Calculator'!$BP25,'Debt Avalanche Calculator'!$BS25,'Debt Avalanche Calculator'!$BV25,'Debt Avalanche Calculator'!$BY25,'Debt Avalanche Calculator'!$CB25,'Debt Avalanche Calculator'!$CE25,'Debt Avalanche Calculator'!$CH25,'Debt Avalanche Calculator'!$CK25,'Debt Avalanche Calculator'!$CN25,'Debt Avalanche Calculator'!$CQ25,'Debt Avalanche Calculator'!$CT25) -> $3,850.47 | L27: 8
I28: 9 | J28: =SUM('Debt Snowball Calculator'!E26,'Debt Snowball Calculator'!H26,'Debt Snowball Calculator'!K26,'Debt Snowball Calculator'!N26,'Debt Snowball Calculator'!Q26,'Debt Snowball Calculator'!T26,'Debt Snowball Calculator'!W26,'Debt Snowball Calculator'!Z26,'Debt Snowball Calculator'!AC26,'Debt Snowball Calculator'!AF26,'Debt Snowball Calculator'!AI26,'Debt Snowball Calculator'!AL26,'Debt Snowball Calculator'!AO26,'Debt Snowball Calculator'!AR26,'Debt Snowball Calculator'!AU26,'Debt Snowball Calculator'!AX26,'Debt Snowball Calculator'!BA26,'Debt Snowball Calculator'!BD26,'Debt Snowball Calculator'!BG26,'Debt Snowball Calculator'!BJ26,'Debt Snowball Calculator'!BM26,'Debt Snowball Calculator'!BP26,'Debt Snowball Calculator'!BS26,'Debt Snowball Calculator'!BV26,'Debt Snowball Calculator'!BY26,'Debt Snowball Calculator'!CB26,'Debt Snowball Calculator'!CE26,'Debt Snowball Calculator'!CH26,'Debt Snowball Calculator'!CK26,'Debt Snowball Calculator'!CN26,'Debt Snowball Calculator'!CQ26,'Debt Snowball Calculator'!CT26) -> $3,701.17 | K28: =SUM('Debt Avalanche Calculator'!$E26,'Debt Avalanche Calculator'!$H26,'Debt Avalanche Calculator'!$K26,'Debt Avalanche Calculator'!$N26,'Debt Avalanche Calculator'!$Q26,'Debt Avalanche Calculator'!$T26,'Debt Avalanche Calculator'!$W26,'Debt Avalanche Calculator'!$Z26,'Debt Avalanche Calculator'!$AC26,'Debt Avalanche Calculator'!$AF26,'Debt Avalanche Calculator'!$AI26,'Debt Avalanche Calculator'!$AL26,'Debt Avalanche Calculator'!$AO26,'Debt Avalanche Calculator'!$AR26,'Debt Avalanche Calculator'!$AU26,'Debt Avalanche Calculator'!$AX26,'Debt Avalanche Calculator'!$BA26,'Debt Avalanche Calculator'!$BD26,'Debt Avalanche Calculator'!$BG26,'Debt Avalanche Calculator'!$BJ26,'Debt Avalanche Calculator'!$BM26,'Debt Avalanche Calculator'!$BP26,'Debt Avalanche Calculator'!$BS26,'Debt Avalanche Calculator'!$BV26,'Debt Avalanche Calculator'!$BY26,'Debt Avalanche Calculator'!$CB26,'Debt Avalanche Calculator'!$CE26,'Debt Avalanche Calculator'!$CH26,'Debt Avalanche Calculator'!$CK26,'Debt Avalanche Calculator'!$CN26,'Debt Avalanche Calculator'!$CQ26,'Debt Avalanche Calculator'!$CT26) -> $3,568.95 | L28: 9
I29: 10 | J29: =SUM('Debt Snowball Calculator'!E27,'Debt Snowball Calculator'!H27,'Debt Snowball Calculator'!K27,'Debt Snowball Calculator'!N27,'Debt Snowball Calculator'!Q27,'Debt Snowball Calculator'!T27,'Debt Snowball Calculator'!W27,'Debt Snowball Calculator'!Z27,'Debt Snowball Calculator'!AC27,'Debt Snowball Calculator'!AF27,'Debt Snowball Calculator'!AI27,'Debt Snowball Calculator'!AL27,'Debt Snowball Calculator'!AO27,'Debt Snowball Calculator'!AR27,'Debt Snowball Calculator'!AU27,'Debt Snowball Calculator'!AX27,'Debt Snowball Calculator'!BA27,'Debt Snowball Calculator'!BD27,'Debt Snowball Calculator'!BG27,'Debt Snowball Calculator'!BJ27,'Debt Snowball Calculator'!BM27,'Debt Snowball Calculator'!BP27,'Debt Snowball Calculator'!BS27,'Debt Snowball Calculator'!BV27,'Debt Snowball Calculator'!BY27,'Debt Snowball Calculator'!CB27,'Debt Snowball Calculator'!CE27,'Debt Snowball Calculator'!CH27,'Debt Snowball Calculator'!CK27,'Debt Snowball Calculator'!CN27,'Debt Snowball Calculator'!CQ27,'Debt Snowball Calculator'!CT27) -> $3,443.78 | K29: =SUM('Debt Avalanche Calculator'!$E27,'Debt Avalanche Calculator'!$H27,'Debt Avalanche Calculator'!$K27,'Debt Avalanche Calculator'!$N27,'Debt Avalanche Calculator'!$Q27,'Debt Avalanche Calculator'!$T27,'Debt Avalanche Calculator'!$W27,'Debt Avalanche Calculator'!$Z27,'Debt Avalanche Calculator'!$AC27,'Debt Avalanche Calculator'!$AF27,'Debt Avalanche Calculator'!$AI27,'Debt Avalanche Calculator'!$AL27,'Debt Avalanche Calculator'!$AO27,'Debt Avalanche Calculator'!$AR27,'Debt Avalanche Calculator'!$AU27,'Debt Avalanche Calculator'!$AX27,'Debt Avalanche Calculator'!$BA27,'Debt Avalanche Calculator'!$BD27,'Debt Avalanche Calculator'!$BG27,'Debt Avalanche Calculator'!$BJ27,'Debt Avalanche Calculator'!$BM27,'Debt Avalanche Calculator'!$BP27,'Debt Avalanche Calculator'!$BS27,'Debt Avalanche Calculator'!$BV27,'Debt Avalanche Calculator'!$BY27,'Debt Avalanche Calculator'!$CB27,'Debt Avalanche Calculator'!$CE27,'Debt Avalanche Calculator'!$CH27,'Debt Avalanche Calculator'!$CK27,'Debt Avalanche Calculator'!$CN27,'Debt Avalanche Calculator'!$CQ27,'Debt Avalanche Calculator'!$CT27) -> $3,281.89 | L29: 10
I30: 11 | J30: =SUM('Debt Snowball Calculator'!E28,'Debt Snowball Calculator'!H28,'Debt Snowball Calculator'!K28,'Debt Snowball Calculator'!N28,'Debt Snowball Calculator'!Q28,'Debt Snowball Calculator'!T28,'Debt Snowball Calculator'!W28,'Debt Snowball Calculator'!Z28,'Debt Snowball Calculator'!AC28,'Debt Snowball Calculator'!AF28,'Debt Snowball Calculator'!AI28,'Debt Snowball Calculator'!AL28,'Debt Snowball Calculator'!AO28,'Debt Snowball Calculator'!AR28,'Debt Snowball Calculator'!AU28,'Debt Snowball Calculator'!AX28,'Debt Snowball Calculator'!BA28,'Debt Snowball Calculator'!BD28,'Debt Snowball Calculator'!BG28,'Debt Snowball Calculator'!BJ28,'Debt Snowball Calculator'!BM28,'Debt Snowball Calculator'!BP28,'Debt Snowball Calculator'!BS28,'Debt Snowball Calculator'!BV28,'Debt Snowball Calculator'!BY28,'Debt Snowball Calculator'!CB28,'Debt Snowball Calculator'!CE28,'Debt Snowball Calculator'!CH28,'Debt Snowball Calculator'!CK28,'Debt Snowball Calculator'!CN28,'Debt Snowball Calculator'!CQ28,'Debt Snowball Calculator'!CT28) -> $3,183.84 | K30: =SUM('Debt Avalanche Calculator'!$E28,'Debt Avalanche Calculator'!$H28,'Debt Avalanche Calculator'!$K28,'Debt Avalanche Calculator'!$N28,'Debt Avalanche Calculator'!$Q28,'Debt Avalanche Calculator'!$T28,'Debt Avalanche Calculator'!$W28,'Debt Avalanche Calculator'!$Z28,'Debt Avalanche Calculator'!$AC28,'Debt Avalanche Calculator'!$AF28,'Debt Avalanche Calculator'!$AI28,'Debt Avalanche Calculator'!$AL28,'Debt Avalanche Calculator'!$AO28,'Debt Avalanche Calculator'!$AR28,'Debt Avalanche Calculator'!$AU28,'Debt Avalanche Calculator'!$AX28,'Debt Avalanche Calculator'!$BA28,'Debt Avalanche Calculator'!$BD28,'Debt Avalanche Calculator'!$BG28,'Debt Avalanche Calculator'!$BJ28,'Debt Avalanche Calculator'!$BM28,'Debt Avalanche Calculator'!$BP28,'Debt Avalanche Calculator'!$BS28,'Debt Avalanche Calculator'!$BV28,'Debt Avalanche Calculator'!$BY28,'Debt Avalanche Calculator'!$CB28,'Debt Avalanche Calculator'!$CE28,'Debt Avalanche Calculator'!$CH28,'Debt Avalanche Calculator'!$CK28,'Debt Avalanche Calculator'!$CN28,'Debt Avalanche Calculator'!$CQ28,'Debt Avalanche Calculator'!$CT28) -> $2,989.17 | L30: 11
I31: 12 | J31: =SUM('Debt Snowball Calculator'!E29,'Debt Snowball Calculator'!H29,'Debt Snowball Calculator'!K29,'Debt Snowball Calculator'!N29,'Debt Snowball Calculator'!Q29,'Debt Snowball Calculator'!T29,'Debt Snowball Calculator'!W29,'Debt Snowball Calculator'!Z29,'Debt Snowball Calculator'!AC29,'Debt Snowball Calculator'!AF29,'Debt Snowball Calculator'!AI29,'Debt Snowball Calculator'!AL29,'Debt Snowball Calculator'!AO29,'Debt Snowball Calculator'!AR29,'Debt Snowball Calculator'!AU29,'Debt Snowball Calculator'!AX29,'Debt Snowball Calculator'!BA29,'Debt Snowball Calculator'!BD29,'Debt Snowball Calculator'!BG29,'Debt Snowball Calculator'!BJ29,'Debt Snowball Calculator'!BM29,'Debt Snowball Calculator'!BP29,'Debt Snowball Calculator'!BS29,'Debt Snowball Calculator'!BV29,'Debt Snowball Calculator'!BY29,'Debt Snowball Calculator'!CB29,'Debt Snowball Calculator'!CE29,'Debt Snowball Calculator'!CH29,'Debt Snowball Calculator'!CK29,'Debt Snowball Calculator'!CN29,'Debt Snowball Calculator'!CQ29,'Debt Snowball Calculator'!CT29) -> $2,920.78 | K31: =SUM('Debt Avalanche Calculator'!$E29,'Debt Avalanche Calculator'!$H29,'Debt Avalanche Calculator'!$K29,'Debt Avalanche Calculator'!$N29,'Debt Avalanche Calculator'!$Q29,'Debt Avalanche Calculator'!$T29,'Debt Avalanche Calculator'!$W29,'Debt Avalanche Calculator'!$Z29,'Debt Avalanche Calculator'!$AC29,'Debt Avalanche Calculator'!$AF29,'Debt Avalanche Calculator'!$AI29,'Debt Avalanche Calculator'!$AL29,'Debt Avalanche Calculator'!$AO29,'Debt Avalanche Calculator'!$AR29,'Debt Avalanche Calculator'!$AU29,'Debt Avalanche Calculator'!$AX29,'Debt Avalanche Calculator'!$BA29,'Debt Avalanche Calculator'!$BD29,'Debt Avalanche Calculator'!$BG29,'Debt Avalanche Calculator'!$BJ29,'Debt Avalanche Calculator'!$BM29,'Debt Avalanche Calculator'!$BP29,'Debt Avalanche Calculator'!$BS29,'Debt Avalanche Calculator'!$BV29,'Debt Avalanche Calculator'!$BY29,'Debt Avalanche Calculator'!$CB29,'Debt Avalanche Calculator'!$CE29,'Debt Avalanche Calculator'!$CH29,'Debt Avalanche Calculator'!$CK29,'Debt Avalanche Calculator'!$CN29,'Debt Avalanche Calculator'!$CQ29,'Debt Avalanche Calculator'!$CT29) -> $2,690.67 | L31: 12 | M31: Month
I32: 13 | J32: =SUM('Debt Snowball Calculator'!E30,'Debt Snowball Calculator'!H30,'Debt Snowball Calculator'!K30,'Debt Snowball Calculator'!N30,'Debt Snowball Calculator'!Q30,'Debt Snowball Calculator'!T30,'Debt Snowball Calculator'!W30,'Debt Snowball Calculator'!Z30,'Debt Snowball Calculator'!AC30,'Debt Snowball Calculator'!AF30,'Debt Snowball Calculator'!AI30,'Debt Snowball Calculator'!AL30,'Debt Snowball Calculator'!AO30,'Debt Snowball Calculator'!AR30,'Debt Snowball Calculator'!AU30,'Debt Snowball Calculator'!AX30,'Debt Snowball Calculator'!BA30,'Debt Snowball Calculator'!BD30,'Debt Snowball Calculator'!BG30,'Debt Snowball Calculator'!BJ30,'Debt Snowball Calculator'!BM30,'Debt Snowball Calculator'!BP30,'Debt Snowball Calculator'!BS30,'Debt Snowball Calculator'!BV30,'Debt Snowball Calculator'!BY30,'Debt Snowball Calculator'!CB30,'Debt Snowball Calculator'!CE30,'Debt Snowball Calculator'!CH30,'Debt Snowball Calculator'!CK30,'Debt Snowball Calculator'!CN30,'Debt Snowball Calculator'!CQ30,'Debt Snowball Calculator'!CT30) -> $2,652.02 | K32: =SUM('Debt Avalanche Calculator'!$E30,'Debt Avalanche Calculator'!$H30,'Debt Avalanche Calculator'!$K30,'Debt Avalanche Calculator'!$N30,'Debt Avalanche Calculator'!$Q30,'Debt Avalanche Calculator'!$T30,'Debt Avalanche Calculator'!$W30,'Debt Avalanche Calculator'!$Z30,'Debt Avalanche Calculator'!$AC30,'Debt Avalanche Calculator'!$AF30,'Debt Avalanche Calculator'!$AI30,'Debt Avalanche Calculator'!$AL30,'Debt Avalanche Calculator'!$AO30,'Debt Avalanche Calculator'!$AR30,'Debt Avalanche Calculator'!$AU30,'Debt Avalanche Calculator'!$AX30,'Debt Avalanche Calculator'!$BA30,'Debt Avalanche Calculator'!$BD30,'Debt Avalanche Calculator'!$BG30,'Debt Avalanche Calculator'!$BJ30,'Debt Avalanche Calculator'!$BM30,'Debt Avalanche Calculator'!$BP30,'Debt Avalanche Calculator'!$BS30,'Debt Avalanche Calculator'!$BV30,'Debt Avalanche Calculator'!$BY30,'Debt Avalanche Calculator'!$CB30,'Debt Avalanche Calculator'!$CE30,'Debt Avalanche Calculator'!$CH30,'Debt Avalanche Calculator'!$CK30,'Debt Avalanche Calculator'!$CN30,'Debt Avalanche Calculator'!$CQ30,'Debt Avalanche Calculator'!$CT30) -> $2,386.87 | L32: 13
I33: 14 | J33: =SUM('Debt Snowball Calculator'!E31,'Debt Snowball Calculator'!H31,'Debt Snowball Calculator'!K31,'Debt Snowball Calculator'!N31,'Debt Snowball Calculator'!Q31,'Debt Snowball Calculator'!T31,'Debt Snowball Calculator'!W31,'Debt Snowball Calculator'!Z31,'Debt Snowball Calculator'!AC31,'Debt Snowball Calculator'!AF31,'Debt Snowball Calculator'!AI31,'Debt Snowball Calculator'!AL31,'Debt Snowball Calculator'!AO31,'Debt Snowball Calculator'!AR31,'Debt Snowball Calculator'!AU31,'Debt Snowball Calculator'!AX31,'Debt Snowball Calculator'!BA31,'Debt Snowball Calculator'!BD31,'Debt Snowball Calculator'!BG31,'Debt Snowball Calculator'!BJ31,'Debt Snowball Calculator'!BM31,'Debt Snowball Calculator'!BP31,'Debt Snowball Calculator'!BS31,'Debt Snowball Calculator'!BV31,'Debt Snowball Calculator'!BY31,'Debt Snowball Calculator'!CB31,'Debt Snowball Calculator'!CE31,'Debt Snowball Calculator'!CH31,'Debt Snowball Calculator'!CK31,'Debt Snowball Calculator'!CN31,'Debt Snowball Calculator'!CQ31,'Debt Snowball Calculator'!CT31) -> $2,377.44 | K33: =SUM('Debt Avalanche Calculator'!$E31,'Debt Avalanche Calculator'!$H31,'Debt Avalanche Calculator'!$K31,'Debt Avalanche Calculator'!$N31,'Debt Avalanche Calculator'!$Q31,'Debt Avalanche Calculator'!$T31,'Debt Avalanche Calculator'!$W31,'Debt Avalanche Calculator'!$Z31,'Debt Avalanche Calculator'!$AC31,'Debt Avalanche Calculator'!$AF31,'Debt Avalanche Calculator'!$AI31,'Debt Avalanche Calculator'!$AL31,'Debt Avalanche Calculator'!$AO31,'Debt Avalanche Calculator'!$AR31,'Debt Avalanche Calculator'!$AU31,'Debt Avalanche Calculator'!$AX31,'Debt Avalanche Calculator'!$BA31,'Debt Avalanche Calculator'!$BD31,'Debt Avalanche Calculator'!$BG31,'Debt Avalanche Calculator'!$BJ31,'Debt Avalanche Calculator'!$BM31,'Debt Avalanche Calculator'!$BP31,'Debt Avalanche Calculator'!$BS31,'Debt Avalanche Calculator'!$BV31,'Debt Avalanche Calculator'!$BY31,'Debt Avalanche Calculator'!$CB31,'Debt Avalanche Calculator'!$CE31,'Debt Avalanche Calculator'!$CH31,'Debt Avalanche Calculator'!$CK31,'Debt Avalanche Calculator'!$CN31,'Debt Avalanche Calculator'!$CQ31,'Debt Avalanche Calculator'!$CT31) -> $2,080.09 | L33: 14
I34: 15 | J34: =SUM('Debt Snowball Calculator'!E32,'Debt Snowball Calculator'!H32,'Debt Snowball Calculator'!K32,'Debt Snowball Calculator'!N32,'Debt Snowball Calculator'!Q32,'Debt Snowball Calculator'!T32,'Debt Snowball Calculator'!W32,'Debt Snowball Calculator'!Z32,'Debt Snowball Calculator'!AC32,'Debt Snowball Calculator'!AF32,'Debt Snowball Calculator'!AI32,'Debt Snowball Calculator'!AL32,'Debt Snowball Calculator'!AO32,'Debt Snowball Calculator'!AR32,'Debt Snowball Calculator'!AU32,'Debt Snowball Calculator'!AX32,'Debt Snowball Calculator'!BA32,'Debt Snowball Calculator'!BD32,'Debt Snowball Calculator'!BG32,'Debt Snowball Calculator'!BJ32,'Debt Snowball Calculator'!BM32,'Debt Snowball Calculator'!BP32,'Debt Snowball Calculator'!BS32,'Debt Snowball Calculator'!BV32,'Debt Snowball Calculator'!BY32,'Debt Snowball Calculator'!CB32,'Debt Snowball Calculator'!CE32,'Debt Snowball Calculator'!CH32,'Debt Snowball Calculator'!CK32,'Debt Snowball Calculator'!CN32,'Debt Snowball Calculator'!CQ32,'Debt Snowball Calculator'!CT32) -> $2,096.91 | K34: =SUM('Debt Avalanche Calculator'!$E32,'Debt Avalanche Calculator'!$H32,'Debt Avalanche Calculator'!$K32,'Debt Avalanche Calculator'!$N32,'Debt Avalanche Calculator'!$Q32,'Debt Avalanche Calculator'!$T32,'Debt Avalanche Calculator'!$W32,'Debt Avalanche Calculator'!$Z32,'Debt Avalanche Calculator'!$AC32,'Debt Avalanche Calculator'!$AF32,'Debt Avalanche Calculator'!$AI32,'Debt Avalanche Calculator'!$AL32,'Debt Avalanche Calculator'!$AO32,'Debt Avalanche Calculator'!$AR32,'Debt Avalanche Calculator'!$AU32,'Debt Avalanche Calculator'!$AX32,'Debt Avalanche Calculator'!$BA32,'Debt Avalanche Calculator'!$BD32,'Debt Avalanche Calculator'!$BG32,'Debt Avalanche Calculator'!$BJ32,'Debt Avalanche Calculator'!$BM32,'Debt Avalanche Calculator'!$BP32,'Debt Avalanche Calculator'!$BS32,'Debt Avalanche Calculator'!$BV32,'Debt Avalanche Calculator'!$BY32,'Debt Avalanche Calculator'!$CB32,'Debt Avalanche Calculator'!$CE32,'Debt Avalanche Calculator'!$CH32,'Debt Avalanche Calculator'!$CK32,'Debt Avalanche Calculator'!$CN32,'Debt Avalanche Calculator'!$CQ32,'Debt Avalanche Calculator'!$CT32) -> $1,770.32 | L34: 15
I35: 16 | J35: =SUM('Debt Snowball Calculator'!E33,'Debt Snowball Calculator'!H33,'Debt Snowball Calculator'!K33,'Debt Snowball Calculator'!N33,'Debt Snowball Calculator'!Q33,'Debt Snowball Calculator'!T33,'Debt Snowball Calculator'!W33,'Debt Snowball Calculator'!Z33,'Debt Snowball Calculator'!AC33,'Debt Snowball Calculator'!AF33,'Debt Snowball Calculator'!AI33,'Debt Snowball Calculator'!AL33,'Debt Snowball Calculator'!AO33,'Debt Snowball Calculator'!AR33,'Debt Snowball Calculator'!AU33,'Debt Snowball Calculator'!AX33,'Debt Snowball Calculator'!BA33,'Debt Snowball Calculator'!BD33,'Debt Snowball Calculator'!BG33,'Debt Snowball Calculator'!BJ33,'Debt Snowball Calculator'!BM33,'Debt Snowball Calculator'!BP33,'Debt Snowball Calculator'!BS33,'Debt Snowball Calculator'!BV33,'Debt Snowball Calculator'!BY33,'Debt Snowball Calculator'!CB33,'Debt Snowball Calculator'!CE33,'Debt Snowball Calculator'!CH33,'Debt Snowball Calculator'!CK33,'Debt Snowball Calculator'!CN33,'Debt Snowball Calculator'!CQ33,'Debt Snowball Calculator'!CT33) -> $1,810.30 | K35: =SUM('Debt Avalanche Calculator'!$E33,'Debt Avalanche Calculator'!$H33,'Debt Avalanche Calculator'!$K33,'Debt Avalanche Calculator'!$N33,'Debt Avalanche Calculator'!$Q33,'Debt Avalanche Calculator'!$T33,'Debt Avalanche Calculator'!$W33,'Debt Avalanche Calculator'!$Z33,'Debt Avalanche Calculator'!$AC33,'Debt Avalanche Calculator'!$AF33,'Debt Avalanche Calculator'!$AI33,'Debt Avalanche Calculator'!$AL33,'Debt Avalanche Calculator'!$AO33,'Debt Avalanche Calculator'!$AR33,'Debt Avalanche Calculator'!$AU33,'Debt Avalanche Calculator'!$AX33,'Debt Avalanche Calculator'!$BA33,'Debt Avalanche Calculator'!$BD33,'Debt Avalanche Calculator'!$BG33,'Debt Avalanche Calculator'!$BJ33,'Debt Avalanche Calculator'!$BM33,'Debt Avalanche Calculator'!$BP33,'Debt Avalanche Calculator'!$BS33,'Debt Avalanche Calculator'!$BV33,'Debt Avalanche Calculator'!$BY33,'Debt Avalanche Calculator'!$CB33,'Debt Avalanche Calculator'!$CE33,'Debt Avalanche Calculator'!$CH33,'Debt Avalanche Calculator'!$CK33,'Debt Avalanche Calculator'!$CN33,'Debt Avalanche Calculator'!$CQ33,'Debt Avalanche Calculator'!$CT33) -> $1,457.52 | L35: 16
I36: 17 | J36: =SUM('Debt Snowball Calculator'!E34,'Debt Snowball Calculator'!H34,'Debt Snowball Calculator'!K34,'Debt Snowball Calculator'!N34,'Debt Snowball Calculator'!Q34,'Debt Snowball Calculator'!T34,'Debt Snowball Calculator'!W34,'Debt Snowball Calculator'!Z34,'Debt Snowball Calculator'!AC34,'Debt Snowball Calculator'!AF34,'Debt Snowball Calculator'!AI34,'Debt Snowball Calculator'!AL34,'Debt Snowball Calculator'!AO34,'Debt Snowball Calculator'!AR34,'Debt Snowball Calculator'!AU34,'Debt Snowball Calculator'!AX34,'Debt Snowball Calculator'!BA34,'Debt Snowball Calculator'!BD34,'Debt Snowball Calculator'!BG34,'Debt Snowball Calculator'!BJ34,'Debt Snowball Calculator'!BM34,'Debt Snowball Calculator'!BP34,'Debt Snowball Calculator'!BS34,'Debt Snowball Calculator'!BV34,'Debt Snowball Calculator'!BY34,'Debt Snowball Calculator'!CB34,'Debt Snowball Calculator'!CE34,'Debt Snowball Calculator'!CH34,'Debt Snowball Calculator'!CK34,'Debt Snowball Calculator'!CN34,'Debt Snowball Calculator'!CQ34,'Debt Snowball Calculator'!CT34) -> $1,517.49 | K36: =SUM('Debt Avalanche Calculator'!$E34,'Debt Avalanche Calculator'!$H34,'Debt Avalanche Calculator'!$K34,'Debt Avalanche Calculator'!$N34,'Debt Avalanche Calculator'!$Q34,'Debt Avalanche Calculator'!$T34,'Debt Avalanche Calculator'!$W34,'Debt Avalanche Calculator'!$Z34,'Debt Avalanche Calculator'!$AC34,'Debt Avalanche Calculator'!$AF34,'Debt Avalanche Calculator'!$AI34,'Debt Avalanche Calculator'!$AL34,'Debt Avalanche Calculator'!$AO34,'Debt Avalanche Calculator'!$AR34,'Debt Avalanche Calculator'!$AU34,'Debt Avalanche Calculator'!$AX34,'Debt Avalanche Calculator'!$BA34,'Debt Avalanche Calculator'!$BD34,'Debt Avalanche Calculator'!$BG34,'Debt Avalanche Calculator'!$BJ34,'Debt Avalanche Calculator'!$BM34,'Debt Avalanche Calculator'!$BP34,'Debt Avalanche Calculator'!$BS34,'Debt Avalanche Calculator'!$BV34,'Debt Avalanche Calculator'!$BY34,'Debt Avalanche Calculator'!$CB34,'Debt Avalanche Calculator'!$CE34,'Debt Avalanche Calculator'!$CH34,'Debt Avalanche Calculator'!$CK34,'Debt Avalanche Calculator'!$CN34,'Debt Avalanche Calculator'!$CQ34,'Debt Avalanche Calculator'!$CT34) -> $1,141.65 | L36: 17
I37: 18 | J37: =SUM('Debt Snowball Calculator'!E35,'Debt Snowball Calculator'!H35,'Debt Snowball Calculator'!K35,'Debt Snowball Calculator'!N35,'Debt Snowball Calculator'!Q35,'Debt Snowball Calculator'!T35,'Debt Snowball Calculator'!W35,'Debt Snowball Calculator'!Z35,'Debt Snowball Calculator'!AC35,'Debt Snowball Calculator'!AF35,'Debt Snowball Calculator'!AI35,'Debt Snowball Calculator'!AL35,'Debt Snowball Calculator'!AO35,'Debt Snowball Calculator'!AR35,'Debt Snowball Calculator'!AU35,'Debt Snowball Calculator'!AX35,'Debt Snowball Calculator'!BA35,'Debt Snowball Calculator'!BD35,'Debt Snowball Calculator'!BG35,'Debt Snowball Calculator'!BJ35,'Debt Snowball Calculator'!BM35,'Debt Snowball Calculator'!BP35,'Debt Snowball Calculator'!BS35,'Debt Snowball Calculator'!BV35,'Debt Snowball Calculator'!BY35,'Debt Snowball Calculator'!CB35,'Debt Snowball Calculator'!CE35,'Debt Snowball Calculator'!CH35,'Debt Snowball Calculator'!CK35,'Debt Snowball Calculator'!CN35,'Debt Snowball Calculator'!CQ35,'Debt Snowball Calculator'!CT35) -> $1,218.32 | K37: =SUM('Debt Avalanche Calculator'!$E35,'Debt Avalanche Calculator'!$H35,'Debt Avalanche Calculator'!$K35,'Debt Avalanche Calculator'!$N35,'Debt Avalanche Calculator'!$Q35,'Debt Avalanche Calculator'!$T35,'Debt Avalanche Calculator'!$W35,'Debt Avalanche Calculator'!$Z35,'Debt Avalanche Calculator'!$AC35,'Debt Avalanche Calculator'!$AF35,'Debt Avalanche Calculator'!$AI35,'Debt Avalanche Calculator'!$AL35,'Debt Avalanche Calculator'!$AO35,'Debt Avalanche Calculator'!$AR35,'Debt Avalanche Calculator'!$AU35,'Debt Avalanche Calculator'!$AX35,'Debt Avalanche Calculator'!$BA35,'Debt Avalanche Calculator'!$BD35,'Debt Avalanche Calculator'!$BG35,'Debt Avalanche Calculator'!$BJ35,'Debt Avalanche Calculator'!$BM35,'Debt Avalanche Calculator'!$BP35,'Debt Avalanche Calculator'!$BS35,'Debt Avalanche Calculator'!$BV35,'Debt Avalanche Calculator'!$BY35,'Debt Avalanche Calculator'!$CB35,'Debt Avalanche Calculator'!$CE35,'Debt Avalanche Calculator'!$CH35,'Debt Avalanche Calculator'!$CK35,'Debt Avalanche Calculator'!$CN35,'Debt Avalanche Calculator'!$CQ35,'Debt Avalanche Calculator'!$CT35) -> $822.70 | L37: 18 | M37: Month
I38: 19 | J38: =SUM('Debt Snowball Calculator'!E36,'Debt Snowball Calculator'!H36,'Debt Snowball Calculator'!K36,'Debt Snowball Calculator'!N36,'Debt Snowball Calculator'!Q36,'Debt Snowball Calculator'!T36,'Debt Snowball Calculator'!W36,'Debt Snowball Calculator'!Z36,'Debt Snowball Calculator'!AC36,'Debt Snowball Calculator'!AF36,'Debt Snowball Calculator'!AI36,'Debt Snowball Calculator'!AL36,'Debt Snowball Calculator'!AO36,'Debt Snowball Calculator'!AR36,'Debt Snowball Calculator'!AU36,'Debt Snowball Calculator'!AX36,'Debt Snowball Calculator'!BA36,'Debt Snowball Calculator'!BD36,'Debt Snowball Calculator'!BG36,'Debt Snowball Calculator'!BJ36,'Debt Snowball Calculator'!BM36,'Debt Snowball Calculator'!BP36,'Debt Snowball Calculator'!BS36,'Debt Snowball Calculator'!BV36,'Debt Snowball Calculator'!BY36,'Debt Snowball Calculator'!CB36,'Debt Snowball Calculator'!CE36,'Debt Snowball Calculator'!CH36,'Debt Snowball Calculator'!CK36,'Debt Snowball Calculator'!CN36,'Debt Snowball Calculator'!CQ36,'Debt Snowball Calculator'!CT36) -> $912.68 | K38: =SUM('Debt Avalanche Calculator'!$E36,'Debt Avalanche Calculator'!$H36,'Debt Avalanche Calculator'!$K36,'Debt Avalanche Calculator'!$N36,'Debt Avalanche Calculator'!$Q36,'Debt Avalanche Calculator'!$T36,'Debt Avalanche Calculator'!$W36,'Debt Avalanche Calculator'!$Z36,'Debt Avalanche Calculator'!$AC36,'Debt Avalanche Calculator'!$AF36,'Debt Avalanche Calculator'!$AI36,'Debt Avalanche Calculator'!$AL36,'Debt Avalanche Calculator'!$AO36,'Debt Avalanche Calculator'!$AR36,'Debt Avalanche Calculator'!$AU36,'Debt Avalanche Calculator'!$AX36,'Debt Avalanche Calculator'!$BA36,'Debt Avalanche Calculator'!$BD36,'Debt Avalanche Calculator'!$BG36,'Debt Avalanche Calculator'!$BJ36,'Debt Avalanche Calculator'!$BM36,'Debt Avalanche Calculator'!$BP36,'Debt Avalanche Calculator'!$BS36,'Debt Avalanche Calculator'!$BV36,'Debt Avalanche Calculator'!$BY36,'Debt Avalanche Calculator'!$CB36,'Debt Avalanche Calculator'!$CE36,'Debt Avalanche Calculator'!$CH36,'Debt Avalanche Calculator'!$CK36,'Debt Avalanche Calculator'!$CN36,'Debt Avalanche Calculator'!$CQ36,'Debt Avalanche Calculator'!$CT36) -> $501.02 | L38: 19
I39: 20 | J39: =SUM('Debt Snowball Calculator'!E37,'Debt Snowball Calculator'!H37,'Debt Snowball Calculator'!K37,'Debt Snowball Calculator'!N37,'Debt Snowball Calculator'!Q37,'Debt Snowball Calculator'!T37,'Debt Snowball Calculator'!W37,'Debt Snowball Calculator'!Z37,'Debt Snowball Calculator'!AC37,'Debt Snowball Calculator'!AF37,'Debt Snowball Calculator'!AI37,'Debt Snowball Calculator'!AL37,'Debt Snowball Calculator'!AO37,'Debt Snowball Calculator'!AR37,'Debt Snowball Calculator'!AU37,'Debt Snowball Calculator'!AX37,'Debt Snowball Calculator'!BA37,'Debt Snowball Calculator'!BD37,'Debt Snowball Calculator'!BG37,'Debt Snowball Calculator'!BJ37,'Debt Snowball Calculator'!BM37,'Debt Snowball Calculator'!BP37,'Debt Snowball Calculator'!BS37,'Debt Snowball Calculator'!BV37,'Debt Snowball Calculator'!BY37,'Debt Snowball Calculator'!CB37,'Debt Snowball Calculator'!CE37,'Debt Snowball Calculator'!CH37,'Debt Snowball Calculator'!CK37,'Debt Snowball Calculator'!CN37,'Debt Snowball Calculator'!CQ37,'Debt Snowball Calculator'!CT37) -> $600.41 | K39: =SUM('Debt Avalanche Calculator'!$E37,'Debt Avalanche Calculator'!$H37,'Debt Avalanche Calculator'!$K37,'Debt Avalanche Calculator'!$N37,'Debt Avalanche Calculator'!$Q37,'Debt Avalanche Calculator'!$T37,'Debt Avalanche Calculator'!$W37,'Debt Avalanche Calculator'!$Z37,'Debt Avalanche Calculator'!$AC37,'Debt Avalanche Calculator'!$AF37,'Debt Avalanche Calculator'!$AI37,'Debt Avalanche Calculator'!$AL37,'Debt Avalanche Calculator'!$AO37,'Debt Avalanche Calculator'!$AR37,'Debt Avalanche Calculator'!$AU37,'Debt Avalanche Calculator'!$AX37,'Debt Avalanche Calculator'!$BA37,'Debt Avalanche Calculator'!$BD37,'Debt Avalanche Calculator'!$BG37,'Debt Avalanche Calculator'!$BJ37,'Debt Avalanche Calculator'!$BM37,'Debt Avalanche Calculator'!$BP37,'Debt Avalanche Calculator'!$BS37,'Debt Avalanche Calculator'!$BV37,'Debt Avalanche Calculator'!$BY37,'Debt Avalanche Calculator'!$CB37,'Debt Avalanche Calculator'!$CE37,'Debt Avalanche Calculator'!$CH37,'Debt Avalanche Calculator'!$CK37,'Debt Avalanche Calculator'!$CN37,'Debt Avalanche Calculator'!$CQ37,'Debt Avalanche Calculator'!$CT37) -> $177.19 | L39: 20
I40: 21 | J40: =SUM('Debt Snowball Calculator'!E38,'Debt Snowball Calculator'!H38,'Debt Snowball Calculator'!K38,'Debt Snowball Calculator'!N38,'Debt Snowball Calculator'!Q38,'Debt Snowball Calculator'!T38,'Debt Snowball Calculator'!W38,'Debt Snowball Calculator'!Z38,'Debt Snowball Calculator'!AC38,'Debt Snowball Calculator'!AF38,'Debt Snowball Calculator'!AI38,'Debt Snowball Calculator'!AL38,'Debt Snowball Calculator'!AO38,'Debt Snowball Calculator'!AR38,'Debt Snowball Calculator'!AU38,'Debt Snowball Calculator'!AX38,'Debt Snowball Calculator'!BA38,'Debt Snowball Calculator'!BD38,'Debt Snowball Calculator'!BG38,'Debt Snowball Calculator'!BJ38,'Debt Snowball Calculator'!BM38,'Debt Snowball Calculator'!BP38,'Debt Snowball Calculator'!BS38,'Debt Snowball Calculator'!BV38,'Debt Snowball Calculator'!BY38,'Debt Snowball Calculator'!CB38,'Debt Snowball Calculator'!CE38,'Debt Snowball Calculator'!CH38,'Debt Snowball Calculator'!CK38,'Debt Snowball Calculator'!CN38,'Debt Snowball Calculator'!CQ38,'Debt Snowball Calculator'!CT38) -> $281.38 | K40: =SUM('Debt Avalanche Calculator'!$E38,'Debt Avalanche Calculator'!$H38,'Debt Avalanche Calculator'!$K38,'Debt Avalanche Calculator'!$N38,'Debt Avalanche Calculator'!$Q38,'Debt Avalanche Calculator'!$T38,'Debt Avalanche Calculator'!$W38,'Debt Avalanche Calculator'!$Z38,'Debt Avalanche Calculator'!$AC38,'Debt Avalanche Calculator'!$AF38,'Debt Avalanche Calculator'!$AI38,'Debt Avalanche Calculator'!$AL38,'Debt Avalanche Calculator'!$AO38,'Debt Avalanche Calculator'!$AR38,'Debt Avalanche Calculator'!$AU38,'Debt Avalanche Calculator'!$AX38,'Debt Avalanche Calculator'!$BA38,'Debt Avalanche Calculator'!$BD38,'Debt Avalanche Calculator'!$BG38,'Debt Avalanche Calculator'!$BJ38,'Debt Avalanche Calculator'!$BM38,'Debt Avalanche Calculator'!$BP38,'Debt Avalanche Calculator'!$BS38,'Debt Avalanche Calculator'!$BV38,'Debt Avalanche Calculator'!$BY38,'Debt Avalanche Calculator'!$CB38,'Debt Avalanche Calculator'!$CE38,'Debt Avalanche Calculator'!$CH38,'Debt Avalanche Calculator'!$CK38,'Debt Avalanche Calculator'!$CN38,'Debt Avalanche Calculator'!$CQ38,'Debt Avalanche Calculator'!$CT38) -> 0 | L40: 21
I41: 22 | J41: =SUM('Debt Snowball Calculator'!E39,'Debt Snowball Calculator'!H39,'Debt Snowball Calculator'!K39,'Debt Snowball Calculator'!N39,'Debt Snowball Calculator'!Q39,'Debt Snowball Calculator'!T39,'Debt Snowball Calculator'!W39,'Debt Snowball Calculator'!Z39,'Debt Snowball Calculator'!AC39,'Debt Snowball Calculator'!AF39,'Debt Snowball Calculator'!AI39,'Debt Snowball Calculator'!AL39,'Debt Snowball Calculator'!AO39,'Debt Snowball Calculator'!AR39,'Debt Snowball Calculator'!AU39,'Debt Snowball Calculator'!AX39,'Debt Snowball Calculator'!BA39,'Debt Snowball Calculator'!BD39,'Debt Snowball Calculator'!BG39,'Debt Snowball Calculator'!BJ39,'Debt Snowball Calculator'!BM39,'Debt Snowball Calculator'!BP39,'Debt Snowball Calculator'!BS39,'Debt Snowball Calculator'!BV39,'Debt Snowball Calculator'!BY39,'Debt Snowball Calculator'!CB39,'Debt Snowball Calculator'!CE39,'Debt Snowball Calculator'!CH39,'Debt Snowball Calculator'!CK39,'Debt Snowball Calculator'!CN39,'Debt Snowball Calculator'!CQ39,'Debt Snowball Calculator'!CT39) -> 0 | K41: =SUM('Debt Avalanche Calculator'!$E39,'Debt Avalanche Calculator'!$H39,'Debt Avalanche Calculator'!$K39,'Debt Avalanche Calculator'!$N39,'Debt Avalanche Calculator'!$Q39,'Debt Avalanche Calculator'!$T39,'Debt Avalanche Calculator'!$W39,'Debt Avalanche Calculator'!$Z39,'Debt Avalanche Calculator'!$AC39,'Debt Avalanche Calculator'!$AF39,'Debt Avalanche Calculator'!$AI39,'Debt Avalanche Calculator'!$AL39,'Debt Avalanche Calculator'!$AO39,'Debt Avalanche Calculator'!$AR39,'Debt Avalanche Calculator'!$AU39,'Debt Avalanche Calculator'!$AX39,'Debt Avalanche Calculator'!$BA39,'Debt Avalanche Calculator'!$BD39,'Debt Avalanche Calculator'!$BG39,'Debt Avalanche Calculator'!$BJ39,'Debt Avalanche Calculator'!$BM39,'Debt Avalanche Calculator'!$BP39,'Debt Avalanche Calculator'!$BS39,'Debt Avalanche Calculator'!$BV39,'Debt Avalanche Calculator'!$BY39,'Debt Avalanche Calculator'!$CB39,'Debt Avalanche Calculator'!$CE39,'Debt Avalanche Calculator'!$CH39,'Debt Avalanche Calculator'!$CK39,'Debt Avalanche Calculator'!$CN39,'Debt Avalanche Calculator'!$CQ39,'Debt Avalanche Calculator'!$CT39) -> 0 | L41: 22
I42: 23 | J42: =SUM('Debt Snowball Calculator'!E40,'Debt Snowball Calculator'!H40,'Debt Snowball Calculator'!K40,'Debt Snowball Calculator'!N40,'Debt Snowball Calculator'!Q40,'Debt Snowball Calculator'!T40,'Debt Snowball Calculator'!W40,'Debt Snowball Calculator'!Z40,'Debt Snowball Calculator'!AC40,'Debt Snowball Calculator'!AF40,'Debt Snowball Calculator'!AI40,'Debt Snowball Calculator'!AL40,'Debt Snowball Calculator'!AO40,'Debt Snowball Calculator'!AR40,'Debt Snowball Calculator'!AU40,'Debt Snowball Calculator'!AX40,'Debt Snowball Calculator'!BA40,'Debt Snowball Calculator'!BD40,'Debt Snowball Calculator'!BG40,'Debt Snowball Calculator'!BJ40,'Debt Snowball Calculator'!BM40,'Debt Snowball Calculator'!BP40,'Debt Snowball Calculator'!BS40,'Debt Snowball Calculator'!BV40,'Debt Snowball Calculator'!BY40,'Debt Snowball Calculator'!CB40,'Debt Snowball Calculator'!CE40,'Debt Snowball Calculator'!CH40,'Debt Snowball Calculator'!CK40,'Debt Snowball Calculator'!CN40,'Debt Snowball Calculator'!CQ40,'Debt Snowball Calculator'!CT40) -> 0 | K42: =SUM('Debt Avalanche Calculator'!$E40,'Debt Avalanche Calculator'!$H40,'Debt Avalanche Calculator'!$K40,'Debt Avalanche Calculator'!$N40,'Debt Avalanche Calculator'!$Q40,'Debt Avalanche Calculator'!$T40,'Debt Avalanche Calculator'!$W40,'Debt Avalanche Calculator'!$Z40,'Debt Avalanche Calculator'!$AC40,'Debt Avalanche Calculator'!$AF40,'Debt Avalanche Calculator'!$AI40,'Debt Avalanche Calculator'!$AL40,'Debt Avalanche Calculator'!$AO40,'Debt Avalanche Calculator'!$AR40,'Debt Avalanche Calculator'!$AU40,'Debt Avalanche Calculator'!$AX40,'Debt Avalanche Calculator'!$BA40,'Debt Avalanche Calculator'!$BD40,'Debt Avalanche Calculator'!$BG40,'Debt Avalanche Calculator'!$BJ40,'Debt Avalanche Calculator'!$BM40,'Debt Avalanche Calculator'!$BP40,'Debt Avalanche Calculator'!$BS40,'Debt Avalanche Calculator'!$BV40,'Debt Avalanche Calculator'!$BY40,'Debt Avalanche Calculator'!$CB40,'Debt Avalanche Calculator'!$CE40,'Debt Avalanche Calculator'!$CH40,'Debt Avalanche Calculator'!$CK40,'Debt Avalanche Calculator'!$CN40,'Debt Avalanche Calculator'!$CQ40,'Debt Avalanche Calculator'!$CT40) -> 0 | L42: 23
I43: 24 | J43: =SUM('Debt Snowball Calculator'!E41,'Debt Snowball Calculator'!H41,'Debt Snowball Calculator'!K41,'Debt Snowball Calculator'!N41,'Debt Snowball Calculator'!Q41,'Debt Snowball Calculator'!T41,'Debt Snowball Calculator'!W41,'Debt Snowball Calculator'!Z41,'Debt Snowball Calculator'!AC41,'Debt Snowball Calculator'!AF41,'Debt Snowball Calculator'!AI41,'Debt Snowball Calculator'!AL41,'Debt Snowball Calculator'!AO41,'Debt Snowball Calculator'!AR41,'Debt Snowball Calculator'!AU41,'Debt Snowball Calculator'!AX41,'Debt Snowball Calculator'!BA41,'Debt Snowball Calculator'!BD41,'Debt Snowball Calculator'!BG41,'Debt Snowball Calculator'!BJ41,'Debt Snowball Calculator'!BM41,'Debt Snowball Calculator'!BP41,'Debt Snowball Calculator'!BS41,'Debt Snowball Calculator'!BV41,'Debt Snowball Calculator'!BY41,'Debt Snowball Calculator'!CB41,'Debt Snowball Calculator'!CE41,'Debt Snowball Calculator'!CH41,'Debt Snowball Calculator'!CK41,'Debt Snowball Calculator'!CN41,'Debt Snowball Calculator'!CQ41,'Debt Snowball Calculator'!CT41) -> 0 | K43: =SUM('Debt Avalanche Calculator'!$E41,'Debt Avalanche Calculator'!$H41,'Debt Avalanche Calculator'!$K41,'Debt Avalanche Calculator'!$N41,'Debt Avalanche Calculator'!$Q41,'Debt Avalanche Calculator'!$T41,'Debt Avalanche Calculator'!$W41,'Debt Avalanche Calculator'!$Z41,'Debt Avalanche Calculator'!$AC41,'Debt Avalanche Calculator'!$AF41,'Debt Avalanche Calculator'!$AI41,'Debt Avalanche Calculator'!$AL41,'Debt Avalanche Calculator'!$AO41,'Debt Avalanche Calculator'!$AR41,'Debt Avalanche Calculator'!$AU41,'Debt Avalanche Calculator'!$AX41,'Debt Avalanche Calculator'!$BA41,'Debt Avalanche Calculator'!$BD41,'Debt Avalanche Calculator'!$BG41,'Debt Avalanche Calculator'!$BJ41,'Debt Avalanche Calculator'!$BM41,'Debt Avalanche Calculator'!$BP41,'Debt Avalanche Calculator'!$BS41,'Debt Avalanche Calculator'!$BV41,'Debt Avalanche Calculator'!$BY41,'Debt Avalanche Calculator'!$CB41,'Debt Avalanche Calculator'!$CE41,'Debt Avalanche Calculator'!$CH41,'Debt Avalanche Calculator'!$CK41,'Debt Avalanche Calculator'!$CN41,'Debt Avalanche Calculator'!$CQ41,'Debt Avalanche Calculator'!$CT41) -> 0 | L43: 24
I44: 25 | J44: =SUM('Debt Snowball Calculator'!E42,'Debt Snowball Calculator'!H42,'Debt Snowball Calculator'!K42,'Debt Snowball Calculator'!N42,'Debt Snowball Calculator'!Q42,'Debt Snowball Calculator'!T42,'Debt Snowball Calculator'!W42,'Debt Snowball Calculator'!Z42,'Debt Snowball Calculator'!AC42,'Debt Snowball Calculator'!AF42,'Debt Snowball Calculator'!AI42,'Debt Snowball Calculator'!AL42,'Debt Snowball Calculator'!AO42,'Debt Snowball Calculator'!AR42,'Debt Snowball Calculator'!AU42,'Debt Snowball Calculator'!AX42,'Debt Snowball Calculator'!BA42,'Debt Snowball Calculator'!BD42,'Debt Snowball Calculator'!BG42,'Debt Snowball Calculator'!BJ42,'Debt Snowball Calculator'!BM42,'Debt Snowball Calculator'!BP42,'Debt Snowball Calculator'!BS42,'Debt Snowball Calculator'!BV42,'Debt Snowball Calculator'!BY42,'Debt Snowball Calculator'!CB42,'Debt Snowball Calculator'!CE42,'Debt Snowball Calculator'!CH42,'Debt Snowball Calculator'!CK42,'Debt Snowball Calculator'!CN42,'Debt Snowball Calculator'!CQ42,'Debt Snowball Calculator'!CT42) -> 0 | K44: =SUM('Debt Avalanche Calculator'!$E42,'Debt Avalanche Calculator'!$H42,'Debt Avalanche Calculator'!$K42,'Debt Avalanche Calculator'!$N42,'Debt Avalanche Calculator'!$Q42,'Debt Avalanche Calculator'!$T42,'Debt Avalanche Calculator'!$W42,'Debt Avalanche Calculator'!$Z42,'Debt Avalanche Calculator'!$AC42,'Debt Avalanche Calculator'!$AF42,'Debt Avalanche Calculator'!$AI42,'Debt Avalanche Calculator'!$AL42,'Debt Avalanche Calculator'!$AO42,'Debt Avalanche Calculator'!$AR42,'Debt Avalanche Calculator'!$AU42,'Debt Avalanche Calculator'!$AX42,'Debt Avalanche Calculator'!$BA42,'Debt Avalanche Calculator'!$BD42,'Debt Avalanche Calculator'!$BG42,'Debt Avalanche Calculator'!$BJ42,'Debt Avalanche Calculator'!$BM42,'Debt Avalanche Calculator'!$BP42,'Debt Avalanche Calculator'!$BS42,'Debt Avalanche Calculator'!$BV42,'Debt Avalanche Calculator'!$BY42,'Debt Avalanche Calculator'!$CB42,'Debt Avalanche Calculator'!$CE42,'Debt Avalanche Calculator'!$CH42,'Debt Avalanche Calculator'!$CK42,'Debt Avalanche Calculator'!$CN42,'Debt Avalanche Calculator'!$CQ42,'Debt Avalanche Calculator'!$CT42) -> 0 | L44: 25
I45: 26 | J45: =SUM('Debt Snowball Calculator'!E43,'Debt Snowball Calculator'!H43,'Debt Snowball Calculator'!K43,'Debt Snowball Calculator'!N43,'Debt Snowball Calculator'!Q43,'Debt Snowball Calculator'!T43,'Debt Snowball Calculator'!W43,'Debt Snowball Calculator'!Z43,'Debt Snowball Calculator'!AC43,'Debt Snowball Calculator'!AF43,'Debt Snowball Calculator'!AI43,'Debt Snowball Calculator'!AL43,'Debt Snowball Calculator'!AO43,'Debt Snowball Calculator'!AR43,'Debt Snowball Calculator'!AU43,'Debt Snowball Calculator'!AX43,'Debt Snowball Calculator'!BA43,'Debt Snowball Calculator'!BD43,'Debt Snowball Calculator'!BG43,'Debt Snowball Calculator'!BJ43,'Debt Snowball Calculator'!BM43,'Debt Snowball Calculator'!BP43,'Debt Snowball Calculator'!BS43,'Debt Snowball Calculator'!BV43,'Debt Snowball Calculator'!BY43,'Debt Snowball Calculator'!CB43,'Debt Snowball Calculator'!CE43,'Debt Snowball Calculator'!CH43,'Debt Snowball Calculator'!CK43,'Debt Snowball Calculator'!CN43,'Debt Snowball Calculator'!CQ43,'Debt Snowball Calculator'!CT43) -> 0 | K45: =SUM('Debt Avalanche Calculator'!$E43,'Debt Avalanche Calculator'!$H43,'Debt Avalanche Calculator'!$K43,'Debt Avalanche Calculator'!$N43,'Debt Avalanche Calculator'!$Q43,'Debt Avalanche Calculator'!$T43,'Debt Avalanche Calculator'!$W43,'Debt Avalanche Calculator'!$Z43,'Debt Avalanche Calculator'!$AC43,'Debt Avalanche Calculator'!$AF43,'Debt Avalanche Calculator'!$AI43,'Debt Avalanche Calculator'!$AL43,'Debt Avalanche Calculator'!$AO43,'Debt Avalanche Calculator'!$AR43,'Debt Avalanche Calculator'!$AU43,'Debt Avalanche Calculator'!$AX43,'Debt Avalanche Calculator'!$BA43,'Debt Avalanche Calculator'!$BD43,'Debt Avalanche Calculator'!$BG43,'Debt Avalanche Calculator'!$BJ43,'Debt Avalanche Calculator'!$BM43,'Debt Avalanche Calculator'!$BP43,'Debt Avalanche Calculator'!$BS43,'Debt Avalanche Calculator'!$BV43,'Debt Avalanche Calculator'!$BY43,'Debt Avalanche Calculator'!$CB43,'Debt Avalanche Calculator'!$CE43,'Debt Avalanche Calculator'!$CH43,'Debt Avalanche Calculator'!$CK43,'Debt Avalanche Calculator'!$CN43,'Debt Avalanche Calculator'!$CQ43,'Debt Avalanche Calculator'!$CT43) -> 0 | L45: 26
I46: 27 | J46: =SUM('Debt Snowball Calculator'!E44,'Debt Snowball Calculator'!H44,'Debt Snowball Calculator'!K44,'Debt Snowball Calculator'!N44,'Debt Snowball Calculator'!Q44,'Debt Snowball Calculator'!T44,'Debt Snowball Calculator'!W44,'Debt Snowball Calculator'!Z44,'Debt Snowball Calculator'!AC44,'Debt Snowball Calculator'!AF44,'Debt Snowball Calculator'!AI44,'Debt Snowball Calculator'!AL44,'Debt Snowball Calculator'!AO44,'Debt Snowball Calculator'!AR44,'Debt Snowball Calculator'!AU44,'Debt Snowball Calculator'!AX44,'Debt Snowball Calculator'!BA44,'Debt Snowball Calculator'!BD44,'Debt Snowball Calculator'!BG44,'Debt Snowball Calculator'!BJ44,'Debt Snowball Calculator'!BM44,'Debt Snowball Calculator'!BP44,'Debt Snowball Calculator'!BS44,'Debt Snowball Calculator'!BV44,'Debt Snowball Calculator'!BY44,'Debt Snowball Calculator'!CB44,'Debt Snowball Calculator'!CE44,'Debt Snowball Calculator'!CH44,'Debt Snowball Calculator'!CK44,'Debt Snowball Calculator'!CN44,'Debt Snowball Calculator'!CQ44,'Debt Snowball Calculator'!CT44) -> 0 | K46: =SUM('Debt Avalanche Calculator'!$E44,'Debt Avalanche Calculator'!$H44,'Debt Avalanche Calculator'!$K44,'Debt Avalanche Calculator'!$N44,'Debt Avalanche Calculator'!$Q44,'Debt Avalanche Calculator'!$T44,'Debt Avalanche Calculator'!$W44,'Debt Avalanche Calculator'!$Z44,'Debt Avalanche Calculator'!$AC44,'Debt Avalanche Calculator'!$AF44,'Debt Avalanche Calculator'!$AI44,'Debt Avalanche Calculator'!$AL44,'Debt Avalanche Calculator'!$AO44,'Debt Avalanche Calculator'!$AR44,'Debt Avalanche Calculator'!$AU44,'Debt Avalanche Calculator'!$AX44,'Debt Avalanche Calculator'!$BA44,'Debt Avalanche Calculator'!$BD44,'Debt Avalanche Calculator'!$BG44,'Debt Avalanche Calculator'!$BJ44,'Debt Avalanche Calculator'!$BM44,'Debt Avalanche Calculator'!$BP44,'Debt Avalanche Calculator'!$BS44,'Debt Avalanche Calculator'!$BV44,'Debt Avalanche Calculator'!$BY44,'Debt Avalanche Calculator'!$CB44,'Debt Avalanche Calculator'!$CE44,'Debt Avalanche Calculator'!$CH44,'Debt Avalanche Calculator'!$CK44,'Debt Avalanche Calculator'!$CN44,'Debt Avalanche Calculator'!$CQ44,'Debt Avalanche Calculator'!$CT44) -> 0 | L46: 27
I47: 28 | J47: =SUM('Debt Snowball Calculator'!E45,'Debt Snowball Calculator'!H45,'Debt Snowball Calculator'!K45,'Debt Snowball Calculator'!N45,'Debt Snowball Calculator'!Q45,'Debt Snowball Calculator'!T45,'Debt Snowball Calculator'!W45,'Debt Snowball Calculator'!Z45,'Debt Snowball Calculator'!AC45,'Debt Snowball Calculator'!AF45,'Debt Snowball Calculator'!AI45,'Debt Snowball Calculator'!AL45,'Debt Snowball Calculator'!AO45,'Debt Snowball Calculator'!AR45,'Debt Snowball Calculator'!AU45,'Debt Snowball Calculator'!AX45,'Debt Snowball Calculator'!BA45,'Debt Snowball Calculator'!BD45,'Debt Snowball Calculator'!BG45,'Debt Snowball Calculator'!BJ45,'Debt Snowball Calculator'!BM45,'Debt Snowball Calculator'!BP45,'Debt Snowball Calculator'!BS45,'Debt Snowball Calculator'!BV45,'Debt Snowball Calculator'!BY45,'Debt Snowball Calculator'!CB45,'Debt Snowball Calculator'!CE45,'Debt Snowball Calculator'!CH45,'Debt Snowball Calculator'!CK45,'Debt Snowball Calculator'!CN45,'Debt Snowball Calculator'!CQ45,'Debt Snowball Calculator'!CT45) -> 0 | K47: =SUM('Debt Avalanche Calculator'!$E45,'Debt Avalanche Calculator'!$H45,'Debt Avalanche Calculator'!$K45,'Debt Avalanche Calculator'!$N45,'Debt Avalanche Calculator'!$Q45,'Debt Avalanche Calculator'!$T45,'Debt Avalanche Calculator'!$W45,'Debt Avalanche Calculator'!$Z45,'Debt Avalanche Calculator'!$AC45,'Debt Avalanche Calculator'!$AF45,'Debt Avalanche Calculator'!$AI45,'Debt Avalanche Calculator'!$AL45,'Debt Avalanche Calculator'!$AO45,'Debt Avalanche Calculator'!$AR45,'Debt Avalanche Calculator'!$AU45,'Debt Avalanche Calculator'!$AX45,'Debt Avalanche Calculator'!$BA45,'Debt Avalanche Calculator'!$BD45,'Debt Avalanche Calculator'!$BG45,'Debt Avalanche Calculator'!$BJ45,'Debt Avalanche Calculator'!$BM45,'Debt Avalanche Calculator'!$BP45,'Debt Avalanche Calculator'!$BS45,'Debt Avalanche Calculator'!$BV45,'Debt Avalanche Calculator'!$BY45,'Debt Avalanche Calculator'!$CB45,'Debt Avalanche Calculator'!$CE45,'Debt Avalanche Calculator'!$CH45,'Debt Avalanche Calculator'!$CK45,'Debt Avalanche Calculator'!$CN45,'Debt Avalanche Calculator'!$CQ45,'Debt Avalanche Calculator'!$CT45) -> 0 | L47: 28
I48: 29 | J48: =SUM('Debt Snowball Calculator'!E46,'Debt Snowball Calculator'!H46,'Debt Snowball Calculator'!K46,'Debt Snowball Calculator'!N46,'Debt Snowball Calculator'!Q46,'Debt Snowball Calculator'!T46,'Debt Snowball Calculator'!W46,'Debt Snowball Calculator'!Z46,'Debt Snowball Calculator'!AC46,'Debt Snowball Calculator'!AF46,'Debt Snowball Calculator'!AI46,'Debt Snowball Calculator'!AL46,'Debt Snowball Calculator'!AO46,'Debt Snowball Calculator'!AR46,'Debt Snowball Calculator'!AU46,'Debt Snowball Calculator'!AX46,'Debt Snowball Calculator'!BA46,'Debt Snowball Calculator'!BD46,'Debt Snowball Calculator'!BG46,'Debt Snowball Calculator'!BJ46,'Debt Snowball Calculator'!BM46,'Debt Snowball Calculator'!BP46,'Debt Snowball Calculator'!BS46,'Debt Snowball Calculator'!BV46,'Debt Snowball Calculator'!BY46,'Debt Snowball Calculator'!CB46,'Debt Snowball Calculator'!CE46,'Debt Snowball Calculator'!CH46,'Debt Snowball Calculator'!CK46,'Debt Snowball Calculator'!CN46,'Debt Snowball Calculator'!CQ46,'Debt Snowball Calculator'!CT46) -> 0 | K48: =SUM('Debt Avalanche Calculator'!$E46,'Debt Avalanche Calculator'!$H46,'Debt Avalanche Calculator'!$K46,'Debt Avalanche Calculator'!$N46,'Debt Avalanche Calculator'!$Q46,'Debt Avalanche Calculator'!$T46,'Debt Avalanche Calculator'!$W46,'Debt Avalanche Calculator'!$Z46,'Debt Avalanche Calculator'!$AC46,'Debt Avalanche Calculator'!$AF46,'Debt Avalanche Calculator'!$AI46,'Debt Avalanche Calculator'!$AL46,'Debt Avalanche Calculator'!$AO46,'Debt Avalanche Calculator'!$AR46,'Debt Avalanche Calculator'!$AU46,'Debt Avalanche Calculator'!$AX46,'Debt Avalanche Calculator'!$BA46,'Debt Avalanche Calculator'!$BD46,'Debt Avalanche Calculator'!$BG46,'Debt Avalanche Calculator'!$BJ46,'Debt Avalanche Calculator'!$BM46,'Debt Avalanche Calculator'!$BP46,'Debt Avalanche Calculator'!$BS46,'Debt Avalanche Calculator'!$BV46,'Debt Avalanche Calculator'!$BY46,'Debt Avalanche Calculator'!$CB46,'Debt Avalanche Calculator'!$CE46,'Debt Avalanche Calculator'!$CH46,'Debt Avalanche Calculator'!$CK46,'Debt Avalanche Calculator'!$CN46,'Debt Avalanche Calculator'!$CQ46,'Debt Avalanche Calculator'!$CT46) -> 0 | L48: 29
I49: 30 | J49: =SUM('Debt Snowball Calculator'!E47,'Debt Snowball Calculator'!H47,'Debt Snowball Calculator'!K47,'Debt Snowball Calculator'!N47,'Debt Snowball Calculator'!Q47,'Debt Snowball Calculator'!T47,'Debt Snowball Calculator'!W47,'Debt Snowball Calculator'!Z47,'Debt Snowball Calculator'!AC47,'Debt Snowball Calculator'!AF47,'Debt Snowball Calculator'!AI47,'Debt Snowball Calculator'!AL47,'Debt Snowball Calculator'!AO47,'Debt Snowball Calculator'!AR47,'Debt Snowball Calculator'!AU47,'Debt Snowball Calculator'!AX47,'Debt Snowball Calculator'!BA47,'Debt Snowball Calculator'!BD47,'Debt Snowball Calculator'!BG47,'Debt Snowball Calculator'!BJ47,'Debt Snowball Calculator'!BM47,'Debt Snowball Calculator'!BP47,'Debt Snowball Calculator'!BS47,'Debt Snowball Calculator'!BV47,'Debt Snowball Calculator'!BY47,'Debt Snowball Calculator'!CB47,'Debt Snowball Calculator'!CE47,'Debt Snowball Calculator'!CH47,'Debt Snowball Calculator'!CK47,'Debt Snowball Calculator'!CN47,'Debt Snowball Calculator'!CQ47,'Debt Snowball Calculator'!CT47) -> 0 | K49: =SUM('Debt Avalanche Calculator'!$E47,'Debt Avalanche Calculator'!$H47,'Debt Avalanche Calculator'!$K47,'Debt Avalanche Calculator'!$N47,'Debt Avalanche Calculator'!$Q47,'Debt Avalanche Calculator'!$T47,'Debt Avalanche Calculator'!$W47,'Debt Avalanche Calculator'!$Z47,'Debt Avalanche Calculator'!$AC47,'Debt Avalanche Calculator'!$AF47,'Debt Avalanche Calculator'!$AI47,'Debt Avalanche Calculator'!$AL47,'Debt Avalanche Calculator'!$AO47,'Debt Avalanche Calculator'!$AR47,'Debt Avalanche Calculator'!$AU47,'Debt Avalanche Calculator'!$AX47,'Debt Avalanche Calculator'!$BA47,'Debt Avalanche Calculator'!$BD47,'Debt Avalanche Calculator'!$BG47,'Debt Avalanche Calculator'!$BJ47,'Debt Avalanche Calculator'!$BM47,'Debt Avalanche Calculator'!$BP47,'Debt Avalanche Calculator'!$BS47,'Debt Avalanche Calculator'!$BV47,'Debt Avalanche Calculator'!$BY47,'Debt Avalanche Calculator'!$CB47,'Debt Avalanche Calculator'!$CE47,'Debt Avalanche Calculator'!$CH47,'Debt Avalanche Calculator'!$CK47,'Debt Avalanche Calculator'!$CN47,'Debt Avalanche Calculator'!$CQ47,'Debt Avalanche Calculator'!$CT47) -> 0 | L49: 30
I50: 31 | J50: =SUM('Debt Snowball Calculator'!E48,'Debt Snowball Calculator'!H48,'Debt Snowball Calculator'!K48,'Debt Snowball Calculator'!N48,'Debt Snowball Calculator'!Q48,'Debt Snowball Calculator'!T48,'Debt Snowball Calculator'!W48,'Debt Snowball Calculator'!Z48,'Debt Snowball Calculator'!AC48,'Debt Snowball Calculator'!AF48,'Debt Snowball Calculator'!AI48,'Debt Snowball Calculator'!AL48,'Debt Snowball Calculator'!AO48,'Debt Snowball Calculator'!AR48,'Debt Snowball Calculator'!AU48,'Debt Snowball Calculator'!AX48,'Debt Snowball Calculator'!BA48,'Debt Snowball Calculator'!BD48,'Debt Snowball Calculator'!BG48,'Debt Snowball Calculator'!BJ48,'Debt Snowball Calculator'!BM48,'Debt Snowball Calculator'!BP48,'Debt Snowball Calculator'!BS48,'Debt Snowball Calculator'!BV48,'Debt Snowball Calculator'!BY48,'Debt Snowball Calculator'!CB48,'Debt Snowball Calculator'!CE48,'Debt Snowball Calculator'!CH48,'Debt Snowball Calculator'!CK48,'Debt Snowball Calculator'!CN48,'Debt Snowball Calculator'!CQ48,'Debt Snowball Calculator'!CT48) -> 0 | K50: =SUM('Debt Avalanche Calculator'!$E48,'Debt Avalanche Calculator'!$H48,'Debt Avalanche Calculator'!$K48,'Debt Avalanche Calculator'!$N48,'Debt Avalanche Calculator'!$Q48,'Debt Avalanche Calculator'!$T48,'Debt Avalanche Calculator'!$W48,'Debt Avalanche Calculator'!$Z48,'Debt Avalanche Calculator'!$AC48,'Debt Avalanche Calculator'!$AF48,'Debt Avalanche Calculator'!$AI48,'Debt Avalanche Calculator'!$AL48,'Debt Avalanche Calculator'!$AO48,'Debt Avalanche Calculator'!$AR48,'Debt Avalanche Calculator'!$AU48,'Debt Avalanche Calculator'!$AX48,'Debt Avalanche Calculator'!$BA48,'Debt Avalanche Calculator'!$BD48,'Debt Avalanche Calculator'!$BG48,'Debt Avalanche Calculator'!$BJ48,'Debt Avalanche Calculator'!$BM48,'Debt Avalanche Calculator'!$BP48,'Debt Avalanche Calculator'!$BS48,'Debt Avalanche Calculator'!$BV48,'Debt Avalanche Calculator'!$BY48,'Debt Avalanche Calculator'!$CB48,'Debt Avalanche Calculator'!$CE48,'Debt Avalanche Calculator'!$CH48,'Debt Avalanche Calculator'!$CK48,'Debt Avalanche Calculator'!$CN48,'Debt Avalanche Calculator'!$CQ48,'Debt Avalanche Calculator'!$CT48) -> 0 | L50: 31
I51: 32 | J51: =SUM('Debt Snowball Calculator'!E49,'Debt Snowball Calculator'!H49,'Debt Snowball Calculator'!K49,'Debt Snowball Calculator'!N49,'Debt Snowball Calculator'!Q49,'Debt Snowball Calculator'!T49,'Debt Snowball Calculator'!W49,'Debt Snowball Calculator'!Z49,'Debt Snowball Calculator'!AC49,'Debt Snowball Calculator'!AF49,'Debt Snowball Calculator'!AI49,'Debt Snowball Calculator'!AL49,'Debt Snowball Calculator'!AO49,'Debt Snowball Calculator'!AR49,'Debt Snowball Calculator'!AU49,'Debt Snowball Calculator'!AX49,'Debt Snowball Calculator'!BA49,'Debt Snowball Calculator'!BD49,'Debt Snowball Calculator'!BG49,'Debt Snowball Calculator'!BJ49,'Debt Snowball Calculator'!BM49,'Debt Snowball Calculator'!BP49,'Debt Snowball Calculator'!BS49,'Debt Snowball Calculator'!BV49,'Debt Snowball Calculator'!BY49,'Debt Snowball Calculator'!CB49,'Debt Snowball Calculator'!CE49,'Debt Snowball Calculator'!CH49,'Debt Snowball Calculator'!CK49,'Debt Snowball Calculator'!CN49,'Debt Snowball Calculator'!CQ49,'Debt Snowball Calculator'!CT49) -> 0 | K51: =SUM('Debt Avalanche Calculator'!$E49,'Debt Avalanche Calculator'!$H49,'Debt Avalanche Calculator'!$K49,'Debt Avalanche Calculator'!$N49,'Debt Avalanche Calculator'!$Q49,'Debt Avalanche Calculator'!$T49,'Debt Avalanche Calculator'!$W49,'Debt Avalanche Calculator'!$Z49,'Debt Avalanche Calculator'!$AC49,'Debt Avalanche Calculator'!$AF49,'Debt Avalanche Calculator'!$AI49,'Debt Avalanche Calculator'!$AL49,'Debt Avalanche Calculator'!$AO49,'Debt Avalanche Calculator'!$AR49,'Debt Avalanche Calculator'!$AU49,'Debt Avalanche Calculator'!$AX49,'Debt Avalanche Calculator'!$BA49,'Debt Avalanche Calculator'!$BD49,'Debt Avalanche Calculator'!$BG49,'Debt Avalanche Calculator'!$BJ49,'Debt Avalanche Calculator'!$BM49,'Debt Avalanche Calculator'!$BP49,'Debt Avalanche Calculator'!$BS49,'Debt Avalanche Calculator'!$BV49,'Debt Avalanche Calculator'!$BY49,'Debt Avalanche Calculator'!$CB49,'Debt Avalanche Calculator'!$CE49,'Debt Avalanche Calculator'!$CH49,'Debt Avalanche Calculator'!$CK49,'Debt Avalanche Calculator'!$CN49,'Debt Avalanche Calculator'!$CQ49,'Debt Avalanche Calculator'!$CT49) -> 0 | L51: 32
I52: 33 | J52: =SUM('Debt Snowball Calculator'!E50,'Debt Snowball Calculator'!H50,'Debt Snowball Calculator'!K50,'Debt Snowball Calculator'!N50,'Debt Snowball Calculator'!Q50,'Debt Snowball Calculator'!T50,'Debt Snowball Calculator'!W50,'Debt Snowball Calculator'!Z50,'Debt Snowball Calculator'!AC50,'Debt Snowball Calculator'!AF50,'Debt Snowball Calculator'!AI50,'Debt Snowball Calculator'!AL50,'Debt Snowball Calculator'!AO50,'Debt Snowball Calculator'!AR50,'Debt Snowball Calculator'!AU50,'Debt Snowball Calculator'!AX50,'Debt Snowball Calculator'!BA50,'Debt Snowball Calculator'!BD50,'Debt Snowball Calculator'!BG50,'Debt Snowball Calculator'!BJ50,'Debt Snowball Calculator'!BM50,'Debt Snowball Calculator'!BP50,'Debt Snowball Calculator'!BS50,'Debt Snowball Calculator'!BV50,'Debt Snowball Calculator'!BY50,'Debt Snowball Calculator'!CB50,'Debt Snowball Calculator'!CE50,'Debt Snowball Calculator'!CH50,'Debt Snowball Calculator'!CK50,'Debt Snowball Calculator'!CN50,'Debt Snowball Calculator'!CQ50,'Debt Snowball Calculator'!CT50) -> 0 | K52: =SUM('Debt Avalanche Calculator'!$E50,'Debt Avalanche Calculator'!$H50,'Debt Avalanche Calculator'!$K50,'Debt Avalanche Calculator'!$N50,'Debt Avalanche Calculator'!$Q50,'Debt Avalanche Calculator'!$T50,'Debt Avalanche Calculator'!$W50,'Debt Avalanche Calculator'!$Z50,'Debt Avalanche Calculator'!$AC50,'Debt Avalanche Calculator'!$AF50,'Debt Avalanche Calculator'!$AI50,'Debt Avalanche Calculator'!$AL50,'Debt Avalanche Calculator'!$AO50,'Debt Avalanche Calculator'!$AR50,'Debt Avalanche Calculator'!$AU50,'Debt Avalanche Calculator'!$AX50,'Debt Avalanche Calculator'!$BA50,'Debt Avalanche Calculator'!$BD50,'Debt Avalanche Calculator'!$BG50,'Debt Avalanche Calculator'!$BJ50,'Debt Avalanche Calculator'!$BM50,'Debt Avalanche Calculator'!$BP50,'Debt Avalanche Calculator'!$BS50,'Debt Avalanche Calculator'!$BV50,'Debt Avalanche Calculator'!$BY50,'Debt Avalanche Calculator'!$CB50,'Debt Avalanche Calculator'!$CE50,'Debt Avalanche Calculator'!$CH50,'Debt Avalanche Calculator'!$CK50,'Debt Avalanche Calculator'!$CN50,'Debt Avalanche Calculator'!$CQ50,'Debt Avalanche Calculator'!$CT50) -> 0 | L52: 33
I53: 34 | J53: =SUM('Debt Snowball Calculator'!E51,'Debt Snowball Calculator'!H51,'Debt Snowball Calculator'!K51,'Debt Snowball Calculator'!N51,'Debt Snowball Calculator'!Q51,'Debt Snowball Calculator'!T51,'Debt Snowball Calculator'!W51,'Debt Snowball Calculator'!Z51,'Debt Snowball Calculator'!AC51,'Debt Snowball Calculator'!AF51,'Debt Snowball Calculator'!AI51,'Debt Snowball Calculator'!AL51,'Debt Snowball Calculator'!AO51,'Debt Snowball Calculator'!AR51,'Debt Snowball Calculator'!AU51,'Debt Snowball Calculator'!AX51,'Debt Snowball Calculator'!BA51,'Debt Snowball Calculator'!BD51,'Debt Snowball Calculator'!BG51,'Debt Snowball Calculator'!BJ51,'Debt Snowball Calculator'!BM51,'Debt Snowball Calculator'!BP51,'Debt Snowball Calculator'!BS51,'Debt Snowball Calculator'!BV51,'Debt Snowball Calculator'!BY51,'Debt Snowball Calculator'!CB51,'Debt Snowball Calculator'!CE51,'Debt Snowball Calculator'!CH51,'Debt Snowball Calculator'!CK51,'Debt Snowball Calculator'!CN51,'Debt Snowball Calculator'!CQ51,'Debt Snowball Calculator'!CT51) -> 0 | K53: =SUM('Debt Avalanche Calculator'!$E51,'Debt Avalanche Calculator'!$H51,'Debt Avalanche Calculator'!$K51,'Debt Avalanche Calculator'!$N51,'Debt Avalanche Calculator'!$Q51,'Debt Avalanche Calculator'!$T51,'Debt Avalanche Calculator'!$W51,'Debt Avalanche Calculator'!$Z51,'Debt Avalanche Calculator'!$AC51,'Debt Avalanche Calculator'!$AF51,'Debt Avalanche Calculator'!$AI51,'Debt Avalanche Calculator'!$AL51,'Debt Avalanche Calculator'!$AO51,'Debt Avalanche Calculator'!$AR51,'Debt Avalanche Calculator'!$AU51,'Debt Avalanche Calculator'!$AX51,'Debt Avalanche Calculator'!$BA51,'Debt Avalanche Calculator'!$BD51,'Debt Avalanche Calculator'!$BG51,'Debt Avalanche Calculator'!$BJ51,'Debt Avalanche Calculator'!$BM51,'Debt Avalanche Calculator'!$BP51,'Debt Avalanche Calculator'!$BS51,'Debt Avalanche Calculator'!$BV51,'Debt Avalanche Calculator'!$BY51,'Debt Avalanche Calculator'!$CB51,'Debt Avalanche Calculator'!$CE51,'Debt Avalanche Calculator'!$CH51,'Debt Avalanche Calculator'!$CK51,'Debt Avalanche Calculator'!$CN51,'Debt Avalanche Calculator'!$CQ51,'Debt Avalanche Calculator'!$CT51) -> 0 | L53: 34
I54: 35 | J54: =SUM('Debt Snowball Calculator'!E52,'Debt Snowball Calculator'!H52,'Debt Snowball Calculator'!K52,'Debt Snowball Calculator'!N52,'Debt Snowball Calculator'!Q52,'Debt Snowball Calculator'!T52,'Debt Snowball Calculator'!W52,'Debt Snowball Calculator'!Z52,'Debt Snowball Calculator'!AC52,'Debt Snowball Calculator'!AF52,'Debt Snowball Calculator'!AI52,'Debt Snowball Calculator'!AL52,'Debt Snowball Calculator'!AO52,'Debt Snowball Calculator'!AR52,'Debt Snowball Calculator'!AU52,'Debt Snowball Calculator'!AX52,'Debt Snowball Calculator'!BA52,'Debt Snowball Calculator'!BD52,'Debt Snowball Calculator'!BG52,'Debt Snowball Calculator'!BJ52,'Debt Snowball Calculator'!BM52,'Debt Snowball Calculator'!BP52,'Debt Snowball Calculator'!BS52,'Debt Snowball Calculator'!BV52,'Debt Snowball Calculator'!BY52,'Debt Snowball Calculator'!CB52,'Debt Snowball Calculator'!CE52,'Debt Snowball Calculator'!CH52,'Debt Snowball Calculator'!CK52,'Debt Snowball Calculator'!CN52,'Debt Snowball Calculator'!CQ52,'Debt Snowball Calculator'!CT52) -> 0 | K54: =SUM('Debt Avalanche Calculator'!$E52,'Debt Avalanche Calculator'!$H52,'Debt Avalanche Calculator'!$K52,'Debt Avalanche Calculator'!$N52,'Debt Avalanche Calculator'!$Q52,'Debt Avalanche Calculator'!$T52,'Debt Avalanche Calculator'!$W52,'Debt Avalanche Calculator'!$Z52,'Debt Avalanche Calculator'!$AC52,'Debt Avalanche Calculator'!$AF52,'Debt Avalanche Calculator'!$AI52,'Debt Avalanche Calculator'!$AL52,'Debt Avalanche Calculator'!$AO52,'Debt Avalanche Calculator'!$AR52,'Debt Avalanche Calculator'!$AU52,'Debt Avalanche Calculator'!$AX52,'Debt Avalanche Calculator'!$BA52,'Debt Avalanche Calculator'!$BD52,'Debt Avalanche Calculator'!$BG52,'Debt Avalanche Calculator'!$BJ52,'Debt Avalanche Calculator'!$BM52,'Debt Avalanche Calculator'!$BP52,'Debt Avalanche Calculator'!$BS52,'Debt Avalanche Calculator'!$BV52,'Debt Avalanche Calculator'!$BY52,'Debt Avalanche Calculator'!$CB52,'Debt Avalanche Calculator'!$CE52,'Debt Avalanche Calculator'!$CH52,'Debt Avalanche Calculator'!$CK52,'Debt Avalanche Calculator'!$CN52,'Debt Avalanche Calculator'!$CQ52,'Debt Avalanche Calculator'!$CT52) -> 0 | L54: 35
I55: 36 | J55: =SUM('Debt Snowball Calculator'!E53,'Debt Snowball Calculator'!H53,'Debt Snowball Calculator'!K53,'Debt Snowball Calculator'!N53,'Debt Snowball Calculator'!Q53,'Debt Snowball Calculator'!T53,'Debt Snowball Calculator'!W53,'Debt Snowball Calculator'!Z53,'Debt Snowball Calculator'!AC53,'Debt Snowball Calculator'!AF53,'Debt Snowball Calculator'!AI53,'Debt Snowball Calculator'!AL53,'Debt Snowball Calculator'!AO53,'Debt Snowball Calculator'!AR53,'Debt Snowball Calculator'!AU53,'Debt Snowball Calculator'!AX53,'Debt Snowball Calculator'!BA53,'Debt Snowball Calculator'!BD53,'Debt Snowball Calculator'!BG53,'Debt Snowball Calculator'!BJ53,'Debt Snowball Calculator'!BM53,'Debt Snowball Calculator'!BP53,'Debt Snowball Calculator'!BS53,'Debt Snowball Calculator'!BV53,'Debt Snowball Calculator'!BY53,'Debt Snowball Calculator'!CB53,'Debt Snowball Calculator'!CE53,'Debt Snowball Calculator'!CH53,'Debt Snowball Calculator'!CK53,'Debt Snowball Calculator'!CN53,'Debt Snowball Calculator'!CQ53,'Debt Snowball Calculator'!CT53) -> 0 | K55: =SUM('Debt Avalanche Calculator'!$E53,'Debt Avalanche Calculator'!$H53,'Debt Avalanche Calculator'!$K53,'Debt Avalanche Calculator'!$N53,'Debt Avalanche Calculator'!$Q53,'Debt Avalanche Calculator'!$T53,'Debt Avalanche Calculator'!$W53,'Debt Avalanche Calculator'!$Z53,'Debt Avalanche Calculator'!$AC53,'Debt Avalanche Calculator'!$AF53,'Debt Avalanche Calculator'!$AI53,'Debt Avalanche Calculator'!$AL53,'Debt Avalanche Calculator'!$AO53,'Debt Avalanche Calculator'!$AR53,'Debt Avalanche Calculator'!$AU53,'Debt Avalanche Calculator'!$AX53,'Debt Avalanche Calculator'!$BA53,'Debt Avalanche Calculator'!$BD53,'Debt Avalanche Calculator'!$BG53,'Debt Avalanche Calculator'!$BJ53,'Debt Avalanche Calculator'!$BM53,'Debt Avalanche Calculator'!$BP53,'Debt Avalanche Calculator'!$BS53,'Debt Avalanche Calculator'!$BV53,'Debt Avalanche Calculator'!$BY53,'Debt Avalanche Calculator'!$CB53,'Debt Avalanche Calculator'!$CE53,'Debt Avalanche Calculator'!$CH53,'Debt Avalanche Calculator'!$CK53,'Debt Avalanche Calculator'!$CN53,'Debt Avalanche Calculator'!$CQ53,'Debt Avalanche Calculator'!$CT53) -> 0 | L55: 36
I56: 37 | J56: =SUM('Debt Snowball Calculator'!E54,'Debt Snowball Calculator'!H54,'Debt Snowball Calculator'!K54,'Debt Snowball Calculator'!N54,'Debt Snowball Calculator'!Q54,'Debt Snowball Calculator'!T54,'Debt Snowball Calculator'!W54,'Debt Snowball Calculator'!Z54,'Debt Snowball Calculator'!AC54,'Debt Snowball Calculator'!AF54,'Debt Snowball Calculator'!AI54,'Debt Snowball Calculator'!AL54,'Debt Snowball Calculator'!AO54,'Debt Snowball Calculator'!AR54,'Debt Snowball Calculator'!AU54,'Debt Snowball Calculator'!AX54,'Debt Snowball Calculator'!BA54,'Debt Snowball Calculator'!BD54,'Debt Snowball Calculator'!BG54,'Debt Snowball Calculator'!BJ54,'Debt Snowball Calculator'!BM54,'Debt Snowball Calculator'!BP54,'Debt Snowball Calculator'!BS54,'Debt Snowball Calculator'!BV54,'Debt Snowball Calculator'!BY54,'Debt Snowball Calculator'!CB54,'Debt Snowball Calculator'!CE54,'Debt Snowball Calculator'!CH54,'Debt Snowball Calculator'!CK54,'Debt Snowball Calculator'!CN54,'Debt Snowball Calculator'!CQ54,'Debt Snowball Calculator'!CT54) -> 0 | K56: =SUM('Debt Avalanche Calculator'!$E54,'Debt Avalanche Calculator'!$H54,'Debt Avalanche Calculator'!$K54,'Debt Avalanche Calculator'!$N54,'Debt Avalanche Calculator'!$Q54,'Debt Avalanche Calculator'!$T54,'Debt Avalanche Calculator'!$W54,'Debt Avalanche Calculator'!$Z54,'Debt Avalanche Calculator'!$AC54,'Debt Avalanche Calculator'!$AF54,'Debt Avalanche Calculator'!$AI54,'Debt Avalanche Calculator'!$AL54,'Debt Avalanche Calculator'!$AO54,'Debt Avalanche Calculator'!$AR54,'Debt Avalanche Calculator'!$AU54,'Debt Avalanche Calculator'!$AX54,'Debt Avalanche Calculator'!$BA54,'Debt Avalanche Calculator'!$BD54,'Debt Avalanche Calculator'!$BG54,'Debt Avalanche Calculator'!$BJ54,'Debt Avalanche Calculator'!$BM54,'Debt Avalanche Calculator'!$BP54,'Debt Avalanche Calculator'!$BS54,'Debt Avalanche Calculator'!$BV54,'Debt Avalanche Calculator'!$BY54,'Debt Avalanche Calculator'!$CB54,'Debt Avalanche Calculator'!$CE54,'Debt Avalanche Calculator'!$CH54,'Debt Avalanche Calculator'!$CK54,'Debt Avalanche Calculator'!$CN54,'Debt Avalanche Calculator'!$CQ54,'Debt Avalanche Calculator'!$CT54) -> 0 | L56: 37
I57: 38 | J57: =SUM('Debt Snowball Calculator'!E55,'Debt Snowball Calculator'!H55,'Debt Snowball Calculator'!K55,'Debt Snowball Calculator'!N55,'Debt Snowball Calculator'!Q55,'Debt Snowball Calculator'!T55,'Debt Snowball Calculator'!W55,'Debt Snowball Calculator'!Z55,'Debt Snowball Calculator'!AC55,'Debt Snowball Calculator'!AF55,'Debt Snowball Calculator'!AI55,'Debt Snowball Calculator'!AL55,'Debt Snowball Calculator'!AO55,'Debt Snowball Calculator'!AR55,'Debt Snowball Calculator'!AU55,'Debt Snowball Calculator'!AX55,'Debt Snowball Calculator'!BA55,'Debt Snowball Calculator'!BD55,'Debt Snowball Calculator'!BG55,'Debt Snowball Calculator'!BJ55,'Debt Snowball Calculator'!BM55,'Debt Snowball Calculator'!BP55,'Debt Snowball Calculator'!BS55,'Debt Snowball Calculator'!BV55,'Debt Snowball Calculator'!BY55,'Debt Snowball Calculator'!CB55,'Debt Snowball Calculator'!CE55,'Debt Snowball Calculator'!CH55,'Debt Snowball Calculator'!CK55,'Debt Snowball Calculator'!CN55,'Debt Snowball Calculator'!CQ55,'Debt Snowball Calculator'!CT55) -> 0 | K57: =SUM('Debt Avalanche Calculator'!$E55,'Debt Avalanche Calculator'!$H55,'Debt Avalanche Calculator'!$K55,'Debt Avalanche Calculator'!$N55,'Debt Avalanche Calculator'!$Q55,'Debt Avalanche Calculator'!$T55,'Debt Avalanche Calculator'!$W55,'Debt Avalanche Calculator'!$Z55,'Debt Avalanche Calculator'!$AC55,'Debt Avalanche Calculator'!$AF55,'Debt Avalanche Calculator'!$AI55,'Debt Avalanche Calculator'!$AL55,'Debt Avalanche Calculator'!$AO55,'Debt Avalanche Calculator'!$AR55,'Debt Avalanche Calculator'!$AU55,'Debt Avalanche Calculator'!$AX55,'Debt Avalanche Calculator'!$BA55,'Debt Avalanche Calculator'!$BD55,'Debt Avalanche Calculator'!$BG55,'Debt Avalanche Calculator'!$BJ55,'Debt Avalanche Calculator'!$BM55,'Debt Avalanche Calculator'!$BP55,'Debt Avalanche Calculator'!$BS55,'Debt Avalanche Calculator'!$BV55,'Debt Avalanche Calculator'!$BY55,'Debt Avalanche Calculator'!$CB55,'Debt Avalanche Calculator'!$CE55,'Debt Avalanche Calculator'!$CH55,'Debt Avalanche Calculator'!$CK55,'Debt Avalanche Calculator'!$CN55,'Debt Avalanche Calculator'!$CQ55,'Debt Avalanche Calculator'!$CT55) -> 0 | L57: 38
I58: 39 | J58: =SUM('Debt Snowball Calculator'!E56,'Debt Snowball Calculator'!H56,'Debt Snowball Calculator'!K56,'Debt Snowball Calculator'!N56,'Debt Snowball Calculator'!Q56,'Debt Snowball Calculator'!T56,'Debt Snowball Calculator'!W56,'Debt Snowball Calculator'!Z56,'Debt Snowball Calculator'!AC56,'Debt Snowball Calculator'!AF56,'Debt Snowball Calculator'!AI56,'Debt Snowball Calculator'!AL56,'Debt Snowball Calculator'!AO56,'Debt Snowball Calculator'!AR56,'Debt Snowball Calculator'!AU56,'Debt Snowball Calculator'!AX56,'Debt Snowball Calculator'!BA56,'Debt Snowball Calculator'!BD56,'Debt Snowball Calculator'!BG56,'Debt Snowball Calculator'!BJ56,'Debt Snowball Calculator'!BM56,'Debt Snowball Calculator'!BP56,'Debt Snowball Calculator'!BS56,'Debt Snowball Calculator'!BV56,'Debt Snowball Calculator'!BY56,'Debt Snowball Calculator'!CB56,'Debt Snowball Calculator'!CE56,'Debt Snowball Calculator'!CH56,'Debt Snowball Calculator'!CK56,'Debt Snowball Calculator'!CN56,'Debt Snowball Calculator'!CQ56,'Debt Snowball Calculator'!CT56) -> 0 | K58: =SUM('Debt Avalanche Calculator'!$E56,'Debt Avalanche Calculator'!$H56,'Debt Avalanche Calculator'!$K56,'Debt Avalanche Calculator'!$N56,'Debt Avalanche Calculator'!$Q56,'Debt Avalanche Calculator'!$T56,'Debt Avalanche Calculator'!$W56,'Debt Avalanche Calculator'!$Z56,'Debt Avalanche Calculator'!$AC56,'Debt Avalanche Calculator'!$AF56,'Debt Avalanche Calculator'!$AI56,'Debt Avalanche Calculator'!$AL56,'Debt Avalanche Calculator'!$AO56,'Debt Avalanche Calculator'!$AR56,'Debt Avalanche Calculator'!$AU56,'Debt Avalanche Calculator'!$AX56,'Debt Avalanche Calculator'!$BA56,'Debt Avalanche Calculator'!$BD56,'Debt Avalanche Calculator'!$BG56,'Debt Avalanche Calculator'!$BJ56,'Debt Avalanche Calculator'!$BM56,'Debt Avalanche Calculator'!$BP56,'Debt Avalanche Calculator'!$BS56,'Debt Avalanche Calculator'!$BV56,'Debt Avalanche Calculator'!$BY56,'Debt Avalanche Calculator'!$CB56,'Debt Avalanche Calculator'!$CE56,'Debt Avalanche Calculator'!$CH56,'Debt Avalanche Calculator'!$CK56,'Debt Avalanche Calculator'!$CN56,'Debt Avalanche Calculator'!$CQ56,'Debt Avalanche Calculator'!$CT56) -> 0 | L58: 39
I59: 40 | J59: =SUM('Debt Snowball Calculator'!E57,'Debt Snowball Calculator'!H57,'Debt Snowball Calculator'!K57,'Debt Snowball Calculator'!N57,'Debt Snowball Calculator'!Q57,'Debt Snowball Calculator'!T57,'Debt Snowball Calculator'!W57,'Debt Snowball Calculator'!Z57,'Debt Snowball Calculator'!AC57,'Debt Snowball Calculator'!AF57,'Debt Snowball Calculator'!AI57,'Debt Snowball Calculator'!AL57,'Debt Snowball Calculator'!AO57,'Debt Snowball Calculator'!AR57,'Debt Snowball Calculator'!AU57,'Debt Snowball Calculator'!AX57,'Debt Snowball Calculator'!BA57,'Debt Snowball Calculator'!BD57,'Debt Snowball Calculator'!BG57,'Debt Snowball Calculator'!BJ57,'Debt Snowball Calculator'!BM57,'Debt Snowball Calculator'!BP57,'Debt Snowball Calculator'!BS57,'Debt Snowball Calculator'!BV57,'Debt Snowball Calculator'!BY57,'Debt Snowball Calculator'!CB57,'Debt Snowball Calculator'!CE57,'Debt Snowball Calculator'!CH57,'Debt Snowball Calculator'!CK57,'Debt Snowball Calculator'!CN57,'Debt Snowball Calculator'!CQ57,'Debt Snowball Calculator'!CT57) -> 0 | K59: =SUM('Debt Avalanche Calculator'!$E57,'Debt Avalanche Calculator'!$H57,'Debt Avalanche Calculator'!$K57,'Debt Avalanche Calculator'!$N57,'Debt Avalanche Calculator'!$Q57,'Debt Avalanche Calculator'!$T57,'Debt Avalanche Calculator'!$W57,'Debt Avalanche Calculator'!$Z57,'Debt Avalanche Calculator'!$AC57,'Debt Avalanche Calculator'!$AF57,'Debt Avalanche Calculator'!$AI57,'Debt Avalanche Calculator'!$AL57,'Debt Avalanche Calculator'!$AO57,'Debt Avalanche Calculator'!$AR57,'Debt Avalanche Calculator'!$AU57,'Debt Avalanche Calculator'!$AX57,'Debt Avalanche Calculator'!$BA57,'Debt Avalanche Calculator'!$BD57,'Debt Avalanche Calculator'!$BG57,'Debt Avalanche Calculator'!$BJ57,'Debt Avalanche Calculator'!$BM57,'Debt Avalanche Calculator'!$BP57,'Debt Avalanche Calculator'!$BS57,'Debt Avalanche Calculator'!$BV57,'Debt Avalanche Calculator'!$BY57,'Debt Avalanche Calculator'!$CB57,'Debt Avalanche Calculator'!$CE57,'Debt Avalanche Calculator'!$CH57,'Debt Avalanche Calculator'!$CK57,'Debt Avalanche Calculator'!$CN57,'Debt Avalanche Calculator'!$CQ57,'Debt Avalanche Calculator'!$CT57) -> 0 | L59: 40
I60: 41 | J60: =SUM('Debt Snowball Calculator'!E58,'Debt Snowball Calculator'!H58,'Debt Snowball Calculator'!K58,'Debt Snowball Calculator'!N58,'Debt Snowball Calculator'!Q58,'Debt Snowball Calculator'!T58,'Debt Snowball Calculator'!W58,'Debt Snowball Calculator'!Z58,'Debt Snowball Calculator'!AC58,'Debt Snowball Calculator'!AF58,'Debt Snowball Calculator'!AI58,'Debt Snowball Calculator'!AL58,'Debt Snowball Calculator'!AO58,'Debt Snowball Calculator'!AR58,'Debt Snowball Calculator'!AU58,'Debt Snowball Calculator'!AX58,'Debt Snowball Calculator'!BA58,'Debt Snowball Calculator'!BD58,'Debt Snowball Calculator'!BG58,'Debt Snowball Calculator'!BJ58,'Debt Snowball Calculator'!BM58,'Debt Snowball Calculator'!BP58,'Debt Snowball Calculator'!BS58,'Debt Snowball Calculator'!BV58,'Debt Snowball Calculator'!BY58,'Debt Snowball Calculator'!CB58,'Debt Snowball Calculator'!CE58,'Debt Snowball Calculator'!CH58,'Debt Snowball Calculator'!CK58,'Debt Snowball Calculator'!CN58,'Debt Snowball Calculator'!CQ58,'Debt Snowball Calculator'!CT58) -> 0 | K60: =SUM('Debt Avalanche Calculator'!$E58,'Debt Avalanche Calculator'!$H58,'Debt Avalanche Calculator'!$K58,'Debt Avalanche Calculator'!$N58,'Debt Avalanche Calculator'!$Q58,'Debt Avalanche Calculator'!$T58,'Debt Avalanche Calculator'!$W58,'Debt Avalanche Calculator'!$Z58,'Debt Avalanche Calculator'!$AC58,'Debt Avalanche Calculator'!$AF58,'Debt Avalanche Calculator'!$AI58,'Debt Avalanche Calculator'!$AL58,'Debt Avalanche Calculator'!$AO58,'Debt Avalanche Calculator'!$AR58,'Debt Avalanche Calculator'!$AU58,'Debt Avalanche Calculator'!$AX58,'Debt Avalanche Calculator'!$BA58,'Debt Avalanche Calculator'!$BD58,'Debt Avalanche Calculator'!$BG58,'Debt Avalanche Calculator'!$BJ58,'Debt Avalanche Calculator'!$BM58,'Debt Avalanche Calculator'!$BP58,'Debt Avalanche Calculator'!$BS58,'Debt Avalanche Calculator'!$BV58,'Debt Avalanche Calculator'!$BY58,'Debt Avalanche Calculator'!$CB58,'Debt Avalanche Calculator'!$CE58,'Debt Avalanche Calculator'!$CH58,'Debt Avalanche Calculator'!$CK58,'Debt Avalanche Calculator'!$CN58,'Debt Avalanche Calculator'!$CQ58,'Debt Avalanche Calculator'!$CT58) -> 0 | L60: 41
I61: 42 | J61: =SUM('Debt Snowball Calculator'!E59,'Debt Snowball Calculator'!H59,'Debt Snowball Calculator'!K59,'Debt Snowball Calculator'!N59,'Debt Snowball Calculator'!Q59,'Debt Snowball Calculator'!T59,'Debt Snowball Calculator'!W59,'Debt Snowball Calculator'!Z59,'Debt Snowball Calculator'!AC59,'Debt Snowball Calculator'!AF59,'Debt Snowball Calculator'!AI59,'Debt Snowball Calculator'!AL59,'Debt Snowball Calculator'!AO59,'Debt Snowball Calculator'!AR59,'Debt Snowball Calculator'!AU59,'Debt Snowball Calculator'!AX59,'Debt Snowball Calculator'!BA59,'Debt Snowball Calculator'!BD59,'Debt Snowball Calculator'!BG59,'Debt Snowball Calculator'!BJ59,'Debt Snowball Calculator'!BM59,'Debt Snowball Calculator'!BP59,'Debt Snowball Calculator'!BS59,'Debt Snowball Calculator'!BV59,'Debt Snowball Calculator'!BY59,'Debt Snowball Calculator'!CB59,'Debt Snowball Calculator'!CE59,'Debt Snowball Calculator'!CH59,'Debt Snowball Calculator'!CK59,'Debt Snowball Calculator'!CN59,'Debt Snowball Calculator'!CQ59,'Debt Snowball Calculator'!CT59) -> 0 | K61: =SUM('Debt Avalanche Calculator'!$E59,'Debt Avalanche Calculator'!$H59,'Debt Avalanche Calculator'!$K59,'Debt Avalanche Calculator'!$N59,'Debt Avalanche Calculator'!$Q59,'Debt Avalanche Calculator'!$T59,'Debt Avalanche Calculator'!$W59,'Debt Avalanche Calculator'!$Z59,'Debt Avalanche Calculator'!$AC59,'Debt Avalanche Calculator'!$AF59,'Debt Avalanche Calculator'!$AI59,'Debt Avalanche Calculator'!$AL59,'Debt Avalanche Calculator'!$AO59,'Debt Avalanche Calculator'!$AR59,'Debt Avalanche Calculator'!$AU59,'Debt Avalanche Calculator'!$AX59,'Debt Avalanche Calculator'!$BA59,'Debt Avalanche Calculator'!$BD59,'Debt Avalanche Calculator'!$BG59,'Debt Avalanche Calculator'!$BJ59,'Debt Avalanche Calculator'!$BM59,'Debt Avalanche Calculator'!$BP59,'Debt Avalanche Calculator'!$BS59,'Debt Avalanche Calculator'!$BV59,'Debt Avalanche Calculator'!$BY59,'Debt Avalanche Calculator'!$CB59,'Debt Avalanche Calculator'!$CE59,'Debt Avalanche Calculator'!$CH59,'Debt Avalanche Calculator'!$CK59,'Debt Avalanche Calculator'!$CN59,'Debt Avalanche Calculator'!$CQ59,'Debt Avalanche Calculator'!$CT59) -> 0 | L61: 42
I62: 43 | J62: =SUM('Debt Snowball Calculator'!E60,'Debt Snowball Calculator'!H60,'Debt Snowball Calculator'!K60,'Debt Snowball Calculator'!N60,'Debt Snowball Calculator'!Q60,'Debt Snowball Calculator'!T60,'Debt Snowball Calculator'!W60,'Debt Snowball Calculator'!Z60,'Debt Snowball Calculator'!AC60,'Debt Snowball Calculator'!AF60,'Debt Snowball Calculator'!AI60,'Debt Snowball Calculator'!AL60,'Debt Snowball Calculator'!AO60,'Debt Snowball Calculator'!AR60,'Debt Snowball Calculator'!AU60,'Debt Snowball Calculator'!AX60,'Debt Snowball Calculator'!BA60,'Debt Snowball Calculator'!BD60,'Debt Snowball Calculator'!BG60,'Debt Snowball Calculator'!BJ60,'Debt Snowball Calculator'!BM60,'Debt Snowball Calculator'!BP60,'Debt Snowball Calculator'!BS60,'Debt Snowball Calculator'!BV60,'Debt Snowball Calculator'!BY60,'Debt Snowball Calculator'!CB60,'Debt Snowball Calculator'!CE60,'Debt Snowball Calculator'!CH60,'Debt Snowball Calculator'!CK60,'Debt Snowball Calculator'!CN60,'Debt Snowball Calculator'!CQ60,'Debt Snowball Calculator'!CT60) -> 0 | K62: =SUM('Debt Avalanche Calculator'!$E60,'Debt Avalanche Calculator'!$H60,'Debt Avalanche Calculator'!$K60,'Debt Avalanche Calculator'!$N60,'Debt Avalanche Calculator'!$Q60,'Debt Avalanche Calculator'!$T60,'Debt Avalanche Calculator'!$W60,'Debt Avalanche Calculator'!$Z60,'Debt Avalanche Calculator'!$AC60,'Debt Avalanche Calculator'!$AF60,'Debt Avalanche Calculator'!$AI60,'Debt Avalanche Calculator'!$AL60,'Debt Avalanche Calculator'!$AO60,'Debt Avalanche Calculator'!$AR60,'Debt Avalanche Calculator'!$AU60,'Debt Avalanche Calculator'!$AX60,'Debt Avalanche Calculator'!$BA60,'Debt Avalanche Calculator'!$BD60,'Debt Avalanche Calculator'!$BG60,'Debt Avalanche Calculator'!$BJ60,'Debt Avalanche Calculator'!$BM60,'Debt Avalanche Calculator'!$BP60,'Debt Avalanche Calculator'!$BS60,'Debt Avalanche Calculator'!$BV60,'Debt Avalanche Calculator'!$BY60,'Debt Avalanche Calculator'!$CB60,'Debt Avalanche Calculator'!$CE60,'Debt Avalanche Calculator'!$CH60,'Debt Avalanche Calculator'!$CK60,'Debt Avalanche Calculator'!$CN60,'Debt Avalanche Calculator'!$CQ60,'Debt Avalanche Calculator'!$CT60) -> 0 | L62: 43
I63: 44 | J63: =SUM('Debt Snowball Calculator'!E61,'Debt Snowball Calculator'!H61,'Debt Snowball Calculator'!K61,'Debt Snowball Calculator'!N61,'Debt Snowball Calculator'!Q61,'Debt Snowball Calculator'!T61,'Debt Snowball Calculator'!W61,'Debt Snowball Calculator'!Z61,'Debt Snowball Calculator'!AC61,'Debt Snowball Calculator'!AF61,'Debt Snowball Calculator'!AI61,'Debt Snowball Calculator'!AL61,'Debt Snowball Calculator'!AO61,'Debt Snowball Calculator'!AR61,'Debt Snowball Calculator'!AU61,'Debt Snowball Calculator'!AX61,'Debt Snowball Calculator'!BA61,'Debt Snowball Calculator'!BD61,'Debt Snowball Calculator'!BG61,'Debt Snowball Calculator'!BJ61,'Debt Snowball Calculator'!BM61,'Debt Snowball Calculator'!BP61,'Debt Snowball Calculator'!BS61,'Debt Snowball Calculator'!BV61,'Debt Snowball Calculator'!BY61,'Debt Snowball Calculator'!CB61,'Debt Snowball Calculator'!CE61,'Debt Snowball Calculator'!CH61,'Debt Snowball Calculator'!CK61,'Debt Snowball Calculator'!CN61,'Debt Snowball Calculator'!CQ61,'Debt Snowball Calculator'!CT61) -> 0 | K63: =SUM('Debt Avalanche Calculator'!$E61,'Debt Avalanche Calculator'!$H61,'Debt Avalanche Calculator'!$K61,'Debt Avalanche Calculator'!$N61,'Debt Avalanche Calculator'!$Q61,'Debt Avalanche Calculator'!$T61,'Debt Avalanche Calculator'!$W61,'Debt Avalanche Calculator'!$Z61,'Debt Avalanche Calculator'!$AC61,'Debt Avalanche Calculator'!$AF61,'Debt Avalanche Calculator'!$AI61,'Debt Avalanche Calculator'!$AL61,'Debt Avalanche Calculator'!$AO61,'Debt Avalanche Calculator'!$AR61,'Debt Avalanche Calculator'!$AU61,'Debt Avalanche Calculator'!$AX61,'Debt Avalanche Calculator'!$BA61,'Debt Avalanche Calculator'!$BD61,'Debt Avalanche Calculator'!$BG61,'Debt Avalanche Calculator'!$BJ61,'Debt Avalanche Calculator'!$BM61,'Debt Avalanche Calculator'!$BP61,'Debt Avalanche Calculator'!$BS61,'Debt Avalanche Calculator'!$BV61,'Debt Avalanche Calculator'!$BY61,'Debt Avalanche Calculator'!$CB61,'Debt Avalanche Calculator'!$CE61,'Debt Avalanche Calculator'!$CH61,'Debt Avalanche Calculator'!$CK61,'Debt Avalanche Calculator'!$CN61,'Debt Avalanche Calculator'!$CQ61,'Debt Avalanche Calculator'!$CT61) -> 0 | L63: 44
I64: 45 | J64: =SUM('Debt Snowball Calculator'!E62,'Debt Snowball Calculator'!H62,'Debt Snowball Calculator'!K62,'Debt Snowball Calculator'!N62,'Debt Snowball Calculator'!Q62,'Debt Snowball Calculator'!T62,'Debt Snowball Calculator'!W62,'Debt Snowball Calculator'!Z62,'Debt Snowball Calculator'!AC62,'Debt Snowball Calculator'!AF62,'Debt Snowball Calculator'!AI62,'Debt Snowball Calculator'!AL62,'Debt Snowball Calculator'!AO62,'Debt Snowball Calculator'!AR62,'Debt Snowball Calculator'!AU62,'Debt Snowball Calculator'!AX62,'Debt Snowball Calculator'!BA62,'Debt Snowball Calculator'!BD62,'Debt Snowball Calculator'!BG62,'Debt Snowball Calculator'!BJ62,'Debt Snowball Calculator'!BM62,'Debt Snowball Calculator'!BP62,'Debt Snowball Calculator'!BS62,'Debt Snowball Calculator'!BV62,'Debt Snowball Calculator'!BY62,'Debt Snowball Calculator'!CB62,'Debt Snowball Calculator'!CE62,'Debt Snowball Calculator'!CH62,'Debt Snowball Calculator'!CK62,'Debt Snowball Calculator'!CN62,'Debt Snowball Calculator'!CQ62,'Debt Snowball Calculator'!CT62) -> 0 | K64: =SUM('Debt Avalanche Calculator'!$E62,'Debt Avalanche Calculator'!$H62,'Debt Avalanche Calculator'!$K62,'Debt Avalanche Calculator'!$N62,'Debt Avalanche Calculator'!$Q62,'Debt Avalanche Calculator'!$T62,'Debt Avalanche Calculator'!$W62,'Debt Avalanche Calculator'!$Z62,'Debt Avalanche Calculator'!$AC62,'Debt Avalanche Calculator'!$AF62,'Debt Avalanche Calculator'!$AI62,'Debt Avalanche Calculator'!$AL62,'Debt Avalanche Calculator'!$AO62,'Debt Avalanche Calculator'!$AR62,'Debt Avalanche Calculator'!$AU62,'Debt Avalanche Calculator'!$AX62,'Debt Avalanche Calculator'!$BA62,'Debt Avalanche Calculator'!$BD62,'Debt Avalanche Calculator'!$BG62,'Debt Avalanche Calculator'!$BJ62,'Debt Avalanche Calculator'!$BM62,'Debt Avalanche Calculator'!$BP62,'Debt Avalanche Calculator'!$BS62,'Debt Avalanche Calculator'!$BV62,'Debt Avalanche Calculator'!$BY62,'Debt Avalanche Calculator'!$CB62,'Debt Avalanche Calculator'!$CE62,'Debt Avalanche Calculator'!$CH62,'Debt Avalanche Calculator'!$CK62,'Debt Avalanche Calculator'!$CN62,'Debt Avalanche Calculator'!$CQ62,'Debt Avalanche Calculator'!$CT62) -> 0 | L64: 45
I65: 46 | J65: =SUM('Debt Snowball Calculator'!E63,'Debt Snowball Calculator'!H63,'Debt Snowball Calculator'!K63,'Debt Snowball Calculator'!N63,'Debt Snowball Calculator'!Q63,'Debt Snowball Calculator'!T63,'Debt Snowball Calculator'!W63,'Debt Snowball Calculator'!Z63,'Debt Snowball Calculator'!AC63,'Debt Snowball Calculator'!AF63,'Debt Snowball Calculator'!AI63,'Debt Snowball Calculator'!AL63,'Debt Snowball Calculator'!AO63,'Debt Snowball Calculator'!AR63,'Debt Snowball Calculator'!AU63,'Debt Snowball Calculator'!AX63,'Debt Snowball Calculator'!BA63,'Debt Snowball Calculator'!BD63,'Debt Snowball Calculator'!BG63,'Debt Snowball Calculator'!BJ63,'Debt Snowball Calculator'!BM63,'Debt Snowball Calculator'!BP63,'Debt Snowball Calculator'!BS63,'Debt Snowball Calculator'!BV63,'Debt Snowball Calculator'!BY63,'Debt Snowball Calculator'!CB63,'Debt Snowball Calculator'!CE63,'Debt Snowball Calculator'!CH63,'Debt Snowball Calculator'!CK63,'Debt Snowball Calculator'!CN63,'Debt Snowball Calculator'!CQ63,'Debt Snowball Calculator'!CT63) -> 0 | K65: =SUM('Debt Avalanche Calculator'!$E63,'Debt Avalanche Calculator'!$H63,'Debt Avalanche Calculator'!$K63,'Debt Avalanche Calculator'!$N63,'Debt Avalanche Calculator'!$Q63,'Debt Avalanche Calculator'!$T63,'Debt Avalanche Calculator'!$W63,'Debt Avalanche Calculator'!$Z63,'Debt Avalanche Calculator'!$AC63,'Debt Avalanche Calculator'!$AF63,'Debt Avalanche Calculator'!$AI63,'Debt Avalanche Calculator'!$AL63,'Debt Avalanche Calculator'!$AO63,'Debt Avalanche Calculator'!$AR63,'Debt Avalanche Calculator'!$AU63,'Debt Avalanche Calculator'!$AX63,'Debt Avalanche Calculator'!$BA63,'Debt Avalanche Calculator'!$BD63,'Debt Avalanche Calculator'!$BG63,'Debt Avalanche Calculator'!$BJ63,'Debt Avalanche Calculator'!$BM63,'Debt Avalanche Calculator'!$BP63,'Debt Avalanche Calculator'!$BS63,'Debt Avalanche Calculator'!$BV63,'Debt Avalanche Calculator'!$BY63,'Debt Avalanche Calculator'!$CB63,'Debt Avalanche Calculator'!$CE63,'Debt Avalanche Calculator'!$CH63,'Debt Avalanche Calculator'!$CK63,'Debt Avalanche Calculator'!$CN63,'Debt Avalanche Calculator'!$CQ63,'Debt Avalanche Calculator'!$CT63) -> 0 | L65: 46
I66: 47 | J66: =SUM('Debt Snowball Calculator'!E64,'Debt Snowball Calculator'!H64,'Debt Snowball Calculator'!K64,'Debt Snowball Calculator'!N64,'Debt Snowball Calculator'!Q64,'Debt Snowball Calculator'!T64,'Debt Snowball Calculator'!W64,'Debt Snowball Calculator'!Z64,'Debt Snowball Calculator'!AC64,'Debt Snowball Calculator'!AF64,'Debt Snowball Calculator'!AI64,'Debt Snowball Calculator'!AL64,'Debt Snowball Calculator'!AO64,'Debt Snowball Calculator'!AR64,'Debt Snowball Calculator'!AU64,'Debt Snowball Calculator'!AX64,'Debt Snowball Calculator'!BA64,'Debt Snowball Calculator'!BD64,'Debt Snowball Calculator'!BG64,'Debt Snowball Calculator'!BJ64,'Debt Snowball Calculator'!BM64,'Debt Snowball Calculator'!BP64,'Debt Snowball Calculator'!BS64,'Debt Snowball Calculator'!BV64,'Debt Snowball Calculator'!BY64,'Debt Snowball Calculator'!CB64,'Debt Snowball Calculator'!CE64,'Debt Snowball Calculator'!CH64,'Debt Snowball Calculator'!CK64,'Debt Snowball Calculator'!CN64,'Debt Snowball Calculator'!CQ64,'Debt Snowball Calculator'!CT64) -> 0 | K66: =SUM('Debt Avalanche Calculator'!$E64,'Debt Avalanche Calculator'!$H64,'Debt Avalanche Calculator'!$K64,'Debt Avalanche Calculator'!$N64,'Debt Avalanche Calculator'!$Q64,'Debt Avalanche Calculator'!$T64,'Debt Avalanche Calculator'!$W64,'Debt Avalanche Calculator'!$Z64,'Debt Avalanche Calculator'!$AC64,'Debt Avalanche Calculator'!$AF64,'Debt Avalanche Calculator'!$AI64,'Debt Avalanche Calculator'!$AL64,'Debt Avalanche Calculator'!$AO64,'Debt Avalanche Calculator'!$AR64,'Debt Avalanche Calculator'!$AU64,'Debt Avalanche Calculator'!$AX64,'Debt Avalanche Calculator'!$BA64,'Debt Avalanche Calculator'!$BD64,'Debt Avalanche Calculator'!$BG64,'Debt Avalanche Calculator'!$BJ64,'Debt Avalanche Calculator'!$BM64,'Debt Avalanche Calculator'!$BP64,'Debt Avalanche Calculator'!$BS64,'Debt Avalanche Calculator'!$BV64,'Debt Avalanche Calculator'!$BY64,'Debt Avalanche Calculator'!$CB64,'Debt Avalanche Calculator'!$CE64,'Debt Avalanche Calculator'!$CH64,'Debt Avalanche Calculator'!$CK64,'Debt Avalanche Calculator'!$CN64,'Debt Avalanche Calculator'!$CQ64,'Debt Avalanche Calculator'!$CT64) -> 0 | L66: 47
I67: 48 | J67: =SUM('Debt Snowball Calculator'!E65,'Debt Snowball Calculator'!H65,'Debt Snowball Calculator'!K65,'Debt Snowball Calculator'!N65,'Debt Snowball Calculator'!Q65,'Debt Snowball Calculator'!T65,'Debt Snowball Calculator'!W65,'Debt Snowball Calculator'!Z65,'Debt Snowball Calculator'!AC65,'Debt Snowball Calculator'!AF65,'Debt Snowball Calculator'!AI65,'Debt Snowball Calculator'!AL65,'Debt Snowball Calculator'!AO65,'Debt Snowball Calculator'!AR65,'Debt Snowball Calculator'!AU65,'Debt Snowball Calculator'!AX65,'Debt Snowball Calculator'!BA65,'Debt Snowball Calculator'!BD65,'Debt Snowball Calculator'!BG65,'Debt Snowball Calculator'!BJ65,'Debt Snowball Calculator'!BM65,'Debt Snowball Calculator'!BP65,'Debt Snowball Calculator'!BS65,'Debt Snowball Calculator'!BV65,'Debt Snowball Calculator'!BY65,'Debt Snowball Calculator'!CB65,'Debt Snowball Calculator'!CE65,'Debt Snowball Calculator'!CH65,'Debt Snowball Calculator'!CK65,'Debt Snowball Calculator'!CN65,'Debt Snowball Calculator'!CQ65,'Debt Snowball Calculator'!CT65) -> 0 | K67: =SUM('Debt Avalanche Calculator'!$E65,'Debt Avalanche Calculator'!$H65,'Debt Avalanche Calculator'!$K65,'Debt Avalanche Calculator'!$N65,'Debt Avalanche Calculator'!$Q65,'Debt Avalanche Calculator'!$T65,'Debt Avalanche Calculator'!$W65,'Debt Avalanche Calculator'!$Z65,'Debt Avalanche Calculator'!$AC65,'Debt Avalanche Calculator'!$AF65,'Debt Avalanche Calculator'!$AI65,'Debt Avalanche Calculator'!$AL65,'Debt Avalanche Calculator'!$AO65,'Debt Avalanche Calculator'!$AR65,'Debt Avalanche Calculator'!$AU65,'Debt Avalanche Calculator'!$AX65,'Debt Avalanche Calculator'!$BA65,'Debt Avalanche Calculator'!$BD65,'Debt Avalanche Calculator'!$BG65,'Debt Avalanche Calculator'!$BJ65,'Debt Avalanche Calculator'!$BM65,'Debt Avalanche Calculator'!$BP65,'Debt Avalanche Calculator'!$BS65,'Debt Avalanche Calculator'!$BV65,'Debt Avalanche Calculator'!$BY65,'Debt Avalanche Calculator'!$CB65,'Debt Avalanche Calculator'!$CE65,'Debt Avalanche Calculator'!$CH65,'Debt Avalanche Calculator'!$CK65,'Debt Avalanche Calculator'!$CN65,'Debt Avalanche Calculator'!$CQ65,'Debt Avalanche Calculator'!$CT65) -> 0 | L67: 48
I68: 49 | J68: =SUM('Debt Snowball Calculator'!E66,'Debt Snowball Calculator'!H66,'Debt Snowball Calculator'!K66,'Debt Snowball Calculator'!N66,'Debt Snowball Calculator'!Q66,'Debt Snowball Calculator'!T66,'Debt Snowball Calculator'!W66,'Debt Snowball Calculator'!Z66,'Debt Snowball Calculator'!AC66,'Debt Snowball Calculator'!AF66,'Debt Snowball Calculator'!AI66,'Debt Snowball Calculator'!AL66,'Debt Snowball Calculator'!AO66,'Debt Snowball Calculator'!AR66,'Debt Snowball Calculator'!AU66,'Debt Snowball Calculator'!AX66,'Debt Snowball Calculator'!BA66,'Debt Snowball Calculator'!BD66,'Debt Snowball Calculator'!BG66,'Debt Snowball Calculator'!BJ66,'Debt Snowball Calculator'!BM66,'Debt Snowball Calculator'!BP66,'Debt Snowball Calculator'!BS66,'Debt Snowball Calculator'!BV66,'Debt Snowball Calculator'!BY66,'Debt Snowball Calculator'!CB66,'Debt Snowball Calculator'!CE66,'Debt Snowball Calculator'!CH66,'Debt Snowball Calculator'!CK66,'Debt Snowball Calculator'!CN66,'Debt Snowball Calculator'!CQ66,'Debt Snowball Calculator'!CT66) -> 0 | K68: =SUM('Debt Avalanche Calculator'!$E66,'Debt Avalanche Calculator'!$H66,'Debt Avalanche Calculator'!$K66,'Debt Avalanche Calculator'!$N66,'Debt Avalanche Calculator'!$Q66,'Debt Avalanche Calculator'!$T66,'Debt Avalanche Calculator'!$W66,'Debt Avalanche Calculator'!$Z66,'Debt Avalanche Calculator'!$AC66,'Debt Avalanche Calculator'!$AF66,'Debt Avalanche Calculator'!$AI66,'Debt Avalanche Calculator'!$AL66,'Debt Avalanche Calculator'!$AO66,'Debt Avalanche Calculator'!$AR66,'Debt Avalanche Calculator'!$AU66,'Debt Avalanche Calculator'!$AX66,'Debt Avalanche Calculator'!$BA66,'Debt Avalanche Calculator'!$BD66,'Debt Avalanche Calculator'!$BG66,'Debt Avalanche Calculator'!$BJ66,'Debt Avalanche Calculator'!$BM66,'Debt Avalanche Calculator'!$BP66,'Debt Avalanche Calculator'!$BS66,'Debt Avalanche Calculator'!$BV66,'Debt Avalanche Calculator'!$BY66,'Debt Avalanche Calculator'!$CB66,'Debt Avalanche Calculator'!$CE66,'Debt Avalanche Calculator'!$CH66,'Debt Avalanche Calculator'!$CK66,'Debt Avalanche Calculator'!$CN66,'Debt Avalanche Calculator'!$CQ66,'Debt Avalanche Calculator'!$CT66) -> 0 | L68: 49
I69: 50 | J69: =SUM('Debt Snowball Calculator'!E67,'Debt Snowball Calculator'!H67,'Debt Snowball Calculator'!K67,'Debt Snowball Calculator'!N67,'Debt Snowball Calculator'!Q67,'Debt Snowball Calculator'!T67,'Debt Snowball Calculator'!W67,'Debt Snowball Calculator'!Z67,'Debt Snowball Calculator'!AC67,'Debt Snowball Calculator'!AF67,'Debt Snowball Calculator'!AI67,'Debt Snowball Calculator'!AL67,'Debt Snowball Calculator'!AO67,'Debt Snowball Calculator'!AR67,'Debt Snowball Calculator'!AU67,'Debt Snowball Calculator'!AX67,'Debt Snowball Calculator'!BA67,'Debt Snowball Calculator'!BD67,'Debt Snowball Calculator'!BG67,'Debt Snowball Calculator'!BJ67,'Debt Snowball Calculator'!BM67,'Debt Snowball Calculator'!BP67,'Debt Snowball Calculator'!BS67,'Debt Snowball Calculator'!BV67,'Debt Snowball Calculator'!BY67,'Debt Snowball Calculator'!CB67,'Debt Snowball Calculator'!CE67,'Debt Snowball Calculator'!CH67,'Debt Snowball Calculator'!CK67,'Debt Snowball Calculator'!CN67,'Debt Snowball Calculator'!CQ67,'Debt Snowball Calculator'!CT67) -> 0 | K69: =SUM('Debt Avalanche Calculator'!$E67,'Debt Avalanche Calculator'!$H67,'Debt Avalanche Calculator'!$K67,'Debt Avalanche Calculator'!$N67,'Debt Avalanche Calculator'!$Q67,'Debt Avalanche Calculator'!$T67,'Debt Avalanche Calculator'!$W67,'Debt Avalanche Calculator'!$Z67,'Debt Avalanche Calculator'!$AC67,'Debt Avalanche Calculator'!$AF67,'Debt Avalanche Calculator'!$AI67,'Debt Avalanche Calculator'!$AL67,'Debt Avalanche Calculator'!$AO67,'Debt Avalanche Calculator'!$AR67,'Debt Avalanche Calculator'!$AU67,'Debt Avalanche Calculator'!$AX67,'Debt Avalanche Calculator'!$BA67,'Debt Avalanche Calculator'!$BD67,'Debt Avalanche Calculator'!$BG67,'Debt Avalanche Calculator'!$BJ67,'Debt Avalanche Calculator'!$BM67,'Debt Avalanche Calculator'!$BP67,'Debt Avalanche Calculator'!$BS67,'Debt Avalanche Calculator'!$BV67,'Debt Avalanche Calculator'!$BY67,'Debt Avalanche Calculator'!$CB67,'Debt Avalanche Calculator'!$CE67,'Debt Avalanche Calculator'!$CH67,'Debt Avalanche Calculator'!$CK67,'Debt Avalanche Calculator'!$CN67,'Debt Avalanche Calculator'!$CQ67,'Debt Avalanche Calculator'!$CT67) -> 0 | L69: 50
I70: 51 | J70: =SUM('Debt Snowball Calculator'!E68,'Debt Snowball Calculator'!H68,'Debt Snowball Calculator'!K68,'Debt Snowball Calculator'!N68,'Debt Snowball Calculator'!Q68,'Debt Snowball Calculator'!T68,'Debt Snowball Calculator'!W68,'Debt Snowball Calculator'!Z68,'Debt Snowball Calculator'!AC68,'Debt Snowball Calculator'!AF68,'Debt Snowball Calculator'!AI68,'Debt Snowball Calculator'!AL68,'Debt Snowball Calculator'!AO68,'Debt Snowball Calculator'!AR68,'Debt Snowball Calculator'!AU68,'Debt Snowball Calculator'!AX68,'Debt Snowball Calculator'!BA68,'Debt Snowball Calculator'!BD68,'Debt Snowball Calculator'!BG68,'Debt Snowball Calculator'!BJ68,'Debt Snowball Calculator'!BM68,'Debt Snowball Calculator'!BP68,'Debt Snowball Calculator'!BS68,'Debt Snowball Calculator'!BV68,'Debt Snowball Calculator'!BY68,'Debt Snowball Calculator'!CB68,'Debt Snowball Calculator'!CE68,'Debt Snowball Calculator'!CH68,'Debt Snowball Calculator'!CK68,'Debt Snowball Calculator'!CN68,'Debt Snowball Calculator'!CQ68,'Debt Snowball Calculator'!CT68) -> 0 | K70: =SUM('Debt Avalanche Calculator'!$E68,'Debt Avalanche Calculator'!$H68,'Debt Avalanche Calculator'!$K68,'Debt Avalanche Calculator'!$N68,'Debt Avalanche Calculator'!$Q68,'Debt Avalanche Calculator'!$T68,'Debt Avalanche Calculator'!$W68,'Debt Avalanche Calculator'!$Z68,'Debt Avalanche Calculator'!$AC68,'Debt Avalanche Calculator'!$AF68,'Debt Avalanche Calculator'!$AI68,'Debt Avalanche Calculator'!$AL68,'Debt Avalanche Calculator'!$AO68,'Debt Avalanche Calculator'!$AR68,'Debt Avalanche Calculator'!$AU68,'Debt Avalanche Calculator'!$AX68,'Debt Avalanche Calculator'!$BA68,'Debt Avalanche Calculator'!$BD68,'Debt Avalanche Calculator'!$BG68,'Debt Avalanche Calculator'!$BJ68,'Debt Avalanche Calculator'!$BM68,'Debt Avalanche Calculator'!$BP68,'Debt Avalanche Calculator'!$BS68,'Debt Avalanche Calculator'!$BV68,'Debt Avalanche Calculator'!$BY68,'Debt Avalanche Calculator'!$CB68,'Debt Avalanche Calculator'!$CE68,'Debt Avalanche Calculator'!$CH68,'Debt Avalanche Calculator'!$CK68,'Debt Avalanche Calculator'!$CN68,'Debt Avalanche Calculator'!$CQ68,'Debt Avalanche Calculator'!$CT68) -> 0 | L70: 51
I71: 52 | J71: =SUM('Debt Snowball Calculator'!E69,'Debt Snowball Calculator'!H69,'Debt Snowball Calculator'!K69,'Debt Snowball Calculator'!N69,'Debt Snowball Calculator'!Q69,'Debt Snowball Calculator'!T69,'Debt Snowball Calculator'!W69,'Debt Snowball Calculator'!Z69,'Debt Snowball Calculator'!AC69,'Debt Snowball Calculator'!AF69,'Debt Snowball Calculator'!AI69,'Debt Snowball Calculator'!AL69,'Debt Snowball Calculator'!AO69,'Debt Snowball Calculator'!AR69,'Debt Snowball Calculator'!AU69,'Debt Snowball Calculator'!AX69,'Debt Snowball Calculator'!BA69,'Debt Snowball Calculator'!BD69,'Debt Snowball Calculator'!BG69,'Debt Snowball Calculator'!BJ69,'Debt Snowball Calculator'!BM69,'Debt Snowball Calculator'!BP69,'Debt Snowball Calculator'!BS69,'Debt Snowball Calculator'!BV69,'Debt Snowball Calculator'!BY69,'Debt Snowball Calculator'!CB69,'Debt Snowball Calculator'!CE69,'Debt Snowball Calculator'!CH69,'Debt Snowball Calculator'!CK69,'Debt Snowball Calculator'!CN69,'Debt Snowball Calculator'!CQ69,'Debt Snowball Calculator'!CT69) -> 0 | K71: =SUM('Debt Avalanche Calculator'!$E69,'Debt Avalanche Calculator'!$H69,'Debt Avalanche Calculator'!$K69,'Debt Avalanche Calculator'!$N69,'Debt Avalanche Calculator'!$Q69,'Debt Avalanche Calculator'!$T69,'Debt Avalanche Calculator'!$W69,'Debt Avalanche Calculator'!$Z69,'Debt Avalanche Calculator'!$AC69,'Debt Avalanche Calculator'!$AF69,'Debt Avalanche Calculator'!$AI69,'Debt Avalanche Calculator'!$AL69,'Debt Avalanche Calculator'!$AO69,'Debt Avalanche Calculator'!$AR69,'Debt Avalanche Calculator'!$AU69,'Debt Avalanche Calculator'!$AX69,'Debt Avalanche Calculator'!$BA69,'Debt Avalanche Calculator'!$BD69,'Debt Avalanche Calculator'!$BG69,'Debt Avalanche Calculator'!$BJ69,'Debt Avalanche Calculator'!$BM69,'Debt Avalanche Calculator'!$BP69,'Debt Avalanche Calculator'!$BS69,'Debt Avalanche Calculator'!$BV69,'Debt Avalanche Calculator'!$BY69,'Debt Avalanche Calculator'!$CB69,'Debt Avalanche Calculator'!$CE69,'Debt Avalanche Calculator'!$CH69,'Debt Avalanche Calculator'!$CK69,'Debt Avalanche Calculator'!$CN69,'Debt Avalanche Calculator'!$CQ69,'Debt Avalanche Calculator'!$CT69) -> 0 | L71: 52
I72: 53 | J72: =SUM('Debt Snowball Calculator'!E70,'Debt Snowball Calculator'!H70,'Debt Snowball Calculator'!K70,'Debt Snowball Calculator'!N70,'Debt Snowball Calculator'!Q70,'Debt Snowball Calculator'!T70,'Debt Snowball Calculator'!W70,'Debt Snowball Calculator'!Z70,'Debt Snowball Calculator'!AC70,'Debt Snowball Calculator'!AF70,'Debt Snowball Calculator'!AI70,'Debt Snowball Calculator'!AL70,'Debt Snowball Calculator'!AO70,'Debt Snowball Calculator'!AR70,'Debt Snowball Calculator'!AU70,'Debt Snowball Calculator'!AX70,'Debt Snowball Calculator'!BA70,'Debt Snowball Calculator'!BD70,'Debt Snowball Calculator'!BG70,'Debt Snowball Calculator'!BJ70,'Debt Snowball Calculator'!BM70,'Debt Snowball Calculator'!BP70,'Debt Snowball Calculator'!BS70,'Debt Snowball Calculator'!BV70,'Debt Snowball Calculator'!BY70,'Debt Snowball Calculator'!CB70,'Debt Snowball Calculator'!CE70,'Debt Snowball Calculator'!CH70,'Debt Snowball Calculator'!CK70,'Debt Snowball Calculator'!CN70,'Debt Snowball Calculator'!CQ70,'Debt Snowball Calculator'!CT70) -> 0 | K72: =SUM('Debt Avalanche Calculator'!$E70,'Debt Avalanche Calculator'!$H70,'Debt Avalanche Calculator'!$K70,'Debt Avalanche Calculator'!$N70,'Debt Avalanche Calculator'!$Q70,'Debt Avalanche Calculator'!$T70,'Debt Avalanche Calculator'!$W70,'Debt Avalanche Calculator'!$Z70,'Debt Avalanche Calculator'!$AC70,'Debt Avalanche Calculator'!$AF70,'Debt Avalanche Calculator'!$AI70,'Debt Avalanche Calculator'!$AL70,'Debt Avalanche Calculator'!$AO70,'Debt Avalanche Calculator'!$AR70,'Debt Avalanche Calculator'!$AU70,'Debt Avalanche Calculator'!$AX70,'Debt Avalanche Calculator'!$BA70,'Debt Avalanche Calculator'!$BD70,'Debt Avalanche Calculator'!$BG70,'Debt Avalanche Calculator'!$BJ70,'Debt Avalanche Calculator'!$BM70,'Debt Avalanche Calculator'!$BP70,'Debt Avalanche Calculator'!$BS70,'Debt Avalanche Calculator'!$BV70,'Debt Avalanche Calculator'!$BY70,'Debt Avalanche Calculator'!$CB70,'Debt Avalanche Calculator'!$CE70,'Debt Avalanche Calculator'!$CH70,'Debt Avalanche Calculator'!$CK70,'Debt Avalanche Calculator'!$CN70,'Debt Avalanche Calculator'!$CQ70,'Debt Avalanche Calculator'!$CT70) -> 0 | L72: 53
I73: 54 | J73: =SUM('Debt Snowball Calculator'!E71,'Debt Snowball Calculator'!H71,'Debt Snowball Calculator'!K71,'Debt Snowball Calculator'!N71,'Debt Snowball Calculator'!Q71,'Debt Snowball Calculator'!T71,'Debt Snowball Calculator'!W71,'Debt Snowball Calculator'!Z71,'Debt Snowball Calculator'!AC71,'Debt Snowball Calculator'!AF71,'Debt Snowball Calculator'!AI71,'Debt Snowball Calculator'!AL71,'Debt Snowball Calculator'!AO71,'Debt Snowball Calculator'!AR71,'Debt Snowball Calculator'!AU71,'Debt Snowball Calculator'!AX71,'Debt Snowball Calculator'!BA71,'Debt Snowball Calculator'!BD71,'Debt Snowball Calculator'!BG71,'Debt Snowball Calculator'!BJ71,'Debt Snowball Calculator'!BM71,'Debt Snowball Calculator'!BP71,'Debt Snowball Calculator'!BS71,'Debt Snowball Calculator'!BV71,'Debt Snowball Calculator'!BY71,'Debt Snowball Calculator'!CB71,'Debt Snowball Calculator'!CE71,'Debt Snowball Calculator'!CH71,'Debt Snowball Calculator'!CK71,'Debt Snowball Calculator'!CN71,'Debt Snowball Calculator'!CQ71,'Debt Snowball Calculator'!CT71) -> 0 | K73: =SUM('Debt Avalanche Calculator'!$E71,'Debt Avalanche Calculator'!$H71,'Debt Avalanche Calculator'!$K71,'Debt Avalanche Calculator'!$N71,'Debt Avalanche Calculator'!$Q71,'Debt Avalanche Calculator'!$T71,'Debt Avalanche Calculator'!$W71,'Debt Avalanche Calculator'!$Z71,'Debt Avalanche Calculator'!$AC71,'Debt Avalanche Calculator'!$AF71,'Debt Avalanche Calculator'!$AI71,'Debt Avalanche Calculator'!$AL71,'Debt Avalanche Calculator'!$AO71,'Debt Avalanche Calculator'!$AR71,'Debt Avalanche Calculator'!$AU71,'Debt Avalanche Calculator'!$AX71,'Debt Avalanche Calculator'!$BA71,'Debt Avalanche Calculator'!$BD71,'Debt Avalanche Calculator'!$BG71,'Debt Avalanche Calculator'!$BJ71,'Debt Avalanche Calculator'!$BM71,'Debt Avalanche Calculator'!$BP71,'Debt Avalanche Calculator'!$BS71,'Debt Avalanche Calculator'!$BV71,'Debt Avalanche Calculator'!$BY71,'Debt Avalanche Calculator'!$CB71,'Debt Avalanche Calculator'!$CE71,'Debt Avalanche Calculator'!$CH71,'Debt Avalanche Calculator'!$CK71,'Debt Avalanche Calculator'!$CN71,'Debt Avalanche Calculator'!$CQ71,'Debt Avalanche Calculator'!$CT71) -> 0 | L73: 54
I74: 55 | J74: =SUM('Debt Snowball Calculator'!E72,'Debt Snowball Calculator'!H72,'Debt Snowball Calculator'!K72,'Debt Snowball Calculator'!N72,'Debt Snowball Calculator'!Q72,'Debt Snowball Calculator'!T72,'Debt Snowball Calculator'!W72,'Debt Snowball Calculator'!Z72,'Debt Snowball Calculator'!AC72,'Debt Snowball Calculator'!AF72,'Debt Snowball Calculator'!AI72,'Debt Snowball Calculator'!AL72,'Debt Snowball Calculator'!AO72,'Debt Snowball Calculator'!AR72,'Debt Snowball Calculator'!AU72,'Debt Snowball Calculator'!AX72,'Debt Snowball Calculator'!BA72,'Debt Snowball Calculator'!BD72,'Debt Snowball Calculator'!BG72,'Debt Snowball Calculator'!BJ72,'Debt Snowball Calculator'!BM72,'Debt Snowball Calculator'!BP72,'Debt Snowball Calculator'!BS72,'Debt Snowball Calculator'!BV72,'Debt Snowball Calculator'!BY72,'Debt Snowball Calculator'!CB72,'Debt Snowball Calculator'!CE72,'Debt Snowball Calculator'!CH72,'Debt Snowball Calculator'!CK72,'Debt Snowball Calculator'!CN72,'Debt Snowball Calculator'!CQ72,'Debt Snowball Calculator'!CT72) -> 0 | K74: =SUM('Debt Avalanche Calculator'!$E72,'Debt Avalanche Calculator'!$H72,'Debt Avalanche Calculator'!$K72,'Debt Avalanche Calculator'!$N72,'Debt Avalanche Calculator'!$Q72,'Debt Avalanche Calculator'!$T72,'Debt Avalanche Calculator'!$W72,'Debt Avalanche Calculator'!$Z72,'Debt Avalanche Calculator'!$AC72,'Debt Avalanche Calculator'!$AF72,'Debt Avalanche Calculator'!$AI72,'Debt Avalanche Calculator'!$AL72,'Debt Avalanche Calculator'!$AO72,'Debt Avalanche Calculator'!$AR72,'Debt Avalanche Calculator'!$AU72,'Debt Avalanche Calculator'!$AX72,'Debt Avalanche Calculator'!$BA72,'Debt Avalanche Calculator'!$BD72,'Debt Avalanche Calculator'!$BG72,'Debt Avalanche Calculator'!$BJ72,'Debt Avalanche Calculator'!$BM72,'Debt Avalanche Calculator'!$BP72,'Debt Avalanche Calculator'!$BS72,'Debt Avalanche Calculator'!$BV72,'Debt Avalanche Calculator'!$BY72,'Debt Avalanche Calculator'!$CB72,'Debt Avalanche Calculator'!$CE72,'Debt Avalanche Calculator'!$CH72,'Debt Avalanche Calculator'!$CK72,'Debt Avalanche Calculator'!$CN72,'Debt Avalanche Calculator'!$CQ72,'Debt Avalanche Calculator'!$CT72) -> 0 | L74: 55
I75: 56 | J75: =SUM('Debt Snowball Calculator'!E73,'Debt Snowball Calculator'!H73,'Debt Snowball Calculator'!K73,'Debt Snowball Calculator'!N73,'Debt Snowball Calculator'!Q73,'Debt Snowball Calculator'!T73,'Debt Snowball Calculator'!W73,'Debt Snowball Calculator'!Z73,'Debt Snowball Calculator'!AC73,'Debt Snowball Calculator'!AF73,'Debt Snowball Calculator'!AI73,'Debt Snowball Calculator'!AL73,'Debt Snowball Calculator'!AO73,'Debt Snowball Calculator'!AR73,'Debt Snowball Calculator'!AU73,'Debt Snowball Calculator'!AX73,'Debt Snowball Calculator'!BA73,'Debt Snowball Calculator'!BD73,'Debt Snowball Calculator'!BG73,'Debt Snowball Calculator'!BJ73,'Debt Snowball Calculator'!BM73,'Debt Snowball Calculator'!BP73,'Debt Snowball Calculator'!BS73,'Debt Snowball Calculator'!BV73,'Debt Snowball Calculator'!BY73,'Debt Snowball Calculator'!CB73,'Debt Snowball Calculator'!CE73,'Debt Snowball Calculator'!CH73,'Debt Snowball Calculator'!CK73,'Debt Snowball Calculator'!CN73,'Debt Snowball Calculator'!CQ73,'Debt Snowball Calculator'!CT73) -> 0 | K75: =SUM('Debt Avalanche Calculator'!$E73,'Debt Avalanche Calculator'!$H73,'Debt Avalanche Calculator'!$K73,'Debt Avalanche Calculator'!$N73,'Debt Avalanche Calculator'!$Q73,'Debt Avalanche Calculator'!$T73,'Debt Avalanche Calculator'!$W73,'Debt Avalanche Calculator'!$Z73,'Debt Avalanche Calculator'!$AC73,'Debt Avalanche Calculator'!$AF73,'Debt Avalanche Calculator'!$AI73,'Debt Avalanche Calculator'!$AL73,'Debt Avalanche Calculator'!$AO73,'Debt Avalanche Calculator'!$AR73,'Debt Avalanche Calculator'!$AU73,'Debt Avalanche Calculator'!$AX73,'Debt Avalanche Calculator'!$BA73,'Debt Avalanche Calculator'!$BD73,'Debt Avalanche Calculator'!$BG73,'Debt Avalanche Calculator'!$BJ73,'Debt Avalanche Calculator'!$BM73,'Debt Avalanche Calculator'!$BP73,'Debt Avalanche Calculator'!$BS73,'Debt Avalanche Calculator'!$BV73,'Debt Avalanche Calculator'!$BY73,'Debt Avalanche Calculator'!$CB73,'Debt Avalanche Calculator'!$CE73,'Debt Avalanche Calculator'!$CH73,'Debt Avalanche Calculator'!$CK73,'Debt Avalanche Calculator'!$CN73,'Debt Avalanche Calculator'!$CQ73,'Debt Avalanche Calculator'!$CT73) -> 0 | L75: 56
I76: 57 | J76: =SUM('Debt Snowball Calculator'!E74,'Debt Snowball Calculator'!H74,'Debt Snowball Calculator'!K74,'Debt Snowball Calculator'!N74,'Debt Snowball Calculator'!Q74,'Debt Snowball Calculator'!T74,'Debt Snowball Calculator'!W74,'Debt Snowball Calculator'!Z74,'Debt Snowball Calculator'!AC74,'Debt Snowball Calculator'!AF74,'Debt Snowball Calculator'!AI74,'Debt Snowball Calculator'!AL74,'Debt Snowball Calculator'!AO74,'Debt Snowball Calculator'!AR74,'Debt Snowball Calculator'!AU74,'Debt Snowball Calculator'!AX74,'Debt Snowball Calculator'!BA74,'Debt Snowball Calculator'!BD74,'Debt Snowball Calculator'!BG74,'Debt Snowball Calculator'!BJ74,'Debt Snowball Calculator'!BM74,'Debt Snowball Calculator'!BP74,'Debt Snowball Calculator'!BS74,'Debt Snowball Calculator'!BV74,'Debt Snowball Calculator'!BY74,'Debt Snowball Calculator'!CB74,'Debt Snowball Calculator'!CE74,'Debt Snowball Calculator'!CH74,'Debt Snowball Calculator'!CK74,'Debt Snowball Calculator'!CN74,'Debt Snowball Calculator'!CQ74,'Debt Snowball Calculator'!CT74) -> 0 | K76: =SUM('Debt Avalanche Calculator'!$E74,'Debt Avalanche Calculator'!$H74,'Debt Avalanche Calculator'!$K74,'Debt Avalanche Calculator'!$N74,'Debt Avalanche Calculator'!$Q74,'Debt Avalanche Calculator'!$T74,'Debt Avalanche Calculator'!$W74,'Debt Avalanche Calculator'!$Z74,'Debt Avalanche Calculator'!$AC74,'Debt Avalanche Calculator'!$AF74,'Debt Avalanche Calculator'!$AI74,'Debt Avalanche Calculator'!$AL74,'Debt Avalanche Calculator'!$AO74,'Debt Avalanche Calculator'!$AR74,'Debt Avalanche Calculator'!$AU74,'Debt Avalanche Calculator'!$AX74,'Debt Avalanche Calculator'!$BA74,'Debt Avalanche Calculator'!$BD74,'Debt Avalanche Calculator'!$BG74,'Debt Avalanche Calculator'!$BJ74,'Debt Avalanche Calculator'!$BM74,'Debt Avalanche Calculator'!$BP74,'Debt Avalanche Calculator'!$BS74,'Debt Avalanche Calculator'!$BV74,'Debt Avalanche Calculator'!$BY74,'Debt Avalanche Calculator'!$CB74,'Debt Avalanche Calculator'!$CE74,'Debt Avalanche Calculator'!$CH74,'Debt Avalanche Calculator'!$CK74,'Debt Avalanche Calculator'!$CN74,'Debt Avalanche Calculator'!$CQ74,'Debt Avalanche Calculator'!$CT74) -> 0 | L76: 57
I77: 58 | J77: =SUM('Debt Snowball Calculator'!E75,'Debt Snowball Calculator'!H75,'Debt Snowball Calculator'!K75,'Debt Snowball Calculator'!N75,'Debt Snowball Calculator'!Q75,'Debt Snowball Calculator'!T75,'Debt Snowball Calculator'!W75,'Debt Snowball Calculator'!Z75,'Debt Snowball Calculator'!AC75,'Debt Snowball Calculator'!AF75,'Debt Snowball Calculator'!AI75,'Debt Snowball Calculator'!AL75,'Debt Snowball Calculator'!AO75,'Debt Snowball Calculator'!AR75,'Debt Snowball Calculator'!AU75,'Debt Snowball Calculator'!AX75,'Debt Snowball Calculator'!BA75,'Debt Snowball Calculator'!BD75,'Debt Snowball Calculator'!BG75,'Debt Snowball Calculator'!BJ75,'Debt Snowball Calculator'!BM75,'Debt Snowball Calculator'!BP75,'Debt Snowball Calculator'!BS75,'Debt Snowball Calculator'!BV75,'Debt Snowball Calculator'!BY75,'Debt Snowball Calculator'!CB75,'Debt Snowball Calculator'!CE75,'Debt Snowball Calculator'!CH75,'Debt Snowball Calculator'!CK75,'Debt Snowball Calculator'!CN75,'Debt Snowball Calculator'!CQ75,'Debt Snowball Calculator'!CT75) -> 0 | K77: =SUM('Debt Avalanche Calculator'!$E75,'Debt Avalanche Calculator'!$H75,'Debt Avalanche Calculator'!$K75,'Debt Avalanche Calculator'!$N75,'Debt Avalanche Calculator'!$Q75,'Debt Avalanche Calculator'!$T75,'Debt Avalanche Calculator'!$W75,'Debt Avalanche Calculator'!$Z75,'Debt Avalanche Calculator'!$AC75,'Debt Avalanche Calculator'!$AF75,'Debt Avalanche Calculator'!$AI75,'Debt Avalanche Calculator'!$AL75,'Debt Avalanche Calculator'!$AO75,'Debt Avalanche Calculator'!$AR75,'Debt Avalanche Calculator'!$AU75,'Debt Avalanche Calculator'!$AX75,'Debt Avalanche Calculator'!$BA75,'Debt Avalanche Calculator'!$BD75,'Debt Avalanche Calculator'!$BG75,'Debt Avalanche Calculator'!$BJ75,'Debt Avalanche Calculator'!$BM75,'Debt Avalanche Calculator'!$BP75,'Debt Avalanche Calculator'!$BS75,'Debt Avalanche Calculator'!$BV75,'Debt Avalanche Calculator'!$BY75,'Debt Avalanche Calculator'!$CB75,'Debt Avalanche Calculator'!$CE75,'Debt Avalanche Calculator'!$CH75,'Debt Avalanche Calculator'!$CK75,'Debt Avalanche Calculator'!$CN75,'Debt Avalanche Calculator'!$CQ75,'Debt Avalanche Calculator'!$CT75) -> 0 | L77: 58
I78: 59 | J78: =SUM('Debt Snowball Calculator'!E76,'Debt Snowball Calculator'!H76,'Debt Snowball Calculator'!K76,'Debt Snowball Calculator'!N76,'Debt Snowball Calculator'!Q76,'Debt Snowball Calculator'!T76,'Debt Snowball Calculator'!W76,'Debt Snowball Calculator'!Z76,'Debt Snowball Calculator'!AC76,'Debt Snowball Calculator'!AF76,'Debt Snowball Calculator'!AI76,'Debt Snowball Calculator'!AL76,'Debt Snowball Calculator'!AO76,'Debt Snowball Calculator'!AR76,'Debt Snowball Calculator'!AU76,'Debt Snowball Calculator'!AX76,'Debt Snowball Calculator'!BA76,'Debt Snowball Calculator'!BD76,'Debt Snowball Calculator'!BG76,'Debt Snowball Calculator'!BJ76,'Debt Snowball Calculator'!BM76,'Debt Snowball Calculator'!BP76,'Debt Snowball Calculator'!BS76,'Debt Snowball Calculator'!BV76,'Debt Snowball Calculator'!BY76,'Debt Snowball Calculator'!CB76,'Debt Snowball Calculator'!CE76,'Debt Snowball Calculator'!CH76,'Debt Snowball Calculator'!CK76,'Debt Snowball Calculator'!CN76,'Debt Snowball Calculator'!CQ76,'Debt Snowball Calculator'!CT76) -> 0 | K78: =SUM('Debt Avalanche Calculator'!$E76,'Debt Avalanche Calculator'!$H76,'Debt Avalanche Calculator'!$K76,'Debt Avalanche Calculator'!$N76,'Debt Avalanche Calculator'!$Q76,'Debt Avalanche Calculator'!$T76,'Debt Avalanche Calculator'!$W76,'Debt Avalanche Calculator'!$Z76,'Debt Avalanche Calculator'!$AC76,'Debt Avalanche Calculator'!$AF76,'Debt Avalanche Calculator'!$AI76,'Debt Avalanche Calculator'!$AL76,'Debt Avalanche Calculator'!$AO76,'Debt Avalanche Calculator'!$AR76,'Debt Avalanche Calculator'!$AU76,'Debt Avalanche Calculator'!$AX76,'Debt Avalanche Calculator'!$BA76,'Debt Avalanche Calculator'!$BD76,'Debt Avalanche Calculator'!$BG76,'Debt Avalanche Calculator'!$BJ76,'Debt Avalanche Calculator'!$BM76,'Debt Avalanche Calculator'!$BP76,'Debt Avalanche Calculator'!$BS76,'Debt Avalanche Calculator'!$BV76,'Debt Avalanche Calculator'!$BY76,'Debt Avalanche Calculator'!$CB76,'Debt Avalanche Calculator'!$CE76,'Debt Avalanche Calculator'!$CH76,'Debt Avalanche Calculator'!$CK76,'Debt Avalanche Calculator'!$CN76,'Debt Avalanche Calculator'!$CQ76,'Debt Avalanche Calculator'!$CT76) -> 0 | L78: 59
I79: 60 | J79: =SUM('Debt Snowball Calculator'!E77,'Debt Snowball Calculator'!H77,'Debt Snowball Calculator'!K77,'Debt Snowball Calculator'!N77,'Debt Snowball Calculator'!Q77,'Debt Snowball Calculator'!T77,'Debt Snowball Calculator'!W77,'Debt Snowball Calculator'!Z77,'Debt Snowball Calculator'!AC77,'Debt Snowball Calculator'!AF77,'Debt Snowball Calculator'!AI77,'Debt Snowball Calculator'!AL77,'Debt Snowball Calculator'!AO77,'Debt Snowball Calculator'!AR77,'Debt Snowball Calculator'!AU77,'Debt Snowball Calculator'!AX77,'Debt Snowball Calculator'!BA77,'Debt Snowball Calculator'!BD77,'Debt Snowball Calculator'!BG77,'Debt Snowball Calculator'!BJ77,'Debt Snowball Calculator'!BM77,'Debt Snowball Calculator'!BP77,'Debt Snowball Calculator'!BS77,'Debt Snowball Calculator'!BV77,'Debt Snowball Calculator'!BY77,'Debt Snowball Calculator'!CB77,'Debt Snowball Calculator'!CE77,'Debt Snowball Calculator'!CH77,'Debt Snowball Calculator'!CK77,'Debt Snowball Calculator'!CN77,'Debt Snowball Calculator'!CQ77,'Debt Snowball Calculator'!CT77) -> 0 | K79: =SUM('Debt Avalanche Calculator'!$E77,'Debt Avalanche Calculator'!$H77,'Debt Avalanche Calculator'!$K77,'Debt Avalanche Calculator'!$N77,'Debt Avalanche Calculator'!$Q77,'Debt Avalanche Calculator'!$T77,'Debt Avalanche Calculator'!$W77,'Debt Avalanche Calculator'!$Z77,'Debt Avalanche Calculator'!$AC77,'Debt Avalanche Calculator'!$AF77,'Debt Avalanche Calculator'!$AI77,'Debt Avalanche Calculator'!$AL77,'Debt Avalanche Calculator'!$AO77,'Debt Avalanche Calculator'!$AR77,'Debt Avalanche Calculator'!$AU77,'Debt Avalanche Calculator'!$AX77,'Debt Avalanche Calculator'!$BA77,'Debt Avalanche Calculator'!$BD77,'Debt Avalanche Calculator'!$BG77,'Debt Avalanche Calculator'!$BJ77,'Debt Avalanche Calculator'!$BM77,'Debt Avalanche Calculator'!$BP77,'Debt Avalanche Calculator'!$BS77,'Debt Avalanche Calculator'!$BV77,'Debt Avalanche Calculator'!$BY77,'Debt Avalanche Calculator'!$CB77,'Debt Avalanche Calculator'!$CE77,'Debt Avalanche Calculator'!$CH77,'Debt Avalanche Calculator'!$CK77,'Debt Avalanche Calculator'!$CN77,'Debt Avalanche Calculator'!$CQ77,'Debt Avalanche Calculator'!$CT77) -> 0 | L79: 60
I80: 61 | J80: =SUM('Debt Snowball Calculator'!E78,'Debt Snowball Calculator'!H78,'Debt Snowball Calculator'!K78,'Debt Snowball Calculator'!N78,'Debt Snowball Calculator'!Q78,'Debt Snowball Calculator'!T78,'Debt Snowball Calculator'!W78,'Debt Snowball Calculator'!Z78,'Debt Snowball Calculator'!AC78,'Debt Snowball Calculator'!AF78,'Debt Snowball Calculator'!AI78,'Debt Snowball Calculator'!AL78,'Debt Snowball Calculator'!AO78,'Debt Snowball Calculator'!AR78,'Debt Snowball Calculator'!AU78,'Debt Snowball Calculator'!AX78,'Debt Snowball Calculator'!BA78,'Debt Snowball Calculator'!BD78,'Debt Snowball Calculator'!BG78,'Debt Snowball Calculator'!BJ78,'Debt Snowball Calculator'!BM78,'Debt Snowball Calculator'!BP78,'Debt Snowball Calculator'!BS78,'Debt Snowball Calculator'!BV78,'Debt Snowball Calculator'!BY78,'Debt Snowball Calculator'!CB78,'Debt Snowball Calculator'!CE78,'Debt Snowball Calculator'!CH78,'Debt Snowball Calculator'!CK78,'Debt Snowball Calculator'!CN78,'Debt Snowball Calculator'!CQ78,'Debt Snowball Calculator'!CT78) -> 0 | K80: =SUM('Debt Avalanche Calculator'!$E78,'Debt Avalanche Calculator'!$H78,'Debt Avalanche Calculator'!$K78,'Debt Avalanche Calculator'!$N78,'Debt Avalanche Calculator'!$Q78,'Debt Avalanche Calculator'!$T78,'Debt Avalanche Calculator'!$W78,'Debt Avalanche Calculator'!$Z78,'Debt Avalanche Calculator'!$AC78,'Debt Avalanche Calculator'!$AF78,'Debt Avalanche Calculator'!$AI78,'Debt Avalanche Calculator'!$AL78,'Debt Avalanche Calculator'!$AO78,'Debt Avalanche Calculator'!$AR78,'Debt Avalanche Calculator'!$AU78,'Debt Avalanche Calculator'!$AX78,'Debt Avalanche Calculator'!$BA78,'Debt Avalanche Calculator'!$BD78,'Debt Avalanche Calculator'!$BG78,'Debt Avalanche Calculator'!$BJ78,'Debt Avalanche Calculator'!$BM78,'Debt Avalanche Calculator'!$BP78,'Debt Avalanche Calculator'!$BS78,'Debt Avalanche Calculator'!$BV78,'Debt Avalanche Calculator'!$BY78,'Debt Avalanche Calculator'!$CB78,'Debt Avalanche Calculator'!$CE78,'Debt Avalanche Calculator'!$CH78,'Debt Avalanche Calculator'!$CK78,'Debt Avalanche Calculator'!$CN78,'Debt Avalanche Calculator'!$CQ78,'Debt Avalanche Calculator'!$CT78) -> 0 | L80: 61
I81: 62 | J81: =SUM('Debt Snowball Calculator'!E79,'Debt Snowball Calculator'!H79,'Debt Snowball Calculator'!K79,'Debt Snowball Calculator'!N79,'Debt Snowball Calculator'!Q79,'Debt Snowball Calculator'!T79,'Debt Snowball Calculator'!W79,'Debt Snowball Calculator'!Z79,'Debt Snowball Calculator'!AC79,'Debt Snowball Calculator'!AF79,'Debt Snowball Calculator'!AI79,'Debt Snowball Calculator'!AL79,'Debt Snowball Calculator'!AO79,'Debt Snowball Calculator'!AR79,'Debt Snowball Calculator'!AU79,'Debt Snowball Calculator'!AX79,'Debt Snowball Calculator'!BA79,'Debt Snowball Calculator'!BD79,'Debt Snowball Calculator'!BG79,'Debt Snowball Calculator'!BJ79,'Debt Snowball Calculator'!BM79,'Debt Snowball Calculator'!BP79,'Debt Snowball Calculator'!BS79,'Debt Snowball Calculator'!BV79,'Debt Snowball Calculator'!BY79,'Debt Snowball Calculator'!CB79,'Debt Snowball Calculator'!CE79,'Debt Snowball Calculator'!CH79,'Debt Snowball Calculator'!CK79,'Debt Snowball Calculator'!CN79,'Debt Snowball Calculator'!CQ79,'Debt Snowball Calculator'!CT79) -> 0 | K81: =SUM('Debt Avalanche Calculator'!$E79,'Debt Avalanche Calculator'!$H79,'Debt Avalanche Calculator'!$K79,'Debt Avalanche Calculator'!$N79,'Debt Avalanche Calculator'!$Q79,'Debt Avalanche Calculator'!$T79,'Debt Avalanche Calculator'!$W79,'Debt Avalanche Calculator'!$Z79,'Debt Avalanche Calculator'!$AC79,'Debt Avalanche Calculator'!$AF79,'Debt Avalanche Calculator'!$AI79,'Debt Avalanche Calculator'!$AL79,'Debt Avalanche Calculator'!$AO79,'Debt Avalanche Calculator'!$AR79,'Debt Avalanche Calculator'!$AU79,'Debt Avalanche Calculator'!$AX79,'Debt Avalanche Calculator'!$BA79,'Debt Avalanche Calculator'!$BD79,'Debt Avalanche Calculator'!$BG79,'Debt Avalanche Calculator'!$BJ79,'Debt Avalanche Calculator'!$BM79,'Debt Avalanche Calculator'!$BP79,'Debt Avalanche Calculator'!$BS79,'Debt Avalanche Calculator'!$BV79,'Debt Avalanche Calculator'!$BY79,'Debt Avalanche Calculator'!$CB79,'Debt Avalanche Calculator'!$CE79,'Debt Avalanche Calculator'!$CH79,'Debt Avalanche Calculator'!$CK79,'Debt Avalanche Calculator'!$CN79,'Debt Avalanche Calculator'!$CQ79,'Debt Avalanche Calculator'!$CT79) -> 0 | L81: 62
I82: 63 | J82: =SUM('Debt Snowball Calculator'!E80,'Debt Snowball Calculator'!H80,'Debt Snowball Calculator'!K80,'Debt Snowball Calculator'!N80,'Debt Snowball Calculator'!Q80,'Debt Snowball Calculator'!T80,'Debt Snowball Calculator'!W80,'Debt Snowball Calculator'!Z80,'Debt Snowball Calculator'!AC80,'Debt Snowball Calculator'!AF80,'Debt Snowball Calculator'!AI80,'Debt Snowball Calculator'!AL80,'Debt Snowball Calculator'!AO80,'Debt Snowball Calculator'!AR80,'Debt Snowball Calculator'!AU80,'Debt Snowball Calculator'!AX80,'Debt Snowball Calculator'!BA80,'Debt Snowball Calculator'!BD80,'Debt Snowball Calculator'!BG80,'Debt Snowball Calculator'!BJ80,'Debt Snowball Calculator'!BM80,'Debt Snowball Calculator'!BP80,'Debt Snowball Calculator'!BS80,'Debt Snowball Calculator'!BV80,'Debt Snowball Calculator'!BY80,'Debt Snowball Calculator'!CB80,'Debt Snowball Calculator'!CE80,'Debt Snowball Calculator'!CH80,'Debt Snowball Calculator'!CK80,'Debt Snowball Calculator'!CN80,'Debt Snowball Calculator'!CQ80,'Debt Snowball Calculator'!CT80) -> 0 | K82: =SUM('Debt Avalanche Calculator'!$E80,'Debt Avalanche Calculator'!$H80,'Debt Avalanche Calculator'!$K80,'Debt Avalanche Calculator'!$N80,'Debt Avalanche Calculator'!$Q80,'Debt Avalanche Calculator'!$T80,'Debt Avalanche Calculator'!$W80,'Debt Avalanche Calculator'!$Z80,'Debt Avalanche Calculator'!$AC80,'Debt Avalanche Calculator'!$AF80,'Debt Avalanche Calculator'!$AI80,'Debt Avalanche Calculator'!$AL80,'Debt Avalanche Calculator'!$AO80,'Debt Avalanche Calculator'!$AR80,'Debt Avalanche Calculator'!$AU80,'Debt Avalanche Calculator'!$AX80,'Debt Avalanche Calculator'!$BA80,'Debt Avalanche Calculator'!$BD80,'Debt Avalanche Calculator'!$BG80,'Debt Avalanche Calculator'!$BJ80,'Debt Avalanche Calculator'!$BM80,'Debt Avalanche Calculator'!$BP80,'Debt Avalanche Calculator'!$BS80,'Debt Avalanche Calculator'!$BV80,'Debt Avalanche Calculator'!$BY80,'Debt Avalanche Calculator'!$CB80,'Debt Avalanche Calculator'!$CE80,'Debt Avalanche Calculator'!$CH80,'Debt Avalanche Calculator'!$CK80,'Debt Avalanche Calculator'!$CN80,'Debt Avalanche Calculator'!$CQ80,'Debt Avalanche Calculator'!$CT80) -> 0 | L82: 63
I83: 64 | J83: =SUM('Debt Snowball Calculator'!E81,'Debt Snowball Calculator'!H81,'Debt Snowball Calculator'!K81,'Debt Snowball Calculator'!N81,'Debt Snowball Calculator'!Q81,'Debt Snowball Calculator'!T81,'Debt Snowball Calculator'!W81,'Debt Snowball Calculator'!Z81,'Debt Snowball Calculator'!AC81,'Debt Snowball Calculator'!AF81,'Debt Snowball Calculator'!AI81,'Debt Snowball Calculator'!AL81,'Debt Snowball Calculator'!AO81,'Debt Snowball Calculator'!AR81,'Debt Snowball Calculator'!AU81,'Debt Snowball Calculator'!AX81,'Debt Snowball Calculator'!BA81,'Debt Snowball Calculator'!BD81,'Debt Snowball Calculator'!BG81,'Debt Snowball Calculator'!BJ81,'Debt Snowball Calculator'!BM81,'Debt Snowball Calculator'!BP81,'Debt Snowball Calculator'!BS81,'Debt Snowball Calculator'!BV81,'Debt Snowball Calculator'!BY81,'Debt Snowball Calculator'!CB81,'Debt Snowball Calculator'!CE81,'Debt Snowball Calculator'!CH81,'Debt Snowball Calculator'!CK81,'Debt Snowball Calculator'!CN81,'Debt Snowball Calculator'!CQ81,'Debt Snowball Calculator'!CT81) -> 0 | K83: =SUM('Debt Avalanche Calculator'!$E81,'Debt Avalanche Calculator'!$H81,'Debt Avalanche Calculator'!$K81,'Debt Avalanche Calculator'!$N81,'Debt Avalanche Calculator'!$Q81,'Debt Avalanche Calculator'!$T81,'Debt Avalanche Calculator'!$W81,'Debt Avalanche Calculator'!$Z81,'Debt Avalanche Calculator'!$AC81,'Debt Avalanche Calculator'!$AF81,'Debt Avalanche Calculator'!$AI81,'Debt Avalanche Calculator'!$AL81,'Debt Avalanche Calculator'!$AO81,'Debt Avalanche Calculator'!$AR81,'Debt Avalanche Calculator'!$AU81,'Debt Avalanche Calculator'!$AX81,'Debt Avalanche Calculator'!$BA81,'Debt Avalanche Calculator'!$BD81,'Debt Avalanche Calculator'!$BG81,'Debt Avalanche Calculator'!$BJ81,'Debt Avalanche Calculator'!$BM81,'Debt Avalanche Calculator'!$BP81,'Debt Avalanche Calculator'!$BS81,'Debt Avalanche Calculator'!$BV81,'Debt Avalanche Calculator'!$BY81,'Debt Avalanche Calculator'!$CB81,'Debt Avalanche Calculator'!$CE81,'Debt Avalanche Calculator'!$CH81,'Debt Avalanche Calculator'!$CK81,'Debt Avalanche Calculator'!$CN81,'Debt Avalanche Calculator'!$CQ81,'Debt Avalanche Calculator'!$CT81) -> 0 | L83: 64
I84: 65 | J84: =SUM('Debt Snowball Calculator'!E82,'Debt Snowball Calculator'!H82,'Debt Snowball Calculator'!K82,'Debt Snowball Calculator'!N82,'Debt Snowball Calculator'!Q82,'Debt Snowball Calculator'!T82,'Debt Snowball Calculator'!W82,'Debt Snowball Calculator'!Z82,'Debt Snowball Calculator'!AC82,'Debt Snowball Calculator'!AF82,'Debt Snowball Calculator'!AI82,'Debt Snowball Calculator'!AL82,'Debt Snowball Calculator'!AO82,'Debt Snowball Calculator'!AR82,'Debt Snowball Calculator'!AU82,'Debt Snowball Calculator'!AX82,'Debt Snowball Calculator'!BA82,'Debt Snowball Calculator'!BD82,'Debt Snowball Calculator'!BG82,'Debt Snowball Calculator'!BJ82,'Debt Snowball Calculator'!BM82,'Debt Snowball Calculator'!BP82,'Debt Snowball Calculator'!BS82,'Debt Snowball Calculator'!BV82,'Debt Snowball Calculator'!BY82,'Debt Snowball Calculator'!CB82,'Debt Snowball Calculator'!CE82,'Debt Snowball Calculator'!CH82,'Debt Snowball Calculator'!CK82,'Debt Snowball Calculator'!CN82,'Debt Snowball Calculator'!CQ82,'Debt Snowball Calculator'!CT82) -> 0 | K84: =SUM('Debt Avalanche Calculator'!$E82,'Debt Avalanche Calculator'!$H82,'Debt Avalanche Calculator'!$K82,'Debt Avalanche Calculator'!$N82,'Debt Avalanche Calculator'!$Q82,'Debt Avalanche Calculator'!$T82,'Debt Avalanche Calculator'!$W82,'Debt Avalanche Calculator'!$Z82,'Debt Avalanche Calculator'!$AC82,'Debt Avalanche Calculator'!$AF82,'Debt Avalanche Calculator'!$AI82,'Debt Avalanche Calculator'!$AL82,'Debt Avalanche Calculator'!$AO82,'Debt Avalanche Calculator'!$AR82,'Debt Avalanche Calculator'!$AU82,'Debt Avalanche Calculator'!$AX82,'Debt Avalanche Calculator'!$BA82,'Debt Avalanche Calculator'!$BD82,'Debt Avalanche Calculator'!$BG82,'Debt Avalanche Calculator'!$BJ82,'Debt Avalanche Calculator'!$BM82,'Debt Avalanche Calculator'!$BP82,'Debt Avalanche Calculator'!$BS82,'Debt Avalanche Calculator'!$BV82,'Debt Avalanche Calculator'!$BY82,'Debt Avalanche Calculator'!$CB82,'Debt Avalanche Calculator'!$CE82,'Debt Avalanche Calculator'!$CH82,'Debt Avalanche Calculator'!$CK82,'Debt Avalanche Calculator'!$CN82,'Debt Avalanche Calculator'!$CQ82,'Debt Avalanche Calculator'!$CT82) -> 0 | L84: 65
I85: 66 | J85: =SUM('Debt Snowball Calculator'!E83,'Debt Snowball Calculator'!H83,'Debt Snowball Calculator'!K83,'Debt Snowball Calculator'!N83,'Debt Snowball Calculator'!Q83,'Debt Snowball Calculator'!T83,'Debt Snowball Calculator'!W83,'Debt Snowball Calculator'!Z83,'Debt Snowball Calculator'!AC83,'Debt Snowball Calculator'!AF83,'Debt Snowball Calculator'!AI83,'Debt Snowball Calculator'!AL83,'Debt Snowball Calculator'!AO83,'Debt Snowball Calculator'!AR83,'Debt Snowball Calculator'!AU83,'Debt Snowball Calculator'!AX83,'Debt Snowball Calculator'!BA83,'Debt Snowball Calculator'!BD83,'Debt Snowball Calculator'!BG83,'Debt Snowball Calculator'!BJ83,'Debt Snowball Calculator'!BM83,'Debt Snowball Calculator'!BP83,'Debt Snowball Calculator'!BS83,'Debt Snowball Calculator'!BV83,'Debt Snowball Calculator'!BY83,'Debt Snowball Calculator'!CB83,'Debt Snowball Calculator'!CE83,'Debt Snowball Calculator'!CH83,'Debt Snowball Calculator'!CK83,'Debt Snowball Calculator'!CN83,'Debt Snowball Calculator'!CQ83,'Debt Snowball Calculator'!CT83) -> 0 | K85: =SUM('Debt Avalanche Calculator'!$E83,'Debt Avalanche Calculator'!$H83,'Debt Avalanche Calculator'!$K83,'Debt Avalanche Calculator'!$N83,'Debt Avalanche Calculator'!$Q83,'Debt Avalanche Calculator'!$T83,'Debt Avalanche Calculator'!$W83,'Debt Avalanche Calculator'!$Z83,'Debt Avalanche Calculator'!$AC83,'Debt Avalanche Calculator'!$AF83,'Debt Avalanche Calculator'!$AI83,'Debt Avalanche Calculator'!$AL83,'Debt Avalanche Calculator'!$AO83,'Debt Avalanche Calculator'!$AR83,'Debt Avalanche Calculator'!$AU83,'Debt Avalanche Calculator'!$AX83,'Debt Avalanche Calculator'!$BA83,'Debt Avalanche Calculator'!$BD83,'Debt Avalanche Calculator'!$BG83,'Debt Avalanche Calculator'!$BJ83,'Debt Avalanche Calculator'!$BM83,'Debt Avalanche Calculator'!$BP83,'Debt Avalanche Calculator'!$BS83,'Debt Avalanche Calculator'!$BV83,'Debt Avalanche Calculator'!$BY83,'Debt Avalanche Calculator'!$CB83,'Debt Avalanche Calculator'!$CE83,'Debt Avalanche Calculator'!$CH83,'Debt Avalanche Calculator'!$CK83,'Debt Avalanche Calculator'!$CN83,'Debt Avalanche Calculator'!$CQ83,'Debt Avalanche Calculator'!$CT83) -> 0 | L85: 66
I86: 67 | J86: =SUM('Debt Snowball Calculator'!E84,'Debt Snowball Calculator'!H84,'Debt Snowball Calculator'!K84,'Debt Snowball Calculator'!N84,'Debt Snowball Calculator'!Q84,'Debt Snowball Calculator'!T84,'Debt Snowball Calculator'!W84,'Debt Snowball Calculator'!Z84,'Debt Snowball Calculator'!AC84,'Debt Snowball Calculator'!AF84,'Debt Snowball Calculator'!AI84,'Debt Snowball Calculator'!AL84,'Debt Snowball Calculator'!AO84,'Debt Snowball Calculator'!AR84,'Debt Snowball Calculator'!AU84,'Debt Snowball Calculator'!AX84,'Debt Snowball Calculator'!BA84,'Debt Snowball Calculator'!BD84,'Debt Snowball Calculator'!BG84,'Debt Snowball Calculator'!BJ84,'Debt Snowball Calculator'!BM84,'Debt Snowball Calculator'!BP84,'Debt Snowball Calculator'!BS84,'Debt Snowball Calculator'!BV84,'Debt Snowball Calculator'!BY84,'Debt Snowball Calculator'!CB84,'Debt Snowball Calculator'!CE84,'Debt Snowball Calculator'!CH84,'Debt Snowball Calculator'!CK84,'Debt Snowball Calculator'!CN84,'Debt Snowball Calculator'!CQ84,'Debt Snowball Calculator'!CT84) -> 0 | K86: =SUM('Debt Avalanche Calculator'!$E84,'Debt Avalanche Calculator'!$H84,'Debt Avalanche Calculator'!$K84,'Debt Avalanche Calculator'!$N84,'Debt Avalanche Calculator'!$Q84,'Debt Avalanche Calculator'!$T84,'Debt Avalanche Calculator'!$W84,'Debt Avalanche Calculator'!$Z84,'Debt Avalanche Calculator'!$AC84,'Debt Avalanche Calculator'!$AF84,'Debt Avalanche Calculator'!$AI84,'Debt Avalanche Calculator'!$AL84,'Debt Avalanche Calculator'!$AO84,'Debt Avalanche Calculator'!$AR84,'Debt Avalanche Calculator'!$AU84,'Debt Avalanche Calculator'!$AX84,'Debt Avalanche Calculator'!$BA84,'Debt Avalanche Calculator'!$BD84,'Debt Avalanche Calculator'!$BG84,'Debt Avalanche Calculator'!$BJ84,'Debt Avalanche Calculator'!$BM84,'Debt Avalanche Calculator'!$BP84,'Debt Avalanche Calculator'!$BS84,'Debt Avalanche Calculator'!$BV84,'Debt Avalanche Calculator'!$BY84,'Debt Avalanche Calculator'!$CB84,'Debt Avalanche Calculator'!$CE84,'Debt Avalanche Calculator'!$CH84,'Debt Avalanche Calculator'!$CK84,'Debt Avalanche Calculator'!$CN84,'Debt Avalanche Calculator'!$CQ84,'Debt Avalanche Calculator'!$CT84) -> 0 | L86: 67
I87: 68 | J87: =SUM('Debt Snowball Calculator'!E85,'Debt Snowball Calculator'!H85,'Debt Snowball Calculator'!K85,'Debt Snowball Calculator'!N85,'Debt Snowball Calculator'!Q85,'Debt Snowball Calculator'!T85,'Debt Snowball Calculator'!W85,'Debt Snowball Calculator'!Z85,'Debt Snowball Calculator'!AC85,'Debt Snowball Calculator'!AF85,'Debt Snowball Calculator'!AI85,'Debt Snowball Calculator'!AL85,'Debt Snowball Calculator'!AO85,'Debt Snowball Calculator'!AR85,'Debt Snowball Calculator'!AU85,'Debt Snowball Calculator'!AX85,'Debt Snowball Calculator'!BA85,'Debt Snowball Calculator'!BD85,'Debt Snowball Calculator'!BG85,'Debt Snowball Calculator'!BJ85,'Debt Snowball Calculator'!BM85,'Debt Snowball Calculator'!BP85,'Debt Snowball Calculator'!BS85,'Debt Snowball Calculator'!BV85,'Debt Snowball Calculator'!BY85,'Debt Snowball Calculator'!CB85,'Debt Snowball Calculator'!CE85,'Debt Snowball Calculator'!CH85,'Debt Snowball Calculator'!CK85,'Debt Snowball Calculator'!CN85,'Debt Snowball Calculator'!CQ85,'Debt Snowball Calculator'!CT85) -> 0 | K87: =SUM('Debt Avalanche Calculator'!$E85,'Debt Avalanche Calculator'!$H85,'Debt Avalanche Calculator'!$K85,'Debt Avalanche Calculator'!$N85,'Debt Avalanche Calculator'!$Q85,'Debt Avalanche Calculator'!$T85,'Debt Avalanche Calculator'!$W85,'Debt Avalanche Calculator'!$Z85,'Debt Avalanche Calculator'!$AC85,'Debt Avalanche Calculator'!$AF85,'Debt Avalanche Calculator'!$AI85,'Debt Avalanche Calculator'!$AL85,'Debt Avalanche Calculator'!$AO85,'Debt Avalanche Calculator'!$AR85,'Debt Avalanche Calculator'!$AU85,'Debt Avalanche Calculator'!$AX85,'Debt Avalanche Calculator'!$BA85,'Debt Avalanche Calculator'!$BD85,'Debt Avalanche Calculator'!$BG85,'Debt Avalanche Calculator'!$BJ85,'Debt Avalanche Calculator'!$BM85,'Debt Avalanche Calculator'!$BP85,'Debt Avalanche Calculator'!$BS85,'Debt Avalanche Calculator'!$BV85,'Debt Avalanche Calculator'!$BY85,'Debt Avalanche Calculator'!$CB85,'Debt Avalanche Calculator'!$CE85,'Debt Avalanche Calculator'!$CH85,'Debt Avalanche Calculator'!$CK85,'Debt Avalanche Calculator'!$CN85,'Debt Avalanche Calculator'!$CQ85,'Debt Avalanche Calculator'!$CT85) -> 0 | L87: 68
I88: 69 | J88: =SUM('Debt Snowball Calculator'!E86,'Debt Snowball Calculator'!H86,'Debt Snowball Calculator'!K86,'Debt Snowball Calculator'!N86,'Debt Snowball Calculator'!Q86,'Debt Snowball Calculator'!T86,'Debt Snowball Calculator'!W86,'Debt Snowball Calculator'!Z86,'Debt Snowball Calculator'!AC86,'Debt Snowball Calculator'!AF86,'Debt Snowball Calculator'!AI86,'Debt Snowball Calculator'!AL86,'Debt Snowball Calculator'!AO86,'Debt Snowball Calculator'!AR86,'Debt Snowball Calculator'!AU86,'Debt Snowball Calculator'!AX86,'Debt Snowball Calculator'!BA86,'Debt Snowball Calculator'!BD86,'Debt Snowball Calculator'!BG86,'Debt Snowball Calculator'!BJ86,'Debt Snowball Calculator'!BM86,'Debt Snowball Calculator'!BP86,'Debt Snowball Calculator'!BS86,'Debt Snowball Calculator'!BV86,'Debt Snowball Calculator'!BY86,'Debt Snowball Calculator'!CB86,'Debt Snowball Calculator'!CE86,'Debt Snowball Calculator'!CH86,'Debt Snowball Calculator'!CK86,'Debt Snowball Calculator'!CN86,'Debt Snowball Calculator'!CQ86,'Debt Snowball Calculator'!CT86) -> 0 | K88: =SUM('Debt Avalanche Calculator'!$E86,'Debt Avalanche Calculator'!$H86,'Debt Avalanche Calculator'!$K86,'Debt Avalanche Calculator'!$N86,'Debt Avalanche Calculator'!$Q86,'Debt Avalanche Calculator'!$T86,'Debt Avalanche Calculator'!$W86,'Debt Avalanche Calculator'!$Z86,'Debt Avalanche Calculator'!$AC86,'Debt Avalanche Calculator'!$AF86,'Debt Avalanche Calculator'!$AI86,'Debt Avalanche Calculator'!$AL86,'Debt Avalanche Calculator'!$AO86,'Debt Avalanche Calculator'!$AR86,'Debt Avalanche Calculator'!$AU86,'Debt Avalanche Calculator'!$AX86,'Debt Avalanche Calculator'!$BA86,'Debt Avalanche Calculator'!$BD86,'Debt Avalanche Calculator'!$BG86,'Debt Avalanche Calculator'!$BJ86,'Debt Avalanche Calculator'!$BM86,'Debt Avalanche Calculator'!$BP86,'Debt Avalanche Calculator'!$BS86,'Debt Avalanche Calculator'!$BV86,'Debt Avalanche Calculator'!$BY86,'Debt Avalanche Calculator'!$CB86,'Debt Avalanche Calculator'!$CE86,'Debt Avalanche Calculator'!$CH86,'Debt Avalanche Calculator'!$CK86,'Debt Avalanche Calculator'!$CN86,'Debt Avalanche Calculator'!$CQ86,'Debt Avalanche Calculator'!$CT86) -> 0 | L88: 69
I89: 70 | J89: =SUM('Debt Snowball Calculator'!E87,'Debt Snowball Calculator'!H87,'Debt Snowball Calculator'!K87,'Debt Snowball Calculator'!N87,'Debt Snowball Calculator'!Q87,'Debt Snowball Calculator'!T87,'Debt Snowball Calculator'!W87,'Debt Snowball Calculator'!Z87,'Debt Snowball Calculator'!AC87,'Debt Snowball Calculator'!AF87,'Debt Snowball Calculator'!AI87,'Debt Snowball Calculator'!AL87,'Debt Snowball Calculator'!AO87,'Debt Snowball Calculator'!AR87,'Debt Snowball Calculator'!AU87,'Debt Snowball Calculator'!AX87,'Debt Snowball Calculator'!BA87,'Debt Snowball Calculator'!BD87,'Debt Snowball Calculator'!BG87,'Debt Snowball Calculator'!BJ87,'Debt Snowball Calculator'!BM87,'Debt Snowball Calculator'!BP87,'Debt Snowball Calculator'!BS87,'Debt Snowball Calculator'!BV87,'Debt Snowball Calculator'!BY87,'Debt Snowball Calculator'!CB87,'Debt Snowball Calculator'!CE87,'Debt Snowball Calculator'!CH87,'Debt Snowball Calculator'!CK87,'Debt Snowball Calculator'!CN87,'Debt Snowball Calculator'!CQ87,'Debt Snowball Calculator'!CT87) -> 0 | K89: =SUM('Debt Avalanche Calculator'!$E87,'Debt Avalanche Calculator'!$H87,'Debt Avalanche Calculator'!$K87,'Debt Avalanche Calculator'!$N87,'Debt Avalanche Calculator'!$Q87,'Debt Avalanche Calculator'!$T87,'Debt Avalanche Calculator'!$W87,'Debt Avalanche Calculator'!$Z87,'Debt Avalanche Calculator'!$AC87,'Debt Avalanche Calculator'!$AF87,'Debt Avalanche Calculator'!$AI87,'Debt Avalanche Calculator'!$AL87,'Debt Avalanche Calculator'!$AO87,'Debt Avalanche Calculator'!$AR87,'Debt Avalanche Calculator'!$AU87,'Debt Avalanche Calculator'!$AX87,'Debt Avalanche Calculator'!$BA87,'Debt Avalanche Calculator'!$BD87,'Debt Avalanche Calculator'!$BG87,'Debt Avalanche Calculator'!$BJ87,'Debt Avalanche Calculator'!$BM87,'Debt Avalanche Calculator'!$BP87,'Debt Avalanche Calculator'!$BS87,'Debt Avalanche Calculator'!$BV87,'Debt Avalanche Calculator'!$BY87,'Debt Avalanche Calculator'!$CB87,'Debt Avalanche Calculator'!$CE87,'Debt Avalanche Calculator'!$CH87,'Debt Avalanche Calculator'!$CK87,'Debt Avalanche Calculator'!$CN87,'Debt Avalanche Calculator'!$CQ87,'Debt Avalanche Calculator'!$CT87) -> 0 | L89: 70
I90: 71 | J90: =SUM('Debt Snowball Calculator'!E88,'Debt Snowball Calculator'!H88,'Debt Snowball Calculator'!K88,'Debt Snowball Calculator'!N88,'Debt Snowball Calculator'!Q88,'Debt Snowball Calculator'!T88,'Debt Snowball Calculator'!W88,'Debt Snowball Calculator'!Z88,'Debt Snowball Calculator'!AC88,'Debt Snowball Calculator'!AF88,'Debt Snowball Calculator'!AI88,'Debt Snowball Calculator'!AL88,'Debt Snowball Calculator'!AO88,'Debt Snowball Calculator'!AR88,'Debt Snowball Calculator'!AU88,'Debt Snowball Calculator'!AX88,'Debt Snowball Calculator'!BA88,'Debt Snowball Calculator'!BD88,'Debt Snowball Calculator'!BG88,'Debt Snowball Calculator'!BJ88,'Debt Snowball Calculator'!BM88,'Debt Snowball Calculator'!BP88,'Debt Snowball Calculator'!BS88,'Debt Snowball Calculator'!BV88,'Debt Snowball Calculator'!BY88,'Debt Snowball Calculator'!CB88,'Debt Snowball Calculator'!CE88,'Debt Snowball Calculator'!CH88,'Debt Snowball Calculator'!CK88,'Debt Snowball Calculator'!CN88,'Debt Snowball Calculator'!CQ88,'Debt Snowball Calculator'!CT88) -> 0 | K90: =SUM('Debt Avalanche Calculator'!$E88,'Debt Avalanche Calculator'!$H88,'Debt Avalanche Calculator'!$K88,'Debt Avalanche Calculator'!$N88,'Debt Avalanche Calculator'!$Q88,'Debt Avalanche Calculator'!$T88,'Debt Avalanche Calculator'!$W88,'Debt Avalanche Calculator'!$Z88,'Debt Avalanche Calculator'!$AC88,'Debt Avalanche Calculator'!$AF88,'Debt Avalanche Calculator'!$AI88,'Debt Avalanche Calculator'!$AL88,'Debt Avalanche Calculator'!$AO88,'Debt Avalanche Calculator'!$AR88,'Debt Avalanche Calculator'!$AU88,'Debt Avalanche Calculator'!$AX88,'Debt Avalanche Calculator'!$BA88,'Debt Avalanche Calculator'!$BD88,'Debt Avalanche Calculator'!$BG88,'Debt Avalanche Calculator'!$BJ88,'Debt Avalanche Calculator'!$BM88,'Debt Avalanche Calculator'!$BP88,'Debt Avalanche Calculator'!$BS88,'Debt Avalanche Calculator'!$BV88,'Debt Avalanche Calculator'!$BY88,'Debt Avalanche Calculator'!$CB88,'Debt Avalanche Calculator'!$CE88,'Debt Avalanche Calculator'!$CH88,'Debt Avalanche Calculator'!$CK88,'Debt Avalanche Calculator'!$CN88,'Debt Avalanche Calculator'!$CQ88,'Debt Avalanche Calculator'!$CT88) -> 0 | L90: 71
I91: 72 | J91: =SUM('Debt Snowball Calculator'!E89,'Debt Snowball Calculator'!H89,'Debt Snowball Calculator'!K89,'Debt Snowball Calculator'!N89,'Debt Snowball Calculator'!Q89,'Debt Snowball Calculator'!T89,'Debt Snowball Calculator'!W89,'Debt Snowball Calculator'!Z89,'Debt Snowball Calculator'!AC89,'Debt Snowball Calculator'!AF89,'Debt Snowball Calculator'!AI89,'Debt Snowball Calculator'!AL89,'Debt Snowball Calculator'!AO89,'Debt Snowball Calculator'!AR89,'Debt Snowball Calculator'!AU89,'Debt Snowball Calculator'!AX89,'Debt Snowball Calculator'!BA89,'Debt Snowball Calculator'!BD89,'Debt Snowball Calculator'!BG89,'Debt Snowball Calculator'!BJ89,'Debt Snowball Calculator'!BM89,'Debt Snowball Calculator'!BP89,'Debt Snowball Calculator'!BS89,'Debt Snowball Calculator'!BV89,'Debt Snowball Calculator'!BY89,'Debt Snowball Calculator'!CB89,'Debt Snowball Calculator'!CE89,'Debt Snowball Calculator'!CH89,'Debt Snowball Calculator'!CK89,'Debt Snowball Calculator'!CN89,'Debt Snowball Calculator'!CQ89,'Debt Snowball Calculator'!CT89) -> 0 | K91: =SUM('Debt Avalanche Calculator'!$E89,'Debt Avalanche Calculator'!$H89,'Debt Avalanche Calculator'!$K89,'Debt Avalanche Calculator'!$N89,'Debt Avalanche Calculator'!$Q89,'Debt Avalanche Calculator'!$T89,'Debt Avalanche Calculator'!$W89,'Debt Avalanche Calculator'!$Z89,'Debt Avalanche Calculator'!$AC89,'Debt Avalanche Calculator'!$AF89,'Debt Avalanche Calculator'!$AI89,'Debt Avalanche Calculator'!$AL89,'Debt Avalanche Calculator'!$AO89,'Debt Avalanche Calculator'!$AR89,'Debt Avalanche Calculator'!$AU89,'Debt Avalanche Calculator'!$AX89,'Debt Avalanche Calculator'!$BA89,'Debt Avalanche Calculator'!$BD89,'Debt Avalanche Calculator'!$BG89,'Debt Avalanche Calculator'!$BJ89,'Debt Avalanche Calculator'!$BM89,'Debt Avalanche Calculator'!$BP89,'Debt Avalanche Calculator'!$BS89,'Debt Avalanche Calculator'!$BV89,'Debt Avalanche Calculator'!$BY89,'Debt Avalanche Calculator'!$CB89,'Debt Avalanche Calculator'!$CE89,'Debt Avalanche Calculator'!$CH89,'Debt Avalanche Calculator'!$CK89,'Debt Avalanche Calculator'!$CN89,'Debt Avalanche Calculator'!$CQ89,'Debt Avalanche Calculator'!$CT89) -> 0 | L91: 72
I92: 73 | J92: =SUM('Debt Snowball Calculator'!E90,'Debt Snowball Calculator'!H90,'Debt Snowball Calculator'!K90,'Debt Snowball Calculator'!N90,'Debt Snowball Calculator'!Q90,'Debt Snowball Calculator'!T90,'Debt Snowball Calculator'!W90,'Debt Snowball Calculator'!Z90,'Debt Snowball Calculator'!AC90,'Debt Snowball Calculator'!AF90,'Debt Snowball Calculator'!AI90,'Debt Snowball Calculator'!AL90,'Debt Snowball Calculator'!AO90,'Debt Snowball Calculator'!AR90,'Debt Snowball Calculator'!AU90,'Debt Snowball Calculator'!AX90,'Debt Snowball Calculator'!BA90,'Debt Snowball Calculator'!BD90,'Debt Snowball Calculator'!BG90,'Debt Snowball Calculator'!BJ90,'Debt Snowball Calculator'!BM90,'Debt Snowball Calculator'!BP90,'Debt Snowball Calculator'!BS90,'Debt Snowball Calculator'!BV90,'Debt Snowball Calculator'!BY90,'Debt Snowball Calculator'!CB90,'Debt Snowball Calculator'!CE90,'Debt Snowball Calculator'!CH90,'Debt Snowball Calculator'!CK90,'Debt Snowball Calculator'!CN90,'Debt Snowball Calculator'!CQ90,'Debt Snowball Calculator'!CT90) -> 0 | K92: =SUM('Debt Avalanche Calculator'!$E90,'Debt Avalanche Calculator'!$H90,'Debt Avalanche Calculator'!$K90,'Debt Avalanche Calculator'!$N90,'Debt Avalanche Calculator'!$Q90,'Debt Avalanche Calculator'!$T90,'Debt Avalanche Calculator'!$W90,'Debt Avalanche Calculator'!$Z90,'Debt Avalanche Calculator'!$AC90,'Debt Avalanche Calculator'!$AF90,'Debt Avalanche Calculator'!$AI90,'Debt Avalanche Calculator'!$AL90,'Debt Avalanche Calculator'!$AO90,'Debt Avalanche Calculator'!$AR90,'Debt Avalanche Calculator'!$AU90,'Debt Avalanche Calculator'!$AX90,'Debt Avalanche Calculator'!$BA90,'Debt Avalanche Calculator'!$BD90,'Debt Avalanche Calculator'!$BG90,'Debt Avalanche Calculator'!$BJ90,'Debt Avalanche Calculator'!$BM90,'Debt Avalanche Calculator'!$BP90,'Debt Avalanche Calculator'!$BS90,'Debt Avalanche Calculator'!$BV90,'Debt Avalanche Calculator'!$BY90,'Debt Avalanche Calculator'!$CB90,'Debt Avalanche Calculator'!$CE90,'Debt Avalanche Calculator'!$CH90,'Debt Avalanche Calculator'!$CK90,'Debt Avalanche Calculator'!$CN90,'Debt Avalanche Calculator'!$CQ90,'Debt Avalanche Calculator'!$CT90) -> 0 | L92: 73
I93: 74 | J93: =SUM('Debt Snowball Calculator'!E91,'Debt Snowball Calculator'!H91,'Debt Snowball Calculator'!K91,'Debt Snowball Calculator'!N91,'Debt Snowball Calculator'!Q91,'Debt Snowball Calculator'!T91,'Debt Snowball Calculator'!W91,'Debt Snowball Calculator'!Z91,'Debt Snowball Calculator'!AC91,'Debt Snowball Calculator'!AF91,'Debt Snowball Calculator'!AI91,'Debt Snowball Calculator'!AL91,'Debt Snowball Calculator'!AO91,'Debt Snowball Calculator'!AR91,'Debt Snowball Calculator'!AU91,'Debt Snowball Calculator'!AX91,'Debt Snowball Calculator'!BA91,'Debt Snowball Calculator'!BD91,'Debt Snowball Calculator'!BG91,'Debt Snowball Calculator'!BJ91,'Debt Snowball Calculator'!BM91,'Debt Snowball Calculator'!BP91,'Debt Snowball Calculator'!BS91,'Debt Snowball Calculator'!BV91,'Debt Snowball Calculator'!BY91,'Debt Snowball Calculator'!CB91,'Debt Snowball Calculator'!CE91,'Debt Snowball Calculator'!CH91,'Debt Snowball Calculator'!CK91,'Debt Snowball Calculator'!CN91,'Debt Snowball Calculator'!CQ91,'Debt Snowball Calculator'!CT91) -> 0 | K93: =SUM('Debt Avalanche Calculator'!$E91,'Debt Avalanche Calculator'!$H91,'Debt Avalanche Calculator'!$K91,'Debt Avalanche Calculator'!$N91,'Debt Avalanche Calculator'!$Q91,'Debt Avalanche Calculator'!$T91,'Debt Avalanche Calculator'!$W91,'Debt Avalanche Calculator'!$Z91,'Debt Avalanche Calculator'!$AC91,'Debt Avalanche Calculator'!$AF91,'Debt Avalanche Calculator'!$AI91,'Debt Avalanche Calculator'!$AL91,'Debt Avalanche Calculator'!$AO91,'Debt Avalanche Calculator'!$AR91,'Debt Avalanche Calculator'!$AU91,'Debt Avalanche Calculator'!$AX91,'Debt Avalanche Calculator'!$BA91,'Debt Avalanche Calculator'!$BD91,'Debt Avalanche Calculator'!$BG91,'Debt Avalanche Calculator'!$BJ91,'Debt Avalanche Calculator'!$BM91,'Debt Avalanche Calculator'!$BP91,'Debt Avalanche Calculator'!$BS91,'Debt Avalanche Calculator'!$BV91,'Debt Avalanche Calculator'!$BY91,'Debt Avalanche Calculator'!$CB91,'Debt Avalanche Calculator'!$CE91,'Debt Avalanche Calculator'!$CH91,'Debt Avalanche Calculator'!$CK91,'Debt Avalanche Calculator'!$CN91,'Debt Avalanche Calculator'!$CQ91,'Debt Avalanche Calculator'!$CT91) -> 0 | L93: 74
I94: 75 | J94: =SUM('Debt Snowball Calculator'!E92,'Debt Snowball Calculator'!H92,'Debt Snowball Calculator'!K92,'Debt Snowball Calculator'!N92,'Debt Snowball Calculator'!Q92,'Debt Snowball Calculator'!T92,'Debt Snowball Calculator'!W92,'Debt Snowball Calculator'!Z92,'Debt Snowball Calculator'!AC92,'Debt Snowball Calculator'!AF92,'Debt Snowball Calculator'!AI92,'Debt Snowball Calculator'!AL92,'Debt Snowball Calculator'!AO92,'Debt Snowball Calculator'!AR92,'Debt Snowball Calculator'!AU92,'Debt Snowball Calculator'!AX92,'Debt Snowball Calculator'!BA92,'Debt Snowball Calculator'!BD92,'Debt Snowball Calculator'!BG92,'Debt Snowball Calculator'!BJ92,'Debt Snowball Calculator'!BM92,'Debt Snowball Calculator'!BP92,'Debt Snowball Calculator'!BS92,'Debt Snowball Calculator'!BV92,'Debt Snowball Calculator'!BY92,'Debt Snowball Calculator'!CB92,'Debt Snowball Calculator'!CE92,'Debt Snowball Calculator'!CH92,'Debt Snowball Calculator'!CK92,'Debt Snowball Calculator'!CN92,'Debt Snowball Calculator'!CQ92,'Debt Snowball Calculator'!CT92) -> 0 | K94: =SUM('Debt Avalanche Calculator'!$E92,'Debt Avalanche Calculator'!$H92,'Debt Avalanche Calculator'!$K92,'Debt Avalanche Calculator'!$N92,'Debt Avalanche Calculator'!$Q92,'Debt Avalanche Calculator'!$T92,'Debt Avalanche Calculator'!$W92,'Debt Avalanche Calculator'!$Z92,'Debt Avalanche Calculator'!$AC92,'Debt Avalanche Calculator'!$AF92,'Debt Avalanche Calculator'!$AI92,'Debt Avalanche Calculator'!$AL92,'Debt Avalanche Calculator'!$AO92,'Debt Avalanche Calculator'!$AR92,'Debt Avalanche Calculator'!$AU92,'Debt Avalanche Calculator'!$AX92,'Debt Avalanche Calculator'!$BA92,'Debt Avalanche Calculator'!$BD92,'Debt Avalanche Calculator'!$BG92,'Debt Avalanche Calculator'!$BJ92,'Debt Avalanche Calculator'!$BM92,'Debt Avalanche Calculator'!$BP92,'Debt Avalanche Calculator'!$BS92,'Debt Avalanche Calculator'!$BV92,'Debt Avalanche Calculator'!$BY92,'Debt Avalanche Calculator'!$CB92,'Debt Avalanche Calculator'!$CE92,'Debt Avalanche Calculator'!$CH92,'Debt Avalanche Calculator'!$CK92,'Debt Avalanche Calculator'!$CN92,'Debt Avalanche Calculator'!$CQ92,'Debt Avalanche Calculator'!$CT92) -> 0 | L94: 75
I95: 76 | J95: =SUM('Debt Snowball Calculator'!E93,'Debt Snowball Calculator'!H93,'Debt Snowball Calculator'!K93,'Debt Snowball Calculator'!N93,'Debt Snowball Calculator'!Q93,'Debt Snowball Calculator'!T93,'Debt Snowball Calculator'!W93,'Debt Snowball Calculator'!Z93,'Debt Snowball Calculator'!AC93,'Debt Snowball Calculator'!AF93,'Debt Snowball Calculator'!AI93,'Debt Snowball Calculator'!AL93,'Debt Snowball Calculator'!AO93,'Debt Snowball Calculator'!AR93,'Debt Snowball Calculator'!AU93,'Debt Snowball Calculator'!AX93,'Debt Snowball Calculator'!BA93,'Debt Snowball Calculator'!BD93,'Debt Snowball Calculator'!BG93,'Debt Snowball Calculator'!BJ93,'Debt Snowball Calculator'!BM93,'Debt Snowball Calculator'!BP93,'Debt Snowball Calculator'!BS93,'Debt Snowball Calculator'!BV93,'Debt Snowball Calculator'!BY93,'Debt Snowball Calculator'!CB93,'Debt Snowball Calculator'!CE93,'Debt Snowball Calculator'!CH93,'Debt Snowball Calculator'!CK93,'Debt Snowball Calculator'!CN93,'Debt Snowball Calculator'!CQ93,'Debt Snowball Calculator'!CT93) -> 0 | K95: =SUM('Debt Avalanche Calculator'!$E93,'Debt Avalanche Calculator'!$H93,'Debt Avalanche Calculator'!$K93,'Debt Avalanche Calculator'!$N93,'Debt Avalanche Calculator'!$Q93,'Debt Avalanche Calculator'!$T93,'Debt Avalanche Calculator'!$W93,'Debt Avalanche Calculator'!$Z93,'Debt Avalanche Calculator'!$AC93,'Debt Avalanche Calculator'!$AF93,'Debt Avalanche Calculator'!$AI93,'Debt Avalanche Calculator'!$AL93,'Debt Avalanche Calculator'!$AO93,'Debt Avalanche Calculator'!$AR93,'Debt Avalanche Calculator'!$AU93,'Debt Avalanche Calculator'!$AX93,'Debt Avalanche Calculator'!$BA93,'Debt Avalanche Calculator'!$BD93,'Debt Avalanche Calculator'!$BG93,'Debt Avalanche Calculator'!$BJ93,'Debt Avalanche Calculator'!$BM93,'Debt Avalanche Calculator'!$BP93,'Debt Avalanche Calculator'!$BS93,'Debt Avalanche Calculator'!$BV93,'Debt Avalanche Calculator'!$BY93,'Debt Avalanche Calculator'!$CB93,'Debt Avalanche Calculator'!$CE93,'Debt Avalanche Calculator'!$CH93,'Debt Avalanche Calculator'!$CK93,'Debt Avalanche Calculator'!$CN93,'Debt Avalanche Calculator'!$CQ93,'Debt Avalanche Calculator'!$CT93) -> 0 | L95: 76
I96: 77 | J96: =SUM('Debt Snowball Calculator'!E94,'Debt Snowball Calculator'!H94,'Debt Snowball Calculator'!K94,'Debt Snowball Calculator'!N94,'Debt Snowball Calculator'!Q94,'Debt Snowball Calculator'!T94,'Debt Snowball Calculator'!W94,'Debt Snowball Calculator'!Z94,'Debt Snowball Calculator'!AC94,'Debt Snowball Calculator'!AF94,'Debt Snowball Calculator'!AI94,'Debt Snowball Calculator'!AL94,'Debt Snowball Calculator'!AO94,'Debt Snowball Calculator'!AR94,'Debt Snowball Calculator'!AU94,'Debt Snowball Calculator'!AX94,'Debt Snowball Calculator'!BA94,'Debt Snowball Calculator'!BD94,'Debt Snowball Calculator'!BG94,'Debt Snowball Calculator'!BJ94,'Debt Snowball Calculator'!BM94,'Debt Snowball Calculator'!BP94,'Debt Snowball Calculator'!BS94,'Debt Snowball Calculator'!BV94,'Debt Snowball Calculator'!BY94,'Debt Snowball Calculator'!CB94,'Debt Snowball Calculator'!CE94,'Debt Snowball Calculator'!CH94,'Debt Snowball Calculator'!CK94,'Debt Snowball Calculator'!CN94,'Debt Snowball Calculator'!CQ94,'Debt Snowball Calculator'!CT94) -> 0 | K96: =SUM('Debt Avalanche Calculator'!$E94,'Debt Avalanche Calculator'!$H94,'Debt Avalanche Calculator'!$K94,'Debt Avalanche Calculator'!$N94,'Debt Avalanche Calculator'!$Q94,'Debt Avalanche Calculator'!$T94,'Debt Avalanche Calculator'!$W94,'Debt Avalanche Calculator'!$Z94,'Debt Avalanche Calculator'!$AC94,'Debt Avalanche Calculator'!$AF94,'Debt Avalanche Calculator'!$AI94,'Debt Avalanche Calculator'!$AL94,'Debt Avalanche Calculator'!$AO94,'Debt Avalanche Calculator'!$AR94,'Debt Avalanche Calculator'!$AU94,'Debt Avalanche Calculator'!$AX94,'Debt Avalanche Calculator'!$BA94,'Debt Avalanche Calculator'!$BD94,'Debt Avalanche Calculator'!$BG94,'Debt Avalanche Calculator'!$BJ94,'Debt Avalanche Calculator'!$BM94,'Debt Avalanche Calculator'!$BP94,'Debt Avalanche Calculator'!$BS94,'Debt Avalanche Calculator'!$BV94,'Debt Avalanche Calculator'!$BY94,'Debt Avalanche Calculator'!$CB94,'Debt Avalanche Calculator'!$CE94,'Debt Avalanche Calculator'!$CH94,'Debt Avalanche Calculator'!$CK94,'Debt Avalanche Calculator'!$CN94,'Debt Avalanche Calculator'!$CQ94,'Debt Avalanche Calculator'!$CT94) -> 0 | L96: 77
I97: 78 | J97: =SUM('Debt Snowball Calculator'!E95,'Debt Snowball Calculator'!H95,'Debt Snowball Calculator'!K95,'Debt Snowball Calculator'!N95,'Debt Snowball Calculator'!Q95,'Debt Snowball Calculator'!T95,'Debt Snowball Calculator'!W95,'Debt Snowball Calculator'!Z95,'Debt Snowball Calculator'!AC95,'Debt Snowball Calculator'!AF95,'Debt Snowball Calculator'!AI95,'Debt Snowball Calculator'!AL95,'Debt Snowball Calculator'!AO95,'Debt Snowball Calculator'!AR95,'Debt Snowball Calculator'!AU95,'Debt Snowball Calculator'!AX95,'Debt Snowball Calculator'!BA95,'Debt Snowball Calculator'!BD95,'Debt Snowball Calculator'!BG95,'Debt Snowball Calculator'!BJ95,'Debt Snowball Calculator'!BM95,'Debt Snowball Calculator'!BP95,'Debt Snowball Calculator'!BS95,'Debt Snowball Calculator'!BV95,'Debt Snowball Calculator'!BY95,'Debt Snowball Calculator'!CB95,'Debt Snowball Calculator'!CE95,'Debt Snowball Calculator'!CH95,'Debt Snowball Calculator'!CK95,'Debt Snowball Calculator'!CN95,'Debt Snowball Calculator'!CQ95,'Debt Snowball Calculator'!CT95) -> 0 | K97: =SUM('Debt Avalanche Calculator'!$E95,'Debt Avalanche Calculator'!$H95,'Debt Avalanche Calculator'!$K95,'Debt Avalanche Calculator'!$N95,'Debt Avalanche Calculator'!$Q95,'Debt Avalanche Calculator'!$T95,'Debt Avalanche Calculator'!$W95,'Debt Avalanche Calculator'!$Z95,'Debt Avalanche Calculator'!$AC95,'Debt Avalanche Calculator'!$AF95,'Debt Avalanche Calculator'!$AI95,'Debt Avalanche Calculator'!$AL95,'Debt Avalanche Calculator'!$AO95,'Debt Avalanche Calculator'!$AR95,'Debt Avalanche Calculator'!$AU95,'Debt Avalanche Calculator'!$AX95,'Debt Avalanche Calculator'!$BA95,'Debt Avalanche Calculator'!$BD95,'Debt Avalanche Calculator'!$BG95,'Debt Avalanche Calculator'!$BJ95,'Debt Avalanche Calculator'!$BM95,'Debt Avalanche Calculator'!$BP95,'Debt Avalanche Calculator'!$BS95,'Debt Avalanche Calculator'!$BV95,'Debt Avalanche Calculator'!$BY95,'Debt Avalanche Calculator'!$CB95,'Debt Avalanche Calculator'!$CE95,'Debt Avalanche Calculator'!$CH95,'Debt Avalanche Calculator'!$CK95,'Debt Avalanche Calculator'!$CN95,'Debt Avalanche Calculator'!$CQ95,'Debt Avalanche Calculator'!$CT95) -> 0 | L97: 78
I98: 79 | J98: =SUM('Debt Snowball Calculator'!E96,'Debt Snowball Calculator'!H96,'Debt Snowball Calculator'!K96,'Debt Snowball Calculator'!N96,'Debt Snowball Calculator'!Q96,'Debt Snowball Calculator'!T96,'Debt Snowball Calculator'!W96,'Debt Snowball Calculator'!Z96,'Debt Snowball Calculator'!AC96,'Debt Snowball Calculator'!AF96,'Debt Snowball Calculator'!AI96,'Debt Snowball Calculator'!AL96,'Debt Snowball Calculator'!AO96,'Debt Snowball Calculator'!AR96,'Debt Snowball Calculator'!AU96,'Debt Snowball Calculator'!AX96,'Debt Snowball Calculator'!BA96,'Debt Snowball Calculator'!BD96,'Debt Snowball Calculator'!BG96,'Debt Snowball Calculator'!BJ96,'Debt Snowball Calculator'!BM96,'Debt Snowball Calculator'!BP96,'Debt Snowball Calculator'!BS96,'Debt Snowball Calculator'!BV96,'Debt Snowball Calculator'!BY96,'Debt Snowball Calculator'!CB96,'Debt Snowball Calculator'!CE96,'Debt Snowball Calculator'!CH96,'Debt Snowball Calculator'!CK96,'Debt Snowball Calculator'!CN96,'Debt Snowball Calculator'!CQ96,'Debt Snowball Calculator'!CT96) -> 0 | K98: =SUM('Debt Avalanche Calculator'!$E96,'Debt Avalanche Calculator'!$H96,'Debt Avalanche Calculator'!$K96,'Debt Avalanche Calculator'!$N96,'Debt Avalanche Calculator'!$Q96,'Debt Avalanche Calculator'!$T96,'Debt Avalanche Calculator'!$W96,'Debt Avalanche Calculator'!$Z96,'Debt Avalanche Calculator'!$AC96,'Debt Avalanche Calculator'!$AF96,'Debt Avalanche Calculator'!$AI96,'Debt Avalanche Calculator'!$AL96,'Debt Avalanche Calculator'!$AO96,'Debt Avalanche Calculator'!$AR96,'Debt Avalanche Calculator'!$AU96,'Debt Avalanche Calculator'!$AX96,'Debt Avalanche Calculator'!$BA96,'Debt Avalanche Calculator'!$BD96,'Debt Avalanche Calculator'!$BG96,'Debt Avalanche Calculator'!$BJ96,'Debt Avalanche Calculator'!$BM96,'Debt Avalanche Calculator'!$BP96,'Debt Avalanche Calculator'!$BS96,'Debt Avalanche Calculator'!$BV96,'Debt Avalanche Calculator'!$BY96,'Debt Avalanche Calculator'!$CB96,'Debt Avalanche Calculator'!$CE96,'Debt Avalanche Calculator'!$CH96,'Debt Avalanche Calculator'!$CK96,'Debt Avalanche Calculator'!$CN96,'Debt Avalanche Calculator'!$CQ96,'Debt Avalanche Calculator'!$CT96) -> 0 | L98: 79
I99: 80 | J99: =SUM('Debt Snowball Calculator'!E97,'Debt Snowball Calculator'!H97,'Debt Snowball Calculator'!K97,'Debt Snowball Calculator'!N97,'Debt Snowball Calculator'!Q97,'Debt Snowball Calculator'!T97,'Debt Snowball Calculator'!W97,'Debt Snowball Calculator'!Z97,'Debt Snowball Calculator'!AC97,'Debt Snowball Calculator'!AF97,'Debt Snowball Calculator'!AI97,'Debt Snowball Calculator'!AL97,'Debt Snowball Calculator'!AO97,'Debt Snowball Calculator'!AR97,'Debt Snowball Calculator'!AU97,'Debt Snowball Calculator'!AX97,'Debt Snowball Calculator'!BA97,'Debt Snowball Calculator'!BD97,'Debt Snowball Calculator'!BG97,'Debt Snowball Calculator'!BJ97,'Debt Snowball Calculator'!BM97,'Debt Snowball Calculator'!BP97,'Debt Snowball Calculator'!BS97,'Debt Snowball Calculator'!BV97,'Debt Snowball Calculator'!BY97,'Debt Snowball Calculator'!CB97,'Debt Snowball Calculator'!CE97,'Debt Snowball Calculator'!CH97,'Debt Snowball Calculator'!CK97,'Debt Snowball Calculator'!CN97,'Debt Snowball Calculator'!CQ97,'Debt Snowball Calculator'!CT97) -> 0 | K99: =SUM('Debt Avalanche Calculator'!$E97,'Debt Avalanche Calculator'!$H97,'Debt Avalanche Calculator'!$K97,'Debt Avalanche Calculator'!$N97,'Debt Avalanche Calculator'!$Q97,'Debt Avalanche Calculator'!$T97,'Debt Avalanche Calculator'!$W97,'Debt Avalanche Calculator'!$Z97,'Debt Avalanche Calculator'!$AC97,'Debt Avalanche Calculator'!$AF97,'Debt Avalanche Calculator'!$AI97,'Debt Avalanche Calculator'!$AL97,'Debt Avalanche Calculator'!$AO97,'Debt Avalanche Calculator'!$AR97,'Debt Avalanche Calculator'!$AU97,'Debt Avalanche Calculator'!$AX97,'Debt Avalanche Calculator'!$BA97,'Debt Avalanche Calculator'!$BD97,'Debt Avalanche Calculator'!$BG97,'Debt Avalanche Calculator'!$BJ97,'Debt Avalanche Calculator'!$BM97,'Debt Avalanche Calculator'!$BP97,'Debt Avalanche Calculator'!$BS97,'Debt Avalanche Calculator'!$BV97,'Debt Avalanche Calculator'!$BY97,'Debt Avalanche Calculator'!$CB97,'Debt Avalanche Calculator'!$CE97,'Debt Avalanche Calculator'!$CH97,'Debt Avalanche Calculator'!$CK97,'Debt Avalanche Calculator'!$CN97,'Debt Avalanche Calculator'!$CQ97,'Debt Avalanche Calculator'!$CT97) -> 0 | L99: 80
I100: 81 | J100: =SUM('Debt Snowball Calculator'!E98,'Debt Snowball Calculator'!H98,'Debt Snowball Calculator'!K98,'Debt Snowball Calculator'!N98,'Debt Snowball Calculator'!Q98,'Debt Snowball Calculator'!T98,'Debt Snowball Calculator'!W98,'Debt Snowball Calculator'!Z98,'Debt Snowball Calculator'!AC98,'Debt Snowball Calculator'!AF98,'Debt Snowball Calculator'!AI98,'Debt Snowball Calculator'!AL98,'Debt Snowball Calculator'!AO98,'Debt Snowball Calculator'!AR98,'Debt Snowball Calculator'!AU98,'Debt Snowball Calculator'!AX98,'Debt Snowball Calculator'!BA98,'Debt Snowball Calculator'!BD98,'Debt Snowball Calculator'!BG98,'Debt Snowball Calculator'!BJ98,'Debt Snowball Calculator'!BM98,'Debt Snowball Calculator'!BP98,'Debt Snowball Calculator'!BS98,'Debt Snowball Calculator'!BV98,'Debt Snowball Calculator'!BY98,'Debt Snowball Calculator'!CB98,'Debt Snowball Calculator'!CE98,'Debt Snowball Calculator'!CH98,'Debt Snowball Calculator'!CK98,'Debt Snowball Calculator'!CN98,'Debt Snowball Calculator'!CQ98,'Debt Snowball Calculator'!CT98) -> 0 | K100: =SUM('Debt Avalanche Calculator'!$E98,'Debt Avalanche Calculator'!$H98,'Debt Avalanche Calculator'!$K98,'Debt Avalanche Calculator'!$N98,'Debt Avalanche Calculator'!$Q98,'Debt Avalanche Calculator'!$T98,'Debt Avalanche Calculator'!$W98,'Debt Avalanche Calculator'!$Z98,'Debt Avalanche Calculator'!$AC98,'Debt Avalanche Calculator'!$AF98,'Debt Avalanche Calculator'!$AI98,'Debt Avalanche Calculator'!$AL98,'Debt Avalanche Calculator'!$AO98,'Debt Avalanche Calculator'!$AR98,'Debt Avalanche Calculator'!$AU98,'Debt Avalanche Calculator'!$AX98,'Debt Avalanche Calculator'!$BA98,'Debt Avalanche Calculator'!$BD98,'Debt Avalanche Calculator'!$BG98,'Debt Avalanche Calculator'!$BJ98,'Debt Avalanche Calculator'!$BM98,'Debt Avalanche Calculator'!$BP98,'Debt Avalanche Calculator'!$BS98,'Debt Avalanche Calculator'!$BV98,'Debt Avalanche Calculator'!$BY98,'Debt Avalanche Calculator'!$CB98,'Debt Avalanche Calculator'!$CE98,'Debt Avalanche Calculator'!$CH98,'Debt Avalanche Calculator'!$CK98,'Debt Avalanche Calculator'!$CN98,'Debt Avalanche Calculator'!$CQ98,'Debt Avalanche Calculator'!$CT98) -> 0 | L100: 81
I101: 82 | J101: =SUM('Debt Snowball Calculator'!E99,'Debt Snowball Calculator'!H99,'Debt Snowball Calculator'!K99,'Debt Snowball Calculator'!N99,'Debt Snowball Calculator'!Q99,'Debt Snowball Calculator'!T99,'Debt Snowball Calculator'!W99,'Debt Snowball Calculator'!Z99,'Debt Snowball Calculator'!AC99,'Debt Snowball Calculator'!AF99,'Debt Snowball Calculator'!AI99,'Debt Snowball Calculator'!AL99,'Debt Snowball Calculator'!AO99,'Debt Snowball Calculator'!AR99,'Debt Snowball Calculator'!AU99,'Debt Snowball Calculator'!AX99,'Debt Snowball Calculator'!BA99,'Debt Snowball Calculator'!BD99,'Debt Snowball Calculator'!BG99,'Debt Snowball Calculator'!BJ99,'Debt Snowball Calculator'!BM99,'Debt Snowball Calculator'!BP99,'Debt Snowball Calculator'!BS99,'Debt Snowball Calculator'!BV99,'Debt Snowball Calculator'!BY99,'Debt Snowball Calculator'!CB99,'Debt Snowball Calculator'!CE99,'Debt Snowball Calculator'!CH99,'Debt Snowball Calculator'!CK99,'Debt Snowball Calculator'!CN99,'Debt Snowball Calculator'!CQ99,'Debt Snowball Calculator'!CT99) -> 0 | K101: =SUM('Debt Avalanche Calculator'!$E99,'Debt Avalanche Calculator'!$H99,'Debt Avalanche Calculator'!$K99,'Debt Avalanche Calculator'!$N99,'Debt Avalanche Calculator'!$Q99,'Debt Avalanche Calculator'!$T99,'Debt Avalanche Calculator'!$W99,'Debt Avalanche Calculator'!$Z99,'Debt Avalanche Calculator'!$AC99,'Debt Avalanche Calculator'!$AF99,'Debt Avalanche Calculator'!$AI99,'Debt Avalanche Calculator'!$AL99,'Debt Avalanche Calculator'!$AO99,'Debt Avalanche Calculator'!$AR99,'Debt Avalanche Calculator'!$AU99,'Debt Avalanche Calculator'!$AX99,'Debt Avalanche Calculator'!$BA99,'Debt Avalanche Calculator'!$BD99,'Debt Avalanche Calculator'!$BG99,'Debt Avalanche Calculator'!$BJ99,'Debt Avalanche Calculator'!$BM99,'Debt Avalanche Calculator'!$BP99,'Debt Avalanche Calculator'!$BS99,'Debt Avalanche Calculator'!$BV99,'Debt Avalanche Calculator'!$BY99,'Debt Avalanche Calculator'!$CB99,'Debt Avalanche Calculator'!$CE99,'Debt Avalanche Calculator'!$CH99,'Debt Avalanche Calculator'!$CK99,'Debt Avalanche Calculator'!$CN99,'Debt Avalanche Calculator'!$CQ99,'Debt Avalanche Calculator'!$CT99) -> 0 | L101: 82
I102: 83 | J102: =SUM('Debt Snowball Calculator'!E100,'Debt Snowball Calculator'!H100,'Debt Snowball Calculator'!K100,'Debt Snowball Calculator'!N100,'Debt Snowball Calculator'!Q100,'Debt Snowball Calculator'!T100,'Debt Snowball Calculator'!W100,'Debt Snowball Calculator'!Z100,'Debt Snowball Calculator'!AC100,'Debt Snowball Calculator'!AF100,'Debt Snowball Calculator'!AI100,'Debt Snowball Calculator'!AL100,'Debt Snowball Calculator'!AO100,'Debt Snowball Calculator'!AR100,'Debt Snowball Calculator'!AU100,'Debt Snowball Calculator'!AX100,'Debt Snowball Calculator'!BA100,'Debt Snowball Calculator'!BD100,'Debt Snowball Calculator'!BG100,'Debt Snowball Calculator'!BJ100,'Debt Snowball Calculator'!BM100,'Debt Snowball Calculator'!BP100,'Debt Snowball Calculator'!BS100,'Debt Snowball Calculator'!BV100,'Debt Snowball Calculator'!BY100,'Debt Snowball Calculator'!CB100,'Debt Snowball Calculator'!CE100,'Debt Snowball Calculator'!CH100,'Debt Snowball Calculator'!CK100,'Debt Snowball Calculator'!CN100,'Debt Snowball Calculator'!CQ100,'Debt Snowball Calculator'!CT100) -> 0 | K102: =SUM('Debt Avalanche Calculator'!$E100,'Debt Avalanche Calculator'!$H100,'Debt Avalanche Calculator'!$K100,'Debt Avalanche Calculator'!$N100,'Debt Avalanche Calculator'!$Q100,'Debt Avalanche Calculator'!$T100,'Debt Avalanche Calculator'!$W100,'Debt Avalanche Calculator'!$Z100,'Debt Avalanche Calculator'!$AC100,'Debt Avalanche Calculator'!$AF100,'Debt Avalanche Calculator'!$AI100,'Debt Avalanche Calculator'!$AL100,'Debt Avalanche Calculator'!$AO100,'Debt Avalanche Calculator'!$AR100,'Debt Avalanche Calculator'!$AU100,'Debt Avalanche Calculator'!$AX100,'Debt Avalanche Calculator'!$BA100,'Debt Avalanche Calculator'!$BD100,'Debt Avalanche Calculator'!$BG100,'Debt Avalanche Calculator'!$BJ100,'Debt Avalanche Calculator'!$BM100,'Debt Avalanche Calculator'!$BP100,'Debt Avalanche Calculator'!$BS100,'Debt Avalanche Calculator'!$BV100,'Debt Avalanche Calculator'!$BY100,'Debt Avalanche Calculator'!$CB100,'Debt Avalanche Calculator'!$CE100,'Debt Avalanche Calculator'!$CH100,'Debt Avalanche Calculator'!$CK100,'Debt Avalanche Calculator'!$CN100,'Debt Avalanche Calculator'!$CQ100,'Debt Avalanche Calculator'!$CT100) -> 0 | L102: 83
I103: 84 | J103: =SUM('Debt Snowball Calculator'!E101,'Debt Snowball Calculator'!H101,'Debt Snowball Calculator'!K101,'Debt Snowball Calculator'!N101,'Debt Snowball Calculator'!Q101,'Debt Snowball Calculator'!T101,'Debt Snowball Calculator'!W101,'Debt Snowball Calculator'!Z101,'Debt Snowball Calculator'!AC101,'Debt Snowball Calculator'!AF101,'Debt Snowball Calculator'!AI101,'Debt Snowball Calculator'!AL101,'Debt Snowball Calculator'!AO101,'Debt Snowball Calculator'!AR101,'Debt Snowball Calculator'!AU101,'Debt Snowball Calculator'!AX101,'Debt Snowball Calculator'!BA101,'Debt Snowball Calculator'!BD101,'Debt Snowball Calculator'!BG101,'Debt Snowball Calculator'!BJ101,'Debt Snowball Calculator'!BM101,'Debt Snowball Calculator'!BP101,'Debt Snowball Calculator'!BS101,'Debt Snowball Calculator'!BV101,'Debt Snowball Calculator'!BY101,'Debt Snowball Calculator'!CB101,'Debt Snowball Calculator'!CE101,'Debt Snowball Calculator'!CH101,'Debt Snowball Calculator'!CK101,'Debt Snowball Calculator'!CN101,'Debt Snowball Calculator'!CQ101,'Debt Snowball Calculator'!CT101) -> 0 | K103: =SUM('Debt Avalanche Calculator'!$E101,'Debt Avalanche Calculator'!$H101,'Debt Avalanche Calculator'!$K101,'Debt Avalanche Calculator'!$N101,'Debt Avalanche Calculator'!$Q101,'Debt Avalanche Calculator'!$T101,'Debt Avalanche Calculator'!$W101,'Debt Avalanche Calculator'!$Z101,'Debt Avalanche Calculator'!$AC101,'Debt Avalanche Calculator'!$AF101,'Debt Avalanche Calculator'!$AI101,'Debt Avalanche Calculator'!$AL101,'Debt Avalanche Calculator'!$AO101,'Debt Avalanche Calculator'!$AR101,'Debt Avalanche Calculator'!$AU101,'Debt Avalanche Calculator'!$AX101,'Debt Avalanche Calculator'!$BA101,'Debt Avalanche Calculator'!$BD101,'Debt Avalanche Calculator'!$BG101,'Debt Avalanche Calculator'!$BJ101,'Debt Avalanche Calculator'!$BM101,'Debt Avalanche Calculator'!$BP101,'Debt Avalanche Calculator'!$BS101,'Debt Avalanche Calculator'!$BV101,'Debt Avalanche Calculator'!$BY101,'Debt Avalanche Calculator'!$CB101,'Debt Avalanche Calculator'!$CE101,'Debt Avalanche Calculator'!$CH101,'Debt Avalanche Calculator'!$CK101,'Debt Avalanche Calculator'!$CN101,'Debt Avalanche Calculator'!$CQ101,'Debt Avalanche Calculator'!$CT101) -> 0 | L103: 84
I104: 85 | J104: =SUM('Debt Snowball Calculator'!E102,'Debt Snowball Calculator'!H102,'Debt Snowball Calculator'!K102,'Debt Snowball Calculator'!N102,'Debt Snowball Calculator'!Q102,'Debt Snowball Calculator'!T102,'Debt Snowball Calculator'!W102,'Debt Snowball Calculator'!Z102,'Debt Snowball Calculator'!AC102,'Debt Snowball Calculator'!AF102,'Debt Snowball Calculator'!AI102,'Debt Snowball Calculator'!AL102,'Debt Snowball Calculator'!AO102,'Debt Snowball Calculator'!AR102,'Debt Snowball Calculator'!AU102,'Debt Snowball Calculator'!AX102,'Debt Snowball Calculator'!BA102,'Debt Snowball Calculator'!BD102,'Debt Snowball Calculator'!BG102,'Debt Snowball Calculator'!BJ102,'Debt Snowball Calculator'!BM102,'Debt Snowball Calculator'!BP102,'Debt Snowball Calculator'!BS102,'Debt Snowball Calculator'!BV102,'Debt Snowball Calculator'!BY102,'Debt Snowball Calculator'!CB102,'Debt Snowball Calculator'!CE102,'Debt Snowball Calculator'!CH102,'Debt Snowball Calculator'!CK102,'Debt Snowball Calculator'!CN102,'Debt Snowball Calculator'!CQ102,'Debt Snowball Calculator'!CT102) -> 0 | K104: =SUM('Debt Avalanche Calculator'!$E102,'Debt Avalanche Calculator'!$H102,'Debt Avalanche Calculator'!$K102,'Debt Avalanche Calculator'!$N102,'Debt Avalanche Calculator'!$Q102,'Debt Avalanche Calculator'!$T102,'Debt Avalanche Calculator'!$W102,'Debt Avalanche Calculator'!$Z102,'Debt Avalanche Calculator'!$AC102,'Debt Avalanche Calculator'!$AF102,'Debt Avalanche Calculator'!$AI102,'Debt Avalanche Calculator'!$AL102,'Debt Avalanche Calculator'!$AO102,'Debt Avalanche Calculator'!$AR102,'Debt Avalanche Calculator'!$AU102,'Debt Avalanche Calculator'!$AX102,'Debt Avalanche Calculator'!$BA102,'Debt Avalanche Calculator'!$BD102,'Debt Avalanche Calculator'!$BG102,'Debt Avalanche Calculator'!$BJ102,'Debt Avalanche Calculator'!$BM102,'Debt Avalanche Calculator'!$BP102,'Debt Avalanche Calculator'!$BS102,'Debt Avalanche Calculator'!$BV102,'Debt Avalanche Calculator'!$BY102,'Debt Avalanche Calculator'!$CB102,'Debt Avalanche Calculator'!$CE102,'Debt Avalanche Calculator'!$CH102,'Debt Avalanche Calculator'!$CK102,'Debt Avalanche Calculator'!$CN102,'Debt Avalanche Calculator'!$CQ102,'Debt Avalanche Calculator'!$CT102) -> 0 | L104: 85
I105: 86 | J105: =SUM('Debt Snowball Calculator'!E103,'Debt Snowball Calculator'!H103,'Debt Snowball Calculator'!K103,'Debt Snowball Calculator'!N103,'Debt Snowball Calculator'!Q103,'Debt Snowball Calculator'!T103,'Debt Snowball Calculator'!W103,'Debt Snowball Calculator'!Z103,'Debt Snowball Calculator'!AC103,'Debt Snowball Calculator'!AF103,'Debt Snowball Calculator'!AI103,'Debt Snowball Calculator'!AL103,'Debt Snowball Calculator'!AO103,'Debt Snowball Calculator'!AR103,'Debt Snowball Calculator'!AU103,'Debt Snowball Calculator'!AX103,'Debt Snowball Calculator'!BA103,'Debt Snowball Calculator'!BD103,'Debt Snowball Calculator'!BG103,'Debt Snowball Calculator'!BJ103,'Debt Snowball Calculator'!BM103,'Debt Snowball Calculator'!BP103,'Debt Snowball Calculator'!BS103,'Debt Snowball Calculator'!BV103,'Debt Snowball Calculator'!BY103,'Debt Snowball Calculator'!CB103,'Debt Snowball Calculator'!CE103,'Debt Snowball Calculator'!CH103,'Debt Snowball Calculator'!CK103,'Debt Snowball Calculator'!CN103,'Debt Snowball Calculator'!CQ103,'Debt Snowball Calculator'!CT103) -> 0 | K105: =SUM('Debt Avalanche Calculator'!$E103,'Debt Avalanche Calculator'!$H103,'Debt Avalanche Calculator'!$K103,'Debt Avalanche Calculator'!$N103,'Debt Avalanche Calculator'!$Q103,'Debt Avalanche Calculator'!$T103,'Debt Avalanche Calculator'!$W103,'Debt Avalanche Calculator'!$Z103,'Debt Avalanche Calculator'!$AC103,'Debt Avalanche Calculator'!$AF103,'Debt Avalanche Calculator'!$AI103,'Debt Avalanche Calculator'!$AL103,'Debt Avalanche Calculator'!$AO103,'Debt Avalanche Calculator'!$AR103,'Debt Avalanche Calculator'!$AU103,'Debt Avalanche Calculator'!$AX103,'Debt Avalanche Calculator'!$BA103,'Debt Avalanche Calculator'!$BD103,'Debt Avalanche Calculator'!$BG103,'Debt Avalanche Calculator'!$BJ103,'Debt Avalanche Calculator'!$BM103,'Debt Avalanche Calculator'!$BP103,'Debt Avalanche Calculator'!$BS103,'Debt Avalanche Calculator'!$BV103,'Debt Avalanche Calculator'!$BY103,'Debt Avalanche Calculator'!$CB103,'Debt Avalanche Calculator'!$CE103,'Debt Avalanche Calculator'!$CH103,'Debt Avalanche Calculator'!$CK103,'Debt Avalanche Calculator'!$CN103,'Debt Avalanche Calculator'!$CQ103,'Debt Avalanche Calculator'!$CT103) -> 0 | L105: 86
I106: 87 | J106: =SUM('Debt Snowball Calculator'!E104,'Debt Snowball Calculator'!H104,'Debt Snowball Calculator'!K104,'Debt Snowball Calculator'!N104,'Debt Snowball Calculator'!Q104,'Debt Snowball Calculator'!T104,'Debt Snowball Calculator'!W104,'Debt Snowball Calculator'!Z104,'Debt Snowball Calculator'!AC104,'Debt Snowball Calculator'!AF104,'Debt Snowball Calculator'!AI104,'Debt Snowball Calculator'!AL104,'Debt Snowball Calculator'!AO104,'Debt Snowball Calculator'!AR104,'Debt Snowball Calculator'!AU104,'Debt Snowball Calculator'!AX104,'Debt Snowball Calculator'!BA104,'Debt Snowball Calculator'!BD104,'Debt Snowball Calculator'!BG104,'Debt Snowball Calculator'!BJ104,'Debt Snowball Calculator'!BM104,'Debt Snowball Calculator'!BP104,'Debt Snowball Calculator'!BS104,'Debt Snowball Calculator'!BV104,'Debt Snowball Calculator'!BY104,'Debt Snowball Calculator'!CB104,'Debt Snowball Calculator'!CE104,'Debt Snowball Calculator'!CH104,'Debt Snowball Calculator'!CK104,'Debt Snowball Calculator'!CN104,'Debt Snowball Calculator'!CQ104,'Debt Snowball Calculator'!CT104) -> 0 | K106: =SUM('Debt Avalanche Calculator'!$E104,'Debt Avalanche Calculator'!$H104,'Debt Avalanche Calculator'!$K104,'Debt Avalanche Calculator'!$N104,'Debt Avalanche Calculator'!$Q104,'Debt Avalanche Calculator'!$T104,'Debt Avalanche Calculator'!$W104,'Debt Avalanche Calculator'!$Z104,'Debt Avalanche Calculator'!$AC104,'Debt Avalanche Calculator'!$AF104,'Debt Avalanche Calculator'!$AI104,'Debt Avalanche Calculator'!$AL104,'Debt Avalanche Calculator'!$AO104,'Debt Avalanche Calculator'!$AR104,'Debt Avalanche Calculator'!$AU104,'Debt Avalanche Calculator'!$AX104,'Debt Avalanche Calculator'!$BA104,'Debt Avalanche Calculator'!$BD104,'Debt Avalanche Calculator'!$BG104,'Debt Avalanche Calculator'!$BJ104,'Debt Avalanche Calculator'!$BM104,'Debt Avalanche Calculator'!$BP104,'Debt Avalanche Calculator'!$BS104,'Debt Avalanche Calculator'!$BV104,'Debt Avalanche Calculator'!$BY104,'Debt Avalanche Calculator'!$CB104,'Debt Avalanche Calculator'!$CE104,'Debt Avalanche Calculator'!$CH104,'Debt Avalanche Calculator'!$CK104,'Debt Avalanche Calculator'!$CN104,'Debt Avalanche Calculator'!$CQ104,'Debt Avalanche Calculator'!$CT104) -> 0 | L106: 87
I107: 88 | J107: =SUM('Debt Snowball Calculator'!E105,'Debt Snowball Calculator'!H105,'Debt Snowball Calculator'!K105,'Debt Snowball Calculator'!N105,'Debt Snowball Calculator'!Q105,'Debt Snowball Calculator'!T105,'Debt Snowball Calculator'!W105,'Debt Snowball Calculator'!Z105,'Debt Snowball Calculator'!AC105,'Debt Snowball Calculator'!AF105,'Debt Snowball Calculator'!AI105,'Debt Snowball Calculator'!AL105,'Debt Snowball Calculator'!AO105,'Debt Snowball Calculator'!AR105,'Debt Snowball Calculator'!AU105,'Debt Snowball Calculator'!AX105,'Debt Snowball Calculator'!BA105,'Debt Snowball Calculator'!BD105,'Debt Snowball Calculator'!BG105,'Debt Snowball Calculator'!BJ105,'Debt Snowball Calculator'!BM105,'Debt Snowball Calculator'!BP105,'Debt Snowball Calculator'!BS105,'Debt Snowball Calculator'!BV105,'Debt Snowball Calculator'!BY105,'Debt Snowball Calculator'!CB105,'Debt Snowball Calculator'!CE105,'Debt Snowball Calculator'!CH105,'Debt Snowball Calculator'!CK105,'Debt Snowball Calculator'!CN105,'Debt Snowball Calculator'!CQ105,'Debt Snowball Calculator'!CT105) -> 0 | K107: =SUM('Debt Avalanche Calculator'!$E105,'Debt Avalanche Calculator'!$H105,'Debt Avalanche Calculator'!$K105,'Debt Avalanche Calculator'!$N105,'Debt Avalanche Calculator'!$Q105,'Debt Avalanche Calculator'!$T105,'Debt Avalanche Calculator'!$W105,'Debt Avalanche Calculator'!$Z105,'Debt Avalanche Calculator'!$AC105,'Debt Avalanche Calculator'!$AF105,'Debt Avalanche Calculator'!$AI105,'Debt Avalanche Calculator'!$AL105,'Debt Avalanche Calculator'!$AO105,'Debt Avalanche Calculator'!$AR105,'Debt Avalanche Calculator'!$AU105,'Debt Avalanche Calculator'!$AX105,'Debt Avalanche Calculator'!$BA105,'Debt Avalanche Calculator'!$BD105,'Debt Avalanche Calculator'!$BG105,'Debt Avalanche Calculator'!$BJ105,'Debt Avalanche Calculator'!$BM105,'Debt Avalanche Calculator'!$BP105,'Debt Avalanche Calculator'!$BS105,'Debt Avalanche Calculator'!$BV105,'Debt Avalanche Calculator'!$BY105,'Debt Avalanche Calculator'!$CB105,'Debt Avalanche Calculator'!$CE105,'Debt Avalanche Calculator'!$CH105,'Debt Avalanche Calculator'!$CK105,'Debt Avalanche Calculator'!$CN105,'Debt Avalanche Calculator'!$CQ105,'Debt Avalanche Calculator'!$CT105) -> 0 | L107: 88
I108: 89 | J108: =SUM('Debt Snowball Calculator'!E106,'Debt Snowball Calculator'!H106,'Debt Snowball Calculator'!K106,'Debt Snowball Calculator'!N106,'Debt Snowball Calculator'!Q106,'Debt Snowball Calculator'!T106,'Debt Snowball Calculator'!W106,'Debt Snowball Calculator'!Z106,'Debt Snowball Calculator'!AC106,'Debt Snowball Calculator'!AF106,'Debt Snowball Calculator'!AI106,'Debt Snowball Calculator'!AL106,'Debt Snowball Calculator'!AO106,'Debt Snowball Calculator'!AR106,'Debt Snowball Calculator'!AU106,'Debt Snowball Calculator'!AX106,'Debt Snowball Calculator'!BA106,'Debt Snowball Calculator'!BD106,'Debt Snowball Calculator'!BG106,'Debt Snowball Calculator'!BJ106,'Debt Snowball Calculator'!BM106,'Debt Snowball Calculator'!BP106,'Debt Snowball Calculator'!BS106,'Debt Snowball Calculator'!BV106,'Debt Snowball Calculator'!BY106,'Debt Snowball Calculator'!CB106,'Debt Snowball Calculator'!CE106,'Debt Snowball Calculator'!CH106,'Debt Snowball Calculator'!CK106,'Debt Snowball Calculator'!CN106,'Debt Snowball Calculator'!CQ106,'Debt Snowball Calculator'!CT106) -> 0 | K108: =SUM('Debt Avalanche Calculator'!$E106,'Debt Avalanche Calculator'!$H106,'Debt Avalanche Calculator'!$K106,'Debt Avalanche Calculator'!$N106,'Debt Avalanche Calculator'!$Q106,'Debt Avalanche Calculator'!$T106,'Debt Avalanche Calculator'!$W106,'Debt Avalanche Calculator'!$Z106,'Debt Avalanche Calculator'!$AC106,'Debt Avalanche Calculator'!$AF106,'Debt Avalanche Calculator'!$AI106,'Debt Avalanche Calculator'!$AL106,'Debt Avalanche Calculator'!$AO106,'Debt Avalanche Calculator'!$AR106,'Debt Avalanche Calculator'!$AU106,'Debt Avalanche Calculator'!$AX106,'Debt Avalanche Calculator'!$BA106,'Debt Avalanche Calculator'!$BD106,'Debt Avalanche Calculator'!$BG106,'Debt Avalanche Calculator'!$BJ106,'Debt Avalanche Calculator'!$BM106,'Debt Avalanche Calculator'!$BP106,'Debt Avalanche Calculator'!$BS106,'Debt Avalanche Calculator'!$BV106,'Debt Avalanche Calculator'!$BY106,'Debt Avalanche Calculator'!$CB106,'Debt Avalanche Calculator'!$CE106,'Debt Avalanche Calculator'!$CH106,'Debt Avalanche Calculator'!$CK106,'Debt Avalanche Calculator'!$CN106,'Debt Avalanche Calculator'!$CQ106,'Debt Avalanche Calculator'!$CT106) -> 0 | L108: 89
I109: 90 | J109: =SUM('Debt Snowball Calculator'!E107,'Debt Snowball Calculator'!H107,'Debt Snowball Calculator'!K107,'Debt Snowball Calculator'!N107,'Debt Snowball Calculator'!Q107,'Debt Snowball Calculator'!T107,'Debt Snowball Calculator'!W107,'Debt Snowball Calculator'!Z107,'Debt Snowball Calculator'!AC107,'Debt Snowball Calculator'!AF107,'Debt Snowball Calculator'!AI107,'Debt Snowball Calculator'!AL107,'Debt Snowball Calculator'!AO107,'Debt Snowball Calculator'!AR107,'Debt Snowball Calculator'!AU107,'Debt Snowball Calculator'!AX107,'Debt Snowball Calculator'!BA107,'Debt Snowball Calculator'!BD107,'Debt Snowball Calculator'!BG107,'Debt Snowball Calculator'!BJ107,'Debt Snowball Calculator'!BM107,'Debt Snowball Calculator'!BP107,'Debt Snowball Calculator'!BS107,'Debt Snowball Calculator'!BV107,'Debt Snowball Calculator'!BY107,'Debt Snowball Calculator'!CB107,'Debt Snowball Calculator'!CE107,'Debt Snowball Calculator'!CH107,'Debt Snowball Calculator'!CK107,'Debt Snowball Calculator'!CN107,'Debt Snowball Calculator'!CQ107,'Debt Snowball Calculator'!CT107) -> 0 | K109: =SUM('Debt Avalanche Calculator'!$E107,'Debt Avalanche Calculator'!$H107,'Debt Avalanche Calculator'!$K107,'Debt Avalanche Calculator'!$N107,'Debt Avalanche Calculator'!$Q107,'Debt Avalanche Calculator'!$T107,'Debt Avalanche Calculator'!$W107,'Debt Avalanche Calculator'!$Z107,'Debt Avalanche Calculator'!$AC107,'Debt Avalanche Calculator'!$AF107,'Debt Avalanche Calculator'!$AI107,'Debt Avalanche Calculator'!$AL107,'Debt Avalanche Calculator'!$AO107,'Debt Avalanche Calculator'!$AR107,'Debt Avalanche Calculator'!$AU107,'Debt Avalanche Calculator'!$AX107,'Debt Avalanche Calculator'!$BA107,'Debt Avalanche Calculator'!$BD107,'Debt Avalanche Calculator'!$BG107,'Debt Avalanche Calculator'!$BJ107,'Debt Avalanche Calculator'!$BM107,'Debt Avalanche Calculator'!$BP107,'Debt Avalanche Calculator'!$BS107,'Debt Avalanche Calculator'!$BV107,'Debt Avalanche Calculator'!$BY107,'Debt Avalanche Calculator'!$CB107,'Debt Avalanche Calculator'!$CE107,'Debt Avalanche Calculator'!$CH107,'Debt Avalanche Calculator'!$CK107,'Debt Avalanche Calculator'!$CN107,'Debt Avalanche Calculator'!$CQ107,'Debt Avalanche Calculator'!$CT107) -> 0 | L109: 90
I110: 91 | J110: =SUM('Debt Snowball Calculator'!E108,'Debt Snowball Calculator'!H108,'Debt Snowball Calculator'!K108,'Debt Snowball Calculator'!N108,'Debt Snowball Calculator'!Q108,'Debt Snowball Calculator'!T108,'Debt Snowball Calculator'!W108,'Debt Snowball Calculator'!Z108,'Debt Snowball Calculator'!AC108,'Debt Snowball Calculator'!AF108,'Debt Snowball Calculator'!AI108,'Debt Snowball Calculator'!AL108,'Debt Snowball Calculator'!AO108,'Debt Snowball Calculator'!AR108,'Debt Snowball Calculator'!AU108,'Debt Snowball Calculator'!AX108,'Debt Snowball Calculator'!BA108,'Debt Snowball Calculator'!BD108,'Debt Snowball Calculator'!BG108,'Debt Snowball Calculator'!BJ108,'Debt Snowball Calculator'!BM108,'Debt Snowball Calculator'!BP108,'Debt Snowball Calculator'!BS108,'Debt Snowball Calculator'!BV108,'Debt Snowball Calculator'!BY108,'Debt Snowball Calculator'!CB108,'Debt Snowball Calculator'!CE108,'Debt Snowball Calculator'!CH108,'Debt Snowball Calculator'!CK108,'Debt Snowball Calculator'!CN108,'Debt Snowball Calculator'!CQ108,'Debt Snowball Calculator'!CT108) -> 0 | K110: =SUM('Debt Avalanche Calculator'!$E108,'Debt Avalanche Calculator'!$H108,'Debt Avalanche Calculator'!$K108,'Debt Avalanche Calculator'!$N108,'Debt Avalanche Calculator'!$Q108,'Debt Avalanche Calculator'!$T108,'Debt Avalanche Calculator'!$W108,'Debt Avalanche Calculator'!$Z108,'Debt Avalanche Calculator'!$AC108,'Debt Avalanche Calculator'!$AF108,'Debt Avalanche Calculator'!$AI108,'Debt Avalanche Calculator'!$AL108,'Debt Avalanche Calculator'!$AO108,'Debt Avalanche Calculator'!$AR108,'Debt Avalanche Calculator'!$AU108,'Debt Avalanche Calculator'!$AX108,'Debt Avalanche Calculator'!$BA108,'Debt Avalanche Calculator'!$BD108,'Debt Avalanche Calculator'!$BG108,'Debt Avalanche Calculator'!$BJ108,'Debt Avalanche Calculator'!$BM108,'Debt Avalanche Calculator'!$BP108,'Debt Avalanche Calculator'!$BS108,'Debt Avalanche Calculator'!$BV108,'Debt Avalanche Calculator'!$BY108,'Debt Avalanche Calculator'!$CB108,'Debt Avalanche Calculator'!$CE108,'Debt Avalanche Calculator'!$CH108,'Debt Avalanche Calculator'!$CK108,'Debt Avalanche Calculator'!$CN108,'Debt Avalanche Calculator'!$CQ108,'Debt Avalanche Calculator'!$CT108) -> 0 | L110: 91
I111: 92 | J111: =SUM('Debt Snowball Calculator'!E109,'Debt Snowball Calculator'!H109,'Debt Snowball Calculator'!K109,'Debt Snowball Calculator'!N109,'Debt Snowball Calculator'!Q109,'Debt Snowball Calculator'!T109,'Debt Snowball Calculator'!W109,'Debt Snowball Calculator'!Z109,'Debt Snowball Calculator'!AC109,'Debt Snowball Calculator'!AF109,'Debt Snowball Calculator'!AI109,'Debt Snowball Calculator'!AL109,'Debt Snowball Calculator'!AO109,'Debt Snowball Calculator'!AR109,'Debt Snowball Calculator'!AU109,'Debt Snowball Calculator'!AX109,'Debt Snowball Calculator'!BA109,'Debt Snowball Calculator'!BD109,'Debt Snowball Calculator'!BG109,'Debt Snowball Calculator'!BJ109,'Debt Snowball Calculator'!BM109,'Debt Snowball Calculator'!BP109,'Debt Snowball Calculator'!BS109,'Debt Snowball Calculator'!BV109,'Debt Snowball Calculator'!BY109,'Debt Snowball Calculator'!CB109,'Debt Snowball Calculator'!CE109,'Debt Snowball Calculator'!CH109,'Debt Snowball Calculator'!CK109,'Debt Snowball Calculator'!CN109,'Debt Snowball Calculator'!CQ109,'Debt Snowball Calculator'!CT109) -> 0 | K111: =SUM('Debt Avalanche Calculator'!$E109,'Debt Avalanche Calculator'!$H109,'Debt Avalanche Calculator'!$K109,'Debt Avalanche Calculator'!$N109,'Debt Avalanche Calculator'!$Q109,'Debt Avalanche Calculator'!$T109,'Debt Avalanche Calculator'!$W109,'Debt Avalanche Calculator'!$Z109,'Debt Avalanche Calculator'!$AC109,'Debt Avalanche Calculator'!$AF109,'Debt Avalanche Calculator'!$AI109,'Debt Avalanche Calculator'!$AL109,'Debt Avalanche Calculator'!$AO109,'Debt Avalanche Calculator'!$AR109,'Debt Avalanche Calculator'!$AU109,'Debt Avalanche Calculator'!$AX109,'Debt Avalanche Calculator'!$BA109,'Debt Avalanche Calculator'!$BD109,'Debt Avalanche Calculator'!$BG109,'Debt Avalanche Calculator'!$BJ109,'Debt Avalanche Calculator'!$BM109,'Debt Avalanche Calculator'!$BP109,'Debt Avalanche Calculator'!$BS109,'Debt Avalanche Calculator'!$BV109,'Debt Avalanche Calculator'!$BY109,'Debt Avalanche Calculator'!$CB109,'Debt Avalanche Calculator'!$CE109,'Debt Avalanche Calculator'!$CH109,'Debt Avalanche Calculator'!$CK109,'Debt Avalanche Calculator'!$CN109,'Debt Avalanche Calculator'!$CQ109,'Debt Avalanche Calculator'!$CT109) -> 0 | L111: 92
I112: 93 | J112: =SUM('Debt Snowball Calculator'!E110,'Debt Snowball Calculator'!H110,'Debt Snowball Calculator'!K110,'Debt Snowball Calculator'!N110,'Debt Snowball Calculator'!Q110,'Debt Snowball Calculator'!T110,'Debt Snowball Calculator'!W110,'Debt Snowball Calculator'!Z110,'Debt Snowball Calculator'!AC110,'Debt Snowball Calculator'!AF110,'Debt Snowball Calculator'!AI110,'Debt Snowball Calculator'!AL110,'Debt Snowball Calculator'!AO110,'Debt Snowball Calculator'!AR110,'Debt Snowball Calculator'!AU110,'Debt Snowball Calculator'!AX110,'Debt Snowball Calculator'!BA110,'Debt Snowball Calculator'!BD110,'Debt Snowball Calculator'!BG110,'Debt Snowball Calculator'!BJ110,'Debt Snowball Calculator'!BM110,'Debt Snowball Calculator'!BP110,'Debt Snowball Calculator'!BS110,'Debt Snowball Calculator'!BV110,'Debt Snowball Calculator'!BY110,'Debt Snowball Calculator'!CB110,'Debt Snowball Calculator'!CE110,'Debt Snowball Calculator'!CH110,'Debt Snowball Calculator'!CK110,'Debt Snowball Calculator'!CN110,'Debt Snowball Calculator'!CQ110,'Debt Snowball Calculator'!CT110) -> 0 | K112: =SUM('Debt Avalanche Calculator'!$E110,'Debt Avalanche Calculator'!$H110,'Debt Avalanche Calculator'!$K110,'Debt Avalanche Calculator'!$N110,'Debt Avalanche Calculator'!$Q110,'Debt Avalanche Calculator'!$T110,'Debt Avalanche Calculator'!$W110,'Debt Avalanche Calculator'!$Z110,'Debt Avalanche Calculator'!$AC110,'Debt Avalanche Calculator'!$AF110,'Debt Avalanche Calculator'!$AI110,'Debt Avalanche Calculator'!$AL110,'Debt Avalanche Calculator'!$AO110,'Debt Avalanche Calculator'!$AR110,'Debt Avalanche Calculator'!$AU110,'Debt Avalanche Calculator'!$AX110,'Debt Avalanche Calculator'!$BA110,'Debt Avalanche Calculator'!$BD110,'Debt Avalanche Calculator'!$BG110,'Debt Avalanche Calculator'!$BJ110,'Debt Avalanche Calculator'!$BM110,'Debt Avalanche Calculator'!$BP110,'Debt Avalanche Calculator'!$BS110,'Debt Avalanche Calculator'!$BV110,'Debt Avalanche Calculator'!$BY110,'Debt Avalanche Calculator'!$CB110,'Debt Avalanche Calculator'!$CE110,'Debt Avalanche Calculator'!$CH110,'Debt Avalanche Calculator'!$CK110,'Debt Avalanche Calculator'!$CN110,'Debt Avalanche Calculator'!$CQ110,'Debt Avalanche Calculator'!$CT110) -> 0 | L112: 93
I113: 94 | J113: =SUM('Debt Snowball Calculator'!E111,'Debt Snowball Calculator'!H111,'Debt Snowball Calculator'!K111,'Debt Snowball Calculator'!N111,'Debt Snowball Calculator'!Q111,'Debt Snowball Calculator'!T111,'Debt Snowball Calculator'!W111,'Debt Snowball Calculator'!Z111,'Debt Snowball Calculator'!AC111,'Debt Snowball Calculator'!AF111,'Debt Snowball Calculator'!AI111,'Debt Snowball Calculator'!AL111,'Debt Snowball Calculator'!AO111,'Debt Snowball Calculator'!AR111,'Debt Snowball Calculator'!AU111,'Debt Snowball Calculator'!AX111,'Debt Snowball Calculator'!BA111,'Debt Snowball Calculator'!BD111,'Debt Snowball Calculator'!BG111,'Debt Snowball Calculator'!BJ111,'Debt Snowball Calculator'!BM111,'Debt Snowball Calculator'!BP111,'Debt Snowball Calculator'!BS111,'Debt Snowball Calculator'!BV111,'Debt Snowball Calculator'!BY111,'Debt Snowball Calculator'!CB111,'Debt Snowball Calculator'!CE111,'Debt Snowball Calculator'!CH111,'Debt Snowball Calculator'!CK111,'Debt Snowball Calculator'!CN111,'Debt Snowball Calculator'!CQ111,'Debt Snowball Calculator'!CT111) -> 0 | K113: =SUM('Debt Avalanche Calculator'!$E111,'Debt Avalanche Calculator'!$H111,'Debt Avalanche Calculator'!$K111,'Debt Avalanche Calculator'!$N111,'Debt Avalanche Calculator'!$Q111,'Debt Avalanche Calculator'!$T111,'Debt Avalanche Calculator'!$W111,'Debt Avalanche Calculator'!$Z111,'Debt Avalanche Calculator'!$AC111,'Debt Avalanche Calculator'!$AF111,'Debt Avalanche Calculator'!$AI111,'Debt Avalanche Calculator'!$AL111,'Debt Avalanche Calculator'!$AO111,'Debt Avalanche Calculator'!$AR111,'Debt Avalanche Calculator'!$AU111,'Debt Avalanche Calculator'!$AX111,'Debt Avalanche Calculator'!$BA111,'Debt Avalanche Calculator'!$BD111,'Debt Avalanche Calculator'!$BG111,'Debt Avalanche Calculator'!$BJ111,'Debt Avalanche Calculator'!$BM111,'Debt Avalanche Calculator'!$BP111,'Debt Avalanche Calculator'!$BS111,'Debt Avalanche Calculator'!$BV111,'Debt Avalanche Calculator'!$BY111,'Debt Avalanche Calculator'!$CB111,'Debt Avalanche Calculator'!$CE111,'Debt Avalanche Calculator'!$CH111,'Debt Avalanche Calculator'!$CK111,'Debt Avalanche Calculator'!$CN111,'Debt Avalanche Calculator'!$CQ111,'Debt Avalanche Calculator'!$CT111) -> 0 | L113: 94
I114: 95 | J114: =SUM('Debt Snowball Calculator'!E112,'Debt Snowball Calculator'!H112,'Debt Snowball Calculator'!K112,'Debt Snowball Calculator'!N112,'Debt Snowball Calculator'!Q112,'Debt Snowball Calculator'!T112,'Debt Snowball Calculator'!W112,'Debt Snowball Calculator'!Z112,'Debt Snowball Calculator'!AC112,'Debt Snowball Calculator'!AF112,'Debt Snowball Calculator'!AI112,'Debt Snowball Calculator'!AL112,'Debt Snowball Calculator'!AO112,'Debt Snowball Calculator'!AR112,'Debt Snowball Calculator'!AU112,'Debt Snowball Calculator'!AX112,'Debt Snowball Calculator'!BA112,'Debt Snowball Calculator'!BD112,'Debt Snowball Calculator'!BG112,'Debt Snowball Calculator'!BJ112,'Debt Snowball Calculator'!BM112,'Debt Snowball Calculator'!BP112,'Debt Snowball Calculator'!BS112,'Debt Snowball Calculator'!BV112,'Debt Snowball Calculator'!BY112,'Debt Snowball Calculator'!CB112,'Debt Snowball Calculator'!CE112,'Debt Snowball Calculator'!CH112,'Debt Snowball Calculator'!CK112,'Debt Snowball Calculator'!CN112,'Debt Snowball Calculator'!CQ112,'Debt Snowball Calculator'!CT112) -> 0 | K114: =SUM('Debt Avalanche Calculator'!$E112,'Debt Avalanche Calculator'!$H112,'Debt Avalanche Calculator'!$K112,'Debt Avalanche Calculator'!$N112,'Debt Avalanche Calculator'!$Q112,'Debt Avalanche Calculator'!$T112,'Debt Avalanche Calculator'!$W112,'Debt Avalanche Calculator'!$Z112,'Debt Avalanche Calculator'!$AC112,'Debt Avalanche Calculator'!$AF112,'Debt Avalanche Calculator'!$AI112,'Debt Avalanche Calculator'!$AL112,'Debt Avalanche Calculator'!$AO112,'Debt Avalanche Calculator'!$AR112,'Debt Avalanche Calculator'!$AU112,'Debt Avalanche Calculator'!$AX112,'Debt Avalanche Calculator'!$BA112,'Debt Avalanche Calculator'!$BD112,'Debt Avalanche Calculator'!$BG112,'Debt Avalanche Calculator'!$BJ112,'Debt Avalanche Calculator'!$BM112,'Debt Avalanche Calculator'!$BP112,'Debt Avalanche Calculator'!$BS112,'Debt Avalanche Calculator'!$BV112,'Debt Avalanche Calculator'!$BY112,'Debt Avalanche Calculator'!$CB112,'Debt Avalanche Calculator'!$CE112,'Debt Avalanche Calculator'!$CH112,'Debt Avalanche Calculator'!$CK112,'Debt Avalanche Calculator'!$CN112,'Debt Avalanche Calculator'!$CQ112,'Debt Avalanche Calculator'!$CT112) -> 0 | L114: 95
I115: 96 | J115: =SUM('Debt Snowball Calculator'!E113,'Debt Snowball Calculator'!H113,'Debt Snowball Calculator'!K113,'Debt Snowball Calculator'!N113,'Debt Snowball Calculator'!Q113,'Debt Snowball Calculator'!T113,'Debt Snowball Calculator'!W113,'Debt Snowball Calculator'!Z113,'Debt Snowball Calculator'!AC113,'Debt Snowball Calculator'!AF113,'Debt Snowball Calculator'!AI113,'Debt Snowball Calculator'!AL113,'Debt Snowball Calculator'!AO113,'Debt Snowball Calculator'!AR113,'Debt Snowball Calculator'!AU113,'Debt Snowball Calculator'!AX113,'Debt Snowball Calculator'!BA113,'Debt Snowball Calculator'!BD113,'Debt Snowball Calculator'!BG113,'Debt Snowball Calculator'!BJ113,'Debt Snowball Calculator'!BM113,'Debt Snowball Calculator'!BP113,'Debt Snowball Calculator'!BS113,'Debt Snowball Calculator'!BV113,'Debt Snowball Calculator'!BY113,'Debt Snowball Calculator'!CB113,'Debt Snowball Calculator'!CE113,'Debt Snowball Calculator'!CH113,'Debt Snowball Calculator'!CK113,'Debt Snowball Calculator'!CN113,'Debt Snowball Calculator'!CQ113,'Debt Snowball Calculator'!CT113) -> 0 | K115: =SUM('Debt Avalanche Calculator'!$E113,'Debt Avalanche Calculator'!$H113,'Debt Avalanche Calculator'!$K113,'Debt Avalanche Calculator'!$N113,'Debt Avalanche Calculator'!$Q113,'Debt Avalanche Calculator'!$T113,'Debt Avalanche Calculator'!$W113,'Debt Avalanche Calculator'!$Z113,'Debt Avalanche Calculator'!$AC113,'Debt Avalanche Calculator'!$AF113,'Debt Avalanche Calculator'!$AI113,'Debt Avalanche Calculator'!$AL113,'Debt Avalanche Calculator'!$AO113,'Debt Avalanche Calculator'!$AR113,'Debt Avalanche Calculator'!$AU113,'Debt Avalanche Calculator'!$AX113,'Debt Avalanche Calculator'!$BA113,'Debt Avalanche Calculator'!$BD113,'Debt Avalanche Calculator'!$BG113,'Debt Avalanche Calculator'!$BJ113,'Debt Avalanche Calculator'!$BM113,'Debt Avalanche Calculator'!$BP113,'Debt Avalanche Calculator'!$BS113,'Debt Avalanche Calculator'!$BV113,'Debt Avalanche Calculator'!$BY113,'Debt Avalanche Calculator'!$CB113,'Debt Avalanche Calculator'!$CE113,'Debt Avalanche Calculator'!$CH113,'Debt Avalanche Calculator'!$CK113,'Debt Avalanche Calculator'!$CN113,'Debt Avalanche Calculator'!$CQ113,'Debt Avalanche Calculator'!$CT113) -> 0 | L115: 96
I116: 97 | J116: =SUM('Debt Snowball Calculator'!E114,'Debt Snowball Calculator'!H114,'Debt Snowball Calculator'!K114,'Debt Snowball Calculator'!N114,'Debt Snowball Calculator'!Q114,'Debt Snowball Calculator'!T114,'Debt Snowball Calculator'!W114,'Debt Snowball Calculator'!Z114,'Debt Snowball Calculator'!AC114,'Debt Snowball Calculator'!AF114,'Debt Snowball Calculator'!AI114,'Debt Snowball Calculator'!AL114,'Debt Snowball Calculator'!AO114,'Debt Snowball Calculator'!AR114,'Debt Snowball Calculator'!AU114,'Debt Snowball Calculator'!AX114,'Debt Snowball Calculator'!BA114,'Debt Snowball Calculator'!BD114,'Debt Snowball Calculator'!BG114,'Debt Snowball Calculator'!BJ114,'Debt Snowball Calculator'!BM114,'Debt Snowball Calculator'!BP114,'Debt Snowball Calculator'!BS114,'Debt Snowball Calculator'!BV114,'Debt Snowball Calculator'!BY114,'Debt Snowball Calculator'!CB114,'Debt Snowball Calculator'!CE114,'Debt Snowball Calculator'!CH114,'Debt Snowball Calculator'!CK114,'Debt Snowball Calculator'!CN114,'Debt Snowball Calculator'!CQ114,'Debt Snowball Calculator'!CT114) -> 0 | K116: =SUM('Debt Avalanche Calculator'!$E114,'Debt Avalanche Calculator'!$H114,'Debt Avalanche Calculator'!$K114,'Debt Avalanche Calculator'!$N114,'Debt Avalanche Calculator'!$Q114,'Debt Avalanche Calculator'!$T114,'Debt Avalanche Calculator'!$W114,'Debt Avalanche Calculator'!$Z114,'Debt Avalanche Calculator'!$AC114,'Debt Avalanche Calculator'!$AF114,'Debt Avalanche Calculator'!$AI114,'Debt Avalanche Calculator'!$AL114,'Debt Avalanche Calculator'!$AO114,'Debt Avalanche Calculator'!$AR114,'Debt Avalanche Calculator'!$AU114,'Debt Avalanche Calculator'!$AX114,'Debt Avalanche Calculator'!$BA114,'Debt Avalanche Calculator'!$BD114,'Debt Avalanche Calculator'!$BG114,'Debt Avalanche Calculator'!$BJ114,'Debt Avalanche Calculator'!$BM114,'Debt Avalanche Calculator'!$BP114,'Debt Avalanche Calculator'!$BS114,'Debt Avalanche Calculator'!$BV114,'Debt Avalanche Calculator'!$BY114,'Debt Avalanche Calculator'!$CB114,'Debt Avalanche Calculator'!$CE114,'Debt Avalanche Calculator'!$CH114,'Debt Avalanche Calculator'!$CK114,'Debt Avalanche Calculator'!$CN114,'Debt Avalanche Calculator'!$CQ114,'Debt Avalanche Calculator'!$CT114) -> 0 | L116: 97
I117: 98 | J117: =SUM('Debt Snowball Calculator'!E115,'Debt Snowball Calculator'!H115,'Debt Snowball Calculator'!K115,'Debt Snowball Calculator'!N115,'Debt Snowball Calculator'!Q115,'Debt Snowball Calculator'!T115,'Debt Snowball Calculator'!W115,'Debt Snowball Calculator'!Z115,'Debt Snowball Calculator'!AC115,'Debt Snowball Calculator'!AF115,'Debt Snowball Calculator'!AI115,'Debt Snowball Calculator'!AL115,'Debt Snowball Calculator'!AO115,'Debt Snowball Calculator'!AR115,'Debt Snowball Calculator'!AU115,'Debt Snowball Calculator'!AX115,'Debt Snowball Calculator'!BA115,'Debt Snowball Calculator'!BD115,'Debt Snowball Calculator'!BG115,'Debt Snowball Calculator'!BJ115,'Debt Snowball Calculator'!BM115,'Debt Snowball Calculator'!BP115,'Debt Snowball Calculator'!BS115,'Debt Snowball Calculator'!BV115,'Debt Snowball Calculator'!BY115,'Debt Snowball Calculator'!CB115,'Debt Snowball Calculator'!CE115,'Debt Snowball Calculator'!CH115,'Debt Snowball Calculator'!CK115,'Debt Snowball Calculator'!CN115,'Debt Snowball Calculator'!CQ115,'Debt Snowball Calculator'!CT115) -> 0 | K117: =SUM('Debt Avalanche Calculator'!$E115,'Debt Avalanche Calculator'!$H115,'Debt Avalanche Calculator'!$K115,'Debt Avalanche Calculator'!$N115,'Debt Avalanche Calculator'!$Q115,'Debt Avalanche Calculator'!$T115,'Debt Avalanche Calculator'!$W115,'Debt Avalanche Calculator'!$Z115,'Debt Avalanche Calculator'!$AC115,'Debt Avalanche Calculator'!$AF115,'Debt Avalanche Calculator'!$AI115,'Debt Avalanche Calculator'!$AL115,'Debt Avalanche Calculator'!$AO115,'Debt Avalanche Calculator'!$AR115,'Debt Avalanche Calculator'!$AU115,'Debt Avalanche Calculator'!$AX115,'Debt Avalanche Calculator'!$BA115,'Debt Avalanche Calculator'!$BD115,'Debt Avalanche Calculator'!$BG115,'Debt Avalanche Calculator'!$BJ115,'Debt Avalanche Calculator'!$BM115,'Debt Avalanche Calculator'!$BP115,'Debt Avalanche Calculator'!$BS115,'Debt Avalanche Calculator'!$BV115,'Debt Avalanche Calculator'!$BY115,'Debt Avalanche Calculator'!$CB115,'Debt Avalanche Calculator'!$CE115,'Debt Avalanche Calculator'!$CH115,'Debt Avalanche Calculator'!$CK115,'Debt Avalanche Calculator'!$CN115,'Debt Avalanche Calculator'!$CQ115,'Debt Avalanche Calculator'!$CT115) -> 0 | L117: 98
I118: 99 | J118: =SUM('Debt Snowball Calculator'!E116,'Debt Snowball Calculator'!H116,'Debt Snowball Calculator'!K116,'Debt Snowball Calculator'!N116,'Debt Snowball Calculator'!Q116,'Debt Snowball Calculator'!T116,'Debt Snowball Calculator'!W116,'Debt Snowball Calculator'!Z116,'Debt Snowball Calculator'!AC116,'Debt Snowball Calculator'!AF116,'Debt Snowball Calculator'!AI116,'Debt Snowball Calculator'!AL116,'Debt Snowball Calculator'!AO116,'Debt Snowball Calculator'!AR116,'Debt Snowball Calculator'!AU116,'Debt Snowball Calculator'!AX116,'Debt Snowball Calculator'!BA116,'Debt Snowball Calculator'!BD116,'Debt Snowball Calculator'!BG116,'Debt Snowball Calculator'!BJ116,'Debt Snowball Calculator'!BM116,'Debt Snowball Calculator'!BP116,'Debt Snowball Calculator'!BS116,'Debt Snowball Calculator'!BV116,'Debt Snowball Calculator'!BY116,'Debt Snowball Calculator'!CB116,'Debt Snowball Calculator'!CE116,'Debt Snowball Calculator'!CH116,'Debt Snowball Calculator'!CK116,'Debt Snowball Calculator'!CN116,'Debt Snowball Calculator'!CQ116,'Debt Snowball Calculator'!CT116) -> 0 | K118: =SUM('Debt Avalanche Calculator'!$E116,'Debt Avalanche Calculator'!$H116,'Debt Avalanche Calculator'!$K116,'Debt Avalanche Calculator'!$N116,'Debt Avalanche Calculator'!$Q116,'Debt Avalanche Calculator'!$T116,'Debt Avalanche Calculator'!$W116,'Debt Avalanche Calculator'!$Z116,'Debt Avalanche Calculator'!$AC116,'Debt Avalanche Calculator'!$AF116,'Debt Avalanche Calculator'!$AI116,'Debt Avalanche Calculator'!$AL116,'Debt Avalanche Calculator'!$AO116,'Debt Avalanche Calculator'!$AR116,'Debt Avalanche Calculator'!$AU116,'Debt Avalanche Calculator'!$AX116,'Debt Avalanche Calculator'!$BA116,'Debt Avalanche Calculator'!$BD116,'Debt Avalanche Calculator'!$BG116,'Debt Avalanche Calculator'!$BJ116,'Debt Avalanche Calculator'!$BM116,'Debt Avalanche Calculator'!$BP116,'Debt Avalanche Calculator'!$BS116,'Debt Avalanche Calculator'!$BV116,'Debt Avalanche Calculator'!$BY116,'Debt Avalanche Calculator'!$CB116,'Debt Avalanche Calculator'!$CE116,'Debt Avalanche Calculator'!$CH116,'Debt Avalanche Calculator'!$CK116,'Debt Avalanche Calculator'!$CN116,'Debt Avalanche Calculator'!$CQ116,'Debt Avalanche Calculator'!$CT116) -> 0 | L118: 99
I119: 100 | J119: =SUM('Debt Snowball Calculator'!E117,'Debt Snowball Calculator'!H117,'Debt Snowball Calculator'!K117,'Debt Snowball Calculator'!N117,'Debt Snowball Calculator'!Q117,'Debt Snowball Calculator'!T117,'Debt Snowball Calculator'!W117,'Debt Snowball Calculator'!Z117,'Debt Snowball Calculator'!AC117,'Debt Snowball Calculator'!AF117,'Debt Snowball Calculator'!AI117,'Debt Snowball Calculator'!AL117,'Debt Snowball Calculator'!AO117,'Debt Snowball Calculator'!AR117,'Debt Snowball Calculator'!AU117,'Debt Snowball Calculator'!AX117,'Debt Snowball Calculator'!BA117,'Debt Snowball Calculator'!BD117,'Debt Snowball Calculator'!BG117,'Debt Snowball Calculator'!BJ117,'Debt Snowball Calculator'!BM117,'Debt Snowball Calculator'!BP117,'Debt Snowball Calculator'!BS117,'Debt Snowball Calculator'!BV117,'Debt Snowball Calculator'!BY117,'Debt Snowball Calculator'!CB117,'Debt Snowball Calculator'!CE117,'Debt Snowball Calculator'!CH117,'Debt Snowball Calculator'!CK117,'Debt Snowball Calculator'!CN117,'Debt Snowball Calculator'!CQ117,'Debt Snowball Calculator'!CT117) -> 0 | K119: =SUM('Debt Avalanche Calculator'!$E117,'Debt Avalanche Calculator'!$H117,'Debt Avalanche Calculator'!$K117,'Debt Avalanche Calculator'!$N117,'Debt Avalanche Calculator'!$Q117,'Debt Avalanche Calculator'!$T117,'Debt Avalanche Calculator'!$W117,'Debt Avalanche Calculator'!$Z117,'Debt Avalanche Calculator'!$AC117,'Debt Avalanche Calculator'!$AF117,'Debt Avalanche Calculator'!$AI117,'Debt Avalanche Calculator'!$AL117,'Debt Avalanche Calculator'!$AO117,'Debt Avalanche Calculator'!$AR117,'Debt Avalanche Calculator'!$AU117,'Debt Avalanche Calculator'!$AX117,'Debt Avalanche Calculator'!$BA117,'Debt Avalanche Calculator'!$BD117,'Debt Avalanche Calculator'!$BG117,'Debt Avalanche Calculator'!$BJ117,'Debt Avalanche Calculator'!$BM117,'Debt Avalanche Calculator'!$BP117,'Debt Avalanche Calculator'!$BS117,'Debt Avalanche Calculator'!$BV117,'Debt Avalanche Calculator'!$BY117,'Debt Avalanche Calculator'!$CB117,'Debt Avalanche Calculator'!$CE117,'Debt Avalanche Calculator'!$CH117,'Debt Avalanche Calculator'!$CK117,'Debt Avalanche Calculator'!$CN117,'Debt Avalanche Calculator'!$CQ117,'Debt Avalanche Calculator'!$CT117) -> 0 | L119: 100
I120: 101 | J120: =SUM('Debt Snowball Calculator'!E118,'Debt Snowball Calculator'!H118,'Debt Snowball Calculator'!K118,'Debt Snowball Calculator'!N118,'Debt Snowball Calculator'!Q118,'Debt Snowball Calculator'!T118,'Debt Snowball Calculator'!W118,'Debt Snowball Calculator'!Z118,'Debt Snowball Calculator'!AC118,'Debt Snowball Calculator'!AF118,'Debt Snowball Calculator'!AI118,'Debt Snowball Calculator'!AL118,'Debt Snowball Calculator'!AO118,'Debt Snowball Calculator'!AR118,'Debt Snowball Calculator'!AU118,'Debt Snowball Calculator'!AX118,'Debt Snowball Calculator'!BA118,'Debt Snowball Calculator'!BD118,'Debt Snowball Calculator'!BG118,'Debt Snowball Calculator'!BJ118,'Debt Snowball Calculator'!BM118,'Debt Snowball Calculator'!BP118,'Debt Snowball Calculator'!BS118,'Debt Snowball Calculator'!BV118,'Debt Snowball Calculator'!BY118,'Debt Snowball Calculator'!CB118,'Debt Snowball Calculator'!CE118,'Debt Snowball Calculator'!CH118,'Debt Snowball Calculator'!CK118,'Debt Snowball Calculator'!CN118,'Debt Snowball Calculator'!CQ118,'Debt Snowball Calculator'!CT118) -> 0 | K120: =SUM('Debt Avalanche Calculator'!$E118,'Debt Avalanche Calculator'!$H118,'Debt Avalanche Calculator'!$K118,'Debt Avalanche Calculator'!$N118,'Debt Avalanche Calculator'!$Q118,'Debt Avalanche Calculator'!$T118,'Debt Avalanche Calculator'!$W118,'Debt Avalanche Calculator'!$Z118,'Debt Avalanche Calculator'!$AC118,'Debt Avalanche Calculator'!$AF118,'Debt Avalanche Calculator'!$AI118,'Debt Avalanche Calculator'!$AL118,'Debt Avalanche Calculator'!$AO118,'Debt Avalanche Calculator'!$AR118,'Debt Avalanche Calculator'!$AU118,'Debt Avalanche Calculator'!$AX118,'Debt Avalanche Calculator'!$BA118,'Debt Avalanche Calculator'!$BD118,'Debt Avalanche Calculator'!$BG118,'Debt Avalanche Calculator'!$BJ118,'Debt Avalanche Calculator'!$BM118,'Debt Avalanche Calculator'!$BP118,'Debt Avalanche Calculator'!$BS118,'Debt Avalanche Calculator'!$BV118,'Debt Avalanche Calculator'!$BY118,'Debt Avalanche Calculator'!$CB118,'Debt Avalanche Calculator'!$CE118,'Debt Avalanche Calculator'!$CH118,'Debt Avalanche Calculator'!$CK118,'Debt Avalanche Calculator'!$CN118,'Debt Avalanche Calculator'!$CQ118,'Debt Avalanche Calculator'!$CT118) -> 0 | L120: 101
I121: 102 | J121: =SUM('Debt Snowball Calculator'!E119,'Debt Snowball Calculator'!H119,'Debt Snowball Calculator'!K119,'Debt Snowball Calculator'!N119,'Debt Snowball Calculator'!Q119,'Debt Snowball Calculator'!T119,'Debt Snowball Calculator'!W119,'Debt Snowball Calculator'!Z119,'Debt Snowball Calculator'!AC119,'Debt Snowball Calculator'!AF119,'Debt Snowball Calculator'!AI119,'Debt Snowball Calculator'!AL119,'Debt Snowball Calculator'!AO119,'Debt Snowball Calculator'!AR119,'Debt Snowball Calculator'!AU119,'Debt Snowball Calculator'!AX119,'Debt Snowball Calculator'!BA119,'Debt Snowball Calculator'!BD119,'Debt Snowball Calculator'!BG119,'Debt Snowball Calculator'!BJ119,'Debt Snowball Calculator'!BM119,'Debt Snowball Calculator'!BP119,'Debt Snowball Calculator'!BS119,'Debt Snowball Calculator'!BV119,'Debt Snowball Calculator'!BY119,'Debt Snowball Calculator'!CB119,'Debt Snowball Calculator'!CE119,'Debt Snowball Calculator'!CH119,'Debt Snowball Calculator'!CK119,'Debt Snowball Calculator'!CN119,'Debt Snowball Calculator'!CQ119,'Debt Snowball Calculator'!CT119) -> 0 | K121: =SUM('Debt Avalanche Calculator'!$E119,'Debt Avalanche Calculator'!$H119,'Debt Avalanche Calculator'!$K119,'Debt Avalanche Calculator'!$N119,'Debt Avalanche Calculator'!$Q119,'Debt Avalanche Calculator'!$T119,'Debt Avalanche Calculator'!$W119,'Debt Avalanche Calculator'!$Z119,'Debt Avalanche Calculator'!$AC119,'Debt Avalanche Calculator'!$AF119,'Debt Avalanche Calculator'!$AI119,'Debt Avalanche Calculator'!$AL119,'Debt Avalanche Calculator'!$AO119,'Debt Avalanche Calculator'!$AR119,'Debt Avalanche Calculator'!$AU119,'Debt Avalanche Calculator'!$AX119,'Debt Avalanche Calculator'!$BA119,'Debt Avalanche Calculator'!$BD119,'Debt Avalanche Calculator'!$BG119,'Debt Avalanche Calculator'!$BJ119,'Debt Avalanche Calculator'!$BM119,'Debt Avalanche Calculator'!$BP119,'Debt Avalanche Calculator'!$BS119,'Debt Avalanche Calculator'!$BV119,'Debt Avalanche Calculator'!$BY119,'Debt Avalanche Calculator'!$CB119,'Debt Avalanche Calculator'!$CE119,'Debt Avalanche Calculator'!$CH119,'Debt Avalanche Calculator'!$CK119,'Debt Avalanche Calculator'!$CN119,'Debt Avalanche Calculator'!$CQ119,'Debt Avalanche Calculator'!$CT119) -> 0 | L121: 102
I122: 103 | J122: =SUM('Debt Snowball Calculator'!E120,'Debt Snowball Calculator'!H120,'Debt Snowball Calculator'!K120,'Debt Snowball Calculator'!N120,'Debt Snowball Calculator'!Q120,'Debt Snowball Calculator'!T120,'Debt Snowball Calculator'!W120,'Debt Snowball Calculator'!Z120,'Debt Snowball Calculator'!AC120,'Debt Snowball Calculator'!AF120,'Debt Snowball Calculator'!AI120,'Debt Snowball Calculator'!AL120,'Debt Snowball Calculator'!AO120,'Debt Snowball Calculator'!AR120,'Debt Snowball Calculator'!AU120,'Debt Snowball Calculator'!AX120,'Debt Snowball Calculator'!BA120,'Debt Snowball Calculator'!BD120,'Debt Snowball Calculator'!BG120,'Debt Snowball Calculator'!BJ120,'Debt Snowball Calculator'!BM120,'Debt Snowball Calculator'!BP120,'Debt Snowball Calculator'!BS120,'Debt Snowball Calculator'!BV120,'Debt Snowball Calculator'!BY120,'Debt Snowball Calculator'!CB120,'Debt Snowball Calculator'!CE120,'Debt Snowball Calculator'!CH120,'Debt Snowball Calculator'!CK120,'Debt Snowball Calculator'!CN120,'Debt Snowball Calculator'!CQ120,'Debt Snowball Calculator'!CT120) -> 0 | K122: =SUM('Debt Avalanche Calculator'!$E120,'Debt Avalanche Calculator'!$H120,'Debt Avalanche Calculator'!$K120,'Debt Avalanche Calculator'!$N120,'Debt Avalanche Calculator'!$Q120,'Debt Avalanche Calculator'!$T120,'Debt Avalanche Calculator'!$W120,'Debt Avalanche Calculator'!$Z120,'Debt Avalanche Calculator'!$AC120,'Debt Avalanche Calculator'!$AF120,'Debt Avalanche Calculator'!$AI120,'Debt Avalanche Calculator'!$AL120,'Debt Avalanche Calculator'!$AO120,'Debt Avalanche Calculator'!$AR120,'Debt Avalanche Calculator'!$AU120,'Debt Avalanche Calculator'!$AX120,'Debt Avalanche Calculator'!$BA120,'Debt Avalanche Calculator'!$BD120,'Debt Avalanche Calculator'!$BG120,'Debt Avalanche Calculator'!$BJ120,'Debt Avalanche Calculator'!$BM120,'Debt Avalanche Calculator'!$BP120,'Debt Avalanche Calculator'!$BS120,'Debt Avalanche Calculator'!$BV120,'Debt Avalanche Calculator'!$BY120,'Debt Avalanche Calculator'!$CB120,'Debt Avalanche Calculator'!$CE120,'Debt Avalanche Calculator'!$CH120,'Debt Avalanche Calculator'!$CK120,'Debt Avalanche Calculator'!$CN120,'Debt Avalanche Calculator'!$CQ120,'Debt Avalanche Calculator'!$CT120) -> 0 | L122: 103
I123: 104 | J123: =SUM('Debt Snowball Calculator'!E121,'Debt Snowball Calculator'!H121,'Debt Snowball Calculator'!K121,'Debt Snowball Calculator'!N121,'Debt Snowball Calculator'!Q121,'Debt Snowball Calculator'!T121,'Debt Snowball Calculator'!W121,'Debt Snowball Calculator'!Z121,'Debt Snowball Calculator'!AC121,'Debt Snowball Calculator'!AF121,'Debt Snowball Calculator'!AI121,'Debt Snowball Calculator'!AL121,'Debt Snowball Calculator'!AO121,'Debt Snowball Calculator'!AR121,'Debt Snowball Calculator'!AU121,'Debt Snowball Calculator'!AX121,'Debt Snowball Calculator'!BA121,'Debt Snowball Calculator'!BD121,'Debt Snowball Calculator'!BG121,'Debt Snowball Calculator'!BJ121,'Debt Snowball Calculator'!BM121,'Debt Snowball Calculator'!BP121,'Debt Snowball Calculator'!BS121,'Debt Snowball Calculator'!BV121,'Debt Snowball Calculator'!BY121,'Debt Snowball Calculator'!CB121,'Debt Snowball Calculator'!CE121,'Debt Snowball Calculator'!CH121,'Debt Snowball Calculator'!CK121,'Debt Snowball Calculator'!CN121,'Debt Snowball Calculator'!CQ121,'Debt Snowball Calculator'!CT121) -> 0 | K123: =SUM('Debt Avalanche Calculator'!$E121,'Debt Avalanche Calculator'!$H121,'Debt Avalanche Calculator'!$K121,'Debt Avalanche Calculator'!$N121,'Debt Avalanche Calculator'!$Q121,'Debt Avalanche Calculator'!$T121,'Debt Avalanche Calculator'!$W121,'Debt Avalanche Calculator'!$Z121,'Debt Avalanche Calculator'!$AC121,'Debt Avalanche Calculator'!$AF121,'Debt Avalanche Calculator'!$AI121,'Debt Avalanche Calculator'!$AL121,'Debt Avalanche Calculator'!$AO121,'Debt Avalanche Calculator'!$AR121,'Debt Avalanche Calculator'!$AU121,'Debt Avalanche Calculator'!$AX121,'Debt Avalanche Calculator'!$BA121,'Debt Avalanche Calculator'!$BD121,'Debt Avalanche Calculator'!$BG121,'Debt Avalanche Calculator'!$BJ121,'Debt Avalanche Calculator'!$BM121,'Debt Avalanche Calculator'!$BP121,'Debt Avalanche Calculator'!$BS121,'Debt Avalanche Calculator'!$BV121,'Debt Avalanche Calculator'!$BY121,'Debt Avalanche Calculator'!$CB121,'Debt Avalanche Calculator'!$CE121,'Debt Avalanche Calculator'!$CH121,'Debt Avalanche Calculator'!$CK121,'Debt Avalanche Calculator'!$CN121,'Debt Avalanche Calculator'!$CQ121,'Debt Avalanche Calculator'!$CT121) -> 0 | L123: 104
I124: 105 | J124: =SUM('Debt Snowball Calculator'!E122,'Debt Snowball Calculator'!H122,'Debt Snowball Calculator'!K122,'Debt Snowball Calculator'!N122,'Debt Snowball Calculator'!Q122,'Debt Snowball Calculator'!T122,'Debt Snowball Calculator'!W122,'Debt Snowball Calculator'!Z122,'Debt Snowball Calculator'!AC122,'Debt Snowball Calculator'!AF122,'Debt Snowball Calculator'!AI122,'Debt Snowball Calculator'!AL122,'Debt Snowball Calculator'!AO122,'Debt Snowball Calculator'!AR122,'Debt Snowball Calculator'!AU122,'Debt Snowball Calculator'!AX122,'Debt Snowball Calculator'!BA122,'Debt Snowball Calculator'!BD122,'Debt Snowball Calculator'!BG122,'Debt Snowball Calculator'!BJ122,'Debt Snowball Calculator'!BM122,'Debt Snowball Calculator'!BP122,'Debt Snowball Calculator'!BS122,'Debt Snowball Calculator'!BV122,'Debt Snowball Calculator'!BY122,'Debt Snowball Calculator'!CB122,'Debt Snowball Calculator'!CE122,'Debt Snowball Calculator'!CH122,'Debt Snowball Calculator'!CK122,'Debt Snowball Calculator'!CN122,'Debt Snowball Calculator'!CQ122,'Debt Snowball Calculator'!CT122) -> 0 | K124: =SUM('Debt Avalanche Calculator'!$E122,'Debt Avalanche Calculator'!$H122,'Debt Avalanche Calculator'!$K122,'Debt Avalanche Calculator'!$N122,'Debt Avalanche Calculator'!$Q122,'Debt Avalanche Calculator'!$T122,'Debt Avalanche Calculator'!$W122,'Debt Avalanche Calculator'!$Z122,'Debt Avalanche Calculator'!$AC122,'Debt Avalanche Calculator'!$AF122,'Debt Avalanche Calculator'!$AI122,'Debt Avalanche Calculator'!$AL122,'Debt Avalanche Calculator'!$AO122,'Debt Avalanche Calculator'!$AR122,'Debt Avalanche Calculator'!$AU122,'Debt Avalanche Calculator'!$AX122,'Debt Avalanche Calculator'!$BA122,'Debt Avalanche Calculator'!$BD122,'Debt Avalanche Calculator'!$BG122,'Debt Avalanche Calculator'!$BJ122,'Debt Avalanche Calculator'!$BM122,'Debt Avalanche Calculator'!$BP122,'Debt Avalanche Calculator'!$BS122,'Debt Avalanche Calculator'!$BV122,'Debt Avalanche Calculator'!$BY122,'Debt Avalanche Calculator'!$CB122,'Debt Avalanche Calculator'!$CE122,'Debt Avalanche Calculator'!$CH122,'Debt Avalanche Calculator'!$CK122,'Debt Avalanche Calculator'!$CN122,'Debt Avalanche Calculator'!$CQ122,'Debt Avalanche Calculator'!$CT122) -> 0 | L124: 105
I125: 106 | J125: =SUM('Debt Snowball Calculator'!E123,'Debt Snowball Calculator'!H123,'Debt Snowball Calculator'!K123,'Debt Snowball Calculator'!N123,'Debt Snowball Calculator'!Q123,'Debt Snowball Calculator'!T123,'Debt Snowball Calculator'!W123,'Debt Snowball Calculator'!Z123,'Debt Snowball Calculator'!AC123,'Debt Snowball Calculator'!AF123,'Debt Snowball Calculator'!AI123,'Debt Snowball Calculator'!AL123,'Debt Snowball Calculator'!AO123,'Debt Snowball Calculator'!AR123,'Debt Snowball Calculator'!AU123,'Debt Snowball Calculator'!AX123,'Debt Snowball Calculator'!BA123,'Debt Snowball Calculator'!BD123,'Debt Snowball Calculator'!BG123,'Debt Snowball Calculator'!BJ123,'Debt Snowball Calculator'!BM123,'Debt Snowball Calculator'!BP123,'Debt Snowball Calculator'!BS123,'Debt Snowball Calculator'!BV123,'Debt Snowball Calculator'!BY123,'Debt Snowball Calculator'!CB123,'Debt Snowball Calculator'!CE123,'Debt Snowball Calculator'!CH123,'Debt Snowball Calculator'!CK123,'Debt Snowball Calculator'!CN123,'Debt Snowball Calculator'!CQ123,'Debt Snowball Calculator'!CT123) -> 0 | K125: =SUM('Debt Avalanche Calculator'!$E123,'Debt Avalanche Calculator'!$H123,'Debt Avalanche Calculator'!$K123,'Debt Avalanche Calculator'!$N123,'Debt Avalanche Calculator'!$Q123,'Debt Avalanche Calculator'!$T123,'Debt Avalanche Calculator'!$W123,'Debt Avalanche Calculator'!$Z123,'Debt Avalanche Calculator'!$AC123,'Debt Avalanche Calculator'!$AF123,'Debt Avalanche Calculator'!$AI123,'Debt Avalanche Calculator'!$AL123,'Debt Avalanche Calculator'!$AO123,'Debt Avalanche Calculator'!$AR123,'Debt Avalanche Calculator'!$AU123,'Debt Avalanche Calculator'!$AX123,'Debt Avalanche Calculator'!$BA123,'Debt Avalanche Calculator'!$BD123,'Debt Avalanche Calculator'!$BG123,'Debt Avalanche Calculator'!$BJ123,'Debt Avalanche Calculator'!$BM123,'Debt Avalanche Calculator'!$BP123,'Debt Avalanche Calculator'!$BS123,'Debt Avalanche Calculator'!$BV123,'Debt Avalanche Calculator'!$BY123,'Debt Avalanche Calculator'!$CB123,'Debt Avalanche Calculator'!$CE123,'Debt Avalanche Calculator'!$CH123,'Debt Avalanche Calculator'!$CK123,'Debt Avalanche Calculator'!$CN123,'Debt Avalanche Calculator'!$CQ123,'Debt Avalanche Calculator'!$CT123) -> 0 | L125: 106
I126: 107 | J126: =SUM('Debt Snowball Calculator'!E124,'Debt Snowball Calculator'!H124,'Debt Snowball Calculator'!K124,'Debt Snowball Calculator'!N124,'Debt Snowball Calculator'!Q124,'Debt Snowball Calculator'!T124,'Debt Snowball Calculator'!W124,'Debt Snowball Calculator'!Z124,'Debt Snowball Calculator'!AC124,'Debt Snowball Calculator'!AF124,'Debt Snowball Calculator'!AI124,'Debt Snowball Calculator'!AL124,'Debt Snowball Calculator'!AO124,'Debt Snowball Calculator'!AR124,'Debt Snowball Calculator'!AU124,'Debt Snowball Calculator'!AX124,'Debt Snowball Calculator'!BA124,'Debt Snowball Calculator'!BD124,'Debt Snowball Calculator'!BG124,'Debt Snowball Calculator'!BJ124,'Debt Snowball Calculator'!BM124,'Debt Snowball Calculator'!BP124,'Debt Snowball Calculator'!BS124,'Debt Snowball Calculator'!BV124,'Debt Snowball Calculator'!BY124,'Debt Snowball Calculator'!CB124,'Debt Snowball Calculator'!CE124,'Debt Snowball Calculator'!CH124,'Debt Snowball Calculator'!CK124,'Debt Snowball Calculator'!CN124,'Debt Snowball Calculator'!CQ124,'Debt Snowball Calculator'!CT124) -> 0 | K126: =SUM('Debt Avalanche Calculator'!$E124,'Debt Avalanche Calculator'!$H124,'Debt Avalanche Calculator'!$K124,'Debt Avalanche Calculator'!$N124,'Debt Avalanche Calculator'!$Q124,'Debt Avalanche Calculator'!$T124,'Debt Avalanche Calculator'!$W124,'Debt Avalanche Calculator'!$Z124,'Debt Avalanche Calculator'!$AC124,'Debt Avalanche Calculator'!$AF124,'Debt Avalanche Calculator'!$AI124,'Debt Avalanche Calculator'!$AL124,'Debt Avalanche Calculator'!$AO124,'Debt Avalanche Calculator'!$AR124,'Debt Avalanche Calculator'!$AU124,'Debt Avalanche Calculator'!$AX124,'Debt Avalanche Calculator'!$BA124,'Debt Avalanche Calculator'!$BD124,'Debt Avalanche Calculator'!$BG124,'Debt Avalanche Calculator'!$BJ124,'Debt Avalanche Calculator'!$BM124,'Debt Avalanche Calculator'!$BP124,'Debt Avalanche Calculator'!$BS124,'Debt Avalanche Calculator'!$BV124,'Debt Avalanche Calculator'!$BY124,'Debt Avalanche Calculator'!$CB124,'Debt Avalanche Calculator'!$CE124,'Debt Avalanche Calculator'!$CH124,'Debt Avalanche Calculator'!$CK124,'Debt Avalanche Calculator'!$CN124,'Debt Avalanche Calculator'!$CQ124,'Debt Avalanche Calculator'!$CT124) -> 0 | L126: 107
I127: 108 | J127: =SUM('Debt Snowball Calculator'!E125,'Debt Snowball Calculator'!H125,'Debt Snowball Calculator'!K125,'Debt Snowball Calculator'!N125,'Debt Snowball Calculator'!Q125,'Debt Snowball Calculator'!T125,'Debt Snowball Calculator'!W125,'Debt Snowball Calculator'!Z125,'Debt Snowball Calculator'!AC125,'Debt Snowball Calculator'!AF125,'Debt Snowball Calculator'!AI125,'Debt Snowball Calculator'!AL125,'Debt Snowball Calculator'!AO125,'Debt Snowball Calculator'!AR125,'Debt Snowball Calculator'!AU125,'Debt Snowball Calculator'!AX125,'Debt Snowball Calculator'!BA125,'Debt Snowball Calculator'!BD125,'Debt Snowball Calculator'!BG125,'Debt Snowball Calculator'!BJ125,'Debt Snowball Calculator'!BM125,'Debt Snowball Calculator'!BP125,'Debt Snowball Calculator'!BS125,'Debt Snowball Calculator'!BV125,'Debt Snowball Calculator'!BY125,'Debt Snowball Calculator'!CB125,'Debt Snowball Calculator'!CE125,'Debt Snowball Calculator'!CH125,'Debt Snowball Calculator'!CK125,'Debt Snowball Calculator'!CN125,'Debt Snowball Calculator'!CQ125,'Debt Snowball Calculator'!CT125) -> 0 | K127: =SUM('Debt Avalanche Calculator'!$E125,'Debt Avalanche Calculator'!$H125,'Debt Avalanche Calculator'!$K125,'Debt Avalanche Calculator'!$N125,'Debt Avalanche Calculator'!$Q125,'Debt Avalanche Calculator'!$T125,'Debt Avalanche Calculator'!$W125,'Debt Avalanche Calculator'!$Z125,'Debt Avalanche Calculator'!$AC125,'Debt Avalanche Calculator'!$AF125,'Debt Avalanche Calculator'!$AI125,'Debt Avalanche Calculator'!$AL125,'Debt Avalanche Calculator'!$AO125,'Debt Avalanche Calculator'!$AR125,'Debt Avalanche Calculator'!$AU125,'Debt Avalanche Calculator'!$AX125,'Debt Avalanche Calculator'!$BA125,'Debt Avalanche Calculator'!$BD125,'Debt Avalanche Calculator'!$BG125,'Debt Avalanche Calculator'!$BJ125,'Debt Avalanche Calculator'!$BM125,'Debt Avalanche Calculator'!$BP125,'Debt Avalanche Calculator'!$BS125,'Debt Avalanche Calculator'!$BV125,'Debt Avalanche Calculator'!$BY125,'Debt Avalanche Calculator'!$CB125,'Debt Avalanche Calculator'!$CE125,'Debt Avalanche Calculator'!$CH125,'Debt Avalanche Calculator'!$CK125,'Debt Avalanche Calculator'!$CN125,'Debt Avalanche Calculator'!$CQ125,'Debt Avalanche Calculator'!$CT125) -> 0 | L127: 108
I128: 109 | J128: =SUM('Debt Snowball Calculator'!E126,'Debt Snowball Calculator'!H126,'Debt Snowball Calculator'!K126,'Debt Snowball Calculator'!N126,'Debt Snowball Calculator'!Q126,'Debt Snowball Calculator'!T126,'Debt Snowball Calculator'!W126,'Debt Snowball Calculator'!Z126,'Debt Snowball Calculator'!AC126,'Debt Snowball Calculator'!AF126,'Debt Snowball Calculator'!AI126,'Debt Snowball Calculator'!AL126,'Debt Snowball Calculator'!AO126,'Debt Snowball Calculator'!AR126,'Debt Snowball Calculator'!AU126,'Debt Snowball Calculator'!AX126,'Debt Snowball Calculator'!BA126,'Debt Snowball Calculator'!BD126,'Debt Snowball Calculator'!BG126,'Debt Snowball Calculator'!BJ126,'Debt Snowball Calculator'!BM126,'Debt Snowball Calculator'!BP126,'Debt Snowball Calculator'!BS126,'Debt Snowball Calculator'!BV126,'Debt Snowball Calculator'!BY126,'Debt Snowball Calculator'!CB126,'Debt Snowball Calculator'!CE126,'Debt Snowball Calculator'!CH126,'Debt Snowball Calculator'!CK126,'Debt Snowball Calculator'!CN126,'Debt Snowball Calculator'!CQ126,'Debt Snowball Calculator'!CT126) -> 0 | K128: =SUM('Debt Avalanche Calculator'!$E126,'Debt Avalanche Calculator'!$H126,'Debt Avalanche Calculator'!$K126,'Debt Avalanche Calculator'!$N126,'Debt Avalanche Calculator'!$Q126,'Debt Avalanche Calculator'!$T126,'Debt Avalanche Calculator'!$W126,'Debt Avalanche Calculator'!$Z126,'Debt Avalanche Calculator'!$AC126,'Debt Avalanche Calculator'!$AF126,'Debt Avalanche Calculator'!$AI126,'Debt Avalanche Calculator'!$AL126,'Debt Avalanche Calculator'!$AO126,'Debt Avalanche Calculator'!$AR126,'Debt Avalanche Calculator'!$AU126,'Debt Avalanche Calculator'!$AX126,'Debt Avalanche Calculator'!$BA126,'Debt Avalanche Calculator'!$BD126,'Debt Avalanche Calculator'!$BG126,'Debt Avalanche Calculator'!$BJ126,'Debt Avalanche Calculator'!$BM126,'Debt Avalanche Calculator'!$BP126,'Debt Avalanche Calculator'!$BS126,'Debt Avalanche Calculator'!$BV126,'Debt Avalanche Calculator'!$BY126,'Debt Avalanche Calculator'!$CB126,'Debt Avalanche Calculator'!$CE126,'Debt Avalanche Calculator'!$CH126,'Debt Avalanche Calculator'!$CK126,'Debt Avalanche Calculator'!$CN126,'Debt Avalanche Calculator'!$CQ126,'Debt Avalanche Calculator'!$CT126) -> 0 | L128: 109
I129: 110 | J129: =SUM('Debt Snowball Calculator'!E127,'Debt Snowball Calculator'!H127,'Debt Snowball Calculator'!K127,'Debt Snowball Calculator'!N127,'Debt Snowball Calculator'!Q127,'Debt Snowball Calculator'!T127,'Debt Snowball Calculator'!W127,'Debt Snowball Calculator'!Z127,'Debt Snowball Calculator'!AC127,'Debt Snowball Calculator'!AF127,'Debt Snowball Calculator'!AI127,'Debt Snowball Calculator'!AL127,'Debt Snowball Calculator'!AO127,'Debt Snowball Calculator'!AR127,'Debt Snowball Calculator'!AU127,'Debt Snowball Calculator'!AX127,'Debt Snowball Calculator'!BA127,'Debt Snowball Calculator'!BD127,'Debt Snowball Calculator'!BG127,'Debt Snowball Calculator'!BJ127,'Debt Snowball Calculator'!BM127,'Debt Snowball Calculator'!BP127,'Debt Snowball Calculator'!BS127,'Debt Snowball Calculator'!BV127,'Debt Snowball Calculator'!BY127,'Debt Snowball Calculator'!CB127,'Debt Snowball Calculator'!CE127,'Debt Snowball Calculator'!CH127,'Debt Snowball Calculator'!CK127,'Debt Snowball Calculator'!CN127,'Debt Snowball Calculator'!CQ127,'Debt Snowball Calculator'!CT127) -> 0 | K129: =SUM('Debt Avalanche Calculator'!$E127,'Debt Avalanche Calculator'!$H127,'Debt Avalanche Calculator'!$K127,'Debt Avalanche Calculator'!$N127,'Debt Avalanche Calculator'!$Q127,'Debt Avalanche Calculator'!$T127,'Debt Avalanche Calculator'!$W127,'Debt Avalanche Calculator'!$Z127,'Debt Avalanche Calculator'!$AC127,'Debt Avalanche Calculator'!$AF127,'Debt Avalanche Calculator'!$AI127,'Debt Avalanche Calculator'!$AL127,'Debt Avalanche Calculator'!$AO127,'Debt Avalanche Calculator'!$AR127,'Debt Avalanche Calculator'!$AU127,'Debt Avalanche Calculator'!$AX127,'Debt Avalanche Calculator'!$BA127,'Debt Avalanche Calculator'!$BD127,'Debt Avalanche Calculator'!$BG127,'Debt Avalanche Calculator'!$BJ127,'Debt Avalanche Calculator'!$BM127,'Debt Avalanche Calculator'!$BP127,'Debt Avalanche Calculator'!$BS127,'Debt Avalanche Calculator'!$BV127,'Debt Avalanche Calculator'!$BY127,'Debt Avalanche Calculator'!$CB127,'Debt Avalanche Calculator'!$CE127,'Debt Avalanche Calculator'!$CH127,'Debt Avalanche Calculator'!$CK127,'Debt Avalanche Calculator'!$CN127,'Debt Avalanche Calculator'!$CQ127,'Debt Avalanche Calculator'!$CT127) -> 0 | L129: 110
I130: 111 | J130: =SUM('Debt Snowball Calculator'!E128,'Debt Snowball Calculator'!H128,'Debt Snowball Calculator'!K128,'Debt Snowball Calculator'!N128,'Debt Snowball Calculator'!Q128,'Debt Snowball Calculator'!T128,'Debt Snowball Calculator'!W128,'Debt Snowball Calculator'!Z128,'Debt Snowball Calculator'!AC128,'Debt Snowball Calculator'!AF128,'Debt Snowball Calculator'!AI128,'Debt Snowball Calculator'!AL128,'Debt Snowball Calculator'!AO128,'Debt Snowball Calculator'!AR128,'Debt Snowball Calculator'!AU128,'Debt Snowball Calculator'!AX128,'Debt Snowball Calculator'!BA128,'Debt Snowball Calculator'!BD128,'Debt Snowball Calculator'!BG128,'Debt Snowball Calculator'!BJ128,'Debt Snowball Calculator'!BM128,'Debt Snowball Calculator'!BP128,'Debt Snowball Calculator'!BS128,'Debt Snowball Calculator'!BV128,'Debt Snowball Calculator'!BY128,'Debt Snowball Calculator'!CB128,'Debt Snowball Calculator'!CE128,'Debt Snowball Calculator'!CH128,'Debt Snowball Calculator'!CK128,'Debt Snowball Calculator'!CN128,'Debt Snowball Calculator'!CQ128,'Debt Snowball Calculator'!CT128) -> 0 | K130: =SUM('Debt Avalanche Calculator'!$E128,'Debt Avalanche Calculator'!$H128,'Debt Avalanche Calculator'!$K128,'Debt Avalanche Calculator'!$N128,'Debt Avalanche Calculator'!$Q128,'Debt Avalanche Calculator'!$T128,'Debt Avalanche Calculator'!$W128,'Debt Avalanche Calculator'!$Z128,'Debt Avalanche Calculator'!$AC128,'Debt Avalanche Calculator'!$AF128,'Debt Avalanche Calculator'!$AI128,'Debt Avalanche Calculator'!$AL128,'Debt Avalanche Calculator'!$AO128,'Debt Avalanche Calculator'!$AR128,'Debt Avalanche Calculator'!$AU128,'Debt Avalanche Calculator'!$AX128,'Debt Avalanche Calculator'!$BA128,'Debt Avalanche Calculator'!$BD128,'Debt Avalanche Calculator'!$BG128,'Debt Avalanche Calculator'!$BJ128,'Debt Avalanche Calculator'!$BM128,'Debt Avalanche Calculator'!$BP128,'Debt Avalanche Calculator'!$BS128,'Debt Avalanche Calculator'!$BV128,'Debt Avalanche Calculator'!$BY128,'Debt Avalanche Calculator'!$CB128,'Debt Avalanche Calculator'!$CE128,'Debt Avalanche Calculator'!$CH128,'Debt Avalanche Calculator'!$CK128,'Debt Avalanche Calculator'!$CN128,'Debt Avalanche Calculator'!$CQ128,'Debt Avalanche Calculator'!$CT128) -> 0 | L130: 111
I131: 112 | J131: =SUM('Debt Snowball Calculator'!E129,'Debt Snowball Calculator'!H129,'Debt Snowball Calculator'!K129,'Debt Snowball Calculator'!N129,'Debt Snowball Calculator'!Q129,'Debt Snowball Calculator'!T129,'Debt Snowball Calculator'!W129,'Debt Snowball Calculator'!Z129,'Debt Snowball Calculator'!AC129,'Debt Snowball Calculator'!AF129,'Debt Snowball Calculator'!AI129,'Debt Snowball Calculator'!AL129,'Debt Snowball Calculator'!AO129,'Debt Snowball Calculator'!AR129,'Debt Snowball Calculator'!AU129,'Debt Snowball Calculator'!AX129,'Debt Snowball Calculator'!BA129,'Debt Snowball Calculator'!BD129,'Debt Snowball Calculator'!BG129,'Debt Snowball Calculator'!BJ129,'Debt Snowball Calculator'!BM129,'Debt Snowball Calculator'!BP129,'Debt Snowball Calculator'!BS129,'Debt Snowball Calculator'!BV129,'Debt Snowball Calculator'!BY129,'Debt Snowball Calculator'!CB129,'Debt Snowball Calculator'!CE129,'Debt Snowball Calculator'!CH129,'Debt Snowball Calculator'!CK129,'Debt Snowball Calculator'!CN129,'Debt Snowball Calculator'!CQ129,'Debt Snowball Calculator'!CT129) -> 0 | K131: =SUM('Debt Avalanche Calculator'!$E129,'Debt Avalanche Calculator'!$H129,'Debt Avalanche Calculator'!$K129,'Debt Avalanche Calculator'!$N129,'Debt Avalanche Calculator'!$Q129,'Debt Avalanche Calculator'!$T129,'Debt Avalanche Calculator'!$W129,'Debt Avalanche Calculator'!$Z129,'Debt Avalanche Calculator'!$AC129,'Debt Avalanche Calculator'!$AF129,'Debt Avalanche Calculator'!$AI129,'Debt Avalanche Calculator'!$AL129,'Debt Avalanche Calculator'!$AO129,'Debt Avalanche Calculator'!$AR129,'Debt Avalanche Calculator'!$AU129,'Debt Avalanche Calculator'!$AX129,'Debt Avalanche Calculator'!$BA129,'Debt Avalanche Calculator'!$BD129,'Debt Avalanche Calculator'!$BG129,'Debt Avalanche Calculator'!$BJ129,'Debt Avalanche Calculator'!$BM129,'Debt Avalanche Calculator'!$BP129,'Debt Avalanche Calculator'!$BS129,'Debt Avalanche Calculator'!$BV129,'Debt Avalanche Calculator'!$BY129,'Debt Avalanche Calculator'!$CB129,'Debt Avalanche Calculator'!$CE129,'Debt Avalanche Calculator'!$CH129,'Debt Avalanche Calculator'!$CK129,'Debt Avalanche Calculator'!$CN129,'Debt Avalanche Calculator'!$CQ129,'Debt Avalanche Calculator'!$CT129) -> 0 | L131: 112
I132: 113 | J132: =SUM('Debt Snowball Calculator'!E130,'Debt Snowball Calculator'!H130,'Debt Snowball Calculator'!K130,'Debt Snowball Calculator'!N130,'Debt Snowball Calculator'!Q130,'Debt Snowball Calculator'!T130,'Debt Snowball Calculator'!W130,'Debt Snowball Calculator'!Z130,'Debt Snowball Calculator'!AC130,'Debt Snowball Calculator'!AF130,'Debt Snowball Calculator'!AI130,'Debt Snowball Calculator'!AL130,'Debt Snowball Calculator'!AO130,'Debt Snowball Calculator'!AR130,'Debt Snowball Calculator'!AU130,'Debt Snowball Calculator'!AX130,'Debt Snowball Calculator'!BA130,'Debt Snowball Calculator'!BD130,'Debt Snowball Calculator'!BG130,'Debt Snowball Calculator'!BJ130,'Debt Snowball Calculator'!BM130,'Debt Snowball Calculator'!BP130,'Debt Snowball Calculator'!BS130,'Debt Snowball Calculator'!BV130,'Debt Snowball Calculator'!BY130,'Debt Snowball Calculator'!CB130,'Debt Snowball Calculator'!CE130,'Debt Snowball Calculator'!CH130,'Debt Snowball Calculator'!CK130,'Debt Snowball Calculator'!CN130,'Debt Snowball Calculator'!CQ130,'Debt Snowball Calculator'!CT130) -> 0 | K132: =SUM('Debt Avalanche Calculator'!$E130,'Debt Avalanche Calculator'!$H130,'Debt Avalanche Calculator'!$K130,'Debt Avalanche Calculator'!$N130,'Debt Avalanche Calculator'!$Q130,'Debt Avalanche Calculator'!$T130,'Debt Avalanche Calculator'!$W130,'Debt Avalanche Calculator'!$Z130,'Debt Avalanche Calculator'!$AC130,'Debt Avalanche Calculator'!$AF130,'Debt Avalanche Calculator'!$AI130,'Debt Avalanche Calculator'!$AL130,'Debt Avalanche Calculator'!$AO130,'Debt Avalanche Calculator'!$AR130,'Debt Avalanche Calculator'!$AU130,'Debt Avalanche Calculator'!$AX130,'Debt Avalanche Calculator'!$BA130,'Debt Avalanche Calculator'!$BD130,'Debt Avalanche Calculator'!$BG130,'Debt Avalanche Calculator'!$BJ130,'Debt Avalanche Calculator'!$BM130,'Debt Avalanche Calculator'!$BP130,'Debt Avalanche Calculator'!$BS130,'Debt Avalanche Calculator'!$BV130,'Debt Avalanche Calculator'!$BY130,'Debt Avalanche Calculator'!$CB130,'Debt Avalanche Calculator'!$CE130,'Debt Avalanche Calculator'!$CH130,'Debt Avalanche Calculator'!$CK130,'Debt Avalanche Calculator'!$CN130,'Debt Avalanche Calculator'!$CQ130,'Debt Avalanche Calculator'!$CT130) -> 0 | L132: 113
I133: 114 | J133: =SUM('Debt Snowball Calculator'!E131,'Debt Snowball Calculator'!H131,'Debt Snowball Calculator'!K131,'Debt Snowball Calculator'!N131,'Debt Snowball Calculator'!Q131,'Debt Snowball Calculator'!T131,'Debt Snowball Calculator'!W131,'Debt Snowball Calculator'!Z131,'Debt Snowball Calculator'!AC131,'Debt Snowball Calculator'!AF131,'Debt Snowball Calculator'!AI131,'Debt Snowball Calculator'!AL131,'Debt Snowball Calculator'!AO131,'Debt Snowball Calculator'!AR131,'Debt Snowball Calculator'!AU131,'Debt Snowball Calculator'!AX131,'Debt Snowball Calculator'!BA131,'Debt Snowball Calculator'!BD131,'Debt Snowball Calculator'!BG131,'Debt Snowball Calculator'!BJ131,'Debt Snowball Calculator'!BM131,'Debt Snowball Calculator'!BP131,'Debt Snowball Calculator'!BS131,'Debt Snowball Calculator'!BV131,'Debt Snowball Calculator'!BY131,'Debt Snowball Calculator'!CB131,'Debt Snowball Calculator'!CE131,'Debt Snowball Calculator'!CH131,'Debt Snowball Calculator'!CK131,'Debt Snowball Calculator'!CN131,'Debt Snowball Calculator'!CQ131,'Debt Snowball Calculator'!CT131) -> 0 | K133: =SUM('Debt Avalanche Calculator'!$E131,'Debt Avalanche Calculator'!$H131,'Debt Avalanche Calculator'!$K131,'Debt Avalanche Calculator'!$N131,'Debt Avalanche Calculator'!$Q131,'Debt Avalanche Calculator'!$T131,'Debt Avalanche Calculator'!$W131,'Debt Avalanche Calculator'!$Z131,'Debt Avalanche Calculator'!$AC131,'Debt Avalanche Calculator'!$AF131,'Debt Avalanche Calculator'!$AI131,'Debt Avalanche Calculator'!$AL131,'Debt Avalanche Calculator'!$AO131,'Debt Avalanche Calculator'!$AR131,'Debt Avalanche Calculator'!$AU131,'Debt Avalanche Calculator'!$AX131,'Debt Avalanche Calculator'!$BA131,'Debt Avalanche Calculator'!$BD131,'Debt Avalanche Calculator'!$BG131,'Debt Avalanche Calculator'!$BJ131,'Debt Avalanche Calculator'!$BM131,'Debt Avalanche Calculator'!$BP131,'Debt Avalanche Calculator'!$BS131,'Debt Avalanche Calculator'!$BV131,'Debt Avalanche Calculator'!$BY131,'Debt Avalanche Calculator'!$CB131,'Debt Avalanche Calculator'!$CE131,'Debt Avalanche Calculator'!$CH131,'Debt Avalanche Calculator'!$CK131,'Debt Avalanche Calculator'!$CN131,'Debt Avalanche Calculator'!$CQ131,'Debt Avalanche Calculator'!$CT131) -> 0 | L133: 114
I134: 115 | J134: =SUM('Debt Snowball Calculator'!E132,'Debt Snowball Calculator'!H132,'Debt Snowball Calculator'!K132,'Debt Snowball Calculator'!N132,'Debt Snowball Calculator'!Q132,'Debt Snowball Calculator'!T132,'Debt Snowball Calculator'!W132,'Debt Snowball Calculator'!Z132,'Debt Snowball Calculator'!AC132,'Debt Snowball Calculator'!AF132,'Debt Snowball Calculator'!AI132,'Debt Snowball Calculator'!AL132,'Debt Snowball Calculator'!AO132,'Debt Snowball Calculator'!AR132,'Debt Snowball Calculator'!AU132,'Debt Snowball Calculator'!AX132,'Debt Snowball Calculator'!BA132,'Debt Snowball Calculator'!BD132,'Debt Snowball Calculator'!BG132,'Debt Snowball Calculator'!BJ132,'Debt Snowball Calculator'!BM132,'Debt Snowball Calculator'!BP132,'Debt Snowball Calculator'!BS132,'Debt Snowball Calculator'!BV132,'Debt Snowball Calculator'!BY132,'Debt Snowball Calculator'!CB132,'Debt Snowball Calculator'!CE132,'Debt Snowball Calculator'!CH132,'Debt Snowball Calculator'!CK132,'Debt Snowball Calculator'!CN132,'Debt Snowball Calculator'!CQ132,'Debt Snowball Calculator'!CT132) -> 0 | K134: =SUM('Debt Avalanche Calculator'!$E132,'Debt Avalanche Calculator'!$H132,'Debt Avalanche Calculator'!$K132,'Debt Avalanche Calculator'!$N132,'Debt Avalanche Calculator'!$Q132,'Debt Avalanche Calculator'!$T132,'Debt Avalanche Calculator'!$W132,'Debt Avalanche Calculator'!$Z132,'Debt Avalanche Calculator'!$AC132,'Debt Avalanche Calculator'!$AF132,'Debt Avalanche Calculator'!$AI132,'Debt Avalanche Calculator'!$AL132,'Debt Avalanche Calculator'!$AO132,'Debt Avalanche Calculator'!$AR132,'Debt Avalanche Calculator'!$AU132,'Debt Avalanche Calculator'!$AX132,'Debt Avalanche Calculator'!$BA132,'Debt Avalanche Calculator'!$BD132,'Debt Avalanche Calculator'!$BG132,'Debt Avalanche Calculator'!$BJ132,'Debt Avalanche Calculator'!$BM132,'Debt Avalanche Calculator'!$BP132,'Debt Avalanche Calculator'!$BS132,'Debt Avalanche Calculator'!$BV132,'Debt Avalanche Calculator'!$BY132,'Debt Avalanche Calculator'!$CB132,'Debt Avalanche Calculator'!$CE132,'Debt Avalanche Calculator'!$CH132,'Debt Avalanche Calculator'!$CK132,'Debt Avalanche Calculator'!$CN132,'Debt Avalanche Calculator'!$CQ132,'Debt Avalanche Calculator'!$CT132) -> 0 | L134: 115
I135: 116 | J135: =SUM('Debt Snowball Calculator'!E133,'Debt Snowball Calculator'!H133,'Debt Snowball Calculator'!K133,'Debt Snowball Calculator'!N133,'Debt Snowball Calculator'!Q133,'Debt Snowball Calculator'!T133,'Debt Snowball Calculator'!W133,'Debt Snowball Calculator'!Z133,'Debt Snowball Calculator'!AC133,'Debt Snowball Calculator'!AF133,'Debt Snowball Calculator'!AI133,'Debt Snowball Calculator'!AL133,'Debt Snowball Calculator'!AO133,'Debt Snowball Calculator'!AR133,'Debt Snowball Calculator'!AU133,'Debt Snowball Calculator'!AX133,'Debt Snowball Calculator'!BA133,'Debt Snowball Calculator'!BD133,'Debt Snowball Calculator'!BG133,'Debt Snowball Calculator'!BJ133,'Debt Snowball Calculator'!BM133,'Debt Snowball Calculator'!BP133,'Debt Snowball Calculator'!BS133,'Debt Snowball Calculator'!BV133,'Debt Snowball Calculator'!BY133,'Debt Snowball Calculator'!CB133,'Debt Snowball Calculator'!CE133,'Debt Snowball Calculator'!CH133,'Debt Snowball Calculator'!CK133,'Debt Snowball Calculator'!CN133,'Debt Snowball Calculator'!CQ133,'Debt Snowball Calculator'!CT133) -> 0 | K135: =SUM('Debt Avalanche Calculator'!$E133,'Debt Avalanche Calculator'!$H133,'Debt Avalanche Calculator'!$K133,'Debt Avalanche Calculator'!$N133,'Debt Avalanche Calculator'!$Q133,'Debt Avalanche Calculator'!$T133,'Debt Avalanche Calculator'!$W133,'Debt Avalanche Calculator'!$Z133,'Debt Avalanche Calculator'!$AC133,'Debt Avalanche Calculator'!$AF133,'Debt Avalanche Calculator'!$AI133,'Debt Avalanche Calculator'!$AL133,'Debt Avalanche Calculator'!$AO133,'Debt Avalanche Calculator'!$AR133,'Debt Avalanche Calculator'!$AU133,'Debt Avalanche Calculator'!$AX133,'Debt Avalanche Calculator'!$BA133,'Debt Avalanche Calculator'!$BD133,'Debt Avalanche Calculator'!$BG133,'Debt Avalanche Calculator'!$BJ133,'Debt Avalanche Calculator'!$BM133,'Debt Avalanche Calculator'!$BP133,'Debt Avalanche Calculator'!$BS133,'Debt Avalanche Calculator'!$BV133,'Debt Avalanche Calculator'!$BY133,'Debt Avalanche Calculator'!$CB133,'Debt Avalanche Calculator'!$CE133,'Debt Avalanche Calculator'!$CH133,'Debt Avalanche Calculator'!$CK133,'Debt Avalanche Calculator'!$CN133,'Debt Avalanche Calculator'!$CQ133,'Debt Avalanche Calculator'!$CT133) -> 0 | L135: 116
I136: 117 | J136: =SUM('Debt Snowball Calculator'!E134,'Debt Snowball Calculator'!H134,'Debt Snowball Calculator'!K134,'Debt Snowball Calculator'!N134,'Debt Snowball Calculator'!Q134,'Debt Snowball Calculator'!T134,'Debt Snowball Calculator'!W134,'Debt Snowball Calculator'!Z134,'Debt Snowball Calculator'!AC134,'Debt Snowball Calculator'!AF134,'Debt Snowball Calculator'!AI134,'Debt Snowball Calculator'!AL134,'Debt Snowball Calculator'!AO134,'Debt Snowball Calculator'!AR134,'Debt Snowball Calculator'!AU134,'Debt Snowball Calculator'!AX134,'Debt Snowball Calculator'!BA134,'Debt Snowball Calculator'!BD134,'Debt Snowball Calculator'!BG134,'Debt Snowball Calculator'!BJ134,'Debt Snowball Calculator'!BM134,'Debt Snowball Calculator'!BP134,'Debt Snowball Calculator'!BS134,'Debt Snowball Calculator'!BV134,'Debt Snowball Calculator'!BY134,'Debt Snowball Calculator'!CB134,'Debt Snowball Calculator'!CE134,'Debt Snowball Calculator'!CH134,'Debt Snowball Calculator'!CK134,'Debt Snowball Calculator'!CN134,'Debt Snowball Calculator'!CQ134,'Debt Snowball Calculator'!CT134) -> 0 | K136: =SUM('Debt Avalanche Calculator'!$E134,'Debt Avalanche Calculator'!$H134,'Debt Avalanche Calculator'!$K134,'Debt Avalanche Calculator'!$N134,'Debt Avalanche Calculator'!$Q134,'Debt Avalanche Calculator'!$T134,'Debt Avalanche Calculator'!$W134,'Debt Avalanche Calculator'!$Z134,'Debt Avalanche Calculator'!$AC134,'Debt Avalanche Calculator'!$AF134,'Debt Avalanche Calculator'!$AI134,'Debt Avalanche Calculator'!$AL134,'Debt Avalanche Calculator'!$AO134,'Debt Avalanche Calculator'!$AR134,'Debt Avalanche Calculator'!$AU134,'Debt Avalanche Calculator'!$AX134,'Debt Avalanche Calculator'!$BA134,'Debt Avalanche Calculator'!$BD134,'Debt Avalanche Calculator'!$BG134,'Debt Avalanche Calculator'!$BJ134,'Debt Avalanche Calculator'!$BM134,'Debt Avalanche Calculator'!$BP134,'Debt Avalanche Calculator'!$BS134,'Debt Avalanche Calculator'!$BV134,'Debt Avalanche Calculator'!$BY134,'Debt Avalanche Calculator'!$CB134,'Debt Avalanche Calculator'!$CE134,'Debt Avalanche Calculator'!$CH134,'Debt Avalanche Calculator'!$CK134,'Debt Avalanche Calculator'!$CN134,'Debt Avalanche Calculator'!$CQ134,'Debt Avalanche Calculator'!$CT134) -> 0 | L136: 117
I137: 118 | J137: =SUM('Debt Snowball Calculator'!E135,'Debt Snowball Calculator'!H135,'Debt Snowball Calculator'!K135,'Debt Snowball Calculator'!N135,'Debt Snowball Calculator'!Q135,'Debt Snowball Calculator'!T135,'Debt Snowball Calculator'!W135,'Debt Snowball Calculator'!Z135,'Debt Snowball Calculator'!AC135,'Debt Snowball Calculator'!AF135,'Debt Snowball Calculator'!AI135,'Debt Snowball Calculator'!AL135,'Debt Snowball Calculator'!AO135,'Debt Snowball Calculator'!AR135,'Debt Snowball Calculator'!AU135,'Debt Snowball Calculator'!AX135,'Debt Snowball Calculator'!BA135,'Debt Snowball Calculator'!BD135,'Debt Snowball Calculator'!BG135,'Debt Snowball Calculator'!BJ135,'Debt Snowball Calculator'!BM135,'Debt Snowball Calculator'!BP135,'Debt Snowball Calculator'!BS135,'Debt Snowball Calculator'!BV135,'Debt Snowball Calculator'!BY135,'Debt Snowball Calculator'!CB135,'Debt Snowball Calculator'!CE135,'Debt Snowball Calculator'!CH135,'Debt Snowball Calculator'!CK135,'Debt Snowball Calculator'!CN135,'Debt Snowball Calculator'!CQ135,'Debt Snowball Calculator'!CT135) -> 0 | K137: =SUM('Debt Avalanche Calculator'!$E135,'Debt Avalanche Calculator'!$H135,'Debt Avalanche Calculator'!$K135,'Debt Avalanche Calculator'!$N135,'Debt Avalanche Calculator'!$Q135,'Debt Avalanche Calculator'!$T135,'Debt Avalanche Calculator'!$W135,'Debt Avalanche Calculator'!$Z135,'Debt Avalanche Calculator'!$AC135,'Debt Avalanche Calculator'!$AF135,'Debt Avalanche Calculator'!$AI135,'Debt Avalanche Calculator'!$AL135,'Debt Avalanche Calculator'!$AO135,'Debt Avalanche Calculator'!$AR135,'Debt Avalanche Calculator'!$AU135,'Debt Avalanche Calculator'!$AX135,'Debt Avalanche Calculator'!$BA135,'Debt Avalanche Calculator'!$BD135,'Debt Avalanche Calculator'!$BG135,'Debt Avalanche Calculator'!$BJ135,'Debt Avalanche Calculator'!$BM135,'Debt Avalanche Calculator'!$BP135,'Debt Avalanche Calculator'!$BS135,'Debt Avalanche Calculator'!$BV135,'Debt Avalanche Calculator'!$BY135,'Debt Avalanche Calculator'!$CB135,'Debt Avalanche Calculator'!$CE135,'Debt Avalanche Calculator'!$CH135,'Debt Avalanche Calculator'!$CK135,'Debt Avalanche Calculator'!$CN135,'Debt Avalanche Calculator'!$CQ135,'Debt Avalanche Calculator'!$CT135) -> 0 | L137: 118
I138: 119 | J138: =SUM('Debt Snowball Calculator'!E136,'Debt Snowball Calculator'!H136,'Debt Snowball Calculator'!K136,'Debt Snowball Calculator'!N136,'Debt Snowball Calculator'!Q136,'Debt Snowball Calculator'!T136,'Debt Snowball Calculator'!W136,'Debt Snowball Calculator'!Z136,'Debt Snowball Calculator'!AC136,'Debt Snowball Calculator'!AF136,'Debt Snowball Calculator'!AI136,'Debt Snowball Calculator'!AL136,'Debt Snowball Calculator'!AO136,'Debt Snowball Calculator'!AR136,'Debt Snowball Calculator'!AU136,'Debt Snowball Calculator'!AX136,'Debt Snowball Calculator'!BA136,'Debt Snowball Calculator'!BD136,'Debt Snowball Calculator'!BG136,'Debt Snowball Calculator'!BJ136,'Debt Snowball Calculator'!BM136,'Debt Snowball Calculator'!BP136,'Debt Snowball Calculator'!BS136,'Debt Snowball Calculator'!BV136,'Debt Snowball Calculator'!BY136,'Debt Snowball Calculator'!CB136,'Debt Snowball Calculator'!CE136,'Debt Snowball Calculator'!CH136,'Debt Snowball Calculator'!CK136,'Debt Snowball Calculator'!CN136,'Debt Snowball Calculator'!CQ136,'Debt Snowball Calculator'!CT136) -> 0 | K138: =SUM('Debt Avalanche Calculator'!$E136,'Debt Avalanche Calculator'!$H136,'Debt Avalanche Calculator'!$K136,'Debt Avalanche Calculator'!$N136,'Debt Avalanche Calculator'!$Q136,'Debt Avalanche Calculator'!$T136,'Debt Avalanche Calculator'!$W136,'Debt Avalanche Calculator'!$Z136,'Debt Avalanche Calculator'!$AC136,'Debt Avalanche Calculator'!$AF136,'Debt Avalanche Calculator'!$AI136,'Debt Avalanche Calculator'!$AL136,'Debt Avalanche Calculator'!$AO136,'Debt Avalanche Calculator'!$AR136,'Debt Avalanche Calculator'!$AU136,'Debt Avalanche Calculator'!$AX136,'Debt Avalanche Calculator'!$BA136,'Debt Avalanche Calculator'!$BD136,'Debt Avalanche Calculator'!$BG136,'Debt Avalanche Calculator'!$BJ136,'Debt Avalanche Calculator'!$BM136,'Debt Avalanche Calculator'!$BP136,'Debt Avalanche Calculator'!$BS136,'Debt Avalanche Calculator'!$BV136,'Debt Avalanche Calculator'!$BY136,'Debt Avalanche Calculator'!$CB136,'Debt Avalanche Calculator'!$CE136,'Debt Avalanche Calculator'!$CH136,'Debt Avalanche Calculator'!$CK136,'Debt Avalanche Calculator'!$CN136,'Debt Avalanche Calculator'!$CQ136,'Debt Avalanche Calculator'!$CT136) -> 0 | L138: 119
I139: 120 | J139: =SUM('Debt Snowball Calculator'!E137,'Debt Snowball Calculator'!H137,'Debt Snowball Calculator'!K137,'Debt Snowball Calculator'!N137,'Debt Snowball Calculator'!Q137,'Debt Snowball Calculator'!T137,'Debt Snowball Calculator'!W137,'Debt Snowball Calculator'!Z137,'Debt Snowball Calculator'!AC137,'Debt Snowball Calculator'!AF137,'Debt Snowball Calculator'!AI137,'Debt Snowball Calculator'!AL137,'Debt Snowball Calculator'!AO137,'Debt Snowball Calculator'!AR137,'Debt Snowball Calculator'!AU137,'Debt Snowball Calculator'!AX137,'Debt Snowball Calculator'!BA137,'Debt Snowball Calculator'!BD137,'Debt Snowball Calculator'!BG137,'Debt Snowball Calculator'!BJ137,'Debt Snowball Calculator'!BM137,'Debt Snowball Calculator'!BP137,'Debt Snowball Calculator'!BS137,'Debt Snowball Calculator'!BV137,'Debt Snowball Calculator'!BY137,'Debt Snowball Calculator'!CB137,'Debt Snowball Calculator'!CE137,'Debt Snowball Calculator'!CH137,'Debt Snowball Calculator'!CK137,'Debt Snowball Calculator'!CN137,'Debt Snowball Calculator'!CQ137,'Debt Snowball Calculator'!CT137) -> 0 | K139: =SUM('Debt Avalanche Calculator'!$E137,'Debt Avalanche Calculator'!$H137,'Debt Avalanche Calculator'!$K137,'Debt Avalanche Calculator'!$N137,'Debt Avalanche Calculator'!$Q137,'Debt Avalanche Calculator'!$T137,'Debt Avalanche Calculator'!$W137,'Debt Avalanche Calculator'!$Z137,'Debt Avalanche Calculator'!$AC137,'Debt Avalanche Calculator'!$AF137,'Debt Avalanche Calculator'!$AI137,'Debt Avalanche Calculator'!$AL137,'Debt Avalanche Calculator'!$AO137,'Debt Avalanche Calculator'!$AR137,'Debt Avalanche Calculator'!$AU137,'Debt Avalanche Calculator'!$AX137,'Debt Avalanche Calculator'!$BA137,'Debt Avalanche Calculator'!$BD137,'Debt Avalanche Calculator'!$BG137,'Debt Avalanche Calculator'!$BJ137,'Debt Avalanche Calculator'!$BM137,'Debt Avalanche Calculator'!$BP137,'Debt Avalanche Calculator'!$BS137,'Debt Avalanche Calculator'!$BV137,'Debt Avalanche Calculator'!$BY137,'Debt Avalanche Calculator'!$CB137,'Debt Avalanche Calculator'!$CE137,'Debt Avalanche Calculator'!$CH137,'Debt Avalanche Calculator'!$CK137,'Debt Avalanche Calculator'!$CN137,'Debt Avalanche Calculator'!$CQ137,'Debt Avalanche Calculator'!$CT137) -> 0 | L139: 120

Sheet Debt Snowball Calculator
T2: Instructions:
D3: Debt Snowball Calculator | M3: Extra Monthly Payment | N3: ='Snowball vs Avalanche'!H4 -> $200.00 | P3: (beyond minimum debt payments) | T3: - Note: All these cells are auto-filled in from the 'Snowball vs Avalanche' tab.
M4: One-Time Start-up Payment | N4: ='Snowball vs Avalanche'!H5 -> 0 | P4: (from cash you have in savings) | T4: They are here just for your reference if you would like to see the detail
D5: (FREE 8-Debt Version)
D6: Provided by: LifeAndMyFinances.com | K6: Like this sheet? Need a bigger version of the Debt Snowball? We sell one on Etsy for just $3.99. Click here to check it out!
D7: Copyright 2022
D10: Smallest Debts | Z10: Largest Debts
D12: Debt 1 | G12: Debt 2 | J12: Debt 3 | M12: Debt 4 | P12: Debt 5 | S12: Debt 6 | V12: Debt 7 | Y12: Debt 8 | AB12: Debt 9 | AE12: Debt 10 | AH12: Debt 11 | AK12: Debt 12 | AN12: Debt 13 | AQ12: Debt 14 | AT12: Debt 15 | AW12: Debt 16 | AZ12: Debt 17 | BC12: Debt 18 | BF12: Debt 19 | BI12: Debt 20 | BL12: Debt 21 | BO12: Debt 22 | BR12: Debt 23 | BU12: Debt 24 | BX12: Debt 25 | CA12: Debt 26 | CD12: Debt 27 | CG12: Debt 28 | CJ12: Debt 29 | CM12: Debt 30 | CP12: Debt 31 | CS12: Debt 32
D13: Balance | E13: ='Snowball vs Avalanche'!C16 -> $1,000.00 | G13: Balance | H13: ='Snowball vs Avalanche'!C17 -> $2,000.00 | J13: Balance | K13: ='Snowball vs Avalanche'!$C$18 -> $3,000.00 | M13: Balance | N13: ='Snowball vs Avalanche'!$C$19 -> 0 | P13: Balance | Q13: ='Snowball vs Avalanche'!$C$20 -> 0 | S13: Balance | T13: ='Snowball vs Avalanche'!$C$21 -> 0 | V13: Balance | W13: ='Snowball vs Avalanche'!$C$22 -> 0 | Y13: Balance | Z13: ='Snowball vs Avalanche'!$C$23 -> 0 | AB13: Balance | AC13: ='Snowball vs Avalanche'!$C$24 -> 0 | AE13: Balance | AF13: ='Snowball vs Avalanche'!$C$25 -> 0 | AH13: Balance | AI13: ='Snowball vs Avalanche'!$C$26 -> 0 | AK13: Balance | AL13: ='Snowball vs Avalanche'!$C$27 -> 0 | AN13: Balance | AO13: ='Snowball vs Avalanche'!$C$28 -> 0 | AQ13: Balance | AR13: ='Snowball vs Avalanche'!$C$29 -> 0 | AT13: Balance | AU13: ='Snowball vs Avalanche'!$C$30 -> 0 | AW13: Balance | AX13: ='Snowball vs Avalanche'!$C$31 -> 0 | AZ13: Balance | BA13: ='Snowball vs Avalanche'!$C$32 -> 0 | BC13: Balance | BD13: ='Snowball vs Avalanche'!$C$33 -> 0 | BF13: Balance | BG13: ='Snowball vs Avalanche'!$C$34 -> 0 | BI13: Balance | BJ13: ='Snowball vs Avalanche'!$C$35 -> 0 | BL13: Balance | BM13: ='Snowball vs Avalanche'!$C$36 -> 0 | BO13: Balance | BP13: ='Snowball vs Avalanche'!$C$37 -> 0 | BR13: Balance | BS13: ='Snowball vs Avalanche'!$C$38 -> 0 | BU13: Balance | BV13: ='Snowball vs Avalanche'!$C$39 -> 0 | BX13: Balance | BY13: ='Snowball vs Avalanche'!$C$40 -> 0 | CA13: Balance | CB13: ='Snowball vs Avalanche'!$C$41 -> 0 | CD13: Balance | CE13: ='Snowball vs Avalanche'!$C$42 -> 0 | CG13: Balance | CH13: ='Snowball vs Avalanche'!$C$43 -> 0 | CJ13: Balance | CK13: ='Snowball vs Avalanche'!$C$44 -> 0 | CM13: Balance | CN13: ='Snowball vs Avalanche'!$C$45 -> 0 | CP13: Balance | CQ13: ='Snowball vs Avalanche'!$C$46 -> 0 | CS13: Balance | CT13: ='Snowball vs Avalanche'!$C$47 -> 0
D14: Minimum Payment | E14: ='Snowball vs Avalanche'!D16 -> $25.00 | G14: Minimum Payment | H14: ='Snowball vs Avalanche'!D17 -> $40.00 | J14: Minimum Payment | K14: ='Snowball vs Avalanche'!$D$18 -> $60.00 | M14: Minimum Payment | N14: ='Snowball vs Avalanche'!$D$19 -> 0 | P14: Minimum Payment | Q14: ='Snowball vs Avalanche'!$D$20 -> 0 | S14: Minimum Payment | T14: ='Snowball vs Avalanche'!$D$21 -> 0 | V14: Minimum Payment | W14: ='Snowball vs Avalanche'!$D$22 -> 0 | Y14: Minimum Payment | Z14: ='Snowball vs Avalanche'!$D$23 -> 0 | AB14: Minimum Payment | AC14: ='Snowball vs Avalanche'!$D$24 -> 0 | AE14: Minimum Payment | AF14: ='Snowball vs Avalanche'!$D$25 -> 0 | AH14: Minimum Payment | AI14: ='Snowball vs Avalanche'!$D$26 -> 0 | AK14: Minimum Payment | AL14: ='Snowball vs Avalanche'!$D$27 -> 0 | AN14: Minimum Payment | AO14: ='Snowball vs Avalanche'!$D$28 -> 0 | AQ14: Minimum Payment | AR14: ='Snowball vs Avalanche'!$D$29 -> 0 | AT14: Minimum Payment | AU14: ='Snowball vs Avalanche'!$D$30 -> 0 | AW14: Minimum Payment | AX14: ='Snowball vs Avalanche'!$D$31 -> 0 | AZ14: Minimum Payment | BA14: ='Snowball vs Avalanche'!$D$32 -> 0 | BC14: Minimum Payment | BD14: ='Snowball vs Avalanche'!$D$33 -> 0 | BF14: Minimum Payment | BG14: ='Snowball vs Avalanche'!$D$34 -> 0 | BI14: Minimum Payment | BJ14: ='Snowball vs Avalanche'!$D$35 -> 0 | BL14: Minimum Payment | BM14: ='Snowball vs Avalanche'!$D$36 -> 0 | BO14: Minimum Payment | BP14: ='Snowball vs Avalanche'!$D$37 -> 0 | BR14: Minimum Payment | BS14: ='Snowball vs Avalanche'!$D$38 -> 0 | BU14: Minimum Payment | BV14: ='Snowball vs Avalanche'!$D$39 -> 0 | BX14: Minimum Payment | BY14: ='Snowball vs Avalanche'!$D$40 -> 0 | CA14: Minimum Payment | CB14: ='Snowball vs Avalanche'!$D$41 -> 0 | CD14: Minimum Payment | CE14: ='Snowball vs Avalanche'!$D$42 -> 0 | CG14: Minimum Payment | CH14: ='Snowball vs Avalanche'!$D$43 -> 0 | CJ14: Minimum Payment | CK14: ='Snowball vs Avalanche'!$D$44 -> 0 | CM14: Minimum Payment | CN14: ='Snowball vs Avalanche'!$D$45 -> 0 | CP14: Minimum Payment | CQ14: ='Snowball vs Avalanche'!$D$46 -> 0 | CS14: Minimum Payment | CT14: ='Snowball vs Avalanche'!$D$47 -> 0
D15: Interest Rate | E15: ='Snowball vs Avalanche'!E16 -> 8.0% | G15: Interest Rate | H15: ='Snowball vs Avalanche'!E17 -> 12.0% | J15: Interest Rate | K15: ='Snowball vs Avalanche'!$E$18 -> 26.0% | M15: Interest Rate | N15: ='Snowball vs Avalanche'!$E$19 -> 0.0% | P15: Interest Rate | Q15: ='Snowball vs Avalanche'!$E$20 -> 0.0% | S15: Interest Rate | T15: ='Snowball vs Avalanche'!$E$21 -> 0.0% | V15: Interest Rate | W15: ='Snowball vs Avalanche'!$E$22 -> 0.0% | Y15: Interest Rate | Z15: ='Snowball vs Avalanche'!$E$23 -> 0.0% | AB15: Interest Rate | AC15: ='Snowball vs Avalanche'!$E$24 -> 0.0% | AE15: Interest Rate | AF15: ='Snowball vs Avalanche'!$E$25 -> 0.0% | AH15: Interest Rate | AI15: ='Snowball vs Avalanche'!$E$26 -> 0.0% | AK15: Interest Rate | AL15: ='Snowball vs Avalanche'!$E$27 -> 0.0% | AN15: Interest Rate | AO15: ='Snowball vs Avalanche'!$E$28 -> 0.0% | AQ15: Interest Rate | AR15: ='Snowball vs Avalanche'!$E$29 -> 0.0% | AT15: Interest Rate | AU15: ='Snowball vs Avalanche'!$E$30 -> 0.0% | AW15: Interest Rate | AX15: ='Snowball vs Avalanche'!$E$31 -> 0.0% | AZ15: Interest Rate | BA15: ='Snowball vs Avalanche'!$E$32 -> 0.0% | BC15: Interest Rate | BD15: ='Snowball vs Avalanche'!$E$33 -> 0.0% | BF15: Interest Rate | BG15: ='Snowball vs Avalanche'!$E$34 -> 0.0% | BI15: Interest Rate | BJ15: ='Snowball vs Avalanche'!$E$35 -> 0.0% | BL15: Interest Rate | BM15: ='Snowball vs Avalanche'!$E$36 -> 0.0% | BO15: Interest Rate | BP15: ='Snowball vs Avalanche'!$E$37 -> 0.0% | BR15: Interest Rate | BS15: ='Snowball vs Avalanche'!$E$38 -> 0.0% | BU15: Interest Rate | BV15: ='Snowball vs Avalanche'!$E$39 -> 0.0% | BX15: Interest Rate | BY15: ='Snowball vs Avalanche'!$E$40 -> 0.0% | CA15: Interest Rate | CB15: ='Snowball vs Avalanche'!$E$41 -> 0.0% | CD15: Interest Rate | CE15: ='Snowball vs Avalanche'!$E$42 -> 0.0% | CG15: Interest Rate | CH15: ='Snowball vs Avalanche'!$E$43 -> 0.0% | CJ15: Interest Rate | CK15: ='Snowball vs Avalanche'!$E$44 -> 0.0% | CM15: Interest Rate | CN15: ='Snowball vs Avalanche'!$E$45 -> 0.0% | CP15: Interest Rate | CQ15: ='Snowball vs Avalanche'!$E$46 -> 0.0% | CS15: Interest Rate | CT15: ='Snowball vs Avalanche'!$E$47 -> 0.0%
C17: Month | D17: Payment | E17: Balance | G17: Payment | H17: Balance | I17: Min Pmnt Available | J17: Payment | K17: Balance | L17: Min Pmnt Available | M17: Payment | N17: Balance | O17: Min Pmnt Available | P17: Payment | Q17: Balance | R17: Min Pmnt Available | S17: Payment | T17: Balance | U17: Min Pmnt Available | V17: Payment | W17: Balance | X17: Min Pmnt Available | Y17: Payment | Z17: Balance | AA17: Min Pmnt Available | AB17: Payment | AC17: Balance | AD17: Min Pmnt Available | AE17: Payment | AF17: Balance | AG17: Min Pmnt Available | AH17: Payment | AI17: Balance | AJ17: Min Pmnt Available | AK17: Payment | AL17: Balance | AM17: Min Pmnt Available | AN17: Payment | AO17: Balance | AP17: Min Pmnt Available | AQ17: Payment | AR17: Balance | AS17: Min Pmnt Available | AT17: Payment | AU17: Balance | AV17: Min Pmnt Available | AW17: Payment | AX17: Balance | AY17: Min Pmnt Available | AZ17: Payment | BA17: Balance | BB17: Min Pmnt Available | BC17: Payment | BD17: Balance | BE17: Min Pmnt Available | BF17: Payment | BG17: Balance | BH17: Min Pmnt Available | BI17: Payment | BJ17: Balance | BK17: Min Pmnt Available | BL17: Payment | BM17: Balance | BN17: Min Pmnt Available | BO17: Payment | BP17: Balance | BQ17: Min Pmnt Available | BR17: Payment | BS17: Balance | BT17: Min Pmnt Available | BU17: Payment | BV17: Balance | BW17: Min Pmnt Available | BX17: Payment | BY17: Balance | BZ17: Min Pmnt Available | CA17: Payment | CB17: Balance | CC17: Min Pmnt Available | CD17: Payment | CE17: Balance | CF17: Min Pmnt Available | CG17: Payment | CH17: Balance | CI17: Min Pmnt Available | CJ17: Payment | CK17: Balance | CL17: Min Pmnt Available | CM17: Payment | CN17: Balance | CO17: Min Pmnt Available | CP17: Payment | CQ17: Balance | CR17: Min Pmnt Available | CS17: Payment | CT17: Balance | CU17: Min Pmnt Available | CX17: Debt 1 | CY17: Month Paid Off | DA17: Debt 2 | DB17: Month Paid Off | DD17: Debt 3 | DE17: Month Paid Off | DG17: Debt 4 | DH17: Month Paid Off | DJ17: Debt 5 | DK17: Month Paid Off | DM17: Debt 6 | DN17: Month Paid Off | DP17: Debt 7 | DQ17: Month Paid Off | DS17: Debt 8 | DT17: Month Paid Off | DV17: Debt 9 | DW17: Month Paid Off | DY17: Debt 10 | DZ17: Month Paid Off | EB17: Debt 11 | EC17: Month Paid Off | EE17: Debt 12 | EF17: Month Paid Off | EH17: Debt 13 | EI17: Month Paid Off | EK17: Debt 14 | EL17: Month Paid Off | EN17: Debt 15 | EO17: Month Paid Off | EQ17: Debt 16 | ER17: Month Paid Off | ET17: Debt 17 | EU17: Month Paid Off | EW17: Debt 18 | EX17: Month Paid Off | EZ17: Debt 19 | FA17: Month Paid Off | FC17: Debt 20 | FD17: Month Paid Off | FF17: Debt 21 | FG17: Month Paid Off | FI17: Debt 22 | FJ17: Month Paid Off | FL17: Debt 23 | FM17: Month Paid Off | FO17: Debt 24 | FP17: Month Paid Off | FR17: Debt 25 | FS17: Month Paid Off | FU17: Debt 26 | FV17: Month Paid Off | FX17: Debt 27 | FY17: Month Paid Off | GA17: Debt 28 | GB17: Month Paid Off | GD17: Debt 29 | GE17: Month Paid Off | GG17: Debt 30 | GH17: Month Paid Off | GJ17: Debt 31 | GK17: Month Paid Off | GM17: Debt 32 | GN17: Month Paid Off
A18: =SUM(D18:E18,G18:H18,J18:K18,M18:N18,P18:Q18,S18:T18,V18:W18,Y18:Z18,AB18:AC18,AE18:AF18,AH18:AI18,AK18:AL18,AN18:AO18,AQ18:AR18,AT18:AU18,AW18:AX18,AZ18:BA18,BC18:BD18,BF18:BG18,BI18:BJ18,BL18:BM18,BO18:BP18,BR18:BS18,BU18:BV18,BX18:BY18,CA18:CB18,CD18:CE18,CG18:CH18,CJ18:CK18,CM18:CN18,CP18:CQ18,CS18:CT18) -> $6,000.00 | B18: =SUM(D18,G18,J18,M18,P18,S18,V18,Y18,AB18,AE18,AH18,AK18,AN18,AQ18,AT18,AW18,AZ18,BC18,BF18,BI18,BL18,BO18,BR18,BU18,BX18,CA18,CD18,CG18,CJ18,CM18,CP18,CS18) -> $325.00 | C18: 1 | D18: =IF((N4+N3)>=E13,E13,(N3+N4+E14)) -> $225.00 | E18: =IF(E13-D18<=0,0,(E13-D18)) -> $775.00 | G18: =IF((N3+N4)>=(E13+H13),H13,IF(AND(D18=E13,D18<>0),(N3+N4-E13+H14),H14)) -> $40.00 | H18: =IF(H13-G18<=0,0,(H13-G18)) -> $1,960.00 | I18: 0 | J18: =IF((N3+N4)>=(H13+K13+E13),K13,IF(AND(G18=H13, G18<>0),(N3+N4-H13-E13+K14),K14)) -> $60.00 | K18: =IF(K13-J18<=0,0,(K13-J18)) -> $2,940.00 | L18: 0 | M18: =IF((N3+N4)>=(K13+N13+H13+E13),N13,IF(AND(J18=K13, J18<>0),(N3+N4-K13-H13-E13+N14),N14)) -> 0 | N18: =IF(N13-M18<=0,0,(N13-M18)) -> 0 | O18: 0 | P18: =IF((N3+N4)>=(N13+Q13+K13+H13+E13),Q13,IF(AND(M18=N13,M18<>0),(N3+N4-N13-K13-H13-E13+Q14),Q14)) -> 0 | Q18: =IF(Q13-P18<=0,0,(Q13-P18)) -> 0 | R18: 0 | S18: =IF((N3+N4)>=(Q13+T13+N13+K13+H13+E13),T13,IF(AND(P18=Q13,P18<>0),(N3+N4-Q13-N13-K13-H13-E13+T14),T14)) -> 0 | T18: =IF(T13-S18<=0,0,(T13-S18)) -> 0 | U18: 0 | V18: =IF(($N$3+$N$4)>=(T13+W13+Q13+N13+K13+H13+E13),W13,IF(AND(S18=T$13,S18<>0),($N$3+$N$4-T13-Q13-N13-K13-H13-E13+W14),W14)) -> 0 | W18: =IF(W13-V18<=0,0,(W13-V18)) -> 0 | X18: 0 | Y18: =IF(($N$3+$N$4)>=(W13+Z13+T13+Q13+N13+K13+H13+E13),Z13,IF(AND(V18=W$13,V18<>0),($N$3+$N$4-W13-T13-Q13-N13-K13-H13-E13+Z14),Z14)) -> 0 | Z18: =IF(Z13-Y18<=0,0,(Z13-Y18)) -> 0 | AA18: 0 | AB18: =IF(($N$3+$N$4+E14+H14+K14+N14+Q14+T14+W14+Z14+AC14)>=(Z13+AC13+W13+T13+Q13+N13+K13+H13+E13),AC13,IF(AND(Y18=Z$13,Y18<>0),($N$3+$N$4-Z13-W13-T13-Q13-N13-K13-H13-E13+E14+H14+K14+N14+Q14+T14+W14+Z14+AC14),AC14)) -> 0 | AC18: =IF(AC13-AB18<=0,0,(AC13-AB18)) -> 0 | AD18: 0 | AE18: =IF(($N$3+$N$4+E14+H14+K14+N14+Q14+T14+W14+Z14+AC14+AF14)>=(AC13+AF13+Z13+W13+T13+Q13+N13+K13+H13+E13),AF13,IF(AND(AB18=AC$13,AB18<>0),($N$3+$N$4-AC13-Z13-W13-T13-Q13-N13-K13-H13-E13+E14+H14+K14+N14+Q14+T14+W14+Z14+AC14+AF14),AF14)) -> 0 | AF18: =IF(AF13-AE18<=0,0,(AF13-AE18)) -> 0 | AG18: 0 | AH18: =IF(($N$3+$N$4+E14+H14+K14+N14+Q14+T14+W14+Z14+AC14+AF14+AI14)>=(AF13+AI13+AC13+Z13+W13+T13+Q13+N13+K13+H13+E13),AI13,IF(AND(AE18=AF$13,AE18<>0),($N$3+$N$4-AF13-AC13-Z13-W13-T13-Q13-N13-K13-H13-E13+E14+H14+K14+N14+Q14+T14+W14+Z14+AC14+AF14+AI14),AI14)) -> 0 | AI18: =IF(AI13-AH18<=0,0,(AI13-AH18)) -> 0 | AJ18: 0 | AK18: =IF(($N$3+$N$4+E14+H14+K14+N14+Q14+T14+W14+Z14+AC14+AF14+AI14+AL14)>=(AI13+AL13+AF13+AC13+Z13+W13+T13+Q13+N13+K13+H13+E13),AL13,IF(AND(AH18=AI$13,AH18<>0),($N$3+$N$4-AI13-AF13-AC13-Z13-W13-T13-Q13-N13-K13-H13-E13+E14+H14+K14+N14+Q14+T14+W14+Z14+AC14+AF14+AI14+AL14),AL14)) -> 0 | AL18: =IF(AL13-AK18<=0,0,(AL13-AK18)) -> 0 | AM18: 0 | AN18: =IF(($N$3+$N$4+E14+H14+K14+N14+Q14+T14+W14+Z14+AC14+AF14+AI14+AL14+AO14)>=(AL13+AO13+AI13+AF13+AC13+Z13+W13+T13+Q13+N13+K13+H13+E13),AO13,IF(AND(AK18=AL$13,AK18<>0),($N$3+$N$4-AL13-AI13-AF13-AC13-Z13-W13-T13-Q13-N13-K13-H13-E13+E14+H14+K14+N14+Q14+T14+W14+Z14+AC14+AF14+AI14+AL14+AO14),AO14)) -> 0 | AO18: =IF(AO13-AN18<=0,0,(AO13-AN18)) -> 0 | AP18: 0 | AQ18: =IF(($N$3+$N$4+E14+H14+K14+N14+Q14+T14+W14+Z14+AC14+AF14+AI14+AL14+AO14+AR14)>=(AO13+AR13+AL13+AI13+AF13+AC13+Z13+W13+T13+Q13+N13+K13+H13+E13),AR13,IF(AND(AN18=AO$13,AN18<>0),($N$3+$N$4-AO13-AL13-AI13-AF13-AC13-Z13-W13-T13-Q13-N13-K13-H13-E13+E14+H14+K14+N14+Q14+T14+W14+Z14+AC14+AF14+AI14+AL14+AO14+AR14),AR14)) -> 0 | AR18: =IF(AR13-AQ18<=0,0,(AR13-AQ18)) -> 0 | AS18: 0 | AT18: =IF(($N$3+$N$4+E14+H14+K14+N14+Q14+T14+W14+Z14+AC14+AF14+AI14+AL14+AO14+AR14+AU14)>=(AR13+AU13+AO13+AL13+AI13+AF13+AC13+Z13+W13+T13+Q13+N13+K13+H13+E13),AU13,IF(AND(AQ18=AR$13,AQ18<>0),($N$3+$N$4-AR13-AO13-AL13-AI13-AF13-AC13-Z13-W13-T13-Q13-N13-K13-H13-E13+E14+H14+K14+N14+Q14+T14+W14+Z14+AC14+AF14+AI14+AL14+AO14+AR14+AU14),AU14)) -> 0 | AU18: =IF(AU13-AT18<=0,0,(AU13-AT18)) -> 0 | AV18: 0 | AW18: =IF(($N$3+$N$4+E14+H14+K14+N14+Q14+T14+W14+Z14+AC14+AF14+AI14+AL14+AO14+AR14+AU14+AX14)>=(AU13+AX13+AR13+AO13+AL13+AI13+AF13+AC13+Z13+W13+T13+Q13+N13+K13+H13+E13),AX13,IF(AND(AT18=AU$13,AT18<>0),($N$3+$N$4-AU13-AR13-AO13-AL13-AI13-AF13-AC13-Z13-W13-T13-Q13-N13-K13-H13-E13+E14+H14+K14+N14+Q14+T14+W14+Z14+AC14+AF14+AI14+AL14+AO14+AR14+AU14+AX14),AX14)) -> 0 | AX18: =IF(AX13-AW18<=0,0,(AX13-AW18)) -> 0 | AY18: 0 | AZ18: =IF(($N$3+$N$4+E14+H14+K14+N14+Q14+T14+W14+Z14+AC14+AF14+AI14+AL14+AO14+AR14+AU14+AX14+BA14)>=(AX13+BA13+AU13+AR13+AO13+AL13+AI13+AF13+AC13+Z13+W13+T13+Q13+N13+K13+H13+E13),BA13,IF(AND(AW18=AX$13,AW18<>0),($N$3+$N$4-AX13-AU13-AR13-AO13-AL13-AI13-AF13-AC13-Z13-W13-T13-Q13-N13-K13-H13-E13+E14+H14+K14+N14+Q14+T14+W14+Z14+AC14+AF14+AI14+AL14+AO14+AR14+AU14+AX14+BA14),BA14)) -> 0 | BA18: =IF(BA13-AZ18<=0,0,(BA13-AZ18)) -> 0 | BB18: 0 | BC18: =IF(($N$3+$N$4+E14+H14+K14+N14+Q14+T14+W14+Z14+AC14+AF14+AI14+AL14+AO14+AR14+AU14+AX14+BA14+BD14)>=(BA13+BD13+AX13+AU13+AR13+AO13+AL13+AI13+AF13+AC13+Z13+W13+T13+Q13+N13+K13+H13+E13),BD13,IF(AND(AZ18=BA$13,AZ18<>0),($N$3+$N$4-BA13-AX13-AU13-AR13-AO13-AL13-AI13-AF13-AC13-Z13-W13-T13-Q13-N13-K13-H13-E13+E14+H14+K14+N14+Q14+T14+W14+Z14+AC14+AF14+AI14+AL14+AO14+AR14+AU14+AX14+BA14+BD14),BD14)) -> 0 | BD18: =IF(BD13-BC18<=0,0,(BD13-BC18)) -> 0 | BE18: 0 | BF18: =IF(($N$3+$N$4+E14+H14+K14+N14+Q14+T14+W14+Z14+AC14+AF14+AI14+AL14+AO14+AR14+AU14+AX14+BA14+BD14+BG14)>=(BD13+BG13+BA13+AX13+AU13+AR13+AO13+AL13+AI13+AF13+AC13+Z13+W13+T13+Q13+N13+K13+H13+E13),BG13,IF(AND(BC18=BD$13,BC18<>0),($N$3+$N$4-BD13-BA13-AX13-AU13-AR13-AO13-AL13-AI13-AF13-AC13-Z13-W13-T13-Q13-N13-K13-H13-E13+E14+H14+K14+N14+Q14+T14+W14+Z14+AC14+AF14+AI14+AL14+AO14+AR14+AU14+AX14+BA14+BD14+BG14),BG14)) -> 0 | BG18: =IF(BG13-BF18<=0,0,(BG13-BF18)) -> 0 | BH18: 0 | BI18: =IF(($N$3+$N$4+E14+H14+K14+N14+Q14+T14+W14+Z14+AC14+AF14+AI14+AL14+AO14+AR14+AU14+AX14+BA14+BD14+BG14+BJ14)>=(BG13+BJ13+BD13+BA13+AX13+AU13+AR13+AO13+AL13+AI13+AF13+AC13+Z13+W13+T13+Q13+N13+K13+H13+E13),BJ13,IF(AND(BF18=BG$13,BF18<>0),($N$3+$N$4-BG13-BD13-BA13-AX13-AU13-AR13-AO13-AL13-AI13-AF13-AC13-Z13-W13-T13-Q13-N13-K13-H13-E13+E14+H14+K14+N14+Q14+T14+W14+Z14+AC14+AF14+AI14+AL14+AO14+AR14+AU14+AX14+BA14+BD14+BG14+BJ14),BJ14)) -> 0 | BJ18: =IF(BJ13-BI18<=0,0,(BJ13-BI18)) -> 0 | BK18: 0 | BL18: =IF(($N$3+$N$4+E14+H14+K14+N14+Q14+T14+W14+Z14+AC14+AF14+AI14+AL14+AO14+AR14+AU14+AX14+BA14+BD14+BG14+BJ14+BM14)>=(BJ13+BM13+BG13+BD13+BA13+AX13+AU13+AR13+AO13+AL13+AI13+AF13+AC13+Z13+W13+T13+Q13+N13+K13+H13+E13),BM13,IF(AND(BI18=BJ$13,BI18<>0),($N$3+$N$4-BJ13-BG13-BD13-BA13-AX13-AU13-AR13-AO13-AL13-AI13-AF13-AC13-Z13-W13-T13-Q13-N13-K13-H13-E13+E14+H14+K14+N14+Q14+T14+W14+Z14+AC14+AF14+AI14+AL14+AO14+AR14+AU14+AX14+BA14+BD14+BG14+BJ14+BM14),BM14)) -> 0 | BM18: =IF(BM13-BL18<=0,0,(BM13-BL18)) -> 0 | BN18: 0 | BO18: =IF(($N$3+$N$4+E14+H14+K14+N14+Q14+T14+W14+Z14+AC14+AF14+AI14+AL14+AO14+AR14+AU14+AX14+BA14+BD14+BG14+BJ14+BM14+BP14)>=(BM13+BP13+BJ13+BG13+BD13+BA13+AX13+AU13+AR13+AO13+AL13+AI13+AF13+AC13+Z13+W13+T13+Q13+N13+K13+H13+E13),BP13,IF(AND(BL18=BM$13,BL18<>0),($N$3+$N$4-BM13-BJ13-BG13-BD13-BA13-AX13-AU13-AR13-AO13-AL13-AI13-AF13-AC13-Z13-W13-T13-Q13-N13-K13-H13-E13+E14+H14+K14+N14+Q14+T14+W14+Z14+AC14+AF14+AI14+AL14+AO14+AR14+AU14+AX14+BA14+BD14+BG14+BJ14+BM14+BP14),BP14)) -> 0 | BP18: =IF(BP13-BO18<=0,0,(BP13-BO18)) -> 0 | BQ18: 0 | BR18: =IF(($N$3+$N$4+E14+H14+K14+N14+Q14+T14+W14+Z14+AC14+AF14+AI14+AL14+AO14+AR14+AU14+AX14+BA14+BD14+BG14+BJ14+BM14+BP14+BS14)>=(BP13+BS13+BM13+BJ13+BG13+BD13+BA13+AX13+AU13+AR13+AO13+AL13+AI13+AF13+AC13+Z13+W13+T13+Q13+N13+K13+H13+E13),BS13,IF(AND(BO18=BP$13,BO18<>0),($N$3+$N$4-BP13-BM13-BJ13-BG13-BD13-BA13-AX13-AU13-AR13-AO13-AL13-AI13-AF13-AC13-Z13-W13-T13-Q13-N13-K13-H13-E13+E14+H14+K14+N14+Q14+T14+W14+Z14+AC14+AF14+AI14+AL14+AO14+AR14+AU14+AX14+BA14+BD14+BG14+BJ14+BM14+BP14+BS14),BS14)) -> 0 | BS18: =IF(BS13-BR18<=0,0,(BS13-BR18)) -> 0 | BT18: 0 | BU18: =IF(($N$3+$N$4+E14+H14+K14+N14+Q14+T14+W14+Z14+AC14+AF14+AI14+AL14+AO14+AR14+AU14+AX14+BA14+BD14+BG14+BJ14+BM14+BP14+BS14+BV14)>=(BS13+BV13+BP13+BM13+BJ13+BG13+BD13+BA13+AX13+AU13+AR13+AO13+AL13+AI13+AF13+AC13+Z13+W13+T13+Q13+N13+K13+H13+E13),BV13,IF(AND(BR18=BS$13,BR18<>0),($N$3+$N$4-BS13-BP13-BM13-BJ13-BG13-BD13-BA13-AX13-AU13-AR13-AO13-AL13-AI13-AF13-AC13-Z13-W13-T13-Q13-N13-K13-H13-E13+E14+H14+K14+N14+Q14+T14+W14+Z14+AC14+AF14+AI14+AL14+AO14+AR14+AU14+AX14+BA14+BD14+BG14+BJ14+BM14+BP14+BS14+BV14),BV14)) -> 0 | BV18: =IF(BV13-BU18<=0,0,(BV13-BU18)) -> 0 | BW18: 0 | BX18: =IF(($N$3+$N$4+E14+H14+K14+N14+Q14+T14+W14+Z14+AC14+AF14+AI14+AL14+AO14+AR14+AU14+AX14+BA14+BD14+BG14+BJ14+BM14+BP14+BS14+BV14+BY14)>=(BV13+BY13+BS13+BP13+BM13+BJ13+BG13+BD13+BA13+AX13+AU13+AR13+AO13+AL13+AI13+AF13+AC13+Z13+W13+T13+Q13+N13+K13+H13+E13),BY13,IF(AND(BU18=BV$13,BU18<>0),($N$3+$N$4-BV13-BS13-BP13-BM13-BJ13-BG13-BD13-BA13-AX13-AU13-AR13-AO13-AL13-AI13-AF13-AC13-Z13-W13-T13-Q13-N13-K13-H13-E13+E14+H14+K14+N14+Q14+T14+W14+Z14+AC14+AF14+AI14+AL14+AO14+AR14+AU14+AX14+BA14+BD14+BG14+BJ14+BM14+BP14+BS14+BV14+BY14),BY14)) -> 0 | BY18: =IF(BY13-BX18<=0,0,(BY13-BX18)) -> 0 | BZ18: 0 | CA18: =IF(($N$3+$N$4+E14+H14+K14+N14+Q14+T14+W14+Z14+AC14+AF14+AI14+AL14+AO14+AR14+AU14+AX14+BA14+BD14+BG14+BJ14+BM14+BP14+BS14+BV14+BY14+CB14)>=(BY13+CB13+BV13+BS13+BP13+BM13+BJ13+BG13+BD13+BA13+AX13+AU13+AR13+AO13+AL13+AI13+AF13+AC13+Z13+W13+T13+Q13+N13+K13+H13+E13),CB13,IF(AND(BX18=BY$13,BX18<>0),($N$3+$N$4-BY13-BV13-BS13-BP13-BM13-BJ13-BG13-BD13-BA13-AX13-AU13-AR13-AO13-AL13-AI13-AF13-AC13-Z13-W13-T13-Q13-N13-K13-H13-E13+E14+H14+K14+N14+Q14+T14+W14+Z14+AC14+AF14+AI14+AL14+AO14+AR14+AU14+AX14+BA14+BD14+BG14+BJ14+BM14+BP14+BS14+BV14+BY14+CB14),CB14)) -> 0 | CB18: =IF(CB13-CA18<=0,0,(CB13-CA18)) -> 0 | CC18: 0 | CD18: =IF(($N$3+$N$4+E14+H14+K14+N14+Q14+T14+W14+Z14+AC14+AF14+AI14+AL14+AO14+AR14+AU14+AX14+BA14+BD14+BG14+BJ14+BM14+BP14+BS14+BV14+BY14+CB14+CE14)>=(CB13+CE13+BY13+BV13+BS13+BP13+BM13+BJ13+BG13+BD13+BA13+AX13+AU13+AR13+AO13+AL13+AI13+AF13+AC13+Z13+W13+T13+Q13+N13+K13+H13+E13),CE13,IF(AND(CA18=CB$13,CA18<>0),($N$3+$N$4-CB13-BY13-BV13-BS13-BP13-BM13-BJ13-BG13-BD13-BA13-AX13-AU13-AR13-AO13-AL13-AI13-AF13-AC13-Z13-W13-T13-Q13-N13-K13-H13-E13+E14+H14+K14+N14+Q14+T14+W14+Z14+AC14+AF14+AI14+AL14+AO14+AR14+AU14+AX14+BA14+BD14+BG14+BJ14+BM14+BP14+BS14+BV14+BY14+CB14+CE14),CE14)) -> 0 | CE18: =IF(CE13-CD18<=0,0,(CE13-CD18)) -> 0 | CF18: 0 | CG18: =IF(($N$3+$N$4+E14+H14+K14+N14+Q14+T14+W14+Z14+AC14+AF14+AI14+AL14+AO14+AR14+AU14+AX14+BA14+BD14+BG14+BJ14+BM14+BP14+BS14+BV14+BY14+CB14+CE14+CH14)>=(CE13+CH13+CB13+BY13+BV13+BS13+BP13+BM13+BJ13+BG13+BD13+BA13+AX13+AU13+AR13+AO13+AL13+AI13+AF13+AC13+Z13+W13+T13+Q13+N13+K13+H13+E13),CH13,IF(AND(CD18=CE$13,CD18<>0),($N$3+$N$4-CE13-CB13-BY13-BV13-BS13-BP13-BM13-BJ13-BG13-BD13-BA13-AX13-AU13-AR13-AO13-AL13-AI13-AF13-AC13-Z13-W13-T13-Q13-N13-K13-H13-E13+E14+H14+K14+N14+Q14+T14+W14+Z14+AC14+AF14+AI14+AL14+AO14+AR14+AU14+AX14+BA14+BD14+BG14+BJ14+BM14+BP14+BS14+BV14+BY14+CB14+CE14+CH14),CH14)) -> 0 | CH18: =IF(CH13-CG18<=0,0,(CH13-CG18)) -> 0 | CI18: 0 | CJ18: =IF(($N$3+$N$4+E14+H14+K14+N14+Q14+T14+W14+Z14+AC14+AF14+AI14+AL14+AO14+AR14+AU14+AX14+BA14+BD14+BG14+BJ14+BM14+BP14+BS14+BV14+BY14+CB14+CE14+CH14+CK14)>=(CH13+CK13+CE13+CB13+BY13+BV13+BS13+BP13+BM13+BJ13+BG13+BD13+BA13+AX13+AU13+AR13+AO13+AL13+AI13+AF13+AC13+Z13+W13+T13+Q13+N13+K13+H13+E13),CK13,IF(AND(CG18=CH$13,CG18<>0),($N$3+$N$4-CH13-CE13-CB13-BY13-BV13-BS13-BP13-BM13-BJ13-BG13-BD13-BA13-AX13-AU13-AR13-AO13-AL13-AI13-AF13-AC13-Z13-W13-T13-Q13-N13-K13-H13-E13+E14+H14+K14+N14+Q14+T14+W14+Z14+AC14+AF14+AI14+AL14+AO14+AR14+AU14+AX14+BA14+BD14+BG14+BJ14+BM14+BP14+BS14+BV14+BY14+CB14+CE14+CH14+CK14),CK14)) -> 0 | CK18: =IF(CK13-CJ18<=0,0,(CK13-CJ18)) -> 0 | CL18: 0 | CM18: =IF(($N$3+$N$4+E14+H14+K14+N14+Q14+T14+W14+Z14+AC14+AF14+AI14+AL14+AO14+AR14+AU14+AX14+BA14+BD14+BG14+BJ14+BM14+BP14+BS14+BV14+BY14+CB14+CE14+CH14+CK14+CN14)>=(CK13+CN13+CH13+CE13+CB13+BY13+BV13+BS13+BP13+BM13+BJ13+BG13+BD13+BA13+AX13+AU13+AR13+AO13+AL13+AI13+AF13+AC13+Z13+W13+T13+Q13+N13+K13+H13+E13),CN13,IF(AND(CJ18=CK$13,CJ18<>0),($N$3+$N$4-CK13-CH13-CE13-CB13-BY13-BV13-BS13-BP13-BM13-BJ13-BG13-BD13-BA13-AX13-AU13-AR13-AO13-AL13-AI13-AF13-AC13-Z13-W13-T13-Q13-N13-K13-H13-E13+E14+H14+K14+N14+Q14+T14+W14+Z14+AC14+AF14+AI14+AL14+AO14+AR14+AU14+AX14+BA14+BD14+BG14+BJ14+BM14+BP14+BS14+BV14+BY14+CB14+CE14+CH14+CK14+CN14),CN14)) -> 0 | CN18: =IF(CN13-CM18<=0,0,(CN13-CM18)) -> 0 | CO18: 0 | CP18: =IF(($N$3+$N$4+E14+H14+K14+N14+Q14+T14+W14+Z14+AC14+AF14+AI14+AL14+AO14+AR14+AU14+AX14+BA14+BD14+BG14+BJ14+BM14+BP14+BS14+BV14+BY14+CB14+CE14+CH14+CK14+CN14+CQ14)>=(CN13+CQ13+CK13+CH13+CE13+CB13+BY13+BV13+BS13+BP13+BM13+BJ13+BG13+BD13+BA13+AX13+AU13+AR13+AO13+AL13+AI13+AF13+AC13+Z13+W13+T13+Q13+N13+K13+H13+E13),CQ13,IF(AND(CM18=CN$13,CM18<>0),($N$3+$N$4-CN13-CK13-CH13-CE13-CB13-BY13-BV13-BS13-BP13-BM13-BJ13-BG13-BD13-BA13-AX13-AU13-AR13-AO13-AL13-AI13-AF13-AC13-Z13-W13-T13-Q13-N13-K13-H13-E13+E14+H14+K14+N14+Q14+T14+W14+Z14+AC14+AF14+AI14+AL14+AO14+AR14+AU14+AX14+BA14+BD14+BG14+BJ14+BM14+BP14+BS14+BV14+BY14+CB14+CE14+CH14+CK14+CN14+CQ14),CQ14)) -> 0 | CQ18: =IF(CQ13-CP18<=0,0,(CQ13-CP18)) -> 0 | CR18: 0 | CS18: =IF(($N$3+$N$4+E14+H14+K14+N14+Q14+T14+W14+Z14+AC14+AF14+AI14+AL14+AO14+AR14+AU14+AX14+BA14+BD14+BG14+BJ14+BM14+BP14+BS14+BV14+BY14+CB14+CE14+CH14+CK14+CN14+CQ14+CT14)>=(CQ13+CT13+CN13+CK13+CH13+CE13+CB13+BY13+BV13+BS13+BP13+BM13+BJ13+BG13+BD13+BA13+AX13+AU13+AR13+AO13+AL13+AI13+AF13+AC13+Z13+W13+T13+Q13+N13+K13+H13+E13),CT13,IF(AND(CP18=CQ$13,CP18<>0),($N$3+$N$4-CQ13-CN13-CK13-CH13-CE13-CB13-BY13-BV13-BS13-BP13-BM13-BJ13-BG13-BD13-BA13-AX13-AU13-AR13-AO13-AL13-AI13-AF13-AC13-Z13-W13-T13-Q13-N13-K13-H13-E13+E14+H14+K14+N14+Q14+T14+W14+Z14+AC14+AF14+AI14+AL14+AO14+AR14+AU14+AX14+BA14+BD14+BG14+BJ14+BM14+BP14+BS14+BV14+BY14+CB14+CE14+CH14+CK14+CN14+CQ14+CT14),CT14)) -> 0 | CT18: =IF(CT13-CS18<=0,0,(CT13-CS18)) -> 0 | CU18: 0 | CX18: =E18 -> $775.00 | CY18: 1 | DA18: =H18 -> $1,960.00 | DB18: 1 | DD18: =K18 -> $2,940.00 | DE18: 1 | DG18: =N18 -> 0 | DH18: 1 | DJ18: =Q18 -> 0 | DK18: 1 | DM18: =T18 -> 0 | DN18: 1 | DP18: =W18 -> 0 | DQ18: 1 | DS18: =Z18 -> 0 | DT18: 1 | DV18: =AC18 -> 0 | DW18: 1 | DY18: =AF18 -> 0 | DZ18: 1 | EB18: =AI18 -> 0 | EC18: 1 | EE18: =AL18 -> 0 | EF18: 1 | EH18: =AO18 -> 0 | EI18: 1 | EK18: =AR18 -> 0 | EL18: 1 | EN18: =AU18 -> 0 | EO18: 1 | EQ18: =AX18 -> 0 | ER18: 1 | ET18: =BA18 -> 0 | EU18: 1 | EW18: =BD18 -> 0 | EX18: 1 | EZ18: =BG18 -> 0 | FA18: 1 | FC18: =BJ18 -> 0 | FD18: 1 | FF18: =BM18 -> 0 | FG18: 1 | FI18: =BP18 -> 0 | FJ18: 1 | FL18: =BS18 -> 0 | FM18: 1 | FO18: =BV18 -> 0 | FP18: 1 | FR18: =BY18 -> 0 | FS18: 1 | FU18: =CB18 -> 0 | FV18: 1 | FX18: =CE18 -> 0 | FY18: 1 | GA18: =CH18 -> 0 | GB18: 1 | GD18: =CK18 -> 0 | GE18: 1 | GG18: =CN18 -> 0 | GH18: 1 | GJ18: =CQ18 -> 0 | GK18: 1 | GM18: =CT18 -> 0 | GN18: 1
